Workbook

Sheet Title
C4: Финансовая модель
C5: инвестиционного проекта
C7: VEB_FMs
C8: ="Версия "&ut_Version -> Версия 1.0.0
C9: 2023-09-19
B11: Наименование проекта | C11: Проект 2 | D11: ut_Project_Name
B12: Инициатор проекта | C12: Инициатор 2 | D12: ut_Project_Initiator
B13: Местонахождение | C13: Российская Федерация | D13: ut_Project_Location
B15: Даты и периоды
B17: Дата начала модели | C17: 01.01.2023 | D17: ut_Date_Model_Start
B18: Дата окончания модели | C18: 31.12.2047 | D18: ut_Date_Model_End
B19: Количество месяцев в прогнозном периоде | C19: 12 | D19: ut_Months_in_Period
B20: Количество прогнозных периодов | C20: =COUNT(ut_Beginning_of_Period) -> 25 | D20: ut_Count
B21: Расчетное количество периодов | C21: =ROUND(((Title!C18-Title!C17)/((365+365+365+366)/4)*(12/Title!C19)),0) -> 25 | D21: ut_Count_Calc
B23: Период строительства
B24: с | C24: =DATE(YEAR(ut_Date_Model_Start),MONTH(ut_Date_Model_Start),DAY(ut_Date_Model_Start)) -> 2023-01-01
B25: по | C25: 2027-12-31 | D25: ut_Invest_EndDate
B27: Период запуска производства
B28: с | C28: =ut_Invest_EndDate+1 -> 2028-01-01
B29: по | C29: 2030-12-31 | D29: ut_RampUp_EndDate
B31: Количество лет деятельности проекта в постпрогнозном периоде
C32: 1000 | D32: ut_Post_Forecast
B34: Исторический период
B35: по | D35: ut_Historical_EndDate
B37: Валюта модели | C37: RUB | D37: ut_LCU
B38: Размерность финансовых показателей | C38: тыс. | D38: ut_Digits
C40: =ut_LCU -> RUB | D40: ut_LCU_alt
B43: Легенда
B45: Ячейки, доступные для редактирования
B46: xx | C46: - вводные параметры, выпадающие списки
B47: xx | C47: - обязательны к заполнению
B48: xx | C48: - предзаполненные, могут быть изменены
B49: xx | C49: - формулы, не рекомендуется изменять
B51: Ячейки, рассчитываемые автоматически
B52: xx | C52: - значения, устанавливаемые макросами | D52: защищены
B54: Прочие ячейки
B55: xx | C55: - период строительства/эксплуатации
B56: xx | C56: - исторический период
B58: xx | C58: - проверка наличия ошибки или корректности заполнения
B59: xx | C59: - проверка сходимости показателей

Sheet Inputs
H1: Номер периода | Q1: template | T1: =ut_Counter -> 1 | U1: 2 | V1: 3 | W1: 4 | X1: 5 | Y1: 6 | Z1: 7 | AA1: 8 | AB1: 9 | AC1: 10 | AD1: 11 | AE1: 12 | AF1: 13 | AG1: 14 | AH1: 15 | AI1: 16 | AJ1: 17 | AK1: 18 | AL1: 19 | AM1: 20 | AN1: 21 | AO1: 22 | AP1: 23 | AQ1: 24 | AR1: 25 | AS1: ut_Counter
H2: Начало периода | T2: =ut_Beginning_of_Period -> 2023-01-01 | U2: 2024-01-01 | V2: 2025-01-01 | W2: 2026-01-01 | X2: 2027-01-01 | Y2: 2028-01-01 | Z2: 2029-01-01 | AA2: 2030-01-01 | AB2: 2031-01-01 | AC2: 2032-01-01 | AD2: 2033-01-01 | AE2: 2034-01-01 | AF2: 2035-01-01 | AG2: 2036-01-01 | AH2: 2037-01-01 | AI2: 2038-01-01 | AJ2: 2039-01-01 | AK2: 2040-01-01 | AL2: 2041-01-01 | AM2: 2042-01-01 | AN2: 2043-01-01 | AO2: 2044-01-01 | AP2: 2045-01-01 | AQ2: 2046-01-01 | AR2: 2047-01-01 | AS2: ut_Beginning_of_Period
H3: Окончание периода | T3: =ut_End_of_Period -> 2023-12-31 | U3: 2024-12-31 | V3: 2025-12-31 | W3: 2026-12-31 | X3: 2027-12-31 | Y3: 2028-12-31 | Z3: 2029-12-31 | AA3: 2030-12-31 | AB3: 2031-12-31 | AC3: 2032-12-31 | AD3: 2033-12-31 | AE3: 2034-12-31 | AF3: 2035-12-31 | AG3: 2036-12-31 | AH3: 2037-12-31 | AI3: 2038-12-31 | AJ3: 2039-12-31 | AK3: 2040-12-31 | AL3: 2041-12-31 | AM3: 2042-12-31 | AN3: 2043-12-31 | AO3: 2044-12-31 | AP3: 2045-12-31 | AQ3: 2046-12-31 | AR3: 2047-12-31 | AS3: ut_End_of_Period
H4: Период строительства | T4: =ut_Construction_Period -> 1 | U4: 1 | V4: 1 | W4: 1 | X4: 1 | Y4: 0 | Z4: 0 | AA4: 0 | AB4: 0 | AC4: 0 | AD4: 0 | AE4: 0 | AF4: 0 | AG4: 0 | AH4: 0 | AI4: 0 | AJ4: 0 | AK4: 0 | AL4: 0 | AM4: 0 | AN4: 0 | AO4: 0 | AP4: 0 | AQ4: 0 | AR4: 0 | AS4: ut_Construction_Period
H5: Период запуска | T5: =ut_RampUp_Period -> 0 | U5: 0 | V5: 0 | W5: 0 | X5: 0 | Y5: 1 | Z5: 1 | AA5: 1 | AB5: 0 | AC5: 0 | AD5: 0 | AE5: 0 | AF5: 0 | AG5: 0 | AH5: 0 | AI5: 0 | AJ5: 0 | AK5: 0 | AL5: 0 | AM5: 0 | AN5: 0 | AO5: 0 | AP5: 0 | AQ5: 0 | AR5: 0 | AS5: ut_RampUp_Period
H6: Операционный период | Q6: source | T6: =ut_Operation_Period -> 0 | U6: 0 | V6: 0 | W6: 0 | X6: 0 | Y6: 0 | Z6: 0 | AA6: 0 | AB6: 1 | AC6: 1 | AD6: 1 | AE6: 1 | AF6: 1 | AG6: 1 | AH6: 1 | AI6: 1 | AJ6: 1 | AK6: 1 | AL6: 1 | AM6: 1 | AN6: 1 | AO6: 1 | AP6: 1 | AQ6: 1 | AR6: 1 | AS6: ut_Operation_Period
C7: Макроэкономические предпосылки
C9: Макро и иные предпосылки
C10: Наименование | D10: ед. | E10: ut_Inputs_Names | K10: ut_Inputs_list | AS10: ut_Inputs_Data
B11: 1 | C11: Инфляция | D11: % | J11: Инфляция | T11: =1+Macro!T12 -> 0.998 | U11: =1+Macro!U12 -> 1.031 | V11: =1+Macro!V12 -> 1.006 | W11: =1+Macro!W12 -> 1.054 | X11: =1+Macro!X12 -> 1.047 | Y11: =1+Macro!Y12 -> 1.038 | Z11: =1+Macro!Z12 -> 1.088 | AA11: =1+Macro!AA12 -> 1.028 | AB11: =1+Macro!AB12 -> 1.005 | AC11: =1+Macro!AC12 -> 1.02 | AD11: =1+Macro!AD12 -> 1.057 | AE11: =1+Macro!AE12 -> 1.068 | AF11: =1+Macro!AF12 -> 1.08 | AG11: =1+Macro!AG12 -> 1.071 | AH11: =1+Macro!AH12 -> 1.066 | AI11: =1+Macro!AI12 -> 1.062 | AJ11: =1+Macro!AJ12 -> 1.025 | AK11: =1+Macro!AK12 -> 1.036 | AL11: =1+Macro!AL12 -> 1.073 | AM11: =1+Macro!AM12 -> 1.066 | AN11: =1+Macro!AN12 -> 1.015 | AO11: =1+Macro!AO12 -> 1.077 | AP11: =1+Macro!AP12 -> 1.066 | AQ11: =1+Macro!AQ12 -> 1.048 | AR11: =1+Macro!AR12 -> 1.033
B12: =B11+1 -> 2 | C12: Производственная инфляция | D12: % | J12: Производственная инфляция | T12: =1+Macro!T13 -> 1.068 | U12: =1+Macro!U13 -> 1.051 | V12: =1+Macro!V13 -> 1.012 | W12: =1+Macro!W13 -> 1.079 | X12: =1+Macro!X13 -> 1.066 | Y12: =1+Macro!Y13 -> 1.066 | Z12: =1+Macro!Z13 -> 1.039 | AA12: =1+Macro!AA13 -> 1.077 | AB12: =1+Macro!AB13 -> 1.013 | AC12: =1+Macro!AC13 -> 1.058 | AD12: =1+Macro!AD13 -> 1.067 | AE12: =1+Macro!AE13 -> 1.037 | AF12: =1+Macro!AF13 -> 1.043 | AG12: =1+Macro!AG13 -> 1.015 | AH12: =1+Macro!AH13 -> 1.01 | AI12: =1+Macro!AI13 -> 1.005 | AJ12: =1+Macro!AJ13 -> 1.027 | AK12: =1+Macro!AK13 -> 1.078 | AL12: =1+Macro!AL13 -> 1.066 | AM12: =1+Macro!AM13 -> 1.061 | AN12: =1+Macro!AN13 -> 1.048 | AO12: =1+Macro!AO13 -> 1.047 | AP12: =1+Macro!AP13 -> 1.078 | AQ12: =1+Macro!AQ13 -> 1 | AR12: =1+Macro!AR13 -> 1.077
B13: 3 | C13: Темпы роста цен на природный газ | D13: % | J13: Темпы роста цен на природный газ | T13: =1+Macro!T14 -> 1.025 | U13: =1+Macro!U14 -> 1.087 | V13: =1+Macro!V14 -> 1.009 | W13: =1+Macro!W14 -> 1.08 | X13: =1+Macro!X14 -> 1.058 | Y13: =1+Macro!Y14 -> 1.082 | Z13: =1+Macro!Z14 -> 1.082 | AA13: =1+Macro!AA14 -> 1.018 | AB13: =1+Macro!AB14 -> 1.05 | AC13: =1+Macro!AC14 -> 1.009 | AD13: =1+Macro!AD14 -> 1.051 | AE13: =1+Macro!AE14 -> 1.046 | AF13: =1+Macro!AF14 -> 1.03 | AG13: =1+Macro!AG14 -> 1.03 | AH13: =1+Macro!AH14 -> 1.014 | AI13: =1+Macro!AI14 -> 1.015 | AJ13: =1+Macro!AJ14 -> 1.014 | AK13: =1+Macro!AK14 -> 1.076 | AL13: =1+Macro!AL14 -> 0.999 | AM13: =1+Macro!AM14 -> 1.047 | AN13: =1+Macro!AN14 -> 1.064 | AO13: =1+Macro!AO14 -> 1.004 | AP13: =1+Macro!AP14 -> 1.015 | AQ13: =1+Macro!AQ14 -> 1.078 | AR13: =1+Macro!AR14 -> 1.076
B14: 4 | C14: Темпы роста цен на электроэнергию | D14: % | J14: Темпы роста цен на электроэнергию | T14: =1+Macro!T15 -> 1.007 | U14: =1+Macro!U15 -> 1.082 | V14: =1+Macro!V15 -> 1.015 | W14: =1+Macro!W15 -> 1.056 | X14: =1+Macro!X15 -> 1.054 | Y14: =1+Macro!Y15 -> 1.088 | Z14: =1+Macro!Z15 -> 1.015 | AA14: =1+Macro!AA15 -> 1.063 | AB14: =1+Macro!AB15 -> 1.031 | AC14: =1+Macro!AC15 -> 1.008 | AD14: =1+Macro!AD15 -> 0.998 | AE14: =1+Macro!AE15 -> 1.046 | AF14: =1+Macro!AF15 -> 1.046 | AG14: =1+Macro!AG15 -> 1.057 | AH14: =1+Macro!AH15 -> 1.028 | AI14: =1+Macro!AI15 -> 1.044 | AJ14: =1+Macro!AJ15 -> 1.04 | AK14: =1+Macro!AK15 -> 1.074 | AL14: =1+Macro!AL15 -> 1.082 | AM14: =1+Macro!AM15 -> 1.078 | AN14: =1+Macro!AN15 -> 1.078 | AO14: =1+Macro!AO15 -> 1.073 | AP14: =1+Macro!AP15 -> 1.075 | AQ14: =1+Macro!AQ15 -> 1.05 | AR14: =1+Macro!AR15 -> 1.013
B15: 5 | C15: Транспортная инфляция | D15: % | J15: Транспортная инфляция | T15: =1+Macro!T16 -> 1.074 | U15: =1+Macro!U16 -> 1 | V15: =1+Macro!V16 -> 1.026 | W15: =1+Macro!W16 -> 1.011 | X15: =1+Macro!X16 -> 1.007 | Y15: =1+Macro!Y16 -> 1.049 | Z15: =1+Macro!Z16 -> 1.065 | AA15: =1+Macro!AA16 -> 1.083 | AB15: =1+Macro!AB16 -> 1.048 | AC15: =1+Macro!AC16 -> 1.008 | AD15: =1+Macro!AD16 -> 1.018 | AE15: =1+Macro!AE16 -> 1.019 | AF15: =1+Macro!AF16 -> 1.067 | AG15: =1+Macro!AG16 -> 1.069 | AH15: =1+Macro!AH16 -> 1.074 | AI15: =1+Macro!AI16 -> 1.077 | AJ15: =1+Macro!AJ16 -> 1.027 | AK15: =1+Macro!AK16 -> 1.06 | AL15: =1+Macro!AL16 -> 1.07 | AM15: =1+Macro!AM16 -> 1.04 | AN15: =1+Macro!AN16 -> 1.044 | AO15: =1+Macro!AO16 -> 1.064 | AP15: =1+Macro!AP16 -> 1.013 | AQ15: =1+Macro!AQ16 -> 1.003 | AR15: =1+Macro!AR16 -> 1.066
B16: 6 | C16: Темпы роста цен на пар | D16: % | J16: Темпы роста цен на пар | T16: =1+Macro!T17 -> 1.016 | U16: =1+Macro!U17 -> 1.078 | V16: =1+Macro!V17 -> 1.014 | W16: =1+Macro!W17 -> 1.081 | X16: =1+Macro!X17 -> 1.086 | Y16: =1+Macro!Y17 -> 1.057 | Z16: =1+Macro!Z17 -> 1.078 | AA16: =1+Macro!AA17 -> 1.077 | AB16: =1+Macro!AB17 -> 1.06 | AC16: =1+Macro!AC17 -> 1.047 | AD16: =1+Macro!AD17 -> 1.076 | AE16: =1+Macro!AE17 -> 1.026 | AF16: =1+Macro!AF17 -> 1.069 | AG16: =1+Macro!AG17 -> 1.035 | AH16: =1+Macro!AH17 -> 1.039 | AI16: =1+Macro!AI17 -> 1.048 | AJ16: =1+Macro!AJ17 -> 1.078 | AK16: =1+Macro!AK17 -> 1.056 | AL16: =1+Macro!AL17 -> 1.027 | AM16: =1+Macro!AM17 -> 1.077 | AN16: =1+Macro!AN17 -> 1.017 | AO16: =1+Macro!AO17 -> 1.041 | AP16: =1+Macro!AP17 -> 1.056 | AQ16: =1+Macro!AQ17 -> 1.08 | AR16: =1+Macro!AR17 -> 1.019
B17: 7 | C17: Темпы роста заработной платы | D17: % | J17: Темпы роста заработной платы | T17: =1+Macro!T18 -> 1.067 | U17: =1+Macro!U18 -> 1.063 | V17: =1+Macro!V18 -> 1.042 | W17: =1+Macro!W18 -> 1.019 | X17: =1+Macro!X18 -> 1.005 | Y17: =1+Macro!Y18 -> 1.063 | Z17: =1+Macro!Z18 -> 1.068 | AA17: =1+Macro!AA18 -> 1.021 | AB17: =1+Macro!AB18 -> 1.044 | AC17: =1+Macro!AC18 -> 1.067 | AD17: =1+Macro!AD18 -> 1.017 | AE17: =1+Macro!AE18 -> 1.073 | AF17: =1+Macro!AF18 -> 1.026 | AG17: =1+Macro!AG18 -> 1.081 | AH17: =1+Macro!AH18 -> 1.052 | AI17: =1+Macro!AI18 -> 1.047 | AJ17: =1+Macro!AJ18 -> 1.044 | AK17: =1+Macro!AK18 -> 1.006 | AL17: =1+Macro!AL18 -> 1.016 | AM17: =1+Macro!AM18 -> 1.073 | AN17: =1+Macro!AN18 -> 1.027 | AO17: =1+Macro!AO18 -> 1.042 | AP17: =1+Macro!AP18 -> 1.031 | AQ17: =1+Macro!AQ18 -> 1.026 | AR17: =1+Macro!AR18 -> 1.078
B18: 8 | C18: Долларовая инфляция | D18: % | J18: Долларовая инфляция | T18: =1+Macro!T19 -> 1.015 | U18: =1+Macro!U19 -> 1.016 | V18: =1+Macro!V19 -> 1.016 | W18: =1+Macro!W19 -> 1.016 | X18: =1+Macro!X19 -> 1.016 | Y18: =1+Macro!Y19 -> 1.016 | Z18: =1+Macro!Z19 -> 1.017 | AA18: =1+Macro!AA19 -> 1.017 | AB18: =1+Macro!AB19 -> 1.017 | AC18: =1+Macro!AC19 -> 1.017 | AD18: =1+Macro!AD19 -> 1.017 | AE18: =1+Macro!AE19 -> 1.017 | AF18: =1+Macro!AF19 -> 1.017 | AG18: =1+Macro!AG19 -> 1.017 | AH18: =1+Macro!AH19 -> 1.017 | AI18: =1+Macro!AI19 -> 1.017 | AJ18: =1+Macro!AJ19 -> 1.017 | AK18: =1+Macro!AK19 -> 1.017 | AL18: =1+Macro!AL19 -> 1.017 | AM18: =1+Macro!AM19 -> 1.017 | AN18: =1+Macro!AN19 -> 1.017 | AO18: =1+Macro!AO19 -> 1.017 | AP18: =1+Macro!AP19 -> 1.017 | AQ18: =1+Macro!AQ19 -> 1.017 | AR18: =1+Macro!AR19 -> 1.017
B19: 9 | C19: Стоимость продукта 1 | J19: Стоимость продукта 1 | T19: =Macro!T23 -> 286.12 | U19: =Macro!U23 -> 305.1208 | V19: =Macro!V23 -> 298.217176 | W19: =Macro!W23 -> 320.5388936 | X19: =Macro!X23 -> 345.092783 | Y19: =Macro!Y23 -> 353.1955664 | Z19: =Macro!Z23 -> 378.2331674 | AA19: =Macro!AA23 -> 372.1685041 | AB19: =Macro!AB23 -> 354.3383938 | AC19: =Macro!AC23 -> 348.751626 | AD19: =Macro!AD23 -> 346.0141097 | AE19: =Macro!AE23 -> 367.6952385 | AF19: =Macro!AF23 -> 344.2796194 | AG19: =Macro!AG23 -> 336.2012308 | AH19: =Macro!AH23 -> 359.7093416 | AI19: =Macro!AI23 -> 348.3209679 | AJ19: =Macro!AJ23 -> 375.6530647 | AK19: =Macro!AK23 -> 402.7118405 | AL19: =Macro!AL23 -> 379.7720117 | AM19: =Macro!AM23 -> 373.6765715 | AN19: =Macro!AN23 -> 400.5574629 | AO19: =Macro!AO23 -> 400.5574629 | AP19: =Macro!AP23 -> 387.5351644 | AQ19: =Macro!AQ23 -> 371.9084062 | AR19: =Macro!AR23 -> 401.5992468
B20: 10
B21: 11
B22: 12
B23: 13
B24: 14
B25: 15
B26: 16
B27: 17
B28: 18
B29: 19
B30: 20
C33: Курсы валют
P34: =COUNTA(ut_Currency_list) -> 4 | AS34: ut_Exchange_Rates
C35: =INDEX(ut_Currency_list,K35)&"/"&INDEX(ut_Currency_list,L35) -> RUB/RUB | D35: ut_Exchange_Rates_Headers | K35: 1 | L35: 1 | M35: =MATCH(ut_LCU,ut_Currency_list,0) -> 1 | P35: =COUNT(T41:AR45) -> 50 | S35: 1 | T35: 1 | U35: 1 | V35: 1 | W35: 1 | X35: 1 | Y35: 1 | Z35: 1 | AA35: 1 | AB35: 1 | AC35: 1 | AD35: 1 | AE35: 1 | AF35: 1 | AG35: 1 | AH35: 1 | AI35: 1 | AJ35: 1 | AK35: 1 | AL35: 1 | AM35: 1 | AN35: 1 | AO35: 1 | AP35: 1 | AQ35: 1 | AR35: 1
C36: USD/USD | K36: 2 | L36: 2 | S36: 1 | T36: 1 | U36: 1 | V36: 1 | W36: 1 | X36: 1 | Y36: 1 | Z36: 1 | AA36: 1 | AB36: 1 | AC36: 1 | AD36: 1 | AE36: 1 | AF36: 1 | AG36: 1 | AH36: 1 | AI36: 1 | AJ36: 1 | AK36: 1 | AL36: 1 | AM36: 1 | AN36: 1 | AO36: 1 | AP36: 1 | AQ36: 1 | AR36: 1
C37: EUR/EUR | K37: 3 | L37: 3 | P37: =MAX(ut_Counter) -> 25 | S37: 1 | T37: 1 | U37: 1 | V37: 1 | W37: 1 | X37: 1 | Y37: 1 | Z37: 1 | AA37: 1 | AB37: 1 | AC37: 1 | AD37: 1 | AE37: 1 | AF37: 1 | AG37: 1 | AH37: 1 | AI37: 1 | AJ37: 1 | AK37: 1 | AL37: 1 | AM37: 1 | AN37: 1 | AO37: 1 | AP37: 1 | AQ37: 1 | AR37: 1
C38: CHY/CHY | K38: 4 | L38: 4 | S38: 1 | T38: 1 | U38: 1 | V38: 1 | W38: 1 | X38: 1 | Y38: 1 | Z38: 1 | AA38: 1 | AB38: 1 | AC38: 1 | AD38: 1 | AE38: 1 | AF38: 1 | AG38: 1 | AH38: 1 | AI38: 1 | AJ38: 1 | AK38: 1 | AL38: 1 | AM38: 1 | AN38: 1 | AO38: 1 | AP38: 1 | AQ38: 1 | AR38: 1
C39: / | K39: 5 | L39: 5 | S39: 1 | T39: 1 | U39: 1 | V39: 1 | W39: 1 | X39: 1 | Y39: 1 | Z39: 1 | AA39: 1 | AB39: 1 | AC39: 1 | AD39: 1 | AE39: 1 | AF39: 1 | AG39: 1 | AH39: 1 | AI39: 1 | AJ39: 1 | AK39: 1 | AL39: 1 | AM39: 1 | AN39: 1 | AO39: 1 | AP39: 1 | AQ39: 1 | AR39: 1
C40: / | K40: 6 | L40: 6 | S40: 1 | T40: 1 | U40: 1 | V40: 1 | W40: 1 | X40: 1 | Y40: 1 | Z40: 1 | AA40: 1 | AB40: 1 | AC40: 1 | AD40: 1 | AE40: 1 | AF40: 1 | AG40: 1 | AH40: 1 | AI40: 1 | AJ40: 1 | AK40: 1 | AL40: 1 | AM40: 1 | AN40: 1 | AO40: 1 | AP40: 1 | AQ40: 1 | AR40: 1
C41: USD/RUB | K41: =IF(L41=1,2,1) -> 2 | L41: =M35 -> 1 | Q41: =(MAX(ut_Counter)>COUNT(T41:AR41))*(INDEX(ut_Currency_list,K41)<>"")*1 -> 0 | T41: =Macro!T20 -> 60.63 | U41: =Macro!U20 -> 61.8 | V41: =Macro!V20 -> 63.02 | W41: =Macro!W20 -> 64.26 | X41: =Macro!X20 -> 65.5 | Y41: =Macro!Y20 -> 66.74 | Z41: =Macro!Z20 -> 67.95 | AA41: =Macro!AA20 -> 69.1 | AB41: =Macro!AB20 -> 69.1 | AC41: =Macro!AC20 -> 69.1 | AD41: =Macro!AD20 -> 69.1 | AE41: =Macro!AE20 -> 69.1 | AF41: =Macro!AF20 -> 69.1 | AG41: =Macro!AG20 -> 69.1 | AH41: =Macro!AH20 -> 69.1 | AI41: =Macro!AI20 -> 69.1 | AJ41: =Macro!AJ20 -> 69.1 | AK41: =Macro!AK20 -> 69.1 | AL41: =Macro!AL20 -> 69.1 | AM41: =Macro!AM20 -> 69.1 | AN41: =Macro!AN20 -> 69.1 | AO41: =Macro!AO20 -> 69.1 | AP41: =Macro!AP20 -> 69.1 | AQ41: =Macro!AQ20 -> 69.1 | AR41: =Macro!AR20 -> 69.1
C42: EUR/RUB | K42: =IF((K41+1)=L42,(K41+2),(K41+1)) -> 3 | L42: =L41 -> 1 | Q42: =(MAX(ut_Counter)>COUNT(T42:AR42))*(INDEX(ut_Currency_list,K42)<>"")*1 -> 0 | T42: =Macro!T21 -> 74.83337448 | U42: =Macro!U21 -> 76.0896331 | V42: =Macro!V21 -> 77.40112994 | W42: =Macro!W21 -> 78.73070326 | X42: =Macro!X21 -> 80.06356191 | Y42: =Macro!Y21 -> 81.38031947 | Z42: =Macro!Z21 -> 82.65417832 | AA42: =Macro!AA21 -> 83.8592233 | AB42: =Macro!AB21 -> 83.8592233 | AC42: =Macro!AC21 -> 83.8592233 | AD42: =Macro!AD21 -> 83.8592233 | AE42: =Macro!AE21 -> 83.8592233 | AF42: =Macro!AF21 -> 83.8592233 | AG42: =Macro!AG21 -> 83.8592233 | AH42: =Macro!AH21 -> 83.8592233 | AI42: =Macro!AI21 -> 83.8592233 | AJ42: =Macro!AJ21 -> 83.8592233 | AK42: =Macro!AK21 -> 83.8592233 | AL42: =Macro!AL21 -> 83.8592233 | AM42: =Macro!AM21 -> 83.8592233 | AN42: =Macro!AN21 -> 83.8592233 | AO42: =Macro!AO21 -> 83.8592233 | AP42: =Macro!AP21 -> 83.8592233 | AQ42: =Macro!AQ21 -> 83.8592233 | AR42: =Macro!AR21 -> 83.8592233
C43: CHY/RUB | K43: =IF((K42+1)=L43,(K42+2),(K42+1)) -> 4 | L43: =L42 -> 1 | Q43: =(MAX(ut_Counter)>COUNT(T43:AR43))*(INDEX(ut_Currency_list,K43)<>"")*1 -> 1
C44: /RUB | K44: =IF((K43+1)=L44,(K43+2),(K43+1)) -> 5 | L44: =L43 -> 1 | Q44: =(MAX(ut_Counter)>COUNT(T44:AR44))*(INDEX(ut_Currency_list,K44)<>"")*1 -> 0
C45: /RUB | K45: =IF((K44+1)=L45,(K44+2),(K44+1)) -> 6 | L45: =L44 -> 1 | Q45: =(MAX(ut_Counter)>COUNT(T45:AR45))*(INDEX(ut_Currency_list,K45)<>"")*1 -> 0
C46: RUB/USD | K46: =IF(L46=1,2,1) -> 1 | L46: =IF(M$35<>1,1,2) -> 2 | O46: =IFERROR(MATCH(K46,K$41:K$45,0),"rev") -> rev | P46: =MATCH(L46,K$41:K$45,0) -> 1 | S46: =IFERROR(IF($O46="rev",1/INDEX(S$41:S$45,$P46),INDEX(S$41:S$45,$O46)/INDEX(S$41:S$45,$P46)),0) -> 0 | T46: 0.01649348507 | U46: 0.01618122977 | V46: 0.01586797842 | W46: 0.01556178027 | X46: 0.01526717557 | Y46: 0.01498351813 | Z46: 0.01471670346 | AA46: 0.01447178003 | AB46: 0.01447178003 | AC46: 0.01447178003 | AD46: 0.01447178003 | AE46: 0.01447178003 | AF46: 0.01447178003 | AG46: 0.01447178003 | AH46: 0.01447178003 | AI46: =IFERROR(IF($O46="rev",1/INDEX(AI$41:AI$45,$P46),INDEX(AI$41:AI$45,$O46)/INDEX(AI$41:AI$45,$P46)),0) -> 0.01447178003 | AJ46: 0.01447178003 | AK46: 0.01447178003 | AL46: 0.01447178003 | AM46: 0.01447178003 | AN46: 0.01447178003 | AO46: 0.01447178003 | AP46: 0.01447178003 | AQ46: 0.01447178003 | AR46: =IFERROR(IF($O46="rev",1/INDEX(AR$41:AR$45,$P46),INDEX(AR$41:AR$45,$O46)/INDEX(AR$41:AR$45,$P46)),0) -> 0.01447178003
C47: EUR/USD | K47: =IF((K46+1)=L47,(K46+2),(K46+1)) -> 3 | L47: =IF(M$35<>1,1,2) -> 2 | O47: 2 | P47: 1 | S47: 0 | T47: 1.234263145 | U47: 1.231223836 | V47: 1.22819946 | W47: 1.225189904 | X47: 1.222344457 | Y47: 1.219363492 | Z47: 1.216397032 | AA47: 1.213592233 | AB47: 1.213592233 | AC47: 1.213592233 | AD47: 1.213592233 | AE47: 1.213592233 | AF47: 1.213592233 | AG47: 1.213592233 | AH47: 1.213592233 | AI47: 1.213592233 | AJ47: 1.213592233 | AK47: 1.213592233 | AL47: 1.213592233 | AM47: 1.213592233 | AN47: 1.213592233 | AO47: 1.213592233 | AP47: 1.213592233 | AQ47: 1.213592233 | AR47: 1.213592233
C48: CHY/USD | K48: =IF((K47+1)=L48,(K47+2),(K47+1)) -> 4 | L48: =IF(M$35<>1,1,2) -> 2 | O48: 3 | P48: 1 | S48: 0 | T48: 0 | U48: 0 | V48: 0 | W48: 0 | X48: 0 | Y48: 0 | Z48: 0 | AA48: 0 | AB48: 0 | AC48: 0 | AD48: 0 | AE48: 0 | AF48: 0 | AG48: 0 | AH48: 0 | AI48: 0 | AJ48: 0 | AK48: 0 | AL48: 0 | AM48: 0 | AN48: 0 | AO48: 0 | AP48: 0 | AQ48: 0 | AR48: 0
C49: /USD | K49: =IF((K48+1)=L49,(K48+2),(K48+1)) -> 5 | L49: =IF(M$35<>1,1,2) -> 2 | O49: 4 | P49: 1 | S49: 0 | T49: 0 | U49: 0 | V49: 0 | W49: 0 | X49: 0 | Y49: 0 | Z49: 0 | AA49: 0 | AB49: 0 | AC49: 0 | AD49: 0 | AE49: 0 | AF49: 0 | AG49: 0 | AH49: 0 | AI49: 0 | AJ49: 0 | AK49: 0 | AL49: 0 | AM49: 0 | AN49: 0 | AO49: 0 | AP49: 0 | AQ49: 0 | AR49: 0
C50: /USD | K50: =IF((K49+1)=L50,(K49+2),(K49+1)) -> 6 | L50: =IF(M$35<>1,1,2) -> 2 | O50: 5 | P50: 1 | S50: 0 | T50: 0 | U50: 0 | V50: 0 | W50: 0 | X50: 0 | Y50: 0 | Z50: 0 | AA50: 0 | AB50: 0 | AC50: 0 | AD50: 0 | AE50: 0 | AF50: 0 | AG50: 0 | AH50: 0 | AI50: 0 | AJ50: 0 | AK50: 0 | AL50: 0 | AM50: 0 | AN50: 0 | AO50: 0 | AP50: 0 | AQ50: 0 | AR50: 0
C51: RUB/EUR | K51: =IF(L51=1,2,1) -> 1 | L51: =IF((L46+1)=L$41,(L46+2),(L46+1)) -> 3 | O51: rev | P51: 2 | S51: 0 | T51: 0.01336302161 | U51: 0.01314239482 | V51: 0.01291970803 | W51: 0.01270152505 | X51: 0.01249007634 | Y51: 0.01228798322 | Z51: 0.01209860191 | AA51: 0.01192474674 | AB51: 0.01192474674 | AC51: 0.01192474674 | AD51: 0.01192474674 | AE51: 0.01192474674 | AF51: 0.01192474674 | AG51: 0.01192474674 | AH51: 0.01192474674 | AI51: 0.01192474674 | AJ51: 0.01192474674 | AK51: 0.01192474674 | AL51: 0.01192474674 | AM51: 0.01192474674 | AN51: 0.01192474674 | AO51: 0.01192474674 | AP51: 0.01192474674 | AQ51: 0.01192474674 | AR51: 0.01192474674
C52: USD/EUR | K52: =IF((K51+1)=L52,(K51+2),(K51+1)) -> 2 | L52: 3 | O52: 1 | P52: 2 | S52: 0 | T52: 0.8102 | U52: 0.8122 | V52: 0.8142 | W52: 0.8162 | X52: 0.8181 | Y52: 0.8201 | Z52: 0.8221 | AA52: 0.824 | AB52: 0.824 | AC52: 0.824 | AD52: 0.824 | AE52: 0.824 | AF52: 0.824 | AG52: 0.824 | AH52: 0.824 | AI52: 0.824 | AJ52: 0.824 | AK52: 0.824 | AL52: 0.824 | AM52: 0.824 | AN52: 0.824 | AO52: 0.824 | AP52: 0.824 | AQ52: 0.824 | AR52: 0.824
C53: CHY/EUR | K53: =IF((K52+1)=L53,(K52+2),(K52+1)) -> 4 | L53: 3 | O53: 3 | P53: 2 | S53: 0 | T53: 0 | U53: 0 | V53: 0 | W53: 0 | X53: 0 | Y53: 0 | Z53: 0 | AA53: 0 | AB53: 0 | AC53: 0 | AD53: 0 | AE53: 0 | AF53: 0 | AG53: 0 | AH53: 0 | AI53: 0 | AJ53: 0 | AK53: 0 | AL53: 0 | AM53: 0 | AN53: 0 | AO53: 0 | AP53: 0 | AQ53: 0 | AR53: 0
C54: /EUR | K54: =IF((K53+1)=L54,(K53+2),(K53+1)) -> 5 | L54: 3 | O54: 4 | P54: 2 | S54: 0 | T54: 0 | U54: 0 | V54: 0 | W54: 0 | X54: 0 | Y54: 0 | Z54: 0 | AA54: 0 | AB54: 0 | AC54: 0 | AD54: 0 | AE54: 0 | AF54: 0 | AG54: 0 | AH54: 0 | AI54: 0 | AJ54: 0 | AK54: 0 | AL54: 0 | AM54: 0 | AN54: 0 | AO54: 0 | AP54: 0 | AQ54: 0 | AR54: 0
C55: /EUR | K55: =IF((K54+1)=L55,(K54+2),(K54+1)) -> 6 | L55: 3 | O55: 5 | P55: 2 | S55: 0 | T55: 0 | U55: 0 | V55: 0 | W55: 0 | X55: 0 | Y55: 0 | Z55: 0 | AA55: 0 | AB55: 0 | AC55: 0 | AD55: 0 | AE55: 0 | AF55: 0 | AG55: 0 | AH55: 0 | AI55: 0 | AJ55: 0 | AK55: 0 | AL55: 0 | AM55: 0 | AN55: 0 | AO55: 0 | AP55: 0 | AQ55: 0 | AR55: 0
C56: RUB/CHY | K56: =IF(L56=1,2,1) -> 1 | L56: 4 | O56: rev | P56: 3 | S56: =IFERROR(IF($O56="rev",1/INDEX(S$41:S$45,$P56),INDEX(S$41:S$45,$O56)/INDEX(S$41:S$45,$P56)),0) -> 0 | T56: 0 | U56: 0 | V56: 0 | W56: 0 | X56: 0 | Y56: 0 | Z56: 0 | AA56: 0 | AB56: 0 | AC56: 0 | AD56: 0 | AE56: 0 | AF56: 0 | AG56: 0 | AH56: 0 | AI56: 0 | AJ56: 0 | AK56: 0 | AL56: 0 | AM56: 0 | AN56: 0 | AO56: 0 | AP56: 0 | AQ56: 0 | AR56: =IFERROR(IF($O56="rev",1/INDEX(AR$41:AR$45,$P56),INDEX(AR$41:AR$45,$O56)/INDEX(AR$41:AR$45,$P56)),0) -> 0
C57: USD/CHY | K57: =IF((K56+1)=L57,(K56+2),(K56+1)) -> 2 | L57: 4 | O57: 1 | P57: 3 | S57: 0 | T57: 0 | U57: 0 | V57: 0 | W57: 0 | X57: 0 | Y57: 0 | Z57: 0 | AA57: 0 | AB57: 0 | AC57: 0 | AD57: 0 | AE57: 0 | AF57: 0 | AG57: 0 | AH57: 0 | AI57: 0 | AJ57: 0 | AK57: 0 | AL57: 0 | AM57: 0 | AN57: 0 | AO57: 0 | AP57: 0 | AQ57: 0 | AR57: 0
C58: EUR/CHY | K58: =IF((K57+1)=L58,(K57+2),(K57+1)) -> 3 | L58: 4 | O58: 2 | P58: 3 | S58: 0 | T58: 0 | U58: 0 | V58: 0 | W58: 0 | X58: 0 | Y58: 0 | Z58: 0 | AA58: 0 | AB58: 0 | AC58: 0 | AD58: 0 | AE58: 0 | AF58: 0 | AG58: 0 | AH58: 0 | AI58: 0 | AJ58: 0 | AK58: 0 | AL58: 0 | AM58: 0 | AN58: 0 | AO58: 0 | AP58: 0 | AQ58: 0 | AR58: 0
C59: /CHY | K59: =IF((K58+1)=L59,(K58+2),(K58+1)) -> 5 | L59: 4 | O59: 4 | P59: 3 | S59: 0 | T59: 0 | U59: 0 | V59: 0 | W59: 0 | X59: 0 | Y59: 0 | Z59: 0 | AA59: 0 | AB59: 0 | AC59: 0 | AD59: 0 | AE59: 0 | AF59: 0 | AG59: 0 | AH59: 0 | AI59: 0 | AJ59: 0 | AK59: 0 | AL59: 0 | AM59: 0 | AN59: 0 | AO59: 0 | AP59: 0 | AQ59: 0 | AR59: 0
C60: /CHY | K60: =IF((K59+1)=L60,(K59+2),(K59+1)) -> 6 | L60: 4 | O60: 5 | P60: 3 | S60: 0 | T60: 0 | U60: 0 | V60: 0 | W60: 0 | X60: 0 | Y60: 0 | Z60: 0 | AA60: 0 | AB60: 0 | AC60: 0 | AD60: 0 | AE60: 0 | AF60: 0 | AG60: 0 | AH60: 0 | AI60: 0 | AJ60: 0 | AK60: 0 | AL60: 0 | AM60: 0 | AN60: 0 | AO60: 0 | AP60: 0 | AQ60: 0 | AR60: 0
C61: RUB/ | K61: =IF(L61=1,2,1) -> 1 | L61: 5 | O61: rev | P61: 4 | S61: 0 | T61: 0 | U61: 0 | V61: 0 | W61: 0 | X61: 0 | Y61: 0 | Z61: 0 | AA61: 0 | AB61: 0 | AC61: 0 | AD61: 0 | AE61: 0 | AF61: 0 | AG61: 0 | AH61: 0 | AI61: 0 | AJ61: 0 | AK61: 0 | AL61: 0 | AM61: 0 | AN61: 0 | AO61: 0 | AP61: 0 | AQ61: 0 | AR61: 0
C62: USD/ | K62: =IF((K61+1)=L62,(K61+2),(K61+1)) -> 2 | L62: 5 | O62: 1 | P62: 4 | S62: 0 | T62: 0 | U62: 0 | V62: 0 | W62: 0 | X62: 0 | Y62: 0 | Z62: 0 | AA62: 0 | AB62: =IFERROR(IF($O62="rev",1/INDEX(AB$41:AB$45,$P62),INDEX(AB$41:AB$45,$O62)/INDEX(AB$41:AB$45,$P62)),0) -> 0 | AC62: 0 | AD62: 0 | AE62: 0 | AF62: 0 | AG62: 0 | AH62: 0 | AI62: 0 | AJ62: 0 | AK62: 0 | AL62: 0 | AM62: 0 | AN62: 0 | AO62: 0 | AP62: 0 | AQ62: 0 | AR62: 0
C63: EUR/ | K63: =IF((K62+1)=L63,(K62+2),(K62+1)) -> 3 | L63: 5 | O63: 2 | P63: 4 | S63: 0 | T63: 0 | U63: 0 | V63: 0 | W63: 0 | X63: 0 | Y63: 0 | Z63: 0 | AA63: 0 | AB63: 0 | AC63: 0 | AD63: 0 | AE63: 0 | AF63: 0 | AG63: 0 | AH63: 0 | AI63: 0 | AJ63: 0 | AK63: 0 | AL63: 0 | AM63: 0 | AN63: 0 | AO63: 0 | AP63: 0 | AQ63: 0 | AR63: 0
C64: CHY/ | K64: =IF((K63+1)=L64,(K63+2),(K63+1)) -> 4 | L64: 5 | O64: 3 | P64: 4 | S64: 0 | T64: 0 | U64: 0 | V64: 0 | W64: 0 | X64: 0 | Y64: 0 | Z64: 0 | AA64: 0 | AB64: 0 | AC64: 0 | AD64: 0 | AE64: 0 | AF64: 0 | AG64: 0 | AH64: 0 | AI64: 0 | AJ64: 0 | AK64: 0 | AL64: 0 | AM64: 0 | AN64: 0 | AO64: 0 | AP64: 0 | AQ64: 0 | AR64: 0
C65: / | K65: =IF((K64+1)=L65,(K64+2),(K64+1)) -> 6 | L65: 5 | O65: 5 | P65: 4 | S65: 0 | T65: 0 | U65: 0 | V65: 0 | W65: 0 | X65: 0 | Y65: 0 | Z65: 0 | AA65: 0 | AB65: 0 | AC65: 0 | AD65: 0 | AE65: 0 | AF65: 0 | AG65: 0 | AH65: 0 | AI65: 0 | AJ65: 0 | AK65: 0 | AL65: 0 | AM65: 0 | AN65: 0 | AO65: 0 | AP65: 0 | AQ65: 0 | AR65: 0
C66: RUB/ | K66: =IF(L66=1,2,1) -> 1 | L66: 6 | O66: rev | P66: 5 | S66: 0 | T66: 0 | U66: 0 | V66: 0 | W66: 0 | X66: 0 | Y66: 0 | Z66: 0 | AA66: 0 | AB66: 0 | AC66: 0 | AD66: 0 | AE66: 0 | AF66: 0 | AG66: 0 | AH66: 0 | AI66: 0 | AJ66: 0 | AK66: 0 | AL66: 0 | AM66: 0 | AN66: 0 | AO66: 0 | AP66: 0 | AQ66: 0 | AR66: 0
C67: USD/ | K67: =IF((K66+1)=L67,(K66+2),(K66+1)) -> 2 | L67: 6 | O67: 1 | P67: 5 | S67: 0 | T67: 0 | U67: 0 | V67: 0 | W67: 0 | X67: 0 | Y67: 0 | Z67: 0 | AA67: 0 | AB67: 0 | AC67: 0 | AD67: 0 | AE67: 0 | AF67: 0 | AG67: 0 | AH67: 0 | AI67: 0 | AJ67: 0 | AK67: 0 | AL67: 0 | AM67: 0 | AN67: 0 | AO67: 0 | AP67: 0 | AQ67: 0 | AR67: 0
C68: EUR/ | K68: =IF((K67+1)=L68,(K67+2),(K67+1)) -> 3 | L68: 6 | O68: 2 | P68: 5 | S68: 0 | T68: 0 | U68: 0 | V68: 0 | W68: 0 | X68: 0 | Y68: 0 | Z68: 0 | AA68: 0 | AB68: 0 | AC68: 0 | AD68: 0 | AE68: 0 | AF68: 0 | AG68: 0 | AH68: 0 | AI68: 0 | AJ68: 0 | AK68: 0 | AL68: 0 | AM68: 0 | AN68: 0 | AO68: 0 | AP68: 0 | AQ68: 0 | AR68: 0
C69: CHY/ | K69: =IF((K68+1)=L69,(K68+2),(K68+1)) -> 4 | L69: 6 | O69: 3 | P69: 5 | S69: 0 | T69: 0 | U69: 0 | V69: 0 | W69: 0 | X69: 0 | Y69: 0 | Z69: 0 | AA69: 0 | AB69: 0 | AC69: 0 | AD69: 0 | AE69: 0 | AF69: 0 | AG69: 0 | AH69: 0 | AI69: 0 | AJ69: 0 | AK69: 0 | AL69: 0 | AM69: 0 | AN69: 0 | AO69: 0 | AP69: 0 | AQ69: 0 | AR69: 0
C70: / | K70: =IF((K69+1)=L70,(K69+2),(K69+1)) -> 5 | L70: 6 | O70: 4 | P70: 5 | S70: 0 | T70: 0 | U70: 0 | V70: 0 | W70: 0 | X70: 0 | Y70: 0 | Z70: 0 | AA70: 0 | AB70: 0 | AC70: 0 | AD70: 0 | AE70: 0 | AF70: 0 | AG70: 0 | AH70: 0 | AI70: 0 | AJ70: 0 | AK70: 0 | AL70: 0 | AM70: 0 | AN70: 0 | AO70: 0 | AP70: 0 | AQ70: 0 | AR70: 0
C72: Капитальные затраты
C75: Капитальные затраты проекта
C77: Наименование | D77: валюта | E77: Срок полезного использования, лет | F77: ОС или НМА | G77: Облагается налогом на имущество? | H77: ut_CapEx_Dir | J77: ставка амортизации | T77: Графики финансирования -> | AS77: ut_CapEx_Inputs
A78: =IF(COUNTIF(C78:G78,"="&"")>0,"!","") ->  | B78: =B77+1 -> 1 | C78: Капитальное строительство | D78: RUB | E78: 100 | F78: ОС | G78: да | H78: =SUM(T78:AR78) -> 9400000 | J78: =IFERROR(1/E78*(ut_Months_in_Period/12),0) -> 0.01 | K78: =IF(D78<>"",IFERROR(MATCH(CONCATENATE(D78,"/",ut_LCU),ut_Exchange_Rates_Headers,0),0),0) -> 1 | T78: 2200000 | U78: 2200000 | V78: 1900000 | W78: 2800000 | X78: 300000
A79: =IF(COUNTIF(C79:G79,"="&"")>0,"!","") ->  | B79: 2 | C79: Инженерные сети и сооружения | D79: RUB | E79: 100 | F79: ОС | G79: да | H79: =SUM(T79:AR79) -> 4800000 | J79: 0.01 | K79: 1 | T79: 1300000 | U79: 900000 | V79: 900000 | W79: 1700000
A80: =IF(COUNTIF(C80:G80,"="&"")>0,"!","") ->  | B80: 3 | C80: Оборудование | D80: EUR | E80: 25 | F80: ОС | G80: нет | H80: =SUM(T80:AR80) -> 350000 | J80: =IFERROR(1/E80*(ut_Months_in_Period/12),0) -> 0.04 | K80: =IF(D80<>"",IFERROR(MATCH(CONCATENATE(D80,"/",ut_LCU),ut_Exchange_Rates_Headers,0),0),0) -> 8 | W80: 250000 | X80: 100000
B81: 4 | C81: Лицензирование | D81: USD | E81: 1000 | F81: НМА | G81: нет | H81: 45000 | J81: 0.001 | K81: 7 | X81: 45000
D83: Сумма | E83: в валюте модели | G83: =ut_Digits&ut_LCU -> тыс. RUB | H83: =SUM(T83:AR83) -> 44836532.01 | T83: =SUMIFS(T78:T82,$D$78:$D$82,INDEX(ut_Currency_list,1))*INDEX(ut_Exchange_Rates_calc,1,T$1)+SUMIFS(T78:T82,$D$78:$D$82,INDEX(ut_Currency_list,2))*INDEX(ut_Exchange_Rates_calc,2,T$1)+SUMIFS(T78:T82,$D$78:$D$82,INDEX(ut_Currency_list,3))*INDEX(ut_Exchange_Rates_calc,3,T$1)+SUMIFS(T78:T82,$D$78:$D$82,INDEX(ut_Currency_list,4))*INDEX(ut_Exchange_Rates_calc,4,T$1)+SUMIFS(T78:T82,$D$78:$D$82,INDEX(ut_Currency_list,5))*INDEX(ut_Exchange_Rates_calc,5,T$1)+SUMIFS(T78:T82,$D$78:$D$82,INDEX(ut_Currency_list,6))*INDEX(ut_Exchange_Rates_calc,6,T$1) -> 3500000 | U83: 3100000 | V83: 2800000 | W83: 24182675.81 | X83: 11253856.19 | Y83: 0 | Z83: 0 | AA83: 0 | AB83: =SUMIFS(AB78:AB82,$D$78:$D$82,INDEX(ut_Currency_list,1))*INDEX(ut_Exchange_Rates_calc,1,AB$1)+SUMIFS(AB78:AB82,$D$78:$D$82,INDEX(ut_Currency_list,2))*INDEX(ut_Exchange_Rates_calc,2,AB$1)+SUMIFS(AB78:AB82,$D$78:$D$82,INDEX(ut_Currency_list,3))*INDEX(ut_Exchange_Rates_calc,3,AB$1)+SUMIFS(AB78:AB82,$D$78:$D$82,INDEX(ut_Currency_list,4))*INDEX(ut_Exchange_Rates_calc,4,AB$1)+SUMIFS(AB78:AB82,$D$78:$D$82,INDEX(ut_Currency_list,5))*INDEX(ut_Exchange_Rates_calc,5,AB$1)+SUMIFS(AB78:AB82,$D$78:$D$82,INDEX(ut_Currency_list,6))*INDEX(ut_Exchange_Rates_calc,6,AB$1) -> 0 | AC83: 0 | AD83: 0 | AE83: 0 | AF83: 0 | AG83: 0 | AH83: 0 | AI83: 0 | AJ83: 0 | AK83: 0 | AL83: 0 | AM83: 0 | AN83: 0 | AO83: 0 | AP83: 0 | AQ83: 0 | AR83: =SUMIFS(AR78:AR82,$D$78:$D$82,INDEX(ut_Currency_list,1))*INDEX(ut_Exchange_Rates_calc,1,AR$1)+SUMIFS(AR78:AR82,$D$78:$D$82,INDEX(ut_Currency_list,2))*INDEX(ut_Exchange_Rates_calc,2,AR$1)+SUMIFS(AR78:AR82,$D$78:$D$82,INDEX(ut_Currency_list,3))*INDEX(ut_Exchange_Rates_calc,3,AR$1)+SUMIFS(AR78:AR82,$D$78:$D$82,INDEX(ut_Currency_list,4))*INDEX(ut_Exchange_Rates_calc,4,AR$1)+SUMIFS(AR78:AR82,$D$78:$D$82,INDEX(ut_Currency_list,5))*INDEX(ut_Exchange_Rates_calc,5,AR$1)+SUMIFS(AR78:AR82,$D$78:$D$82,INDEX(ut_Currency_list,6))*INDEX(ut_Exchange_Rates_calc,6,AR$1) -> 0
C86: Операционная деятельность
C89: Цены продуктов
C91: Внутренний рынок | D91: Единица объема | E91: валюта | F91: ставка НДС | G91: ut_Products_Dom_Dir | T91: Значения с НДС | AS91: ut_SalesPrice_Dom_Inputs
A92: =IF(COUNTIF(C92:F92,"="&"")>0,"!","") ->  | B92: =B91+1 -> 1 | C92: Продажи покупателю 1 | D92: тн | E92: RUB | F92: 0.2 | T92: =Revenue!T31 -> 291.15 | U92: =Revenue!U31 -> 309.966462 | V92: =Revenue!V31 -> 304.1774933 | W92: =Revenue!W31 -> 327.0938199 | X92: =Revenue!X31 -> 351.7405022 | Y92: =Revenue!Y31 -> 361.7493691 | Z92: =Revenue!Z31 -> 385.994271 | AA92: =Revenue!AA31 -> 384.0460744 | AB92: =Revenue!AB31 -> 368.6372026 | AC92: =Revenue!AC31 -> 366.4936051 | AD92: =Revenue!AD31 -> 367.555189 | AE92: =Revenue!AE31 -> 389.145477 | AF92: =Revenue!AF31 -> 370.5748697 | AG92: =Revenue!AG31 -> 388.4961793 | AH92: =Revenue!AH31 -> 411.7213956 | AI92: =Revenue!AI31 -> 401.1205591 | AJ92: =Revenue!AJ31 -> 429.1611476 | AK92: =Revenue!AK31 -> 460.4832404 | AL92: =Revenue!AL31 -> 443.3370764 | AM92: =Revenue!AM31 -> 442.2895664 | AN92: =Revenue!AN31 -> 472.1061049 | AO92: =Revenue!AO31 -> 476.2219392 | AP92: =Revenue!AP31 -> 470.872101 | AQ92: =Revenue!AQ31 -> 455.8704131 | AR92: =Revenue!AR31 -> 491.9841725
A93: =IF(COUNTIF(C93:F93,"="&"")>0,"!","") ->  | B93: =B92+1 -> 2 | C93: Продажи покупателю 2 | D93: тн | E93: RUB | F93: 0.2 | T93: =Revenue!T42 -> 268.505 | U93: =Revenue!U42 -> 285.8579594 | V93: =Revenue!V42 -> 280.5192438 | W93: =Revenue!W42 -> 301.6531895 | X93: =Revenue!X42 -> 324.3829075 | Y93: =Revenue!Y42 -> 333.6133071 | Z93: =Revenue!Z42 -> 355.9724944 | AA93: =Revenue!AA42 -> 354.1758242 | AB93: =Revenue!AB42 -> 339.9654202 | AC93: =Revenue!AC42 -> 337.988547 | AD93: =Revenue!AD42 -> 338.9675632 | AE93: =Revenue!AE42 -> 358.8786066 | AF93: =Revenue!AF42 -> 341.7523798 | AG93: =Revenue!AG42 -> 331.8404865 | AH93: =Revenue!AH42 -> 351.6786921 | AI93: =Revenue!AI42 -> 342.6238109 | AJ93: =Revenue!AJ42 -> 366.5751469 | AK93: =Revenue!AK42 -> 393.3294345 | AL93: =Revenue!AL42 -> 378.6837527 | AM93: =Revenue!AM42 -> 377.7890046 | AN93: =Revenue!AN42 -> 403.257298 | AO93: =Revenue!AO42 -> 406.7729064 | AP93: =Revenue!AP42 -> 402.2032529 | AQ93: =Revenue!AQ42 -> 389.3893112 | AR93: =Revenue!AR42 -> 420.2364807
A94: =IF(COUNTIF(C94:F94,"="&"")>0,"!","") ->  | B94: =B93+1 -> 3 | C94: Продажи покупателю 3 | D94: тн | E94: RUB | F94: 0.2 | T94: =Revenue!T53 -> 255.565 | U94: =Revenue!U53 -> 272.0816722 | V94: =Revenue!V53 -> 267.0002441 | W94: =Revenue!W53 -> 287.1156864 | X94: =Revenue!X53 -> 308.7499963 | Y94: =Revenue!Y53 -> 317.5355574 | Z94: =Revenue!Z53 -> 338.8171935 | AA94: =Revenue!AA53 -> 337.1071097 | AB94: =Revenue!AB53 -> 323.5815445 | AC94: =Revenue!AC53 -> 321.6999423 | AD94: =Revenue!AD53 -> 322.631777 | AE94: =Revenue!AE53 -> 341.5832521 | AF94: =Revenue!AF53 -> 325.2823856 | AG94: =Revenue!AG53 -> 299.4658049 | AH94: =Revenue!AH53 -> 317.3685758 | AI94: =Revenue!AI53 -> 309.1970976 | AJ94: =Revenue!AJ53 -> 330.8117179 | AK94: =Revenue!AK53 -> 354.9558311 | AL94: =Revenue!AL53 -> 341.7389964 | AM94: =Revenue!AM53 -> 340.9315408 | AN94: =Revenue!AN53 -> 363.9151226 | AO94: =Revenue!AO53 -> 367.0877448 | AP94: =Revenue!AP53 -> 362.9639112 | AQ94: =Revenue!AQ53 -> 351.4001101 | AR94: =Revenue!AR53 -> 379.2377997
C97: Внешний рынок | D97: Единица объема | E97: валюта | G97: ut_Products_Exp_Dir | AS97: ut_SalesPrice_Exp_Inputs
A98: =IF(COUNTIF(C98:E98,"="&"")>0,"!","") ->  | B98: =B97+1 -> 1 | C98: =INDEX(ut_Products_Dom_Dir,B98,1) -> Продажи покупателю 1 | D98: =INDEX(ut_Products_Dom_Dir,B98,2) -> тн | E98: RUB
A99: =IF(COUNTIF(C99:E99,"="&"")>0,"!","") ->  | B99: =B98+1 -> 2 | C99: =INDEX(ut_Products_Dom_Dir,B99,1) -> Продажи покупателю 2 | D99: =INDEX(ut_Products_Dom_Dir,B99,2) -> тн | E99: RUB
A100: =IF(COUNTIF(C100:E100,"="&"")>0,"!","") ->  | B100: =B99+1 -> 3 | C100: =INDEX(ut_Products_Dom_Dir,B100,1) -> Продажи покупателю 3 | D100: =INDEX(ut_Products_Dom_Dir,B100,2) -> тн | E100: RUB
C103: Объемы продаж
C105: Внутренний рынок | D105: Единица объема | AS105: ut_SalesVolume_Dom_Inputs
B106: =B105+1 -> 1 | C106: =INDEX(ut_Products_Dom_Dir,B106,1) -> Продажи покупателю 1 | D106: =INDEX(ut_Products_Dom_Dir,B106,2) -> тн | T106: =Revenue!T14*Revenue!T27 -> 0 | U106: =Revenue!U14*Revenue!U27 -> 0 | V106: =Revenue!V14*Revenue!V27 -> 0 | W106: =Revenue!W14*Revenue!W27 -> 0 | X106: =Revenue!X14*Revenue!X27 -> 0 | Y106: =Revenue!Y14*Revenue!Y27 -> 21120 | Z106: =Revenue!Z14*Revenue!Z27 -> 21120 | AA106: =Revenue!AA14*Revenue!AA27 -> 21120 | AB106: =Revenue!AB14*Revenue!AB27 -> 64000 | AC106: =Revenue!AC14*Revenue!AC27 -> 64000 | AD106: =Revenue!AD14*Revenue!AD27 -> 64000 | AE106: =Revenue!AE14*Revenue!AE27 -> 64000 | AF106: =Revenue!AF14*Revenue!AF27 -> 64000 | AG106: =Revenue!AG14*Revenue!AG27 -> 25600 | AH106: =Revenue!AH14*Revenue!AH27 -> 25600 | AI106: =Revenue!AI14*Revenue!AI27 -> 25600 | AJ106: =Revenue!AJ14*Revenue!AJ27 -> 25600 | AK106: =Revenue!AK14*Revenue!AK27 -> 25600 | AL106: =Revenue!AL14*Revenue!AL27 -> 25600 | AM106: =Revenue!AM14*Revenue!AM27 -> 25600 | AN106: =Revenue!AN14*Revenue!AN27 -> 25600 | AO106: =Revenue!AO14*Revenue!AO27 -> 25600 | AP106: =Revenue!AP14*Revenue!AP27 -> 25600 | AQ106: =Revenue!AQ14*Revenue!AQ27 -> 25600 | AR106: =Revenue!AR14*Revenue!AR27 -> 25600
B107: =B106+1 -> 2 | C107: =INDEX(ut_Products_Dom_Dir,B107,1) -> Продажи покупателю 2 | D107: =INDEX(ut_Products_Dom_Dir,B107,2) -> тн | T107: =Revenue!T14*Revenue!T38 -> 0 | U107: =Revenue!U14*Revenue!U38 -> 0 | V107: =Revenue!V14*Revenue!V38 -> 0 | W107: =Revenue!W14*Revenue!W38 -> 0 | X107: =Revenue!X14*Revenue!X38 -> 0 | Y107: =Revenue!Y14*Revenue!Y38 -> 14784 | Z107: =Revenue!Z14*Revenue!Z38 -> 14784 | AA107: =Revenue!AA14*Revenue!AA38 -> 14784 | AB107: =Revenue!AB14*Revenue!AB38 -> 44800 | AC107: =Revenue!AC14*Revenue!AC38 -> 44800 | AD107: =Revenue!AD14*Revenue!AD38 -> 44800 | AE107: =Revenue!AE14*Revenue!AE38 -> 44800 | AF107: =Revenue!AF14*Revenue!AF38 -> 44800 | AG107: =Revenue!AG14*Revenue!AG38 -> 51200 | AH107: =Revenue!AH14*Revenue!AH38 -> 51200 | AI107: =Revenue!AI14*Revenue!AI38 -> 51200 | AJ107: =Revenue!AJ14*Revenue!AJ38 -> 51200 | AK107: =Revenue!AK14*Revenue!AK38 -> 51200 | AL107: =Revenue!AL14*Revenue!AL38 -> 51200 | AM107: =Revenue!AM14*Revenue!AM38 -> 51200 | AN107: =Revenue!AN14*Revenue!AN38 -> 51200 | AO107: =Revenue!AO14*Revenue!AO38 -> 51200 | AP107: =Revenue!AP14*Revenue!AP38 -> 51200 | AQ107: =Revenue!AQ14*Revenue!AQ38 -> 51200 | AR107: =Revenue!AR14*Revenue!AR38 -> 51200
B108: =B107+1 -> 3 | C108: =INDEX(ut_Products_Dom_Dir,B108,1) -> Продажи покупателю 3 | D108: =INDEX(ut_Products_Dom_Dir,B108,2) -> тн | T108: =Revenue!T14*Revenue!T49 -> 0 | U108: =Revenue!U14*Revenue!U49 -> 0 | V108: =Revenue!V14*Revenue!V49 -> 0 | W108: =Revenue!W14*Revenue!W49 -> 0 | X108: =Revenue!X14*Revenue!X49 -> 0 | Y108: =Revenue!Y14*Revenue!Y49 -> 6336 | Z108: =Revenue!Z14*Revenue!Z49 -> 6336 | AA108: =Revenue!AA14*Revenue!AA49 -> 6336 | AB108: =Revenue!AB14*Revenue!AB49 -> 19200 | AC108: =Revenue!AC14*Revenue!AC49 -> 19200 | AD108: =Revenue!AD14*Revenue!AD49 -> 19200 | AE108: =Revenue!AE14*Revenue!AE49 -> 19200 | AF108: =Revenue!AF14*Revenue!AF49 -> 19200 | AG108: =Revenue!AG14*Revenue!AG49 -> 51200 | AH108: =Revenue!AH14*Revenue!AH49 -> 51200 | AI108: =Revenue!AI14*Revenue!AI49 -> 51200 | AJ108: =Revenue!AJ14*Revenue!AJ49 -> 51200 | AK108: =Revenue!AK14*Revenue!AK49 -> 51200 | AL108: =Revenue!AL14*Revenue!AL49 -> 51200 | AM108: =Revenue!AM14*Revenue!AM49 -> 51200 | AN108: =Revenue!AN14*Revenue!AN49 -> 51200 | AO108: =Revenue!AO14*Revenue!AO49 -> 51200 | AP108: =Revenue!AP14*Revenue!AP49 -> 51200 | AQ108: =Revenue!AQ14*Revenue!AQ49 -> 51200 | AR108: =Revenue!AR14*Revenue!AR49 -> 51200
C111: Внешний рынок | D111: Единица объема | AS111: ut_SalesVolume_Exp_Inputs
B112: =B111+1 -> 1 | C112: =INDEX(ut_Products_Dom_Dir,B112,1) -> Продажи покупателю 1 | D112: =INDEX(ut_Products_Dom_Dir,B112,2) -> тн
B113: =B112+1 -> 2 | C113: =INDEX(ut_Products_Dom_Dir,B113,1) -> Продажи покупателю 2 | D113: =INDEX(ut_Products_Dom_Dir,B113,2) -> тн
B114: =B113+1 -> 3 | C114: =INDEX(ut_Products_Dom_Dir,B114,1) -> Продажи покупателю 3 | D114: =INDEX(ut_Products_Dom_Dir,B114,2) -> тн
C117: Операционные расходы
C119: Постоянные операционные расходы | G119: ut_FC_Dir
C120: Наименование | D120: Валюта расходов | E120: ставка НДС | F120: Статья расходов | T120: Значения с НДС | AS120: ut_Fixed_Costs_Data
A121: =IF(AND(COUNTIF(C121:F121,"="&"")>0,C121<>""),"!","") ->  | B121: =B120+1 -> 1 | C121: Заработная плата (не включая соц. и страх взносы) | D121: RUB | E121: =0% -> 0 | F121: Производственные | T121: =OpEx!T50+OpEx!T57 -> 109200 | U121: =OpEx!U50+OpEx!U57 -> 109200 | V121: =OpEx!V50+OpEx!V57 -> 109200 | W121: =OpEx!W50+OpEx!W57 -> 109200 | X121: =OpEx!X50+OpEx!X57 -> 109200 | Y121: =OpEx!Y50+OpEx!Y57 -> 327600 | Z121: =OpEx!Z50+OpEx!Z57 -> 327600 | AA121: =OpEx!AA50+OpEx!AA57 -> 327600 | AB121: =OpEx!AB50+OpEx!AB57 -> 327600 | AC121: =OpEx!AC50+OpEx!AC57 -> 327600 | AD121: =OpEx!AD50+OpEx!AD57 -> 327600 | AE121: =OpEx!AE50+OpEx!AE57 -> 327600 | AF121: =OpEx!AF50+OpEx!AF57 -> 327600 | AG121: =OpEx!AG50+OpEx!AG57 -> 327600 | AH121: =OpEx!AH50+OpEx!AH57 -> 327600 | AI121: =OpEx!AI50+OpEx!AI57 -> 327600 | AJ121: =OpEx!AJ50+OpEx!AJ57 -> 327600 | AK121: =OpEx!AK50+OpEx!AK57 -> 327600 | AL121: =OpEx!AL50+OpEx!AL57 -> 327600 | AM121: =OpEx!AM50+OpEx!AM57 -> 327600 | AN121: =OpEx!AN50+OpEx!AN57 -> 327600 | AO121: =OpEx!AO50+OpEx!AO57 -> 327600 | AP121: =OpEx!AP50+OpEx!AP57 -> 327600 | AQ121: =OpEx!AQ50+OpEx!AQ57 -> 327600 | AR121: =OpEx!AR50+OpEx!AR57 -> 327600
A122: =IF(AND(COUNTIF(C122:F122,"="&"")>0,C122<>""),"!","") ->  | B122: =B121+1 -> 2 | C122: Социальные страховые взносы | D122: RUB | E122: =0% -> 0 | F122: =F121 -> Производственные | T122: =(OpEx!T47*(T4<>1)+OpEx!T54)*0.3 -> 25200 | U122: =(OpEx!U47*(U4<>1)+OpEx!U54)*0.3 -> 25200 | V122: =(OpEx!V47*(V4<>1)+OpEx!V54)*0.3 -> 25200 | W122: =(OpEx!W47*(W4<>1)+OpEx!W54)*0.3 -> 25200 | X122: =(OpEx!X47*(X4<>1)+OpEx!X54)*0.3 -> 25200 | Y122: =(OpEx!Y47*(Y4<>1)+OpEx!Y54)*0.3 -> 75600 | Z122: =(OpEx!Z47*(Z4<>1)+OpEx!Z54)*0.3 -> 75600 | AA122: =(OpEx!AA47*(AA4<>1)+OpEx!AA54)*0.3 -> 75600 | AB122: =(OpEx!AB47*(AB4<>1)+OpEx!AB54)*0.3 -> 75600 | AC122: =(OpEx!AC47*(AC4<>1)+OpEx!AC54)*0.3 -> 75600 | AD122: =(OpEx!AD47*(AD4<>1)+OpEx!AD54)*0.3 -> 75600 | AE122: =(OpEx!AE47*(AE4<>1)+OpEx!AE54)*0.3 -> 75600 | AF122: =(OpEx!AF47*(AF4<>1)+OpEx!AF54)*0.3 -> 75600 | AG122: =(OpEx!AG47*(AG4<>1)+OpEx!AG54)*0.3 -> 75600 | AH122: =(OpEx!AH47*(AH4<>1)+OpEx!AH54)*0.3 -> 75600 | AI122: =(OpEx!AI47*(AI4<>1)+OpEx!AI54)*0.3 -> 75600 | AJ122: =(OpEx!AJ47*(AJ4<>1)+OpEx!AJ54)*0.3 -> 75600 | AK122: =(OpEx!AK47*(AK4<>1)+OpEx!AK54)*0.3 -> 75600 | AL122: =(OpEx!AL47*(AL4<>1)+OpEx!AL54)*0.3 -> 75600 | AM122: =(OpEx!AM47*(AM4<>1)+OpEx!AM54)*0.3 -> 75600 | AN122: =(OpEx!AN47*(AN4<>1)+OpEx!AN54)*0.3 -> 75600 | AO122: =(OpEx!AO47*(AO4<>1)+OpEx!AO54)*0.3 -> 75600 | AP122: =(OpEx!AP47*(AP4<>1)+OpEx!AP54)*0.3 -> 75600 | AQ122: =(OpEx!AQ47*(AQ4<>1)+OpEx!AQ54)*0.3 -> 75600 | AR122: =(OpEx!AR47*(AR4<>1)+OpEx!AR54)*0.3 -> 75600
B123: =B122+1 -> 3 | C123: Электроэнергия | D123: RUB | E123: 0.2 | F123: Производственные | T123: =OpEx!T37 -> 10500 | U123: =OpEx!U37 -> 10500 | V123: =OpEx!V37 -> 10500 | W123: =OpEx!W37 -> 10500 | X123: =OpEx!X37 -> 10500 | Y123: =OpEx!Y37 -> 10500 | Z123: =OpEx!Z37 -> 10500 | AA123: =OpEx!AA37 -> 10500 | AB123: =OpEx!AB37 -> 10500 | AC123: =OpEx!AC37 -> 10500 | AD123: =OpEx!AD37 -> 10500 | AE123: =OpEx!AE37 -> 10500 | AF123: =OpEx!AF37 -> 10500 | AG123: =OpEx!AG37 -> 10500 | AH123: =OpEx!AH37 -> 10500 | AI123: =OpEx!AI37 -> 10500 | AJ123: =OpEx!AJ37 -> 10500 | AK123: =OpEx!AK37 -> 10500 | AL123: =OpEx!AL37 -> 10500 | AM123: =OpEx!AM37 -> 10500 | AN123: =OpEx!AN37 -> 10500 | AO123: =OpEx!AO37 -> 10500 | AP123: =OpEx!AP37 -> 10500 | AQ123: =OpEx!AQ37 -> 10500 | AR123: =OpEx!AR37 -> 10500
B124: 4 | C124: Тепловая энергия | D124: RUB | E124: 0.2 | F124: Производственные | T124: =OpEx!T38 -> 8100 | U124: =OpEx!U38 -> 8100 | V124: =OpEx!V38 -> 8100 | W124: =OpEx!W38 -> 8100 | X124: =OpEx!X38 -> 8100 | Y124: =OpEx!Y38 -> 8100 | Z124: =OpEx!Z38 -> 8100 | AA124: =OpEx!AA38 -> 8100 | AB124: =OpEx!AB38 -> 8100 | AC124: =OpEx!AC38 -> 8100 | AD124: =OpEx!AD38 -> 8100 | AE124: =OpEx!AE38 -> 8100 | AF124: =OpEx!AF38 -> 8100 | AG124: =OpEx!AG38 -> 8100 | AH124: =OpEx!AH38 -> 8100 | AI124: =OpEx!AI38 -> 8100 | AJ124: =OpEx!AJ38 -> 8100 | AK124: =OpEx!AK38 -> 8100 | AL124: =OpEx!AL38 -> 8100 | AM124: =OpEx!AM38 -> 8100 | AN124: =OpEx!AN38 -> 8100 | AO124: =OpEx!AO38 -> 8100 | AP124: =OpEx!AP38 -> 8100 | AQ124: =OpEx!AQ38 -> 8100 | AR124: =OpEx!AR38 -> 8100
B125: 5 | C125: Прочие коммунальные | D125: RUB | E125: 0.2 | F125: Производственные | T125: =OpEx!T39 -> 3720 | U125: =OpEx!U39 -> 3720 | V125: =OpEx!V39 -> 3720 | W125: =OpEx!W39 -> 3720 | X125: =OpEx!X39 -> 3720 | Y125: =OpEx!Y39 -> 3720 | Z125: =OpEx!Z39 -> 3720 | AA125: =OpEx!AA39 -> 3720 | AB125: =OpEx!AB39 -> 3720 | AC125: =OpEx!AC39 -> 3720 | AD125: =OpEx!AD39 -> 3720 | AE125: =OpEx!AE39 -> 3720 | AF125: =OpEx!AF39 -> 3720 | AG125: =OpEx!AG39 -> 3720 | AH125: =OpEx!AH39 -> 3720 | AI125: =OpEx!AI39 -> 3720 | AJ125: =OpEx!AJ39 -> 3720 | AK125: =OpEx!AK39 -> 3720 | AL125: =OpEx!AL39 -> 3720 | AM125: =OpEx!AM39 -> 3720 | AN125: =OpEx!AN39 -> 3720 | AO125: =OpEx!AO39 -> 3720 | AP125: =OpEx!AP39 -> 3720 | AQ125: =OpEx!AQ39 -> 3720 | AR125: =OpEx!AR39 -> 3720
B126: 6 | C126: Ремонты | D126: RUB | E126: 0.2 | F126: Производственные | T126: =OpEx!T40 -> 2700 | U126: =OpEx!U40 -> 2700 | V126: =OpEx!V40 -> 2700 | W126: =OpEx!W40 -> 2700 | X126: =OpEx!X40 -> 2700 | Y126: =OpEx!Y40 -> 2700 | Z126: =OpEx!Z40 -> 2700 | AA126: =OpEx!AA40 -> 2700 | AB126: =OpEx!AB40 -> 2700 | AC126: =OpEx!AC40 -> 2700 | AD126: =OpEx!AD40 -> 2700 | AE126: =OpEx!AE40 -> 2700 | AF126: =OpEx!AF40 -> 2700 | AG126: =OpEx!AG40 -> 2700 | AH126: =OpEx!AH40 -> 2700 | AI126: =OpEx!AI40 -> 2700 | AJ126: =OpEx!AJ40 -> 2700 | AK126: =OpEx!AK40 -> 2700 | AL126: =OpEx!AL40 -> 2700 | AM126: =OpEx!AM40 -> 2700 | AN126: =OpEx!AN40 -> 2700 | AO126: =OpEx!AO40 -> 2700 | AP126: =OpEx!AP40 -> 2700 | AQ126: =OpEx!AQ40 -> 2700 | AR126: =OpEx!AR40 -> 2700
B127: 7 | C127: Аренда земельного участка | D127: RUB | E127: 0.2 | F127: Производственные | T127: =OpEx!T68 -> 1200 | U127: =OpEx!U68 -> 1200 | V127: =OpEx!V68 -> 1200 | W127: =OpEx!W68 -> 1200 | X127: =OpEx!X68 -> 1200 | Y127: =OpEx!Y68 -> 1200 | Z127: =OpEx!Z68 -> 1200 | AA127: =OpEx!AA68 -> 1200 | AB127: =OpEx!AB68 -> 1200 | AC127: =OpEx!AC68 -> 1200 | AD127: =OpEx!AD68 -> 1200 | AE127: =OpEx!AE68 -> 1200 | AF127: =OpEx!AF68 -> 1200 | AG127: =OpEx!AG68 -> 1200 | AH127: =OpEx!AH68 -> 1200 | AI127: =OpEx!AI68 -> 1200 | AJ127: =OpEx!AJ68 -> 1200 | AK127: =OpEx!AK68 -> 1200 | AL127: =OpEx!AL68 -> 1200 | AM127: =OpEx!AM68 -> 1200 | AN127: =OpEx!AN68 -> 1200 | AO127: =OpEx!AO68 -> 1200 | AP127: =OpEx!AP68 -> 1200 | AQ127: =OpEx!AQ68 -> 1200 | AR127: =OpEx!AR68 -> 1200
B128: 8 | C128: Аренда офиса | D128: RUB | E128: 0.2 | F128: Управленческие | T128: =OpEx!T70 -> 14000 | U128: =OpEx!U70 -> 14000 | V128: =OpEx!V70 -> 14000 | W128: =OpEx!W70 -> 14000 | X128: =OpEx!X70 -> 14000 | Y128: =OpEx!Y70 -> 14000 | Z128: =OpEx!Z70 -> 14000 | AA128: =OpEx!AA70 -> 14000 | AB128: =OpEx!AB70 -> 14000 | AC128: =OpEx!AC70 -> 14000 | AD128: =OpEx!AD70 -> 14000 | AE128: =OpEx!AE70 -> 14000 | AF128: =OpEx!AF70 -> 14000 | AG128: =OpEx!AG70 -> 14000 | AH128: =OpEx!AH70 -> 14000 | AI128: =OpEx!AI70 -> 14000 | AJ128: =OpEx!AJ70 -> 14000 | AK128: =OpEx!AK70 -> 14000 | AL128: =OpEx!AL70 -> 14000 | AM128: =OpEx!AM70 -> 14000 | AN128: =OpEx!AN70 -> 14000 | AO128: =OpEx!AO70 -> 14000 | AP128: =OpEx!AP70 -> 14000 | AQ128: =OpEx!AQ70 -> 14000 | AR128: =OpEx!AR70 -> 14000
B129: 9 | C129: Прочие расходы | D129: RUB | E129: 0.2 | F129: Прочие | T129: =OpEx!T72 -> 53400 | U129: =OpEx!U72 -> 53400 | V129: =OpEx!V72 -> 53400 | W129: =OpEx!W72 -> 53400 | X129: =OpEx!X72 -> 53400 | Y129: =OpEx!Y72 -> 53400 | Z129: =OpEx!Z72 -> 53400 | AA129: =OpEx!AA72 -> 53400 | AB129: =OpEx!AB72 -> 53400 | AC129: =OpEx!AC72 -> 53400 | AD129: =OpEx!AD72 -> 53400 | AE129: =OpEx!AE72 -> 53400 | AF129: =OpEx!AF72 -> 53400 | AG129: =OpEx!AG72 -> 53400 | AH129: =OpEx!AH72 -> 53400 | AI129: =OpEx!AI72 -> 53400 | AJ129: =OpEx!AJ72 -> 53400 | AK129: =OpEx!AK72 -> 53400 | AL129: =OpEx!AL72 -> 53400 | AM129: =OpEx!AM72 -> 53400 | AN129: =OpEx!AN72 -> 53400 | AO129: =OpEx!AO72 -> 53400 | AP129: =OpEx!AP72 -> 53400 | AQ129: =OpEx!AQ72 -> 53400 | AR129: =OpEx!AR72 -> 53400
B130: 10
B131: 11
B132: 12
B133: 13
B134: 14
B135: 15
B136: 16
B137: 17
B138: 18
B139: 19
B140: 20
C144: Общие переменные раcходы для всех продуктов | H144: ut_VC_Dir
C145: Наименование | D145: Валюта расходов | E145: ставка НДС | F145: Статья расходов | G145: Драйвер | T145: Значения с НДС | AS145: ut_VC_Common_Data
A146: =IF(AND(COUNTIF(C146:F146,"="&"")>0,C146<>""),"!","") ->  | B146: =B145+1 -> 1 | C146: Заработная плата (не включая соц. и страх взносы) | D146: RUB | E146: =0% -> 0 | F146: Производственные
A147: =IF(AND(COUNTIF(C147:F147,"="&"")>0,C147<>""),"!","") ->  | B147: =B146+1 -> 2 | C147: Социальные страховые взносы | D147: RUB | E147: =0% -> 0 | F147: =F146 -> Производственные | G147: =G146 -> 0
A148: =IF(AND(COUNTIF(C148:G148,"="&"")>0,C148<>""),"!","") ->  | B148: =B147+1 -> 3 | C148: Вознаграждение агентам | D148: RUB | E148: 0.2 | F148: Коммерческие | G148: % от выручки | T148: =OpEx!T62*(T4<>1) -> 0 | U148: =OpEx!U62*(U4<>1) -> 0 | V148: =OpEx!V62*(V4<>1) -> 0 | W148: =OpEx!W62*(W4<>1) -> 0 | X148: =OpEx!X62*(X4<>1) -> 0 | Y148: =OpEx!Y62*(Y4<>1) -> 0.02 | Z148: =OpEx!Z62*(Z4<>1) -> 0.02 | AA148: =OpEx!AA62*(AA4<>1) -> 0.02 | AB148: =OpEx!AB62*(AB4<>1) -> 0.02 | AC148: =OpEx!AC62*(AC4<>1) -> 0.02 | AD148: =OpEx!AD62*(AD4<>1) -> 0.02 | AE148: =OpEx!AE62*(AE4<>1) -> 0.02 | AF148: =OpEx!AF62*(AF4<>1) -> 0.02 | AG148: =OpEx!AG62*(AG4<>1) -> 0.02 | AH148: =OpEx!AH62*(AH4<>1) -> 0.02 | AI148: =OpEx!AI62*(AI4<>1) -> 0.02 | AJ148: =OpEx!AJ62*(AJ4<>1) -> 0.02 | AK148: =OpEx!AK62*(AK4<>1) -> 0.02 | AL148: =OpEx!AL62*(AL4<>1) -> 0.02 | AM148: =OpEx!AM62*(AM4<>1) -> 0.02 | AN148: =OpEx!AN62*(AN4<>1) -> 0.02 | AO148: =OpEx!AO62*(AO4<>1) -> 0.02 | AP148: =OpEx!AP62*(AP4<>1) -> 0.02 | AQ148: =OpEx!AQ62*(AQ4<>1) -> 0.02 | AR148: =OpEx!AR62*(AR4<>1) -> 0.02
B149: 4 | C149: Комиссии банков | D149: RUB | E149: 0 | F149: Коммерческие | G149: % от выручки | T149: =OpEx!T64*(T4<>1) -> 0 | U149: =OpEx!U64*(U4<>1) -> 0 | V149: =OpEx!V64*(V4<>1) -> 0 | W149: =OpEx!W64*(W4<>1) -> 0 | X149: =OpEx!X64*(X4<>1) -> 0 | Y149: =OpEx!Y64*(Y4<>1) -> 0.015 | Z149: =OpEx!Z64*(Z4<>1) -> 0.015 | AA149: =OpEx!AA64*(AA4<>1) -> 0.015 | AB149: =OpEx!AB64*(AB4<>1) -> 0.015 | AC149: =OpEx!AC64*(AC4<>1) -> 0.015 | AD149: =OpEx!AD64*(AD4<>1) -> 0.015 | AE149: =OpEx!AE64*(AE4<>1) -> 0.015 | AF149: =OpEx!AF64*(AF4<>1) -> 0.015 | AG149: =OpEx!AG64*(AG4<>1) -> 0.015 | AH149: =OpEx!AH64*(AH4<>1) -> 0.015 | AI149: =OpEx!AI64*(AI4<>1) -> 0.015 | AJ149: =OpEx!AJ64*(AJ4<>1) -> 0.015 | AK149: =OpEx!AK64*(AK4<>1) -> 0.015 | AL149: =OpEx!AL64*(AL4<>1) -> 0.015 | AM149: =OpEx!AM64*(AM4<>1) -> 0.015 | AN149: =OpEx!AN64*(AN4<>1) -> 0.015 | AO149: =OpEx!AO64*(AO4<>1) -> 0.015 | AP149: =OpEx!AP64*(AP4<>1) -> 0.015 | AQ149: =OpEx!AQ64*(AQ4<>1) -> 0.015 | AR149: =OpEx!AR64*(AR4<>1) -> 0.015
B150: 5
B151: 6
B152: 7
B153: 8
B154: 9
B155: 10
B156: 11
B157: 12
B158: 13
B159: 14
B160: 15
B161: 16
B162: 17
B163: 18
B164: 19
B165: 20
C168: Переменные расходы по продуктам | G168: ut_VC_Inputs_Names | H168: ut_VC_Numbers | AS168: ut_VC_Inputs_Data
C171: =INDEX(ut_Products_Dom_Dir,H172,1) -> Продажи покупателю 1 | D171: валюта | E171: ставка НДС | F171: Статья расходов | T171: Значения с НДС
A172: =IF(AND(COUNTIF(C172:F172,"="&"")>0,C172<>""),"!","") ->  | B172: =B171+1 -> 1 | C172: Себестооимсть рублевая | D172: RUB | E172: 0.2 | F172: Производственные | H172: =MAX(H$168:H171)+1 -> 1 | T172: =OpEx!T31 -> 66.679512 | U172: =OpEx!U31 -> 72.38717954 | V172: =OpEx!V31 -> 73.15301662 | W172: =OpEx!W31 -> 78.54286733 | X172: =OpEx!X31 -> 83.01847368 | Y172: =OpEx!Y31 -> 89.95146831 | Z172: =OpEx!Z31 -> 95.75591189 | AA172: =OpEx!AA31 -> 98.55757081 | AB172: =OpEx!AB31 -> 102.9986936 | AC172: =OpEx!AC31 -> 103.9113425 | AD172: =OpEx!AD31 -> 107.8288227 | AE172: =OpEx!AE31 -> 112.7865424 | AF172: =OpEx!AF31 -> 116.6105319 | AG172: =OpEx!AG31 -> 120.875498 | AH172: =OpEx!AH31 -> 122.9891392 | AI172: =OpEx!AI31 -> 125.7308195 | AJ172: =OpEx!AJ31 -> 128.3371438 | AK172: =OpEx!AK31 -> 138.024001 | AL172: =OpEx!AL31 -> 140.9111617 | AM172: =OpEx!AM31 -> 148.7525173 | AN172: =OpEx!AN31 -> 158.8575416 | AO172: =OpEx!AO31 -> 162.6488714 | AP172: =OpEx!AP31 -> 168.0432979 | AQ172: =OpEx!AQ31 -> 179.6469234 | AR172: =OpEx!AR31 -> 189.8292274
A173: =IF(AND(COUNTIF(C173:F173,"="&"")>0,C173<>""),"!","") ->  | B173: =B172+1 -> 2 | C173: Себестоимость долл США | D173: USD | E173: 0 | F173: Производственные | T173: =OpEx!T32 -> 1.682464 | U173: =OpEx!U32 -> 1.709383424 | V173: =OpEx!V32 -> 1.736733559 | W173: =OpEx!W32 -> 1.764521296 | X173: =OpEx!X32 -> 1.792753636 | Y173: =OpEx!Y32 -> 1.821437695 | Z173: =OpEx!Z32 -> 1.852402135 | AA173: =OpEx!AA32 -> 1.883892972 | AB173: =OpEx!AB32 -> 1.915919152 | AC173: =OpEx!AC32 -> 1.948489778 | AD173: =OpEx!AD32 -> 1.981614104 | AE173: =OpEx!AE32 -> 2.015301544 | AF173: =OpEx!AF32 -> 2.04956167 | AG173: =OpEx!AG32 -> 2.084404218 | AH173: =OpEx!AH32 -> 2.11983909 | AI173: =OpEx!AI32 -> 2.155876355 | AJ173: =OpEx!AJ32 -> 2.192526253 | AK173: =OpEx!AK32 -> 2.229799199 | AL173: =OpEx!AL32 -> 2.267705785 | AM173: =OpEx!AM32 -> 2.306256784 | AN173: =OpEx!AN32 -> 2.345463149 | AO173: =OpEx!AO32 -> 2.385336023 | AP173: =OpEx!AP32 -> 2.425886735 | AQ173: =OpEx!AQ32 -> 2.46712681 | AR173: =OpEx!AR32 -> 2.509067965
B174: =B173+1 -> 3
B175: 4
B176: 5
B177: 6
T178: =IFERROR(T172/T92,0) -> 0.2290211643 | U178: 0.233532296 | V178: 0.2404945081 | W178: 0.2401233608 | X178: 0.2360219343 | Y178: 0.2486568768 | Z178: 0.2480759925 | AA178: 0.2566295489 | AB178: =IFERROR(AB172/AB92,0) -> 0.2794039582 | AC178: 0.283528392 | AD178: 0.2933677061 | AE178: 0.2898313075 | AF178: 0.3146746892 | AG178: 0.3111369027 | AH178: 0.2987193293 | AI178: 0.3134489537 | AJ178: 0.2990418506 | AK178: 0.2997372953 | AL178: 0.317842042 | AM178: 0.3363238218 | AN178: 0.3364869463 | AO178: 0.3415400635 | AP178: 0.3568767348 | AQ178: 0.3940745402 | AR178: =IFERROR(AR172/AR92,0) -> 0.3858441754
C181: =INDEX(ut_Products_Dom_Dir,H182,1) -> Продажи покупателю 2 | D181: валюта | E181: ставка НДС | F181: Статья расходов | T181: Значения с НДС
A182: =IF(AND(COUNTIF(C182:F182,"="&"")>0,C182<>""),"!","") ->  | B182: =B181+1 -> 1 | C182: Себестооимсть рублевая | D182: RUB | E182: 0.2 | F182: Производственные | H182: =MAX(H$168:H181)+1 -> 2 | T182: =OpEx!T31 -> 66.679512 | U182: =OpEx!U31 -> 72.38717954 | V182: =OpEx!V31 -> 73.15301662 | W182: =OpEx!W31 -> 78.54286733 | X182: =OpEx!X31 -> 83.01847368 | Y182: =OpEx!Y31 -> 89.95146831 | Z182: =OpEx!Z31 -> 95.75591189 | AA182: =OpEx!AA31 -> 98.55757081 | AB182: =OpEx!AB31 -> 102.9986936 | AC182: =OpEx!AC31 -> 103.9113425 | AD182: =OpEx!AD31 -> 107.8288227 | AE182: =OpEx!AE31 -> 112.7865424 | AF182: =OpEx!AF31 -> 116.6105319 | AG182: =OpEx!AG31 -> 120.875498 | AH182: =OpEx!AH31 -> 122.9891392 | AI182: =OpEx!AI31 -> 125.7308195 | AJ182: =OpEx!AJ31 -> 128.3371438 | AK182: =OpEx!AK31 -> 138.024001 | AL182: =OpEx!AL31 -> 140.9111617 | AM182: =OpEx!AM31 -> 148.7525173 | AN182: =OpEx!AN31 -> 158.8575416 | AO182: =OpEx!AO31 -> 162.6488714 | AP182: =OpEx!AP31 -> 168.0432979 | AQ182: =OpEx!AQ31 -> 179.6469234 | AR182: =OpEx!AR31 -> 189.8292274
B183: =B182+1 -> 2 | C183: Себестоимость долл США | D183: USD | E183: 0 | F183: Производственные | T183: =OpEx!T32 -> 1.682464 | U183: =OpEx!U32 -> 1.709383424 | V183: =OpEx!V32 -> 1.736733559 | W183: =OpEx!W32 -> 1.764521296 | X183: =OpEx!X32 -> 1.792753636 | Y183: =OpEx!Y32 -> 1.821437695 | Z183: =OpEx!Z32 -> 1.852402135 | AA183: =OpEx!AA32 -> 1.883892972 | AB183: =OpEx!AB32 -> 1.915919152 | AC183: =OpEx!AC32 -> 1.948489778 | AD183: =OpEx!AD32 -> 1.981614104 | AE183: =OpEx!AE32 -> 2.015301544 | AF183: =OpEx!AF32 -> 2.04956167 | AG183: =OpEx!AG32 -> 2.084404218 | AH183: =OpEx!AH32 -> 2.11983909 | AI183: =OpEx!AI32 -> 2.155876355 | AJ183: =OpEx!AJ32 -> 2.192526253 | AK183: =OpEx!AK32 -> 2.229799199 | AL183: =OpEx!AL32 -> 2.267705785 | AM183: =OpEx!AM32 -> 2.306256784 | AN183: =OpEx!AN32 -> 2.345463149 | AO183: =OpEx!AO32 -> 2.385336023 | AP183: =OpEx!AP32 -> 2.425886735 | AQ183: =OpEx!AQ32 -> 2.46712681 | AR183: =OpEx!AR32 -> 2.509067965
B184: =B183+1 -> 3
B185: 4
B186: 5
B187: 6
T188: =IFERROR(T182/T93,0) -> 0.2483362023 | U188: 0.2532277908 | V188: 0.2607771774 | W188: 0.2603747286 | X188: 0.2559273986 | Y188: 0.2696279387 | Z188: 0.2689980642 | AA188: 0.2782730048 | AB188: =IFERROR(AB182/AB93,0) -> 0.3029681474 | AC188: 0.3074404251 | AD188: 0.3181095609 | AE188: 0.3142749117 | AF188: 0.3412135184 | AG188: 0.3642578374 | AH188: 0.3497201905 | AI188: 0.3669646287 | AJ188: 0.3500977763 | AK188: 0.3509119555 | AL188: 0.3721077565 | AM188: 0.3937449621 | AN188: 0.3939359372 | AO188: 0.3998517817 | AP188: 0.4178069091 | AQ188: 0.4613555593 | AR188: =IFERROR(AR182/AR93,0) -> 0.4517200102
C191: =INDEX(ut_Products_Dom_Dir,H192,1) -> Продажи покупателю 3 | D191: валюта | E191: ставка НДС | F191: Статья расходов
A192: =IF(AND(COUNTIF(C192:F192,"="&"")>0,C192<>""),"!","") ->  | B192: =B191+1 -> 1 | C192: Себестооимсть рублевая | D192: RUB | E192: 0.2 | F192: Производственные | H192: =MAX(H$168:H191)+1 -> 3 | T192: =OpEx!T31 -> 66.679512 | U192: =OpEx!U31 -> 72.38717954 | V192: =OpEx!V31 -> 73.15301662 | W192: =OpEx!W31 -> 78.54286733 | X192: =OpEx!X31 -> 83.01847368 | Y192: =OpEx!Y31 -> 89.95146831 | Z192: =OpEx!Z31 -> 95.75591189 | AA192: =OpEx!AA31 -> 98.55757081 | AB192: =OpEx!AB31 -> 102.9986936 | AC192: =OpEx!AC31 -> 103.9113425 | AD192: =OpEx!AD31 -> 107.8288227 | AE192: =OpEx!AE31 -> 112.7865424 | AF192: =OpEx!AF31 -> 116.6105319 | AG192: =OpEx!AG31 -> 120.875498 | AH192: =OpEx!AH31 -> 122.9891392 | AI192: =OpEx!AI31 -> 125.7308195 | AJ192: =OpEx!AJ31 -> 128.3371438 | AK192: =OpEx!AK31 -> 138.024001 | AL192: =OpEx!AL31 -> 140.9111617 | AM192: =OpEx!AM31 -> 148.7525173 | AN192: =OpEx!AN31 -> 158.8575416 | AO192: =OpEx!AO31 -> 162.6488714 | AP192: =OpEx!AP31 -> 168.0432979 | AQ192: =OpEx!AQ31 -> 179.6469234 | AR192: =OpEx!AR31 -> 189.8292274
B193: =B192+1 -> 2 | C193: Себестоимость долл США | D193: USD | E193: 0 | F193: Производственные | T193: =OpEx!T32 -> 1.682464 | U193: =OpEx!U32 -> 1.709383424 | V193: =OpEx!V32 -> 1.736733559 | W193: =OpEx!W32 -> 1.764521296 | X193: =OpEx!X32 -> 1.792753636 | Y193: =OpEx!Y32 -> 1.821437695 | Z193: =OpEx!Z32 -> 1.852402135 | AA193: =OpEx!AA32 -> 1.883892972 | AB193: =OpEx!AB32 -> 1.915919152 | AC193: =OpEx!AC32 -> 1.948489778 | AD193: =OpEx!AD32 -> 1.981614104 | AE193: =OpEx!AE32 -> 2.015301544 | AF193: =OpEx!AF32 -> 2.04956167 | AG193: =OpEx!AG32 -> 2.084404218 | AH193: =OpEx!AH32 -> 2.11983909 | AI193: =OpEx!AI32 -> 2.155876355 | AJ193: =OpEx!AJ32 -> 2.192526253 | AK193: =OpEx!AK32 -> 2.229799199 | AL193: =OpEx!AL32 -> 2.267705785 | AM193: =OpEx!AM32 -> 2.306256784 | AN193: =OpEx!AN32 -> 2.345463149 | AO193: =OpEx!AO32 -> 2.385336023 | AP193: =OpEx!AP32 -> 2.425886735 | AQ193: =OpEx!AQ32 -> 2.46712681 | AR193: =OpEx!AR32 -> 2.509067965
B194: =B193+1 -> 3
B195: 4
B196: 5
B197: 6
T198: =IFERROR(T192/T103,0) -> 0 | U198: 0 | V198: 0 | W198: 0 | X198: 0 | Y198: 0 | Z198: 0 | AA198: 0 | AB198: 0 | AC198: 0 | AD198: 0 | AE198: 0 | AF198: 0 | AG198: 0 | AH198: 0 | AI198: 0 | AJ198: 0 | AK198: 0 | AL198: 0 | AM198: 0 | AN198: 0 | AO198: 0 | AP198: 0 | AQ198: 0 | AR198: 0
C203: Внеоперационные доходы и расходы
C204: Наименование | D204: Валюта | E204: ставка НДС | F204: Доход или расход? | G204: ut_NonOpC_Dir | T204: Значения с НДС | AS204: ut_NonOpC_Data
A205: =IF(AND(COUNTIF(C205:F205,"="&"")>0,C205<>""),"!","") ->  | B205: =B204+1 -> 1 | C205: Страхование | D205: RUB | E205: =0 -> 0 | F205: расход | T205: =OpEx!T66 -> 700 | U205: =OpEx!U66 -> 700 | V205: =OpEx!V66 -> 700 | W205: =OpEx!W66 -> 700 | X205: =OpEx!X66 -> 700 | Y205: =OpEx!Y66 -> 700 | Z205: =OpEx!Z66 -> 700 | AA205: =OpEx!AA66 -> 700 | AB205: =OpEx!AB66 -> 700 | AC205: =OpEx!AC66 -> 700 | AD205: =OpEx!AD66 -> 700 | AE205: =OpEx!AE66 -> 700 | AF205: =OpEx!AF66 -> 700 | AG205: =OpEx!AG66 -> 700 | AH205: =OpEx!AH66 -> 700 | AI205: =OpEx!AI66 -> 700 | AJ205: =OpEx!AJ66 -> 700 | AK205: =OpEx!AK66 -> 700 | AL205: =OpEx!AL66 -> 700 | AM205: =OpEx!AM66 -> 700 | AN205: =OpEx!AN66 -> 700 | AO205: =OpEx!AO66 -> 700 | AP205: =OpEx!AP66 -> 700 | AQ205: =OpEx!AQ66 -> 700 | AR205: =OpEx!AR66 -> 700
B206: =B205+1 -> 2 | E206: 0.2
B207: =B206+1 -> 3 | E207: 0.2
B208: 4 | E208: 0.2
B209: 5 | E209: 0.2
B210: 6 | E210: 0.2
B211: 7 | E211: 0.2
B212: 8 | E212: 0.2
B213: 9 | E213: 0.2
B214: 10 | E214: 0.2
B215: 11 | E215: 0.2
B216: 12 | E216: 0.2
B217: 13 | E217: 0.2
B218: 14 | E218: 0.2
B219: 15 | E219: 0.2
B220: 16 | E220: 0.2
B221: 17 | E221: 0.2
B222: 18 | E222: 0.2
B223: 19 | E223: 0.2
B224: 20 | E224: 0.2
C228: Финансирование проекта
D230: Всего CapEx на инвестиционной фазе | E230: =H83 -> 44836532.01 | F230: =ut_Digits&ut_LCU -> тыс. RUB | H230: Потребность финансирования CapEx | T230: =MAX(T83-(T238+T252+T259),0) -> 0 | U230: 0 | V230: 0 | W230: 0 | X230: 0 | Y230: 0 | Z230: 0 | AA230: 0 | AB230: =MAX(AB83-(AB238+AB252+AB259),0) -> 0 | AC230: 0 | AD230: 0 | AE230: 0 | AF230: 0 | AG230: 0 | AH230: 0 | AI230: 0 | AJ230: 0 | AK230: 0 | AL230: 0 | AM230: 0 | AN230: 0 | AO230: 0 | AP230: 0 | AQ230: 0 | AR230: =MAX(AR83-(AR238+AR252+AR259),0) -> 0
D231: Доля собственных средств, % | E231: =IFERROR(H235/E230,0) -> 0.1561226903
C233: Собственный капитал
T234: Графики привлечения ->
C235: Привлечение капитала - инвесторы/акционеры | D235: =ut_Digits&ut_LCU -> тыс. RUB | F235: Дополнительный капитал | H235: =SUM(T235:AR235)+S235 -> 7000000 | T235: 2000000 | U235: 1000000 | V235: 1000000 | W235: 3000000
C236: Привлечение капитала - ВЭБ | D236: =ut_Digits&ut_LCU -> тыс. RUB | H236: =SUM(ut_Equity_Attraction_VEB)+S236 -> 0 | AS236: ut_Equity_Attraction_VEB
C238: Привлечение капитала - всего | G238: =ut_Digits&ut_LCU -> тыс. RUB | H238: =SUM(ut_Equity_Attraction)+S238 -> 7000000 | S238: =SUM(S235:S236) -> 0 | T238: 2000000 | U238: 1000000 | V238: 1000000 | W238: 3000000 | X238: 0 | Y238: 0 | Z238: 0 | AA238: 0 | AB238: =SUM(AB235:AB236) -> 0 | AC238: 0 | AD238: 0 | AE238: 0 | AF238: 0 | AG238: 0 | AH238: 0 | AI238: 0 | AJ238: 0 | AK238: 0 | AL238: 0 | AM238: 0 | AN238: 0 | AO238: 0 | AP238: 0 | AQ238: 0 | AR238: =SUM(AR235:AR236) -> 0 | AS238: ut_Equity_Attraction
C241: Заемное финансирование | H241: ut_Debt_Dir
C242: Наименование | D242: валюта | E242: Кредитор | F242: % ставка | H242: сумма | T242: Графики выдачи -> | AS242: ut_Debt_Input
A243: =IF(AND(COUNTIF(C243:F243,"="&"")>0,C243<>""),"!","") ->  | B243: =B242+1 -> 1 | C243: Кредит 1 | D243: RUB | E243: ВЭБ | F243: 0.12 | H243: =SUM(T243:AR243) -> 6700000 | T243: 1400000 | U243: 2000000 | V243: 1700000 | W243: 1400000 | X243: 200000
A244: =IF(AND(COUNTIF(C244:F244,"="&"")>0,C244<>""),"!","") ->  | B244: 2 | C244: Кредит 2 | D244: EUR | E244: Прочие | F244: 0.04 | H244: =SUM(T244:AR244) -> 350000 | W244: 250000 | X244: 100000
B245: 3 | C245: Кредит 3 | D245: USD | E245: Прочие | F245: 0.045 | H245: 45000 | X245: 45000
G247: курсы валют | K247: row | AS247: ut_Debt_FX_Input
... 42 more rows

Sheet Calculations
Q1: template | T1: =IF(ut_Historical_EndDate>=T$4,0,1) -> 1 | U1: 1 | V1: 1 | W1: 1 | X1: 1 | Y1: 1 | Z1: 1 | AA1: 1 | AB1: 1 | AC1: 1 | AD1: 1 | AE1: 1 | AF1: 1 | AG1: 1 | AH1: 1 | AI1: 1 | AJ1: 1 | AK1: 1 | AL1: 1 | AM1: 1 | AN1: 1 | AO1: 1 | AP1: 1 | AQ1: 1 | AR1: 1 | AS1: ut_history_flag
T2: 1 | U2: =T2+1 -> 2 | V2: 3 | W2: 4 | X2: 5 | Y2: 6 | Z2: 7 | AA2: 8 | AB2: =AA2+1 -> 9 | AC2: =AB2+1 -> 10 | AD2: =AC2+1 -> 11 | AE2: =AD2+1 -> 12 | AF2: =AE2+1 -> 13 | AG2: =AF2+1 -> 14 | AH2: =AG2+1 -> 15 | AI2: =AH2+1 -> 16 | AJ2: =AI2+1 -> 17 | AK2: =AJ2+1 -> 18 | AL2: =AK2+1 -> 19 | AM2: =AL2+1 -> 20 | AN2: =AM2+1 -> 21 | AO2: =AN2+1 -> 22 | AP2: =AO2+1 -> 23 | AQ2: =AP2+1 -> 24 | AR2: =AQ2+1 -> 25 | AS2: ut_Counter
H3: Начало периода | S3: входящие данные | T3: =DATE(YEAR(ut_Date_Model_Start),MONTH(ut_Date_Model_Start),DAY(ut_Date_Model_Start)) -> 2023-01-01 | U3: =T4+1 -> 2024-01-01 | V3: 2025-01-01 | W3: 2026-01-01 | X3: 2027-01-01 | Y3: 2028-01-01 | Z3: 2029-01-01 | AA3: 2030-01-01 | AB3: =AA4+1 -> 2031-01-01 | AC3: =AB4+1 -> 2032-01-01 | AD3: =AC4+1 -> 2033-01-01 | AE3: =AD4+1 -> 2034-01-01 | AF3: =AE4+1 -> 2035-01-01 | AG3: =AF4+1 -> 2036-01-01 | AH3: =AG4+1 -> 2037-01-01 | AI3: =AH4+1 -> 2038-01-01 | AJ3: =AI4+1 -> 2039-01-01 | AK3: =AJ4+1 -> 2040-01-01 | AL3: =AK4+1 -> 2041-01-01 | AM3: =AL4+1 -> 2042-01-01 | AN3: =AM4+1 -> 2043-01-01 | AO3: =AN4+1 -> 2044-01-01 | AP3: =AO4+1 -> 2045-01-01 | AQ3: =AP4+1 -> 2046-01-01 | AR3: =AQ4+1 -> 2047-01-01 | AS3: ut_Beginning_of_Period
H4: Окончание периода | S4: =T3-1 -> 2022-12-31 | T4: =EOMONTH(T3,(ut_Months_in_Period-1)-MOD((MONTH(T3)-1),ut_Months_in_Period)) -> 2023-12-31 | U4: =EOMONTH(U3,ut_Months_in_Period-1) -> 2024-12-31 | V4: 2025-12-31 | W4: 2026-12-31 | X4: 2027-12-31 | Y4: 2028-12-31 | Z4: 2029-12-31 | AA4: 2030-12-31 | AB4: =EOMONTH(AB3,ut_Months_in_Period-1) -> 2031-12-31 | AC4: 2032-12-31 | AD4: 2033-12-31 | AE4: 2034-12-31 | AF4: 2035-12-31 | AG4: 2036-12-31 | AH4: 2037-12-31 | AI4: 2038-12-31 | AJ4: 2039-12-31 | AK4: 2040-12-31 | AL4: 2041-12-31 | AM4: 2042-12-31 | AN4: 2043-12-31 | AO4: 2044-12-31 | AP4: 2045-12-31 | AQ4: 2046-12-31 | AR4: =EOMONTH(AR3,ut_Months_in_Period-1) -> 2047-12-31 | AS4: ut_End_of_Period
H5: Период строительства | T5: =(T3>=Title!$C$24)*(T4<=Title!$C$25)*1 -> 1 | U5: =(U3>=Title!$C$24)*(U4<=Title!$C$25)*1 -> 1 | V5: =(V3>=Title!$C$24)*(V4<=Title!$C$25)*1 -> 1 | W5: =(W3>=Title!$C$24)*(W4<=Title!$C$25)*1 -> 1 | X5: =(X3>=Title!$C$24)*(X4<=Title!$C$25)*1 -> 1 | Y5: =(Y3>=Title!$C$24)*(Y4<=Title!$C$25)*1 -> 0 | Z5: =(Z3>=Title!$C$24)*(Z4<=Title!$C$25)*1 -> 0 | AA5: =(AA3>=Title!$C$24)*(AA4<=Title!$C$25)*1 -> 0 | AB5: =(AB3>=Title!$C$24)*(AB4<=Title!$C$25)*1 -> 0 | AC5: =(AC3>=Title!$C$24)*(AC4<=Title!$C$25)*1 -> 0 | AD5: =(AD3>=Title!$C$24)*(AD4<=Title!$C$25)*1 -> 0 | AE5: =(AE3>=Title!$C$24)*(AE4<=Title!$C$25)*1 -> 0 | AF5: =(AF3>=Title!$C$24)*(AF4<=Title!$C$25)*1 -> 0 | AG5: =(AG3>=Title!$C$24)*(AG4<=Title!$C$25)*1 -> 0 | AH5: =(AH3>=Title!$C$24)*(AH4<=Title!$C$25)*1 -> 0 | AI5: =(AI3>=Title!$C$24)*(AI4<=Title!$C$25)*1 -> 0 | AJ5: =(AJ3>=Title!$C$24)*(AJ4<=Title!$C$25)*1 -> 0 | AK5: =(AK3>=Title!$C$24)*(AK4<=Title!$C$25)*1 -> 0 | AL5: =(AL3>=Title!$C$24)*(AL4<=Title!$C$25)*1 -> 0 | AM5: =(AM3>=Title!$C$24)*(AM4<=Title!$C$25)*1 -> 0 | AN5: =(AN3>=Title!$C$24)*(AN4<=Title!$C$25)*1 -> 0 | AO5: =(AO3>=Title!$C$24)*(AO4<=Title!$C$25)*1 -> 0 | AP5: =(AP3>=Title!$C$24)*(AP4<=Title!$C$25)*1 -> 0 | AQ5: =(AQ3>=Title!$C$24)*(AQ4<=Title!$C$25)*1 -> 0 | AR5: =(AR3>=Title!$C$24)*(AR4<=Title!$C$25)*1 -> 0 | AS5: ut_Construction_Period
H6: Период запуска | T6: =(T4>MAX(Title!$C$24,Title!$C$25))*(T4<=ut_RampUp_EndDate)*1 -> 0 | U6: =(U4>MAX(Title!$C$24,Title!$C$25))*(U4<=ut_RampUp_EndDate)*1 -> 0 | V6: =(V4>MAX(Title!$C$24,Title!$C$25))*(V4<=ut_RampUp_EndDate)*1 -> 0 | W6: =(W4>MAX(Title!$C$24,Title!$C$25))*(W4<=ut_RampUp_EndDate)*1 -> 0 | X6: =(X4>MAX(Title!$C$24,Title!$C$25))*(X4<=ut_RampUp_EndDate)*1 -> 0 | Y6: =(Y4>MAX(Title!$C$24,Title!$C$25))*(Y4<=ut_RampUp_EndDate)*1 -> 1 | Z6: =(Z4>MAX(Title!$C$24,Title!$C$25))*(Z4<=ut_RampUp_EndDate)*1 -> 1 | AA6: =(AA4>MAX(Title!$C$24,Title!$C$25))*(AA4<=ut_RampUp_EndDate)*1 -> 1 | AB6: =(AB4>MAX(Title!$C$24,Title!$C$25))*(AB4<=ut_RampUp_EndDate)*1 -> 0 | AC6: =(AC4>MAX(Title!$C$24,Title!$C$25))*(AC4<=ut_RampUp_EndDate)*1 -> 0 | AD6: =(AD4>MAX(Title!$C$24,Title!$C$25))*(AD4<=ut_RampUp_EndDate)*1 -> 0 | AE6: =(AE4>MAX(Title!$C$24,Title!$C$25))*(AE4<=ut_RampUp_EndDate)*1 -> 0 | AF6: =(AF4>MAX(Title!$C$24,Title!$C$25))*(AF4<=ut_RampUp_EndDate)*1 -> 0 | AG6: =(AG4>MAX(Title!$C$24,Title!$C$25))*(AG4<=ut_RampUp_EndDate)*1 -> 0 | AH6: =(AH4>MAX(Title!$C$24,Title!$C$25))*(AH4<=ut_RampUp_EndDate)*1 -> 0 | AI6: =(AI4>MAX(Title!$C$24,Title!$C$25))*(AI4<=ut_RampUp_EndDate)*1 -> 0 | AJ6: =(AJ4>MAX(Title!$C$24,Title!$C$25))*(AJ4<=ut_RampUp_EndDate)*1 -> 0 | AK6: =(AK4>MAX(Title!$C$24,Title!$C$25))*(AK4<=ut_RampUp_EndDate)*1 -> 0 | AL6: =(AL4>MAX(Title!$C$24,Title!$C$25))*(AL4<=ut_RampUp_EndDate)*1 -> 0 | AM6: =(AM4>MAX(Title!$C$24,Title!$C$25))*(AM4<=ut_RampUp_EndDate)*1 -> 0 | AN6: =(AN4>MAX(Title!$C$24,Title!$C$25))*(AN4<=ut_RampUp_EndDate)*1 -> 0 | AO6: =(AO4>MAX(Title!$C$24,Title!$C$25))*(AO4<=ut_RampUp_EndDate)*1 -> 0 | AP6: =(AP4>MAX(Title!$C$24,Title!$C$25))*(AP4<=ut_RampUp_EndDate)*1 -> 0 | AQ6: =(AQ4>MAX(Title!$C$24,Title!$C$25))*(AQ4<=ut_RampUp_EndDate)*1 -> 0 | AR6: =(AR4>MAX(Title!$C$24,Title!$C$25))*(AR4<=ut_RampUp_EndDate)*1 -> 0 | AS6: ut_RampUp_Period
H7: Операционный период | T7: =AND(T5<>1,T6<>1)*1 -> 0 | U7: 0 | V7: 0 | W7: 0 | X7: 0 | Y7: 0 | Z7: 0 | AA7: 0 | AB7: =AND(AB5<>1,AB6<>1)*1 -> 1 | AC7: 1 | AD7: 1 | AE7: 1 | AF7: 1 | AG7: 1 | AH7: 1 | AI7: 1 | AJ7: 1 | AK7: 1 | AL7: 1 | AM7: 1 | AN7: 1 | AO7: 1 | AP7: 1 | AQ7: 1 | AR7: =AND(AR5<>1,AR6<>1)*1 -> 1 | AS7: ut_Operation_Period
C8: Операционные доходы
C10: Расчет выручки
C12: Выручка, без НДС
C13: Выручка на внутреннем рынке по продуктам | D13: валюта | E13: индикатор | F13: Ставка НДС | J13: fx rate | K13: row | L13: idx | AS13: ut_Revenue_Dom_Inputs
B14: =B13+1 -> 1 | C14: =IFERROR(INDEX(ut_Products_Dom_Dir,$B14,1),0) -> Продажи покупателю 1 | D14: =IFERROR(INDEX(ut_Products_Dom_Dir,$B14,3),0) -> RUB | F14: =IFERROR(INDEX(ut_Products_Dom_Dir,$B14,4),0) -> 0.2 | H14: =IFERROR(IF(C14<>"",ut_Digits&D14,"укажите валюту в справочнике"),0) -> тыс. RUB | J14: =IF(C14<>"",D14&"/"&ut_LCU,0) -> RUB/RUB | K14: =IFERROR(MATCH(J14,ut_Exchange_Rates_Headers,0),0) -> 1 | L14: =IFERROR(MATCH(Calculations!E14,INDEX(ut_Inputs_Names,,1),0),"нет") -> нет | T14: =INDEX(ut_SalesPrice_Dom_Inputs,$B14,T$2)*INDEX(ut_SalesVolume_Dom_Inputs,$B14,T$2)/(1+$F14)*IF($L14<>"нет",INDEX(ut_Inputs_Data,$L14,ut_Counter),1) -> 0 | U14: 0 | V14: 0 | W14: 0 | X14: 0 | Y14: 6366788.897 | Z14: 6793499.17 | AA14: 6759210.909 | AB14: 19660650.81 | AC14: 19546325.61 | AD14: 19602943.41 | AE14: 20754425.44 | AF14: 19763993.05 | AG14: 8287918.492 | AH14: 8783389.774 | AI14: 8557238.593 | AJ14: =INDEX(ut_SalesPrice_Dom_Inputs,$B14,AJ$2)*INDEX(ut_SalesVolume_Dom_Inputs,$B14,AJ$2)/(1+$F14)*IF($L14<>"нет",INDEX(ut_Inputs_Data,$L14,ut_Counter),1) -> 9155437.815 | AK14: 9823642.462 | AL14: 9457857.629 | AM14: 9435510.75 | AN14: 10071596.91 | AO14: 10159401.37 | AP14: 10045271.49 | AQ14: 9725235.48 | AR14: =INDEX(ut_SalesPrice_Dom_Inputs,$B14,AR$2)*INDEX(ut_SalesVolume_Dom_Inputs,$B14,AR$2)/(1+$F14)*IF($L14<>"нет",INDEX(ut_Inputs_Data,$L14,ut_Counter),1) -> 10495662.35
B15: =B14+1 -> 2 | C15: =IFERROR(INDEX(ut_Products_Dom_Dir,$B15,1),0) -> Продажи покупателю 2 | D15: =IFERROR(INDEX(ut_Products_Dom_Dir,$B15,3),0) -> RUB | F15: =IFERROR(INDEX(ut_Products_Dom_Dir,$B15,4),0) -> 0.2 | H15: =IFERROR(IF(C15<>"",ut_Digits&D15,"укажите валюту в справочнике"),0) -> тыс. RUB | J15: =IF(C15<>"",D15&"/"&ut_LCU,0) -> RUB/RUB | K15: =IFERROR(MATCH(J15,ut_Exchange_Rates_Headers,0),0) -> 1 | L15: =IFERROR(MATCH(Calculations!E15,INDEX(ut_Inputs_Names,,1),0),"нет") -> нет | T15: 0 | U15: 0 | V15: 0 | W15: 0 | X15: 0 | Y15: 4110115.943 | Z15: 4385581.131 | AA15: 4363446.154 | AB15: 12692042.35 | AC15: 12618239.09 | AD15: 12654789.03 | AE15: 13398134.65 | AF15: 12758755.51 | AG15: 14158527.42 | AH15: 15004957.53 | AI15: 14618615.93 | AJ15: 15640539.6 | AK15: 16782055.87 | AL15: 16157173.45 | AM15: 16118997.53 | AN15: 17205644.71 | AO15: 17355644 | AP15: 17160672.13 | AQ15: 16613943.94 | AR15: 17930089.84
B16: =B15+1 -> 3 | C16: =IFERROR(INDEX(ut_Products_Dom_Dir,$B16,1),0) -> Продажи покупателю 3 | D16: =IFERROR(INDEX(ut_Products_Dom_Dir,$B16,3),0) -> RUB | F16: =IFERROR(INDEX(ut_Products_Dom_Dir,$B16,4),0) -> 0.2 | H16: =IFERROR(IF(C16<>"",ut_Digits&D16,"укажите валюту в справочнике"),0) -> тыс. RUB | J16: =IF(C16<>"",D16&"/"&ut_LCU,0) -> RUB/RUB | K16: =IFERROR(MATCH(J16,ut_Exchange_Rates_Headers,0),0) -> 1 | L16: =IFERROR(MATCH(Calculations!E16,INDEX(ut_Inputs_Names,,1),0),"нет") -> нет | T16: 0 | U16: 0 | V16: 0 | W16: 0 | X16: 0 | Y16: 1676587.743 | Z16: 1788954.781 | AA16: 1779925.539 | AB16: 5177304.713 | AC16: 5147199.077 | AD16: 5162108.432 | AE16: 5465332.033 | AF16: 5204518.169 | AG16: 12777207.68 | AH16: 13541059.23 | AI16: 13192409.5 | AJ16: 14114633.3 | AK16: 15144782.13 | AL16: 14580863.85 | AM16: 14546412.41 | AN16: 15527045.23 | AO16: 15662410.44 | AP16: 15486460.21 | AQ16: 14993071.36 | AR16: 16180812.79
C18: Выручка на внутреннем рынке по продуктам | D18: валюта | E18: индикатор | F18: Ставка НДС | J18: fx rate | K18: row | L18: idx | AS18: ut_Revenue_Exp_Inputs
B19: =B18+1 -> 1 | C19: =IFERROR(INDEX(ut_Products_Dom_Dir,$B19,1),0) -> Продажи покупателю 1 | D19: =IFERROR(INDEX(ut_Products_Exp_Dir,$B19,3),0) -> RUB | F19: =IFERROR(INDEX(ut_Products_Exp_Dir,$B19,4),0) -> 0 | H19: =IFERROR(IF(C19<>"",ut_Digits&D19,"укажите валюту в справочнике"),0) -> тыс. RUB | J19: =IF(C19<>"",D19&"/"&ut_LCU,0) -> RUB/RUB | K19: =IFERROR(MATCH(J19,ut_Exchange_Rates_Headers,0),0) -> 1 | L19: =IFERROR(MATCH(Calculations!E19,INDEX(ut_Inputs_Names,,1),0),"нет") -> нет | T19: =INDEX(ut_SalesPrice_Exp_Inputs,$B14,T$2)*INDEX(ut_SalesVolume_Exp_Inputs,$B14,T$2)*IF($L19<>"нет",INDEX(ut_Inputs_Data,$L19,ut_Counter),1) -> 0 | U19: 0 | V19: 0 | W19: 0 | X19: 0 | Y19: 0 | Z19: 0 | AA19: 0 | AB19: =INDEX(ut_SalesPrice_Exp_Inputs,$B14,AB$2)*INDEX(ut_SalesVolume_Exp_Inputs,$B14,AB$2)*IF($L19<>"нет",INDEX(ut_Inputs_Data,$L19,ut_Counter),1) -> 0 | AC19: 0 | AD19: 0 | AE19: 0 | AF19: 0 | AG19: 0 | AH19: 0 | AI19: 0 | AJ19: 0 | AK19: 0 | AL19: 0 | AM19: 0 | AN19: 0 | AO19: 0 | AP19: 0 | AQ19: 0 | AR19: =INDEX(ut_SalesPrice_Exp_Inputs,$B14,AR$2)*INDEX(ut_SalesVolume_Exp_Inputs,$B14,AR$2)*IF($L19<>"нет",INDEX(ut_Inputs_Data,$L19,ut_Counter),1) -> 0
B20: =B19+1 -> 2 | C20: =IFERROR(INDEX(ut_Products_Dom_Dir,$B20,1),0) -> Продажи покупателю 2 | D20: =IFERROR(INDEX(ut_Products_Exp_Dir,$B20,3),0) -> RUB | F20: =IFERROR(INDEX(ut_Products_Exp_Dir,$B20,4),0) -> 0 | H20: =IFERROR(IF(C20<>"",ut_Digits&D20,"укажите валюту в справочнике"),0) -> тыс. RUB | J20: =IF(C20<>"",D20&"/"&ut_LCU,0) -> RUB/RUB | K20: =IFERROR(MATCH(J20,ut_Exchange_Rates_Headers,0),0) -> 1 | L20: =IFERROR(MATCH(Calculations!E20,INDEX(ut_Inputs_Names,,1),0),"нет") -> нет | T20: =INDEX(ut_SalesPrice_Exp_Inputs,$B15,T$2)*INDEX(ut_SalesVolume_Exp_Inputs,$B15,T$2)*IF($L20<>"нет",INDEX(ut_Inputs_Data,$L20,ut_Counter),1) -> 0 | U20: 0 | V20: 0 | W20: 0 | X20: 0 | Y20: 0 | Z20: 0 | AA20: 0 | AB20: =INDEX(ut_SalesPrice_Exp_Inputs,$B15,AB$2)*INDEX(ut_SalesVolume_Exp_Inputs,$B15,AB$2)*IF($L20<>"нет",INDEX(ut_Inputs_Data,$L20,ut_Counter),1) -> 0 | AC20: 0 | AD20: 0 | AE20: 0 | AF20: 0 | AG20: 0 | AH20: 0 | AI20: 0 | AJ20: 0 | AK20: 0 | AL20: 0 | AM20: 0 | AN20: 0 | AO20: 0 | AP20: 0 | AQ20: 0 | AR20: =INDEX(ut_SalesPrice_Exp_Inputs,$B15,AR$2)*INDEX(ut_SalesVolume_Exp_Inputs,$B15,AR$2)*IF($L20<>"нет",INDEX(ut_Inputs_Data,$L20,ut_Counter),1) -> 0
B21: =B20+1 -> 3 | C21: =IFERROR(INDEX(ut_Products_Dom_Dir,$B21,1),0) -> Продажи покупателю 3 | D21: =IFERROR(INDEX(ut_Products_Exp_Dir,$B21,3),0) -> RUB | F21: =IFERROR(INDEX(ut_Products_Exp_Dir,$B21,4),0) -> 0 | H21: =IFERROR(IF(C21<>"",ut_Digits&D21,"укажите валюту в справочнике"),0) -> тыс. RUB | J21: =IF(C21<>"",D21&"/"&ut_LCU,0) -> RUB/RUB | K21: =IFERROR(MATCH(J21,ut_Exchange_Rates_Headers,0),0) -> 1 | L21: =IFERROR(MATCH(Calculations!E21,INDEX(ut_Inputs_Names,,1),0),"нет") -> нет | T21: 0 | U21: 0 | V21: 0 | W21: 0 | X21: 0 | Y21: 0 | Z21: 0 | AA21: 0 | AB21: 0 | AC21: 0 | AD21: 0 | AE21: 0 | AF21: 0 | AG21: 0 | AH21: 0 | AI21: 0 | AJ21: 0 | AK21: 0 | AL21: 0 | AM21: 0 | AN21: 0 | AO21: 0 | AP21: 0 | AQ21: 0 | AR21: 0
C23: НДС в составе выручки | D23: валюта | AS23: ut_Revenue_VAT_Inputs
B24: =B23+1 -> 1 | C24: =IFERROR(INDEX(ut_Products_Dom_Dir,$B24,1),0) -> Продажи покупателю 1 | D24: =IFERROR(INDEX(ut_Products_Dom_Dir,$B24,3),0) -> RUB | H24: =IFERROR(IF(C24<>"",ut_Digits&D24,"укажите валюту в справочнике"),0) -> тыс. RUB | T24: =T14*$F14 -> 0 | U24: 0 | V24: 0 | W24: 0 | X24: 0 | Y24: 1273357.779 | Z24: 1358699.834 | AA24: 1351842.182 | AB24: =AB14*$F14 -> 3932130.161 | AC24: 3909265.121 | AD24: 3920588.683 | AE24: 4150885.088 | AF24: 3952798.61 | AG24: 1657583.698 | AH24: 1756677.955 | AI24: 1711447.719 | AJ24: 1831087.563 | AK24: 1964728.492 | AL24: 1891571.526 | AM24: 1887102.15 | AN24: 2014319.381 | AO24: 2031880.274 | AP24: 2009054.298 | AQ24: 1945047.096 | AR24: =AR14*$F14 -> 2099132.47
B25: =B24+1 -> 2 | C25: =IFERROR(INDEX(ut_Products_Dom_Dir,$B25,1),0) -> Продажи покупателю 2 | D25: =IFERROR(INDEX(ut_Products_Dom_Dir,$B25,3),0) -> RUB | H25: =IFERROR(IF(C25<>"",ut_Digits&D25,"укажите валюту в справочнике"),0) -> тыс. RUB | T25: =T15*$F15 -> 0 | U25: 0 | V25: 0 | W25: 0 | X25: 0 | Y25: 822023.1887 | Z25: 877116.2262 | AA25: 872689.2307 | AB25: =AB15*$F15 -> 2538408.471 | AC25: 2523647.817 | AD25: 2530957.805 | AE25: 2679626.929 | AF25: 2551751.102 | AG25: 2831705.485 | AH25: 3000991.506 | AI25: 2923723.186 | AJ25: 3128107.92 | AK25: 3356411.175 | AL25: 3231434.69 | AM25: 3223799.506 | AN25: 3441128.943 | AO25: 3471128.801 | AP25: 3432134.425 | AQ25: 3322788.789 | AR25: =AR15*$F15 -> 3586017.969
B26: =B25+1 -> 3 | C26: =IFERROR(INDEX(ut_Products_Dom_Dir,$B26,1),0) -> Продажи покупателю 3 | D26: =IFERROR(INDEX(ut_Products_Dom_Dir,$B26,3),0) -> RUB | H26: =IFERROR(IF(C26<>"",ut_Digits&D26,"укажите валюту в справочнике"),0) -> тыс. RUB | T26: 0 | U26: 0 | V26: 0 | W26: 0 | X26: 0 | Y26: 335317.5486 | Z26: 357790.9563 | AA26: 355985.1079 | AB26: 1035460.943 | AC26: 1029439.815 | AD26: 1032421.686 | AE26: 1093066.407 | AF26: 1040903.634 | AG26: 2555441.535 | AH26: 2708211.847 | AI26: 2638481.9 | AJ26: 2822926.66 | AK26: 3028956.426 | AL26: 2916172.769 | AM26: 2909282.481 | AN26: 3105409.046 | AO26: 3132482.089 | AP26: 3097292.042 | AQ26: 2998614.273 | AR26: 3236162.557
C29: Детализация выручки
C30: валюты
B31: =B30+1 -> 1 | C31: =INDEX(ut_Currency_list,B31) -> RUB | G31: =IF(C31<>0,ut_Digits&C31,"") -> тыс. RUB | H31: =SUM(T31:AR31) -> 712123064.8 | T31: =SUMIFS(T$13:T$22,$H$13:$H$22,$G31) -> 0 | U31: 0 | V31: 0 | W31: 0 | X31: 0 | Y31: 12153492.58 | Z31: 12968035.08 | AA31: 12902582.6 | AB31: 37529997.87 | AC31: 37311763.77 | AD31: =SUMIFS(AD$13:AD$22,$H$13:$H$22,$G31) -> 37419840.87 | AE31: 39617892.12 | AF31: 37727266.73 | AG31: 35223653.59 | AH31: 37329406.54 | AI31: 36368264.02 | AJ31: 38910610.71 | AK31: 41750480.46 | AL31: 40195894.92 | AM31: 40100920.69 | AN31: 42804286.85 | AO31: 43177455.82 | AP31: 42692403.83 | AQ31: 41332250.79 | AR31: 44606564.98
B32: 2 | C32: USD | G32: тыс. USD | H32: 0 | T32: 0 | U32: 0 | V32: 0 | W32: 0 | X32: 0 | Y32: 0 | Z32: 0 | AA32: 0 | AB32: 0 | AC32: 0 | AD32: 0 | AE32: 0 | AF32: 0 | AG32: 0 | AH32: 0 | AI32: 0 | AJ32: 0 | AK32: 0 | AL32: 0 | AM32: 0 | AN32: 0 | AO32: 0 | AP32: 0 | AQ32: 0 | AR32: 0
B33: 3 | C33: EUR | G33: тыс. EUR | H33: 0 | T33: 0 | U33: 0 | V33: 0 | W33: 0 | X33: 0 | Y33: 0 | Z33: 0 | AA33: 0 | AB33: 0 | AC33: 0 | AD33: 0 | AE33: 0 | AF33: 0 | AG33: 0 | AH33: 0 | AI33: 0 | AJ33: 0 | AK33: 0 | AL33: 0 | AM33: 0 | AN33: 0 | AO33: 0 | AP33: 0 | AQ33: 0 | AR33: 0
B34: 4 | C34: CHY | G34: тыс. CHY | H34: 0 | T34: 0 | U34: 0 | V34: 0 | W34: 0 | X34: 0 | Y34: 0 | Z34: 0 | AA34: 0 | AB34: 0 | AC34: 0 | AD34: 0 | AE34: 0 | AF34: 0 | AG34: 0 | AH34: 0 | AI34: 0 | AJ34: 0 | AK34: 0 | AL34: 0 | AM34: 0 | AN34: 0 | AO34: 0 | AP34: 0 | AQ34: 0 | AR34: 0
B35: 5 | C35: 0 | H35: 0 | T35: 0 | U35: 0 | V35: 0 | W35: 0 | X35: 0 | Y35: 0 | Z35: 0 | AA35: 0 | AB35: 0 | AC35: 0 | AD35: 0 | AE35: 0 | AF35: 0 | AG35: 0 | AH35: 0 | AI35: 0 | AJ35: 0 | AK35: 0 | AL35: 0 | AM35: 0 | AN35: 0 | AO35: 0 | AP35: 0 | AQ35: 0 | AR35: 0
B36: 6 | C36: 0 | H36: 0 | T36: 0 | U36: 0 | V36: 0 | W36: 0 | X36: 0 | Y36: 0 | Z36: 0 | AA36: 0 | AB36: 0 | AC36: 0 | AD36: 0 | AE36: 0 | AF36: 0 | AG36: 0 | AH36: 0 | AI36: 0 | AJ36: 0 | AK36: 0 | AL36: 0 | AM36: 0 | AN36: 0 | AO36: 0 | AP36: 0 | AQ36: 0 | AR36: 0
AS37: ut_Revenue_Total_Inputs
B38: =B37+1 -> 1 | C38: =IFERROR(INDEX(ut_Products_Dom_Dir,$B38,1),0) -> Продажи покупателю 1 | D38: без НДС | H38: =ut_Digits&ut_LCU -> тыс. RUB | T38: =IFERROR(INDEX(ut_Exchange_Rates,$K14,ut_Counter)*T14,0)+IFERROR(INDEX(ut_Exchange_Rates,$K19,ut_Counter)*T19,0) -> 0 | U38: 0 | V38: 0 | W38: 0 | X38: 0 | Y38: 6366788.897 | Z38: 6793499.17 | AA38: 6759210.909 | AB38: =IFERROR(INDEX(ut_Exchange_Rates,$K14,ut_Counter)*AB14,0)+IFERROR(INDEX(ut_Exchange_Rates,$K19,ut_Counter)*AB19,0) -> 19660650.81 | AC38: 19546325.61 | AD38: 19602943.41 | AE38: 20754425.44 | AF38: 19763993.05 | AG38: 8287918.492 | AH38: 8783389.774 | AI38: 8557238.593 | AJ38: 9155437.815 | AK38: 9823642.462 | AL38: 9457857.629 | AM38: 9435510.75 | AN38: 10071596.91 | AO38: 10159401.37 | AP38: 10045271.49 | AQ38: 9725235.48 | AR38: =IFERROR(INDEX(ut_Exchange_Rates,$K14,ut_Counter)*AR14,0)+IFERROR(INDEX(ut_Exchange_Rates,$K19,ut_Counter)*AR19,0) -> 10495662.35
B39: =B38+1 -> 2 | C39: =IFERROR(INDEX(ut_Products_Dom_Dir,$B39,1),0) -> Продажи покупателю 2 | D39: без НДС | H39: =ut_Digits&ut_LCU -> тыс. RUB | T39: =IFERROR(INDEX(ut_Exchange_Rates,$K15,ut_Counter)*T15,0)+IFERROR(INDEX(ut_Exchange_Rates,$K20,ut_Counter)*T20,0) -> 0 | U39: 0 | V39: 0 | W39: 0 | X39: 0 | Y39: 4110115.943 | Z39: 4385581.131 | AA39: 4363446.154 | AB39: =IFERROR(INDEX(ut_Exchange_Rates,$K15,ut_Counter)*AB15,0)+IFERROR(INDEX(ut_Exchange_Rates,$K20,ut_Counter)*AB20,0) -> 12692042.35 | AC39: 12618239.09 | AD39: 12654789.03 | AE39: 13398134.65 | AF39: 12758755.51 | AG39: 14158527.42 | AH39: 15004957.53 | AI39: 14618615.93 | AJ39: 15640539.6 | AK39: 16782055.87 | AL39: 16157173.45 | AM39: 16118997.53 | AN39: 17205644.71 | AO39: 17355644 | AP39: 17160672.13 | AQ39: 16613943.94 | AR39: =IFERROR(INDEX(ut_Exchange_Rates,$K15,ut_Counter)*AR15,0)+IFERROR(INDEX(ut_Exchange_Rates,$K20,ut_Counter)*AR20,0) -> 17930089.84
B40: =B39+1 -> 3 | C40: =IFERROR(INDEX(ut_Products_Dom_Dir,$B40,1),0) -> Продажи покупателю 3 | D40: без НДС | H40: =ut_Digits&ut_LCU -> тыс. RUB | T40: 0 | U40: 0 | V40: 0 | W40: 0 | X40: 0 | Y40: 1676587.743 | Z40: 1788954.781 | AA40: 1779925.539 | AB40: 5177304.713 | AC40: 5147199.077 | AD40: 5162108.432 | AE40: 5465332.033 | AF40: 5204518.169 | AG40: 12777207.68 | AH40: 13541059.23 | AI40: 13192409.5 | AJ40: 14114633.3 | AK40: 15144782.13 | AL40: 14580863.85 | AM40: 14546412.41 | AN40: 15527045.23 | AO40: 15662410.44 | AP40: 15486460.21 | AQ40: 14993071.36 | AR40: 16180812.79
C43: Итого выручка | D43: в валюте модели | G43: =ut_Digits&ut_LCU -> тыс. RUB | H43: =SUM(T43:AR43) -> 712123064.8 | T43: =SUM(T38:T41) -> 0 | U43: 0 | V43: 0 | W43: 0 | X43: 0 | Y43: 12153492.58 | Z43: 12968035.08 | AA43: 12902582.6 | AB43: =SUM(AB38:AB41) -> 37529997.87 | AC43: 37311763.77 | AD43: 37419840.87 | AE43: 39617892.12 | AF43: 37727266.73 | AG43: 35223653.59 | AH43: 37329406.54 | AI43: 36368264.02 | AJ43: 38910610.71 | AK43: 41750480.46 | AL43: 40195894.92 | AM43: 40100920.69 | AN43: 42804286.85 | AO43: 43177455.82 | AP43: 42692403.83 | AQ43: 41332250.79 | AR43: =SUM(AR38:AR41) -> 44606564.98 | AS43: ut_Revenue
C47: Операционные расходы
C49: Постоянные расходы
D50: валюта | E50: индикатор | F50: статья расходов | J50: fx rate | K50: row | L50: idx | P50: VAT
B51: =B50+1 -> 1 | C51: =IFERROR(INDEX(ut_FC_Dir,B51,1),0) -> Заработная плата (не включая соц. и страх взносы) | D51: =IFERROR(INDEX(ut_FC_Dir,B51,2),0) -> RUB | E51: Темпы роста заработной платы | F51: =IFERROR(INDEX(ut_FC_Dir,B51,4),0) -> Производственные | H51: =ut_Digits&ut_LCU -> тыс. RUB | J51: =IF(C51<>0,D51&"/"&ut_LCU,0) -> RUB/RUB | K51: =IFERROR(MATCH(J51,ut_Exchange_Rates_Headers,0),0) -> 1 | L51: =IFERROR(MATCH(Calculations!E51,INDEX(ut_Inputs_Names,,1),0),"нет") -> 7 | P51: =IFERROR(INDEX(ut_FC_Dir,B51,3),0) -> 0 | T51: =IFERROR(INDEX(ut_Exchange_Rates,$K51,ut_Counter)*INDEX(ut_Fixed_Costs_Data,$B51,ut_Counter)/(1+$P51)*IF($L51<>"нет",INDEX(ut_Inputs_Data,$L51,ut_Counter),1),0) -> 116516.4 | U51: 116079.6 | V51: 113786.4 | W51: 111274.8 | X51: 109746 | Y51: 348238.8 | Z51: 349876.8 | AA51: 334479.6 | AB51: 342014.4 | AC51: 349549.2 | AD51: 333169.2 | AE51: 351514.8 | AF51: 336117.6 | AG51: 354135.6 | AH51: 344635.2 | AI51: 342997.2 | AJ51: =IFERROR(INDEX(ut_Exchange_Rates,$K51,ut_Counter)*INDEX(ut_Fixed_Costs_Data,$B51,ut_Counter)/(1+$P51)*IF($L51<>"нет",INDEX(ut_Inputs_Data,$L51,ut_Counter),1),0) -> 342014.4 | AK51: 329565.6 | AL51: 332841.6 | AM51: 351514.8 | AN51: 336445.2 | AO51: 341359.2 | AP51: 337755.6 | AQ51: 336117.6 | AR51: =IFERROR(INDEX(ut_Exchange_Rates,$K51,ut_Counter)*INDEX(ut_Fixed_Costs_Data,$B51,ut_Counter)/(1+$P51)*IF($L51<>"нет",INDEX(ut_Inputs_Data,$L51,ut_Counter),1),0) -> 353152.8
B52: 2 | C52: Социальные страховые взносы | D52: RUB | E52: Темпы роста заработной платы | F52: Производственные | H52: тыс. RUB | J52: RUB/RUB | K52: 1 | L52: =IFERROR(MATCH(Calculations!E52,INDEX(ut_Inputs_Names,,1),0),"нет") -> 7 | P52: 0 | T52: 26888.4 | U52: 26787.6 | V52: 26258.4 | W52: 25678.8 | X52: 25326 | Y52: 80362.8 | Z52: 80740.8 | AA52: 77187.6 | AB52: 78926.4 | AC52: 80665.2 | AD52: 76885.2 | AE52: 81118.8 | AF52: 77565.6 | AG52: 81723.6 | AH52: 79531.2 | AI52: 79153.2 | AJ52: 78926.4 | AK52: 76053.6 | AL52: 76809.6 | AM52: 81118.8 | AN52: 77641.2 | AO52: 78775.2 | AP52: 77943.6 | AQ52: 77565.6 | AR52: 81496.8
B53: 3 | C53: Электроэнергия | D53: RUB | E53: Темпы роста цен на электроэнергию | F53: Производственные | H53: тыс. RUB | J53: RUB/RUB | K53: 1 | L53: =IFERROR(MATCH(Calculations!E53,INDEX(ut_Inputs_Names,,1),0),"нет") -> 4 | P53: 0.2 | T53: 8811.25 | U53: 9467.5 | V53: 8881.25 | W53: 9240 | X53: 9222.5 | Y53: 9520 | Z53: 8881.25 | AA53: 9301.25 | AB53: 9021.25 | AC53: 8820 | AD53: 8732.5 | AE53: 9152.5 | AF53: 9152.5 | AG53: 9248.75 | AH53: 8995 | AI53: 9135 | AJ53: 9100 | AK53: 9397.5 | AL53: 9467.5 | AM53: 9432.5 | AN53: 9432.5 | AO53: 9388.75 | AP53: 9406.25 | AQ53: 9187.5 | AR53: 8863.75
B54: 4 | C54: Тепловая энергия | D54: RUB | E54: Темпы роста цен на пар | F54: Производственные | H54: тыс. RUB | J54: RUB/RUB | K54: 1 | L54: =IFERROR(MATCH(Calculations!E54,INDEX(ut_Inputs_Names,,1),0),"нет") -> 6 | P54: 0.2 | T54: 6858 | U54: 7276.5 | V54: 6844.5 | W54: 7296.75 | X54: 7330.5 | Y54: 7134.75 | Z54: 7276.5 | AA54: 7269.75 | AB54: 7155 | AC54: 7067.25 | AD54: 7263 | AE54: 6925.5 | AF54: 7215.75 | AG54: 6986.25 | AH54: 7013.25 | AI54: 7074 | AJ54: 7276.5 | AK54: 7128 | AL54: 6932.25 | AM54: 7269.75 | AN54: 6864.75 | AO54: 7026.75 | AP54: 7128 | AQ54: 7290 | AR54: 6878.25
B55: 5 | C55: Прочие коммунальные | D55: RUB | E55: Производственная инфляция | F55: Производственные | H55: тыс. RUB | J55: RUB/RUB | K55: 1 | L55: =IFERROR(MATCH(Calculations!E55,INDEX(ut_Inputs_Names,,1),0),"нет") -> 2 | P55: 0.2 | T55: 3310.8 | U55: 3258.1 | V55: 3137.2 | W55: 3344.9 | X55: 3304.6 | Y55: 3304.6 | Z55: 3220.9 | AA55: 3338.7 | AB55: 3140.3 | AC55: 3279.8 | AD55: 3307.7 | AE55: 3214.7 | AF55: 3233.3 | AG55: 3146.5 | AH55: 3131 | AI55: 3115.5 | AJ55: 3183.7 | AK55: 3341.8 | AL55: 3304.6 | AM55: 3289.1 | AN55: 3248.8 | AO55: 3245.7 | AP55: 3341.8 | AQ55: 3100 | AR55: 3338.7
B56: 6 | C56: Ремонты | D56: RUB | E56: Производственная инфляция | F56: Производственные | H56: тыс. RUB | J56: RUB/RUB | K56: 1 | L56: =IFERROR(MATCH(Calculations!E56,INDEX(ut_Inputs_Names,,1),0),"нет") -> 2 | P56: 0.2 | T56: 2403 | U56: 2364.75 | V56: 2277 | W56: 2427.75 | X56: 2398.5 | Y56: 2398.5 | Z56: 2337.75 | AA56: 2423.25 | AB56: 2279.25 | AC56: 2380.5 | AD56: 2400.75 | AE56: 2333.25 | AF56: 2346.75 | AG56: 2283.75 | AH56: 2272.5 | AI56: 2261.25 | AJ56: 2310.75 | AK56: 2425.5 | AL56: 2398.5 | AM56: 2387.25 | AN56: 2358 | AO56: 2355.75 | AP56: 2425.5 | AQ56: 2250 | AR56: 2423.25
B57: 7 | C57: Аренда земельного участка | D57: RUB | E57: Инфляция | F57: Производственные | H57: тыс. RUB | J57: RUB/RUB | K57: 1 | L57: =IFERROR(MATCH(Calculations!E57,INDEX(ut_Inputs_Names,,1),0),"нет") -> 1 | P57: 0.2 | T57: 998 | U57: 1031 | V57: 1006 | W57: 1054 | X57: 1047 | Y57: 1038 | Z57: 1088 | AA57: 1028 | AB57: 1005 | AC57: 1020 | AD57: 1057 | AE57: 1068 | AF57: 1080 | AG57: 1071 | AH57: 1066 | AI57: 1062 | AJ57: 1025 | AK57: 1036 | AL57: 1073 | AM57: 1066 | AN57: 1015 | AO57: 1077 | AP57: 1066 | AQ57: 1048 | AR57: 1033
B58: 8 | C58: Аренда офиса | D58: RUB | E58: Инфляция | F58: Управленческие | H58: тыс. RUB | J58: RUB/RUB | K58: 1 | L58: =IFERROR(MATCH(Calculations!E58,INDEX(ut_Inputs_Names,,1),0),"нет") -> 1 | P58: 0.2 | T58: 11643.33333 | U58: 12028.33333 | V58: 11736.66667 | W58: 12296.66667 | X58: 12215 | Y58: 12110 | Z58: 12693.33333 | AA58: 11993.33333 | AB58: 11725 | AC58: 11900 | AD58: 12331.66667 | AE58: 12460 | AF58: 12600 | AG58: 12495 | AH58: 12436.66667 | AI58: 12390 | AJ58: 11958.33333 | AK58: 12086.66667 | AL58: 12518.33333 | AM58: 12436.66667 | AN58: 11841.66667 | AO58: 12565 | AP58: 12436.66667 | AQ58: 12226.66667 | AR58: 12051.66667
B59: 9 | C59: Прочие расходы | D59: RUB | E59: Производственная инфляция | F59: Прочие | H59: тыс. RUB | J59: RUB/RUB | K59: 1 | L59: =IFERROR(MATCH(Calculations!E59,INDEX(ut_Inputs_Names,,1),0),"нет") -> 2 | P59: 0.2 | T59: 47526 | U59: 46769.5 | V59: 45034 | W59: 48015.5 | X59: 47437 | Y59: 47437 | Z59: 46235.5 | AA59: 47926.5 | AB59: 45078.5 | AC59: 47081 | AD59: 47481.5 | AE59: 46146.5 | AF59: 46413.5 | AG59: 45167.5 | AH59: 44945 | AI59: 44722.5 | AJ59: 45701.5 | AK59: 47971 | AL59: 47437 | AM59: 47214.5 | AN59: 46636 | AO59: 46591.5 | AP59: 47971 | AQ59: 44500 | AR59: 47926.5
B60: 10 | C60: 0 | D60: 0 | F60: 0 | H60: тыс. RUB | J60: 0 | K60: 0 | L60: =IFERROR(MATCH(Calculations!E60,INDEX(ut_Inputs_Names,,1),0),"нет") -> нет | P60: 0 | T60: 0 | U60: 0 | V60: 0 | W60: 0 | X60: 0 | Y60: 0 | Z60: 0 | AA60: 0 | AB60: 0 | AC60: 0 | AD60: 0 | AE60: 0 | AF60: 0 | AG60: 0 | AH60: 0 | AI60: 0 | AJ60: 0 | AK60: 0 | AL60: 0 | AM60: 0 | AN60: 0 | AO60: 0 | AP60: 0 | AQ60: 0 | AR60: 0
B61: 11 | C61: 0 | D61: 0 | F61: 0 | H61: тыс. RUB | J61: 0 | K61: 0 | L61: =IFERROR(MATCH(Calculations!E61,INDEX(ut_Inputs_Names,,1),0),"нет") -> нет | P61: 0 | T61: =IFERROR(INDEX(ut_Exchange_Rates,$K61,ut_Counter)*INDEX(ut_Fixed_Costs_Data,$B61,ut_Counter)/(1+$P61)*IF($L61<>"нет",INDEX(ut_Inputs_Data,$L61,ut_Counter),1),0) -> 0 | U61: 0 | V61: 0 | W61: 0 | X61: 0 | Y61: 0 | Z61: 0 | AA61: 0 | AB61: 0 | AC61: 0 | AD61: 0 | AE61: 0 | AF61: 0 | AG61: 0 | AH61: 0 | AI61: 0 | AJ61: 0 | AK61: 0 | AL61: 0 | AM61: 0 | AN61: 0 | AO61: 0 | AP61: 0 | AQ61: 0 | AR61: =IFERROR(INDEX(ut_Exchange_Rates,$K61,ut_Counter)*INDEX(ut_Fixed_Costs_Data,$B61,ut_Counter)/(1+$P61)*IF($L61<>"нет",INDEX(ut_Inputs_Data,$L61,ut_Counter),1),0) -> 0
B62: 12 | C62: 0 | D62: 0 | F62: 0 | H62: тыс. RUB | J62: 0 | K62: 0 | L62: =IFERROR(MATCH(Calculations!E62,INDEX(ut_Inputs_Names,,1),0),"нет") -> нет | P62: 0 | T62: 0 | U62: 0 | V62: 0 | W62: 0 | X62: 0 | Y62: 0 | Z62: 0 | AA62: 0 | AB62: 0 | AC62: 0 | AD62: 0 | AE62: 0 | AF62: 0 | AG62: 0 | AH62: 0 | AI62: 0 | AJ62: 0 | AK62: 0 | AL62: 0 | AM62: 0 | AN62: 0 | AO62: 0 | AP62: 0 | AQ62: 0 | AR62: 0
B63: 13 | C63: 0 | D63: 0 | F63: 0 | H63: тыс. RUB | J63: 0 | K63: 0 | L63: =IFERROR(MATCH(Calculations!E63,INDEX(ut_Inputs_Names,,1),0),"нет") -> нет | P63: 0 | T63: 0 | U63: 0 | V63: 0 | W63: 0 | X63: 0 | Y63: 0 | Z63: 0 | AA63: 0 | AB63: 0 | AC63: 0 | AD63: 0 | AE63: 0 | AF63: 0 | AG63: 0 | AH63: 0 | AI63: 0 | AJ63: 0 | AK63: 0 | AL63: 0 | AM63: 0 | AN63: 0 | AO63: 0 | AP63: 0 | AQ63: 0 | AR63: 0
B64: 14 | C64: 0 | D64: 0 | F64: 0 | H64: тыс. RUB | J64: 0 | K64: 0 | L64: =IFERROR(MATCH(Calculations!E64,INDEX(ut_Inputs_Names,,1),0),"нет") -> нет | P64: 0 | T64: 0 | U64: 0 | V64: 0 | W64: 0 | X64: 0 | Y64: 0 | Z64: 0 | AA64: 0 | AB64: 0 | AC64: 0 | AD64: 0 | AE64: 0 | AF64: 0 | AG64: 0 | AH64: 0 | AI64: 0 | AJ64: 0 | AK64: 0 | AL64: 0 | AM64: 0 | AN64: 0 | AO64: 0 | AP64: 0 | AQ64: 0 | AR64: 0
B65: 15 | C65: 0 | D65: 0 | F65: 0 | H65: тыс. RUB | J65: 0 | K65: 0 | L65: =IFERROR(MATCH(Calculations!E65,INDEX(ut_Inputs_Names,,1),0),"нет") -> нет | P65: 0 | T65: 0 | U65: 0 | V65: 0 | W65: 0 | X65: 0 | Y65: 0 | Z65: 0 | AA65: 0 | AB65: 0 | AC65: 0 | AD65: 0 | AE65: 0 | AF65: 0 | AG65: 0 | AH65: 0 | AI65: 0 | AJ65: 0 | AK65: 0 | AL65: 0 | AM65: 0 | AN65: 0 | AO65: 0 | AP65: 0 | AQ65: 0 | AR65: 0
B66: 16 | C66: 0 | D66: 0 | F66: 0 | H66: тыс. RUB | J66: 0 | K66: 0 | L66: =IFERROR(MATCH(Calculations!E66,INDEX(ut_Inputs_Names,,1),0),"нет") -> нет | P66: 0 | T66: 0 | U66: 0 | V66: 0 | W66: 0 | X66: 0 | Y66: 0 | Z66: 0 | AA66: 0 | AB66: 0 | AC66: 0 | AD66: 0 | AE66: 0 | AF66: 0 | AG66: 0 | AH66: 0 | AI66: 0 | AJ66: 0 | AK66: 0 | AL66: 0 | AM66: 0 | AN66: 0 | AO66: 0 | AP66: 0 | AQ66: 0 | AR66: 0
B67: 17 | C67: 0 | D67: 0 | F67: 0 | H67: тыс. RUB | J67: 0 | K67: 0 | L67: =IFERROR(MATCH(Calculations!E67,INDEX(ut_Inputs_Names,,1),0),"нет") -> нет | P67: 0 | T67: 0 | U67: 0 | V67: 0 | W67: 0 | X67: 0 | Y67: 0 | Z67: 0 | AA67: 0 | AB67: =IFERROR(INDEX(ut_Exchange_Rates,$K67,ut_Counter)*INDEX(ut_Fixed_Costs_Data,$B67,ut_Counter)/(1+$P67)*IF($L67<>"нет",INDEX(ut_Inputs_Data,$L67,ut_Counter),1),0) -> 0 | AC67: 0 | AD67: 0 | AE67: 0 | AF67: 0 | AG67: 0 | AH67: 0 | AI67: 0 | AJ67: 0 | AK67: 0 | AL67: 0 | AM67: 0 | AN67: 0 | AO67: 0 | AP67: 0 | AQ67: 0 | AR67: 0
B68: 18 | C68: 0 | D68: 0 | F68: 0 | H68: тыс. RUB | J68: 0 | K68: 0 | L68: =IFERROR(MATCH(Calculations!E68,INDEX(ut_Inputs_Names,,1),0),"нет") -> нет | P68: 0 | T68: 0 | U68: 0 | V68: 0 | W68: 0 | X68: 0 | Y68: 0 | Z68: 0 | AA68: 0 | AB68: 0 | AC68: 0 | AD68: 0 | AE68: 0 | AF68: 0 | AG68: 0 | AH68: 0 | AI68: 0 | AJ68: 0 | AK68: 0 | AL68: 0 | AM68: 0 | AN68: 0 | AO68: 0 | AP68: 0 | AQ68: 0 | AR68: 0
B69: 19 | C69: 0 | D69: 0 | F69: 0 | H69: тыс. RUB | J69: 0 | K69: 0 | L69: =IFERROR(MATCH(Calculations!E69,INDEX(ut_Inputs_Names,,1),0),"нет") -> нет | P69: 0 | T69: 0 | U69: 0 | V69: 0 | W69: 0 | X69: 0 | Y69: 0 | Z69: 0 | AA69: 0 | AB69: 0 | AC69: 0 | AD69: 0 | AE69: 0 | AF69: 0 | AG69: 0 | AH69: 0 | AI69: 0 | AJ69: 0 | AK69: 0 | AL69: 0 | AM69: 0 | AN69: 0 | AO69: 0 | AP69: 0 | AQ69: 0 | AR69: 0
B70: 20 | C70: 0 | D70: 0 | F70: 0 | H70: тыс. RUB | J70: 0 | K70: 0 | L70: =IFERROR(MATCH(Calculations!E70,INDEX(ut_Inputs_Names,,1),0),"нет") -> нет | P70: 0 | T70: 0 | U70: 0 | V70: 0 | W70: 0 | X70: 0 | Y70: 0 | Z70: 0 | AA70: 0 | AB70: 0 | AC70: 0 | AD70: 0 | AE70: 0 | AF70: 0 | AG70: 0 | AH70: 0 | AI70: 0 | AJ70: 0 | AK70: 0 | AL70: 0 | AM70: 0 | AN70: 0 | AO70: 0 | AP70: 0 | AQ70: 0 | AR70: 0
C72: Итого постоянные расходы | D72: в валюте модели | E72: =ut_Digits&ut_LCU -> тыс. RUB | H72: =SUM(T72:AR72) -> 11169875.52 | T72: =SUM(T51:T70) -> 224955.1833 | U72: 225062.8833 | V72: 218961.4167 | W72: 220629.1667 | X72: 218027.1 | Y72: 511544.45 | Z72: 512350.8333 | AA72: 494947.9833 | AB72: =SUM(AB51:AB70) -> 500345.1 | AC72: 511762.95 | AD72: 492628.5167 | AE72: 513934.05 | AF72: 495725 | AG72: 516257.95 | AH72: 504025.8167 | AI72: 501910.65 | AJ72: 501496.5833 | AK72: 489005.6667 | AL72: 492782.3833 | AM72: 515729.3667 | AN72: 495483.1167 | AO72: 502384.85 | AP72: 499474.4167 | AQ72: 493285.3667 | AR72: =SUM(AR51:AR70) -> 517164.7167
C75: Переменные расходы (общие)
D76: валюта | E76: индикатор | F76: статья расходов | G76: драйвер | J76: fx rate | K76: row | L76: idx | M76: option | P76: VAT | AS76: ut_VC_Ex_Rates
B77: =B76+1 -> 1 | C77: =IFERROR(INDEX(ut_VC_Dir,B77,1),0) -> Заработная плата (не включая соц. и страх взносы) | D77: =IFERROR(INDEX(ut_VC_Dir,B77,2),0) -> RUB | F77: =IFERROR(INDEX(ut_VC_Dir,B77,4),0) -> Производственные | G77: =IFERROR(INDEX(ut_VC_Dir,B77,5),0) -> 0 | H77: =ut_Digits&ut_LCU -> тыс. RUB | J77: =IF(C77<>0,D77&"/"&ut_LCU,0) -> RUB/RUB | K77: =IFERROR(MATCH(J77,ut_Exchange_Rates_Headers,0),0) -> 1 | L77: =IFERROR(MATCH(Calculations!E77,INDEX(ut_Inputs_Names,,1),0),"нет") -> нет | M77: =IFERROR(MATCH(G77,ut_VC_options,1),3) -> 3 | P77: =IFERROR(INDEX(ut_VC_Dir,B51,3),0) -> 0 | T77: =IFERROR(INDEX(ut_Exchange_Rates,$K77,T$2)*INDEX(ut_VC_Common_Data,$B77,T$2)/(1+$P77)*IF($L77<>"нет",INDEX(ut_Inputs_Data,$L77,ut_Counter),1)*CHOOSE($M77,ut_Revenue,SUMIFS(T$103:T$135,$C$103:$C$135,"Итого расходы"),1),0) -> 0 | U77: 0 | V77: 0 | W77: 0 | X77: 0 | Y77: 0 | Z77: 0 | AA77: 0 | AB77: 0 | AC77: 0 | AD77: =IFERROR(INDEX(ut_Exchange_Rates,$K77,AD$2)*INDEX(ut_VC_Common_Data,$B77,AD$2)/(1+$P77)*IF($L77<>"нет",INDEX(ut_Inputs_Data,$L77,ut_Counter),1)*CHOOSE($M77,ut_Revenue,SUMIFS(AD$103:AD$135,$C$103:$C$135,"Итого расходы"),1),0) -> 0 | AE77: 0 | AF77: 0 | AG77: 0 | AH77: 0 | AI77: 0 | AJ77: 0 | AK77: 0 | AL77: 0 | AM77: 0 | AN77: 0 | AO77: 0 | AP77: 0 | AQ77: 0 | AR77: 0
B78: 2 | C78: Социальные страховые взносы | D78: RUB | F78: Производственные | G78: 0 | H78: тыс. RUB | J78: RUB/RUB | K78: 1 | L78: =IFERROR(MATCH(Calculations!E78,INDEX(ut_Inputs_Names,,1),0),"нет") -> нет | M78: 3 | P78: 0 | T78: 0 | U78: 0 | V78: 0 | W78: 0 | X78: 0 | Y78: 0 | Z78: 0 | AA78: 0 | AB78: 0 | AC78: 0 | AD78: 0 | AE78: 0 | AF78: 0 | AG78: 0 | AH78: 0 | AI78: 0 | AJ78: 0 | AK78: 0 | AL78: 0 | AM78: 0 | AN78: 0 | AO78: 0 | AP78: 0 | AQ78: 0 | AR78: 0
B79: 3 | C79: Вознаграждение агентам | D79: RUB | F79: Коммерческие | G79: % от выручки | H79: тыс. RUB | J79: RUB/RUB | K79: 1 | L79: =IFERROR(MATCH(Calculations!E79,INDEX(ut_Inputs_Names,,1),0),"нет") -> нет | M79: 1 | P79: 0.2 | T79: 0 | U79: 0 | V79: 0 | W79: 0 | X79: 0 | Y79: 202558.2097 | Z79: 216133.918 | AA79: 215043.0434 | AB79: 625499.9646 | AC79: 621862.7295 | AD79: 623664.0145 | AE79: 660298.202 | AF79: 628787.7788 | AG79: 587060.8932 | AH79: 622156.7756 | AI79: 606137.7337 | AJ79: 648510.1786 | AK79: 695841.3411 | AL79: 669931.5821 | AM79: 668348.6781 | AN79: 713404.7808 | AO79: 719624.2636 | AP79: 711540.0638 | AQ79: 688870.8465 | AR79: 743442.7496
B80: 4 | C80: Комиссии банков | D80: RUB | F80: Коммерческие | G80: % от выручки | H80: тыс. RUB | J80: RUB/RUB | K80: 1 | L80: =IFERROR(MATCH(Calculations!E80,INDEX(ut_Inputs_Names,,1),0),"нет") -> нет | M80: 1 | P80: 0 | T80: 0 | U80: 0 | V80: 0 | W80: 0 | X80: 0 | Y80: 182302.3887 | Z80: 194520.5262 | AA80: 193538.739 | AB80: 562949.9681 | AC80: 559676.4566 | AD80: 561297.6131 | AE80: 594268.3818 | AF80: 565909.0009 | AG80: 528354.8039 | AH80: 559941.0981 | AI80: 545523.9603 | AJ80: 583659.1607 | AK80: 626257.207 | AL80: 602938.4239 | AM80: 601513.8103 | AN80: 642064.3027 | AO80: 647661.8373 | AP80: 640386.0574 | AQ80: 619983.7618 | AR80: 669098.4747
B81: 5 | C81: 0 | D81: 0 | F81: 0 | G81: 0 | H81: тыс. RUB | J81: 0 | K81: 0 | L81: =IFERROR(MATCH(Calculations!E81,INDEX(ut_Inputs_Names,,1),0),"нет") -> нет | M81: 3 | P81: 0 | T81: 0 | U81: 0 | V81: 0 | W81: 0 | X81: 0 | Y81: 0 | Z81: 0 | AA81: 0 | AB81: 0 | AC81: 0 | AD81: 0 | AE81: 0 | AF81: 0 | AG81: 0 | AH81: 0 | AI81: 0 | AJ81: 0 | AK81: 0 | AL81: 0 | AM81: 0 | AN81: 0 | AO81: 0 | AP81: 0 | AQ81: 0 | AR81: 0
B82: 6 | C82: 0 | D82: 0 | F82: 0 | G82: 0 | H82: тыс. RUB | J82: 0 | K82: 0 | L82: =IFERROR(MATCH(Calculations!E82,INDEX(ut_Inputs_Names,,1),0),"нет") -> нет | M82: 3 | P82: 0 | T82: 0 | U82: 0 | V82: 0 | W82: 0 | X82: 0 | Y82: 0 | Z82: 0 | AA82: 0 | AB82: 0 | AC82: 0 | AD82: 0 | AE82: 0 | AF82: 0 | AG82: 0 | AH82: 0 | AI82: 0 | AJ82: 0 | AK82: 0 | AL82: 0 | AM82: 0 | AN82: 0 | AO82: 0 | AP82: 0 | AQ82: 0 | AR82: 0
B83: 7 | C83: 0 | D83: 0 | F83: 0 | G83: 0 | H83: тыс. RUB | J83: 0 | K83: 0 | L83: =IFERROR(MATCH(Calculations!E83,INDEX(ut_Inputs_Names,,1),0),"нет") -> нет | M83: 3 | P83: 0 | T83: 0 | U83: 0 | V83: 0 | W83: 0 | X83: 0 | Y83: 0 | Z83: 0 | AA83: 0 | AB83: 0 | AC83: 0 | AD83: 0 | AE83: 0 | AF83: 0 | AG83: 0 | AH83: 0 | AI83: 0 | AJ83: 0 | AK83: 0 | AL83: 0 | AM83: 0 | AN83: 0 | AO83: 0 | AP83: 0 | AQ83: 0 | AR83: 0
B84: 8 | C84: 0 | D84: 0 | F84: 0 | G84: 0 | H84: тыс. RUB | J84: 0 | K84: 0 | L84: =IFERROR(MATCH(Calculations!E84,INDEX(ut_Inputs_Names,,1),0),"нет") -> нет | M84: 3 | P84: 0 | T84: 0 | U84: 0 | V84: 0 | W84: 0 | X84: 0 | Y84: 0 | Z84: 0 | AA84: 0 | AB84: 0 | AC84: 0 | AD84: 0 | AE84: 0 | AF84: 0 | AG84: 0 | AH84: 0 | AI84: 0 | AJ84: 0 | AK84: 0 | AL84: 0 | AM84: 0 | AN84: 0 | AO84: 0 | AP84: 0 | AQ84: 0 | AR84: 0
B85: 9 | C85: 0 | D85: 0 | F85: 0 | G85: 0 | H85: тыс. RUB | J85: 0 | K85: 0 | L85: =IFERROR(MATCH(Calculations!E85,INDEX(ut_Inputs_Names,,1),0),"нет") -> нет | M85: 3 | P85: 0 | T85: 0 | U85: 0 | V85: 0 | W85: 0 | X85: 0 | Y85: 0 | Z85: 0 | AA85: 0 | AB85: 0 | AC85: 0 | AD85: 0 | AE85: 0 | AF85: 0 | AG85: 0 | AH85: 0 | AI85: 0 | AJ85: 0 | AK85: 0 | AL85: 0 | AM85: 0 | AN85: 0 | AO85: 0 | AP85: 0 | AQ85: 0 | AR85: 0
B86: 10 | C86: 0 | D86: 0 | F86: 0 | G86: 0 | H86: тыс. RUB | J86: 0 | K86: 0 | L86: =IFERROR(MATCH(Calculations!E86,INDEX(ut_Inputs_Names,,1),0),"нет") -> нет | M86: 3 | P86: 0 | T86: 0 | U86: 0 | V86: 0 | W86: 0 | X86: 0 | Y86: 0 | Z86: 0 | AA86: 0 | AB86: 0 | AC86: 0 | AD86: 0 | AE86: 0 | AF86: 0 | AG86: 0 | AH86: 0 | AI86: 0 | AJ86: 0 | AK86: 0 | AL86: 0 | AM86: 0 | AN86: 0 | AO86: 0 | AP86: 0 | AQ86: 0 | AR86: 0
B87: 11 | C87: 0 | D87: 0 | F87: 0 | G87: 0 | H87: тыс. RUB | J87: 0 | K87: 0 | L87: =IFERROR(MATCH(Calculations!E87,INDEX(ut_Inputs_Names,,1),0),"нет") -> нет | M87: 3 | P87: 0 | T87: =IFERROR(INDEX(ut_Exchange_Rates,$K87,T$2)*INDEX(ut_VC_Common_Data,$B87,T$2)/(1+$P87)*IF($L87<>"нет",INDEX(ut_Inputs_Data,$L87,ut_Counter),1)*CHOOSE($M87,ut_Revenue,SUMIFS(T$103:T$135,$C$103:$C$135,"Итого расходы"),1),0) -> 0 | U87: 0 | V87: 0 | W87: 0 | X87: 0 | Y87: 0 | Z87: 0 | AA87: 0 | AB87: 0 | AC87: 0 | AD87: =IFERROR(INDEX(ut_Exchange_Rates,$K87,AD$2)*INDEX(ut_VC_Common_Data,$B87,AD$2)/(1+$P87)*IF($L87<>"нет",INDEX(ut_Inputs_Data,$L87,ut_Counter),1)*CHOOSE($M87,ut_Revenue,SUMIFS(AD$103:AD$135,$C$103:$C$135,"Итого расходы"),1),0) -> 0 | AE87: 0 | AF87: 0 | AG87: 0 | AH87: 0 | AI87: 0 | AJ87: 0 | AK87: 0 | AL87: 0 | AM87: 0 | AN87: 0 | AO87: 0 | AP87: 0 | AQ87: 0 | AR87: 0
B88: 12 | C88: 0 | D88: 0 | F88: 0 | G88: 0 | H88: тыс. RUB | J88: 0 | K88: 0 | L88: =IFERROR(MATCH(Calculations!E88,INDEX(ut_Inputs_Names,,1),0),"нет") -> нет | M88: 3 | P88: 0 | T88: 0 | U88: 0 | V88: 0 | W88: 0 | X88: 0 | Y88: 0 | Z88: 0 | AA88: 0 | AB88: 0 | AC88: 0 | AD88: 0 | AE88: 0 | AF88: 0 | AG88: 0 | AH88: 0 | AI88: 0 | AJ88: 0 | AK88: 0 | AL88: 0 | AM88: 0 | AN88: 0 | AO88: 0 | AP88: 0 | AQ88: 0 | AR88: 0
B89: 13 | C89: 0 | D89: 0 | F89: 0 | G89: 0 | H89: тыс. RUB | J89: 0 | K89: 0 | L89: =IFERROR(MATCH(Calculations!E89,INDEX(ut_Inputs_Names,,1),0),"нет") -> нет | M89: 3 | P89: 0 | T89: 0 | U89: 0 | V89: 0 | W89: 0 | X89: 0 | Y89: 0 | Z89: 0 | AA89: 0 | AB89: 0 | AC89: 0 | AD89: 0 | AE89: 0 | AF89: 0 | AG89: 0 | AH89: 0 | AI89: 0 | AJ89: 0 | AK89: 0 | AL89: 0 | AM89: 0 | AN89: 0 | AO89: 0 | AP89: 0 | AQ89: 0 | AR89: 0
B90: 14 | C90: 0 | D90: 0 | F90: 0 | G90: 0 | H90: тыс. RUB | J90: 0 | K90: 0 | L90: =IFERROR(MATCH(Calculations!E90,INDEX(ut_Inputs_Names,,1),0),"нет") -> нет | M90: 3 | P90: 0 | T90: 0 | U90: 0 | V90: 0 | W90: 0 | X90: 0 | Y90: 0 | Z90: 0 | AA90: 0 | AB90: 0 | AC90: 0 | AD90: 0 | AE90: 0 | AF90: 0 | AG90: 0 | AH90: 0 | AI90: 0 | AJ90: 0 | AK90: 0 | AL90: 0 | AM90: 0 | AN90: 0 | AO90: 0 | AP90: 0 | AQ90: 0 | AR90: 0
B91: 15 | C91: 0 | D91: 0 | F91: 0 | G91: 0 | H91: тыс. RUB | J91: 0 | K91: 0 | L91: =IFERROR(MATCH(Calculations!E91,INDEX(ut_Inputs_Names,,1),0),"нет") -> нет | M91: 3 | P91: 0 | T91: 0 | U91: 0 | V91: 0 | W91: 0 | X91: 0 | Y91: 0 | Z91: 0 | AA91: 0 | AB91: 0 | AC91: 0 | AD91: 0 | AE91: 0 | AF91: 0 | AG91: 0 | AH91: 0 | AI91: 0 | AJ91: 0 | AK91: 0 | AL91: 0 | AM91: 0 | AN91: 0 | AO91: 0 | AP91: 0 | AQ91: 0 | AR91: 0
B92: 16 | C92: 0 | D92: 0 | F92: 0 | G92: 0 | H92: тыс. RUB | J92: 0 | K92: 0 | L92: =IFERROR(MATCH(Calculations!E92,INDEX(ut_Inputs_Names,,1),0),"нет") -> нет | M92: 3 | P92: 0 | T92: 0 | U92: 0 | V92: 0 | W92: 0 | X92: 0 | Y92: 0 | Z92: 0 | AA92: 0 | AB92: 0 | AC92: 0 | AD92: 0 | AE92: 0 | AF92: 0 | AG92: 0 | AH92: 0 | AI92: 0 | AJ92: 0 | AK92: 0 | AL92: 0 | AM92: 0 | AN92: 0 | AO92: 0 | AP92: 0 | AQ92: 0 | AR92: 0
B93: 17 | C93: 0 | D93: 0 | F93: 0 | G93: 0 | H93: тыс. RUB | J93: 0 | K93: 0 | L93: =IFERROR(MATCH(Calculations!E93,INDEX(ut_Inputs_Names,,1),0),"нет") -> нет | M93: 3 | P93: 0 | T93: 0 | U93: 0 | V93: 0 | W93: 0 | X93: 0 | Y93: 0 | Z93: 0 | AA93: 0 | AB93: 0 | AC93: 0 | AD93: 0 | AE93: 0 | AF93: 0 | AG93: 0 | AH93: 0 | AI93: 0 | AJ93: 0 | AK93: 0 | AL93: 0 | AM93: 0 | AN93: 0 | AO93: 0 | AP93: 0 | AQ93: 0 | AR93: 0
B94: 18 | C94: 0 | D94: 0 | F94: 0 | G94: 0 | H94: тыс. RUB | J94: 0 | K94: 0 | L94: =IFERROR(MATCH(Calculations!E94,INDEX(ut_Inputs_Names,,1),0),"нет") -> нет | M94: 3 | P94: 0 | T94: 0 | U94: 0 | V94: 0 | W94: 0 | X94: 0 | Y94: 0 | Z94: 0 | AA94: 0 | AB94: 0 | AC94: 0 | AD94: 0 | AE94: 0 | AF94: 0 | AG94: 0 | AH94: 0 | AI94: 0 | AJ94: 0 | AK94: 0 | AL94: 0 | AM94: 0 | AN94: 0 | AO94: 0 | AP94: 0 | AQ94: 0 | AR94: 0
B95: 19 | C95: 0 | D95: 0 | F95: 0 | G95: 0 | H95: тыс. RUB | J95: 0 | K95: 0 | L95: =IFERROR(MATCH(Calculations!E95,INDEX(ut_Inputs_Names,,1),0),"нет") -> нет | M95: 3 | P95: 0 | T95: 0 | U95: 0 | V95: 0 | W95: 0 | X95: 0 | Y95: 0 | Z95: 0 | AA95: 0 | AB95: 0 | AC95: 0 | AD95: 0 | AE95: 0 | AF95: 0 | AG95: 0 | AH95: 0 | AI95: 0 | AJ95: 0 | AK95: 0 | AL95: 0 | AM95: 0 | AN95: 0 | AO95: 0 | AP95: 0 | AQ95: 0 | AR95: 0
B96: 20 | C96: 0 | D96: 0 | F96: 0 | G96: 0 | H96: тыс. RUB | J96: 0 | K96: 0 | L96: =IFERROR(MATCH(Calculations!E96,INDEX(ut_Inputs_Names,,1),0),"нет") -> нет | M96: 3 | P96: 0 | T96: 0 | U96: 0 | V96: 0 | W96: 0 | X96: 0 | Y96: 0 | Z96: 0 | AA96: 0 | AB96: 0 | AC96: 0 | AD96: 0 | AE96: 0 | AF96: 0 | AG96: 0 | AH96: 0 | AI96: 0 | AJ96: 0 | AK96: 0 | AL96: 0 | AM96: 0 | AN96: 0 | AO96: 0 | AP96: 0 | AQ96: 0 | AR96: 0
C98: Итого общие переменные расходы | D98: в валюте модели | G98: =ut_Digits&ut_LCU -> тыс. RUB | H98: =SUM(T98:AR98) -> 22550563.72 | T98: =SUM(T77:T96) -> 0 | U98: 0 | V98: 0 | W98: 0 | X98: 0 | Y98: 384860.5985 | Z98: 410654.4443 | AA98: 408581.7824 | AB98: =SUM(AB77:AB96) -> 1188449.933 | AC98: 1181539.186 | AD98: 1184961.628 | AE98: 1254566.584 | AF98: 1194696.78 | AG98: 1115415.697 | AH98: 1182097.874 | AI98: 1151661.694 | AJ98: 1232169.339 | AK98: 1322098.548 | AL98: 1272870.006 | AM98: 1269862.488 | AN98: 1355469.084 | AO98: 1367286.101 | AP98: 1351926.121 | AQ98: 1308854.608 | AR98: =SUM(AR77:AR96) -> 1412541.224
C101: Граница переменных расходов по продуктам
C103: Переменные расходы - по продуктам | AS103: ut_OPEX_VC_Data
C105: =IFERROR(INDEX(ut_Products_Dom_Dir,G105,1),0) -> Продажи покупателю 1 | E105: индикатор | G105: =MAX(G$103:G104)+1 -> 1 | J105: fx rate | K105: row | L105: idx | P105: VAT | S105: объем | T105: =INDEX(ut_SalesVolume_Dom_Inputs,$G105,ut_Counter)+INDEX(ut_SalesVolume_Exp_Inputs,$G105,ut_Counter) -> 0 | U105: 0 | V105: 0 | W105: 0 | X105: 0 | Y105: 21120 | Z105: 21120 | AA105: 21120 | AB105: 64000 | AC105: 64000 | AD105: 64000 | AE105: 64000 | AF105: 64000 | AG105: 25600 | AH105: 25600 | AI105: 25600 | AJ105: 25600 | AK105: 25600 | AL105: 25600 | AM105: 25600 | AN105: 25600 | AO105: 25600 | AP105: 25600 | AQ105: 25600 | AR105: 25600
B106: =B105+1 -> 1 | C106: =INDEX(ut_VC_Inputs_Names,3+B106+ut_OPEX_Block_Length*(G105-1),1) -> Себестооимсть рублевая | D106: =INDEX(ut_VC_Inputs_Names,3+B106+ut_OPEX_Block_Length*(G105-1),2) -> RUB | F106: =INDEX(ut_VC_Inputs_Names,3+B106+ut_OPEX_Block_Length*(G105-1),4) -> Производственные | H106: =ut_Digits&ut_LCU -> тыс. RUB | J106: =IF(AND(D106<>"",D106<>0),D106&"/"&ut_LCU,0) -> RUB/RUB | K106: =IFERROR(MATCH(J106,ut_Exchange_Rates_Headers,0),0) -> 1 | L106: =IFERROR(MATCH(Calculations!E106,INDEX(ut_Inputs_Names,,1),0),"нет") -> нет | P106: =INDEX(ut_VC_Inputs_Names,3+B106+ut_OPEX_Block_Length*(G105-1),3) -> 0.2 | T106: =IFERROR(INDEX(ut_Exchange_Rates,$K106,ut_Counter)*IF($L106<>"нет",INDEX(ut_Inputs_Data,$L106,ut_Counter),1)*INDEX(ut_VC_Inputs_Data,3+$B106+ut_OPEX_Block_Length*($G105-1),ut_Counter)/(1+$P106)*T105,0) -> 0 | U106: =IFERROR(INDEX(ut_Exchange_Rates,$K106,ut_Counter)*IF($L106<>"нет",INDEX(ut_Inputs_Data,$L106,ut_Counter),1)*INDEX(ut_VC_Inputs_Data,3+$B106+ut_OPEX_Block_Length*($G105-1),ut_Counter)/(1+$P106)*U105,0) -> 0 | V106: 0 | W106: 0 | X106: 0 | Y106: 1583145.842 | Z106: =IFERROR(INDEX(ut_Exchange_Rates,$K106,ut_Counter)*IF($L106<>"нет",INDEX(ut_Inputs_Data,$L106,ut_Counter),1)*INDEX(ut_VC_Inputs_Data,3+$B106+ut_OPEX_Block_Length*($G105-1),ut_Counter)/(1+$P106)*Z105,0) -> 1685304.049 | AA106: 1734613.246 | AB106: =IFERROR(INDEX(ut_Exchange_Rates,$K106,ut_Counter)*IF($L106<>"нет",INDEX(ut_Inputs_Data,$L106,ut_Counter),1)*INDEX(ut_VC_Inputs_Data,3+$B106+ut_OPEX_Block_Length*($G105-1),ut_Counter)/(1+$P106)*AB105,0) -> 5493263.656 | AC106: 5541938.269 | AD106: 5750870.543 | AE106: 6015282.262 | AF106: 6219228.369 | AG106: 2578677.29 | AH106: 2623768.303 | AI106: 2682257.484 | AJ106: 2737859.067 | AK106: 2944512.022 | AL106: 3006104.782 | AM106: 3173387.036 | AN106: 3388960.888 | AO106: 3469842.589 | AP106: 3584923.689 | AQ106: 3832467.7 | AR106: =IFERROR(INDEX(ut_Exchange_Rates,$K106,ut_Counter)*IF($L106<>"нет",INDEX(ut_Inputs_Data,$L106,ut_Counter),1)*INDEX(ut_VC_Inputs_Data,3+$B106+ut_OPEX_Block_Length*($G105-1),ut_Counter)/(1+$P106)*AR105,0) -> 4049690.184
B107: 2 | C107: =INDEX(ut_VC_Inputs_Names,3+B107+ut_OPEX_Block_Length*(G105-1),1) -> Себестоимость долл США | D107: =INDEX(ut_VC_Inputs_Names,3+B107+ut_OPEX_Block_Length*(G105-1),2) -> USD | F107: =INDEX(ut_VC_Inputs_Names,3+B107+ut_OPEX_Block_Length*(G105-1),4) -> Производственные | H107: тыс. RUB | J107: USD/RUB | K107: 7 | L107: =IFERROR(MATCH(Calculations!E107,INDEX(ut_Inputs_Names,,1),0),"нет") -> нет | P107: =INDEX(ut_VC_Inputs_Names,3+B107+ut_OPEX_Block_Length*(G105-1),3) -> 0 | T107: =IFERROR(INDEX(ut_Exchange_Rates,$K107,ut_Counter)*IF($L107<>"нет",INDEX(ut_Inputs_Data,$L107,ut_Counter),1)*INDEX(ut_VC_Inputs_Data,3+$B107+ut_OPEX_Block_Length*($G105-1),ut_Counter)/(1+$P107)*T105,0) -> 0 | U107: 0 | V107: 0 | W107: 0 | X107: 0 | Y107: 2567405.317 | Z107: 2658389.714 | AA107: 2749338.332 | AB107: =IFERROR(INDEX(ut_Exchange_Rates,$K107,ut_Counter)*IF($L107<>"нет",INDEX(ut_Inputs_Data,$L107,ut_Counter),1)*INDEX(ut_VC_Inputs_Data,3+$B107+ut_OPEX_Block_Length*($G105-1),ut_Counter)/(1+$P107)*AB105,0) -> 8472960.859 | AC107: 8617001.194 | AD107: 8763490.214 | AE107: 8912469.548 | AF107: 9063981.53 | AG107: 3687227.686 | AH107: 3749910.557 | AI107: 3813659.036 | AJ107: 3878491.24 | AK107: 3944425.591 | AL107: 4011480.826 | AM107: 4079676 | AN107: 4149030.492 | AO107: 4219564.011 | AP107: 4291296.599 | AQ107: 4364248.641 | AR107: =IFERROR(INDEX(ut_Exchange_Rates,$K107,ut_Counter)*IF($L107<>"нет",INDEX(ut_Inputs_Data,$L107,ut_Counter),1)*INDEX(ut_VC_Inputs_Data,3+$B107+ut_OPEX_Block_Length*($G105-1),ut_Counter)/(1+$P107)*AR105,0) -> 4438440.868
B108: 3 | C108: =INDEX(ut_VC_Inputs_Names,3+B108+ut_OPEX_Block_Length*(G105-1),1) -> 0 | D108: =INDEX(ut_VC_Inputs_Names,3+B108+ut_OPEX_Block_Length*(G105-1),2) -> 0 | F108: =INDEX(ut_VC_Inputs_Names,3+B108+ut_OPEX_Block_Length*(G105-1),4) -> 0 | H108: тыс. RUB | J108: 0 | K108: 0 | L108: =IFERROR(MATCH(Calculations!E108,INDEX(ut_Inputs_Names,,1),0),"нет") -> нет | P108: =INDEX(ut_VC_Inputs_Names,3+B108+ut_OPEX_Block_Length*(G105-1),3) -> 0 | T108: =IFERROR(INDEX(ut_Exchange_Rates,$K108,ut_Counter)*IF($L108<>"нет",INDEX(ut_Inputs_Data,$L108,ut_Counter),1)*INDEX(ut_VC_Inputs_Data,3+$B108+ut_OPEX_Block_Length*($G105-1),ut_Counter)/(1+$P108)*T105,0) -> 0 | U108: 0 | V108: 0 | W108: 0 | X108: 0 | Y108: 0 | Z108: 0 | AA108: 0 | AB108: =IFERROR(INDEX(ut_Exchange_Rates,$K108,ut_Counter)*IF($L108<>"нет",INDEX(ut_Inputs_Data,$L108,ut_Counter),1)*INDEX(ut_VC_Inputs_Data,3+$B108+ut_OPEX_Block_Length*($G105-1),ut_Counter)/(1+$P108)*AB105,0) -> 0 | AC108: 0 | AD108: 0 | AE108: 0 | AF108: 0 | AG108: 0 | AH108: 0 | AI108: 0 | AJ108: 0 | AK108: 0 | AL108: 0 | AM108: 0 | AN108: 0 | AO108: 0 | AP108: 0 | AQ108: 0 | AR108: =IFERROR(INDEX(ut_Exchange_Rates,$K108,ut_Counter)*IF($L108<>"нет",INDEX(ut_Inputs_Data,$L108,ut_Counter),1)*INDEX(ut_VC_Inputs_Data,3+$B108+ut_OPEX_Block_Length*($G105-1),ut_Counter)/(1+$P108)*AR105,0) -> 0
B109: 4 | C109: =INDEX(ut_VC_Inputs_Names,3+B109+ut_OPEX_Block_Length*(G105-1),1) -> 0 | D109: =INDEX(ut_VC_Inputs_Names,3+B109+ut_OPEX_Block_Length*(G105-1),2) -> 0 | F109: =INDEX(ut_VC_Inputs_Names,3+B109+ut_OPEX_Block_Length*(G105-1),4) -> 0 | H109: тыс. RUB | J109: 0 | K109: 0 | L109: =IFERROR(MATCH(Calculations!E109,INDEX(ut_Inputs_Names,,1),0),"нет") -> нет | P109: =INDEX(ut_VC_Inputs_Names,3+B109+ut_OPEX_Block_Length*(G105-1),3) -> 0 | T109: =IFERROR(INDEX(ut_Exchange_Rates,$K109,ut_Counter)*IF($L109<>"нет",INDEX(ut_Inputs_Data,$L109,ut_Counter),1)*INDEX(ut_VC_Inputs_Data,3+$B109+ut_OPEX_Block_Length*($G105-1),ut_Counter)/(1+$P109)*T105,0) -> 0 | U109: 0 | V109: 0 | W109: 0 | X109: 0 | Y109: 0 | Z109: 0 | AA109: 0 | AB109: =IFERROR(INDEX(ut_Exchange_Rates,$K109,ut_Counter)*IF($L109<>"нет",INDEX(ut_Inputs_Data,$L109,ut_Counter),1)*INDEX(ut_VC_Inputs_Data,3+$B109+ut_OPEX_Block_Length*($G105-1),ut_Counter)/(1+$P109)*AB105,0) -> 0 | AC109: 0 | AD109: 0 | AE109: 0 | AF109: 0 | AG109: 0 | AH109: 0 | AI109: 0 | AJ109: 0 | AK109: 0 | AL109: 0 | AM109: 0 | AN109: 0 | AO109: 0 | AP109: 0 | AQ109: 0 | AR109: =IFERROR(INDEX(ut_Exchange_Rates,$K109,ut_Counter)*IF($L109<>"нет",INDEX(ut_Inputs_Data,$L109,ut_Counter),1)*INDEX(ut_VC_Inputs_Data,3+$B109+ut_OPEX_Block_Length*($G105-1),ut_Counter)/(1+$P109)*AR105,0) -> 0
B110: 5 | C110: =INDEX(ut_VC_Inputs_Names,3+B110+ut_OPEX_Block_Length*(G105-1),1) -> 0 | D110: =INDEX(ut_VC_Inputs_Names,3+B110+ut_OPEX_Block_Length*(G105-1),2) -> 0 | F110: =INDEX(ut_VC_Inputs_Names,3+B110+ut_OPEX_Block_Length*(G105-1),4) -> 0 | H110: тыс. RUB | J110: 0 | K110: 0 | L110: =IFERROR(MATCH(Calculations!E110,INDEX(ut_Inputs_Names,,1),0),"нет") -> нет | P110: =INDEX(ut_VC_Inputs_Names,3+B110+ut_OPEX_Block_Length*(G105-1),3) -> 0 | T110: =IFERROR(INDEX(ut_Exchange_Rates,$K110,ut_Counter)*IF($L110<>"нет",INDEX(ut_Inputs_Data,$L110,ut_Counter),1)*INDEX(ut_VC_Inputs_Data,3+$B110+ut_OPEX_Block_Length*($G105-1),ut_Counter)/(1+$P110)*T105,0) -> 0 | U110: 0 | V110: 0 | W110: 0 | X110: 0 | Y110: 0 | Z110: 0 | AA110: 0 | AB110: =IFERROR(INDEX(ut_Exchange_Rates,$K110,ut_Counter)*IF($L110<>"нет",INDEX(ut_Inputs_Data,$L110,ut_Counter),1)*INDEX(ut_VC_Inputs_Data,3+$B110+ut_OPEX_Block_Length*($G105-1),ut_Counter)/(1+$P110)*AB105,0) -> 0 | AC110: 0 | AD110: 0 | AE110: 0 | AF110: 0 | AG110: 0 | AH110: 0 | AI110: 0 | AJ110: 0 | AK110: 0 | AL110: 0 | AM110: 0 | AN110: 0 | AO110: 0 | AP110: 0 | AQ110: 0 | AR110: =IFERROR(INDEX(ut_Exchange_Rates,$K110,ut_Counter)*IF($L110<>"нет",INDEX(ut_Inputs_Data,$L110,ut_Counter),1)*INDEX(ut_VC_Inputs_Data,3+$B110+ut_OPEX_Block_Length*($G105-1),ut_Counter)/(1+$P110)*AR105,0) -> 0
B111: 6 | C111: =INDEX(ut_VC_Inputs_Names,3+B111+ut_OPEX_Block_Length*(G105-1),1) -> 0 | D111: =INDEX(ut_VC_Inputs_Names,3+B111+ut_OPEX_Block_Length*(G105-1),2) -> 0 | F111: =INDEX(ut_VC_Inputs_Names,3+B111+ut_OPEX_Block_Length*(G105-1),4) -> 0 | H111: тыс. RUB | J111: 0 | K111: 0 | L111: =IFERROR(MATCH(Calculations!E111,INDEX(ut_Inputs_Names,,1),0),"нет") -> нет | P111: =INDEX(ut_VC_Inputs_Names,3+B111+ut_OPEX_Block_Length*(G105-1),3) -> 0 | T111: =IFERROR(INDEX(ut_Exchange_Rates,$K111,ut_Counter)*IF($L111<>"нет",INDEX(ut_Inputs_Data,$L111,ut_Counter),1)*INDEX(ut_VC_Inputs_Data,3+$B111+ut_OPEX_Block_Length*($G105-1),ut_Counter)/(1+$P111)*T105,0) -> 0 | U111: 0 | V111: 0 | W111: 0 | X111: 0 | Y111: 0 | Z111: 0 | AA111: 0 | AB111: =IFERROR(INDEX(ut_Exchange_Rates,$K111,ut_Counter)*IF($L111<>"нет",INDEX(ut_Inputs_Data,$L111,ut_Counter),1)*INDEX(ut_VC_Inputs_Data,3+$B111+ut_OPEX_Block_Length*($G105-1),ut_Counter)/(1+$P111)*AB105,0) -> 0 | AC111: 0 | AD111: 0 | AE111: 0 | AF111: 0 | AG111: 0 | AH111: 0 | AI111: 0 | AJ111: 0 | AK111: 0 | AL111: 0 | AM111: 0 | AN111: 0 | AO111: 0 | AP111: 0 | AQ111: 0 | AR111: =IFERROR(INDEX(ut_Exchange_Rates,$K111,ut_Counter)*IF($L111<>"нет",INDEX(ut_Inputs_Data,$L111,ut_Counter),1)*INDEX(ut_VC_Inputs_Data,3+$B111+ut_OPEX_Block_Length*($G105-1),ut_Counter)/(1+$P111)*AR105,0) -> 0
C113: Итого расходы | D113: в валюте модели | G113: =ut_Digits&ut_LCU -> тыс. RUB | H113: =SUM(T113:AR113) -> 172528585.5 | T113: =SUM(T106:T111) -> 0 | U113: 0 | V113: 0 | W113: 0 | X113: 0 | Y113: 4150551.159 | Z113: 4343693.764 | AA113: 4483951.578 | AB113: =SUM(AB106:AB111) -> 13966224.52 | AC113: 14158939.46 | AD113: 14514360.76 | AE113: 14927751.81 | AF113: 15283209.9 | AG113: 6265904.976 | AH113: 6373678.86 | AI113: 6495916.52 | AJ113: 6616350.307 | AK113: 6888937.613 | AL113: 7017585.608 | AM113: 7253063.036 | AN113: 7537991.38 | AO113: 7689406.6 | AP113: 7876220.288 | AQ113: 8196716.341 | AR113: =SUM(AR106:AR111) -> 8488131.052
C115: =IFERROR(INDEX(ut_Products_Dom_Dir,G115,1),0) -> Продажи покупателю 2 | E115: индикатор | G115: =MAX(G$103:G114)+1 -> 2 | J115: fx rate | K115: row | L115: idx | P115: VAT | S115: объем | T115: =INDEX(ut_SalesVolume_Dom_Inputs,$G115,ut_Counter)+INDEX(ut_SalesVolume_Exp_Inputs,$G115,ut_Counter) -> 0 | U115: 0 | V115: 0 | W115: 0 | X115: 0 | Y115: 14784 | Z115: 14784 | AA115: 14784 | AB115: 44800 | AC115: 44800 | AD115: 44800 | AE115: 44800 | AF115: 44800 | AG115: 51200 | AH115: 51200 | AI115: 51200 | AJ115: 51200 | AK115: 51200 | AL115: 51200 | AM115: 51200 | AN115: 51200 | AO115: 51200 | AP115: 51200 | AQ115: 51200 | AR115: 51200
B116: =B115+1 -> 1 | C116: =INDEX(ut_VC_Inputs_Names,3+B116+ut_OPEX_Block_Length*(G115-1),1) -> Себестооимсть рублевая | D116: =INDEX(ut_VC_Inputs_Names,3+B116+ut_OPEX_Block_Length*(G115-1),2) -> RUB | F116: =INDEX(ut_VC_Inputs_Names,3+B116+ut_OPEX_Block_Length*(G115-1),4) -> Производственные | H116: =ut_Digits&ut_LCU -> тыс. RUB | J116: =IF(AND(D116<>"",D116<>0),D116&"/"&ut_LCU,0) -> RUB/RUB | K116: =IFERROR(MATCH(J116,ut_Exchange_Rates_Headers,0),0) -> 1 | L116: =IFERROR(MATCH(Calculations!E116,INDEX(ut_Inputs_Names,,1),0),"нет") -> нет | P116: =INDEX(ut_VC_Inputs_Names,3+B116+ut_OPEX_Block_Length*(G115-1),3) -> 0.2 | T116: =IFERROR(INDEX(ut_Exchange_Rates,$K116,ut_Counter)*IF($L116<>"нет",INDEX(ut_Inputs_Data,$L116,ut_Counter),1)*INDEX(ut_VC_Inputs_Data,3+$B116+ut_OPEX_Block_Length*($G115-1),ut_Counter)/(1+$P116)*T115,0) -> 0 | U116: 0 | V116: 0 | W116: 0 | X116: 0 | Y116: 1108202.09 | Z116: 1179712.835 | AA116: 1214229.272 | AB116: =IFERROR(INDEX(ut_Exchange_Rates,$K116,ut_Counter)*IF($L116<>"нет",INDEX(ut_Inputs_Data,$L116,ut_Counter),1)*INDEX(ut_VC_Inputs_Data,3+$B116+ut_OPEX_Block_Length*($G115-1),ut_Counter)/(1+$P116)*AB115,0) -> 3845284.559 | AC116: 3879356.788 | AD116: 4025609.38 | AE116: 4210697.583 | AF116: 4353459.858 | AG116: 5157354.58 | AH116: 5247536.605 | AI116: 5364514.967 | AJ116: 5475718.135 | AK116: 5889024.044 | AL116: 6012209.564 | AM116: 6346774.072 | AN116: 6777921.775 | AO116: 6939685.178 | AP116: 7169847.379 | AQ116: 7664935.4 | AR116: =IFERROR(INDEX(ut_Exchange_Rates,$K116,ut_Counter)*IF($L116<>"нет",INDEX(ut_Inputs_Data,$L116,ut_Counter),1)*INDEX(ut_VC_Inputs_Data,3+$B116+ut_OPEX_Block_Length*($G115-1),ut_Counter)/(1+$P116)*AR115,0) -> 8099380.368
B117: 2 | C117: =INDEX(ut_VC_Inputs_Names,3+B117+ut_OPEX_Block_Length*(G115-1),1) -> Себестоимость долл США | D117: =INDEX(ut_VC_Inputs_Names,3+B117+ut_OPEX_Block_Length*(G115-1),2) -> USD | F117: =INDEX(ut_VC_Inputs_Names,3+B117+ut_OPEX_Block_Length*(G115-1),4) -> Производственные | H117: тыс. RUB | J117: USD/RUB | K117: 7 | L117: =IFERROR(MATCH(Calculations!E117,INDEX(ut_Inputs_Names,,1),0),"нет") -> нет | P117: =INDEX(ut_VC_Inputs_Names,3+B117+ut_OPEX_Block_Length*(G115-1),3) -> 0 | T117: =IFERROR(INDEX(ut_Exchange_Rates,$K117,ut_Counter)*IF($L117<>"нет",INDEX(ut_Inputs_Data,$L117,ut_Counter),1)*INDEX(ut_VC_Inputs_Data,3+$B117+ut_OPEX_Block_Length*($G115-1),ut_Counter)/(1+$P117)*T115,0) -> 0 | U117: 0 | V117: 0 | W117: 0 | X117: 0 | Y117: 1797183.722 | Z117: 1860872.8 | AA117: 1924536.832 | AB117: =IFERROR(INDEX(ut_Exchange_Rates,$K117,ut_Counter)*IF($L117<>"нет",INDEX(ut_Inputs_Data,$L117,ut_Counter),1)*INDEX(ut_VC_Inputs_Data,3+$B117+ut_OPEX_Block_Length*($G115-1),ut_Counter)/(1+$P117)*AB115,0) -> 5931072.601 | AC117: 6031900.836 | AD117: 6134443.15 | AE117: 6238728.683 | AF117: 6344787.071 | AG117: 7374455.373 | AH117: 7499821.114 | AI117: 7627318.073 | AJ117: 7756982.48 | AK117: 7888851.182 | AL117: 8022961.652 | AM117: 8159352.001 | AN117: 8298060.985 | AO117: 8439128.021 | AP117: 8582593.198 | AQ117: 8728497.282 | AR117: =IFERROR(INDEX(ut_Exchange_Rates,$K117,ut_Counter)*IF($L117<>"нет",INDEX(ut_Inputs_Data,$L117,ut_Counter),1)*INDEX(ut_VC_Inputs_Data,3+$B117+ut_OPEX_Block_Length*($G115-1),ut_Counter)/(1+$P117)*AR115,0) -> 8876881.736
B118: 3 | C118: =INDEX(ut_VC_Inputs_Names,3+B118+ut_OPEX_Block_Length*(G115-1),1) -> 0 | D118: =INDEX(ut_VC_Inputs_Names,3+B118+ut_OPEX_Block_Length*(G115-1),2) -> 0 | F118: =INDEX(ut_VC_Inputs_Names,3+B118+ut_OPEX_Block_Length*(G115-1),4) -> 0 | H118: тыс. RUB | J118: 0 | K118: 0 | L118: =IFERROR(MATCH(Calculations!E118,INDEX(ut_Inputs_Names,,1),0),"нет") -> нет | P118: =INDEX(ut_VC_Inputs_Names,3+B118+ut_OPEX_Block_Length*(G115-1),3) -> 0 | T118: =IFERROR(INDEX(ut_Exchange_Rates,$K118,ut_Counter)*IF($L118<>"нет",INDEX(ut_Inputs_Data,$L118,ut_Counter),1)*INDEX(ut_VC_Inputs_Data,3+$B118+ut_OPEX_Block_Length*($G115-1),ut_Counter)/(1+$P118)*T115,0) -> 0 | U118: 0 | V118: 0 | W118: 0 | X118: 0 | Y118: 0 | Z118: 0 | AA118: 0 | AB118: =IFERROR(INDEX(ut_Exchange_Rates,$K118,ut_Counter)*IF($L118<>"нет",INDEX(ut_Inputs_Data,$L118,ut_Counter),1)*INDEX(ut_VC_Inputs_Data,3+$B118+ut_OPEX_Block_Length*($G115-1),ut_Counter)/(1+$P118)*AB115,0) -> 0 | AC118: 0 | AD118: 0 | AE118: 0 | AF118: 0 | AG118: 0 | AH118: 0 | AI118: 0 | AJ118: 0 | AK118: 0 | AL118: 0 | AM118: 0 | AN118: 0 | AO118: 0 | AP118: 0 | AQ118: 0 | AR118: =IFERROR(INDEX(ut_Exchange_Rates,$K118,ut_Counter)*IF($L118<>"нет",INDEX(ut_Inputs_Data,$L118,ut_Counter),1)*INDEX(ut_VC_Inputs_Data,3+$B118+ut_OPEX_Block_Length*($G115-1),ut_Counter)/(1+$P118)*AR115,0) -> 0
B119: 4 | C119: =INDEX(ut_VC_Inputs_Names,3+B119+ut_OPEX_Block_Length*(G115-1),1) -> 0 | D119: =INDEX(ut_VC_Inputs_Names,3+B119+ut_OPEX_Block_Length*(G115-1),2) -> 0 | F119: =INDEX(ut_VC_Inputs_Names,3+B119+ut_OPEX_Block_Length*(G115-1),4) -> 0 | H119: тыс. RUB | J119: 0 | K119: 0 | L119: =IFERROR(MATCH(Calculations!E119,INDEX(ut_Inputs_Names,,1),0),"нет") -> нет | P119: =INDEX(ut_VC_Inputs_Names,3+B119+ut_OPEX_Block_Length*(G115-1),3) -> 0 | T119: =IFERROR(INDEX(ut_Exchange_Rates,$K119,ut_Counter)*IF($L119<>"нет",INDEX(ut_Inputs_Data,$L119,ut_Counter),1)*INDEX(ut_VC_Inputs_Data,3+$B119+ut_OPEX_Block_Length*($G115-1),ut_Counter)/(1+$P119)*T115,0) -> 0 | U119: 0 | V119: 0 | W119: 0 | X119: 0 | Y119: 0 | Z119: 0 | AA119: 0 | AB119: =IFERROR(INDEX(ut_Exchange_Rates,$K119,ut_Counter)*IF($L119<>"нет",INDEX(ut_Inputs_Data,$L119,ut_Counter),1)*INDEX(ut_VC_Inputs_Data,3+$B119+ut_OPEX_Block_Length*($G115-1),ut_Counter)/(1+$P119)*AB115,0) -> 0 | AC119: 0 | AD119: 0 | AE119: 0 | AF119: 0 | AG119: 0 | AH119: 0 | AI119: 0 | AJ119: 0 | AK119: 0 | AL119: 0 | AM119: 0 | AN119: 0 | AO119: 0 | AP119: 0 | AQ119: 0 | AR119: =IFERROR(INDEX(ut_Exchange_Rates,$K119,ut_Counter)*IF($L119<>"нет",INDEX(ut_Inputs_Data,$L119,ut_Counter),1)*INDEX(ut_VC_Inputs_Data,3+$B119+ut_OPEX_Block_Length*($G115-1),ut_Counter)/(1+$P119)*AR115,0) -> 0
B120: 5 | C120: =INDEX(ut_VC_Inputs_Names,3+B120+ut_OPEX_Block_Length*(G115-1),1) -> 0 | D120: =INDEX(ut_VC_Inputs_Names,3+B120+ut_OPEX_Block_Length*(G115-1),2) -> 0 | F120: =INDEX(ut_VC_Inputs_Names,3+B120+ut_OPEX_Block_Length*(G115-1),4) -> 0 | H120: тыс. RUB | J120: 0 | K120: 0 | L120: =IFERROR(MATCH(Calculations!E120,INDEX(ut_Inputs_Names,,1),0),"нет") -> нет | P120: =INDEX(ut_VC_Inputs_Names,3+B120+ut_OPEX_Block_Length*(G115-1),3) -> 0 | T120: =IFERROR(INDEX(ut_Exchange_Rates,$K120,ut_Counter)*IF($L120<>"нет",INDEX(ut_Inputs_Data,$L120,ut_Counter),1)*INDEX(ut_VC_Inputs_Data,3+$B120+ut_OPEX_Block_Length*($G115-1),ut_Counter)/(1+$P120)*T115,0) -> 0 | U120: 0 | V120: 0 | W120: 0 | X120: 0 | Y120: 0 | Z120: 0 | AA120: 0 | AB120: =IFERROR(INDEX(ut_Exchange_Rates,$K120,ut_Counter)*IF($L120<>"нет",INDEX(ut_Inputs_Data,$L120,ut_Counter),1)*INDEX(ut_VC_Inputs_Data,3+$B120+ut_OPEX_Block_Length*($G115-1),ut_Counter)/(1+$P120)*AB115,0) -> 0 | AC120: 0 | AD120: 0 | AE120: 0 | AF120: 0 | AG120: 0 | AH120: 0 | AI120: 0 | AJ120: 0 | AK120: 0 | AL120: 0 | AM120: 0 | AN120: 0 | AO120: 0 | AP120: 0 | AQ120: 0 | AR120: =IFERROR(INDEX(ut_Exchange_Rates,$K120,ut_Counter)*IF($L120<>"нет",INDEX(ut_Inputs_Data,$L120,ut_Counter),1)*INDEX(ut_VC_Inputs_Data,3+$B120+ut_OPEX_Block_Length*($G115-1),ut_Counter)/(1+$P120)*AR115,0) -> 0
B121: 6 | C121: =INDEX(ut_VC_Inputs_Names,3+B121+ut_OPEX_Block_Length*(G115-1),1) -> 0 | D121: =INDEX(ut_VC_Inputs_Names,3+B121+ut_OPEX_Block_Length*(G115-1),2) -> 0 | F121: =INDEX(ut_VC_Inputs_Names,3+B121+ut_OPEX_Block_Length*(G115-1),4) -> 0 | H121: тыс. RUB | J121: 0 | K121: 0 | L121: =IFERROR(MATCH(Calculations!E121,INDEX(ut_Inputs_Names,,1),0),"нет") -> нет | P121: =INDEX(ut_VC_Inputs_Names,3+B121+ut_OPEX_Block_Length*(G115-1),3) -> 0 | T121: =IFERROR(INDEX(ut_Exchange_Rates,$K121,ut_Counter)*IF($L121<>"нет",INDEX(ut_Inputs_Data,$L121,ut_Counter),1)*INDEX(ut_VC_Inputs_Data,3+$B121+ut_OPEX_Block_Length*($G115-1),ut_Counter)/(1+$P121)*T115,0) -> 0 | U121: 0 | V121: 0 | W121: 0 | X121: 0 | Y121: 0 | Z121: 0 | AA121: 0 | AB121: =IFERROR(INDEX(ut_Exchange_Rates,$K121,ut_Counter)*IF($L121<>"нет",INDEX(ut_Inputs_Data,$L121,ut_Counter),1)*INDEX(ut_VC_Inputs_Data,3+$B121+ut_OPEX_Block_Length*($G115-1),ut_Counter)/(1+$P121)*AB115,0) -> 0 | AC121: 0 | AD121: 0 | AE121: 0 | AF121: 0 | AG121: 0 | AH121: 0 | AI121: 0 | AJ121: 0 | AK121: 0 | AL121: 0 | AM121: 0 | AN121: 0 | AO121: 0 | AP121: 0 | AQ121: 0 | AR121: =IFERROR(INDEX(ut_Exchange_Rates,$K121,ut_Counter)*IF($L121<>"нет",INDEX(ut_Inputs_Data,$L121,ut_Counter),1)*INDEX(ut_VC_Inputs_Data,3+$B121+ut_OPEX_Block_Length*($G115-1),ut_Counter)/(1+$P121)*AR115,0) -> 0
C123: Итого расходы | D123: в валюте модели | G123: =ut_Digits&ut_LCU -> тыс. RUB | H123: =SUM(T123:AR123) -> 233479883.2 | T123: =SUM(T116:T121) -> 0 | U123: 0 | V123: 0 | W123: 0 | X123: 0 | Y123: 2905385.811 | Z123: 3040585.634 | AA123: 3138766.105 | AB123: =SUM(AB116:AB121) -> 9776357.161 | AC123: 9911257.624 | AD123: 10160052.53 | AE123: 10449426.27 | AF123: 10698246.93 | AG123: 12531809.95 | AH123: 12747357.72 | AI123: 12991833.04 | AJ123: 13232700.61 | AK123: 13777875.23 | AL123: 14035171.22 | AM123: 14506126.07 | AN123: 15075982.76 | AO123: 15378813.2 | AP123: 15752440.58 | AQ123: 16393432.68 | AR123: =SUM(AR116:AR121) -> 16976262.1
C125: =IFERROR(INDEX(ut_Products_Dom_Dir,G125,1),0) -> Продажи покупателю 3 | E125: индикатор | G125: =MAX(G$103:G124)+1 -> 3 | J125: fx rate | K125: row | L125: idx | P125: VAT | S125: объем | T125: =INDEX(ut_SalesVolume_Dom_Inputs,$G125,ut_Counter)+INDEX(ut_SalesVolume_Exp_Inputs,$G125,ut_Counter) -> 0 | U125: 0 | V125: 0 | W125: 0 | X125: 0 | Y125: 6336 | Z125: 6336 | AA125: 6336 | AB125: 19200 | AC125: 19200 | AD125: 19200 | AE125: 19200 | AF125: 19200 | AG125: 51200 | AH125: 51200 | AI125: 51200 | AJ125: 51200 | AK125: 51200 | AL125: 51200 | AM125: 51200 | AN125: 51200 | AO125: 51200 | AP125: 51200 | AQ125: 51200 | AR125: 51200
B126: =B125+1 -> 1 | C126: =INDEX(ut_VC_Inputs_Names,3+B126+ut_OPEX_Block_Length*(G125-1),1) -> Себестооимсть рублевая | D126: =INDEX(ut_VC_Inputs_Names,3+B126+ut_OPEX_Block_Length*(G125-1),2) -> RUB | F126: =INDEX(ut_VC_Inputs_Names,3+B126+ut_OPEX_Block_Length*(G125-1),4) -> Производственные | H126: =ut_Digits&ut_LCU -> тыс. RUB | J126: =IF(AND(D126<>"",D126<>0),D126&"/"&ut_LCU,0) -> RUB/RUB | K126: =IFERROR(MATCH(J126,ut_Exchange_Rates_Headers,0),0) -> 1 | L126: =IFERROR(MATCH(Calculations!E126,INDEX(ut_Inputs_Names,,1),0),"нет") -> нет | P126: =INDEX(ut_VC_Inputs_Names,3+B126+ut_OPEX_Block_Length*(G125-1),3) -> 0.2 | T126: =IFERROR(INDEX(ut_Exchange_Rates,$K126,ut_Counter)*IF($L126<>"нет",INDEX(ut_Inputs_Data,$L126,ut_Counter),1)*INDEX(ut_VC_Inputs_Data,3+$B126+ut_OPEX_Block_Length*($G125-1),ut_Counter)/(1+$P126)*T125,0) -> 0 | U126: 0 | V126: 0 | W126: 0 | X126: 0 | Y126: 474943.7527 | Z126: 505591.2148 | AA126: 520383.9739 | AB126: 1647979.097 | AC126: 1662581.481 | AD126: 1725261.163 | AE126: 1804584.679 | AF126: 1865768.511 | AG126: 5157354.58 | AH126: 5247536.605 | AI126: 5364514.967 | AJ126: 5475718.135 | AK126: 5889024.044 | AL126: 6012209.564 | AM126: 6346774.072 | AN126: 6777921.775 | AO126: 6939685.178 | AP126: 7169847.379 | AQ126: 7664935.4 | AR126: 8099380.368
B127: 2 | C127: =INDEX(ut_VC_Inputs_Names,3+B127+ut_OPEX_Block_Length*(G125-1),1) -> Себестоимость долл США | D127: =INDEX(ut_VC_Inputs_Names,3+B127+ut_OPEX_Block_Length*(G125-1),2) -> USD | F127: =INDEX(ut_VC_Inputs_Names,3+B127+ut_OPEX_Block_Length*(G125-1),4) -> Производственные | H127: тыс. RUB | J127: USD/RUB | K127: 7 | L127: =IFERROR(MATCH(Calculations!E127,INDEX(ut_Inputs_Names,,1),0),"нет") -> нет | P127: =INDEX(ut_VC_Inputs_Names,3+B127+ut_OPEX_Block_Length*(G125-1),3) -> 0 | T127: =IFERROR(INDEX(ut_Exchange_Rates,$K127,ut_Counter)*IF($L127<>"нет",INDEX(ut_Inputs_Data,$L127,ut_Counter),1)*INDEX(ut_VC_Inputs_Data,3+$B127+ut_OPEX_Block_Length*($G125-1),ut_Counter)/(1+$P127)*T125,0) -> 0 | U127: 0 | V127: 0 | W127: 0 | X127: 0 | Y127: 770221.595 | Z127: 797516.9143 | AA127: 824801.4995 | AB127: 2541888.258 | AC127: 2585100.358 | AD127: 2629047.064 | AE127: 2673740.864 | AF127: 2719194.459 | AG127: 7374455.373 | AH127: 7499821.114 | AI127: 7627318.073 | AJ127: 7756982.48 | AK127: 7888851.182 | AL127: 8022961.652 | AM127: 8159352.001 | AN127: 8298060.985 | AO127: 8439128.021 | AP127: 8582593.198 | AQ127: 8728497.282 | AR127: 8876881.736
B128: 3 | C128: =INDEX(ut_VC_Inputs_Names,3+B128+ut_OPEX_Block_Length*(G125-1),1) -> 0 | D128: =INDEX(ut_VC_Inputs_Names,3+B128+ut_OPEX_Block_Length*(G125-1),2) -> 0 | F128: =INDEX(ut_VC_Inputs_Names,3+B128+ut_OPEX_Block_Length*(G125-1),4) -> 0 | H128: тыс. RUB | J128: 0 | K128: 0 | L128: =IFERROR(MATCH(Calculations!E128,INDEX(ut_Inputs_Names,,1),0),"нет") -> нет | P128: =INDEX(ut_VC_Inputs_Names,3+B128+ut_OPEX_Block_Length*(G125-1),3) -> 0 | T128: =IFERROR(INDEX(ut_Exchange_Rates,$K128,ut_Counter)*IF($L128<>"нет",INDEX(ut_Inputs_Data,$L128,ut_Counter),1)*INDEX(ut_VC_Inputs_Data,3+$B128+ut_OPEX_Block_Length*($G125-1),ut_Counter)/(1+$P128)*T125,0) -> 0 | U128: 0 | V128: 0 | W128: 0 | X128: 0 | Y128: 0 | Z128: 0 | AA128: 0 | AB128: 0 | AC128: 0 | AD128: 0 | AE128: 0 | AF128: 0 | AG128: 0 | AH128: 0 | AI128: 0 | AJ128: 0 | AK128: 0 | AL128: 0 | AM128: 0 | AN128: 0 | AO128: 0 | AP128: 0 | AQ128: 0 | AR128: 0
B129: 4 | C129: =INDEX(ut_VC_Inputs_Names,3+B129+ut_OPEX_Block_Length*(G125-1),1) -> 0 | D129: =INDEX(ut_VC_Inputs_Names,3+B129+ut_OPEX_Block_Length*(G125-1),2) -> 0 | F129: =INDEX(ut_VC_Inputs_Names,3+B129+ut_OPEX_Block_Length*(G125-1),4) -> 0 | H129: тыс. RUB | J129: 0 | K129: 0 | L129: =IFERROR(MATCH(Calculations!E129,INDEX(ut_Inputs_Names,,1),0),"нет") -> нет | P129: =INDEX(ut_VC_Inputs_Names,3+B129+ut_OPEX_Block_Length*(G125-1),3) -> 0 | T129: =IFERROR(INDEX(ut_Exchange_Rates,$K129,ut_Counter)*IF($L129<>"нет",INDEX(ut_Inputs_Data,$L129,ut_Counter),1)*INDEX(ut_VC_Inputs_Data,3+$B129+ut_OPEX_Block_Length*($G125-1),ut_Counter)/(1+$P129)*T125,0) -> 0 | U129: 0 | V129: 0 | W129: 0 | X129: 0 | Y129: 0 | Z129: 0 | AA129: 0 | AB129: 0 | AC129: 0 | AD129: 0 | AE129: 0 | AF129: 0 | AG129: 0 | AH129: 0 | AI129: 0 | AJ129: 0 | AK129: 0 | AL129: 0 | AM129: 0 | AN129: 0 | AO129: 0 | AP129: 0 | AQ129: 0 | AR129: 0
B130: 5 | C130: =INDEX(ut_VC_Inputs_Names,3+B130+ut_OPEX_Block_Length*(G125-1),1) -> 0 | D130: =INDEX(ut_VC_Inputs_Names,3+B130+ut_OPEX_Block_Length*(G125-1),2) -> 0 | F130: =INDEX(ut_VC_Inputs_Names,3+B130+ut_OPEX_Block_Length*(G125-1),4) -> 0 | H130: тыс. RUB | J130: 0 | K130: 0 | L130: =IFERROR(MATCH(Calculations!E130,INDEX(ut_Inputs_Names,,1),0),"нет") -> нет | P130: =INDEX(ut_VC_Inputs_Names,3+B130+ut_OPEX_Block_Length*(G125-1),3) -> 0 | T130: =IFERROR(INDEX(ut_Exchange_Rates,$K130,ut_Counter)*IF($L130<>"нет",INDEX(ut_Inputs_Data,$L130,ut_Counter),1)*INDEX(ut_VC_Inputs_Data,3+$B130+ut_OPEX_Block_Length*($G125-1),ut_Counter)/(1+$P130)*T125,0) -> 0 | U130: 0 | V130: 0 | W130: 0 | X130: 0 | Y130: 0 | Z130: 0 | AA130: 0 | AB130: 0 | AC130: 0 | AD130: 0 | AE130: 0 | AF130: 0 | AG130: 0 | AH130: 0 | AI130: 0 | AJ130: 0 | AK130: 0 | AL130: 0 | AM130: 0 | AN130: 0 | AO130: 0 | AP130: 0 | AQ130: 0 | AR130: 0
B131: 6 | C131: =INDEX(ut_VC_Inputs_Names,3+B131+ut_OPEX_Block_Length*(G125-1),1) -> 0 | D131: =INDEX(ut_VC_Inputs_Names,3+B131+ut_OPEX_Block_Length*(G125-1),2) -> 0 | F131: =INDEX(ut_VC_Inputs_Names,3+B131+ut_OPEX_Block_Length*(G125-1),4) -> 0 | H131: тыс. RUB | J131: 0 | K131: 0 | L131: =IFERROR(MATCH(Calculations!E131,INDEX(ut_Inputs_Names,,1),0),"нет") -> нет | P131: =INDEX(ut_VC_Inputs_Names,3+B131+ut_OPEX_Block_Length*(G125-1),3) -> 0 | T131: =IFERROR(INDEX(ut_Exchange_Rates,$K131,ut_Counter)*IF($L131<>"нет",INDEX(ut_Inputs_Data,$L131,ut_Counter),1)*INDEX(ut_VC_Inputs_Data,3+$B131+ut_OPEX_Block_Length*($G125-1),ut_Counter)/(1+$P131)*T125,0) -> 0 | U131: 0 | V131: 0 | W131: 0 | X131: 0 | Y131: 0 | Z131: 0 | AA131: 0 | AB131: 0 | AC131: 0 | AD131: 0 | AE131: 0 | AF131: 0 | AG131: 0 | AH131: 0 | AI131: 0 | AJ131: 0 | AK131: 0 | AL131: 0 | AM131: 0 | AN131: 0 | AO131: 0 | AP131: 0 | AQ131: 0 | AR131: 0
C133: Итого расходы | D133: в валюте модели | G133: =ut_Digits&ut_LCU -> тыс. RUB | H133: =SUM(T133:AR133) -> 199148410 | T133: =SUM(T126:T131) -> 0 | U133: 0 | V133: 0 | W133: 0 | X133: 0 | Y133: 1245165.348 | Z133: 1303108.129 | AA133: 1345185.473 | AB133: 4189867.355 | AC133: 4247681.839 | AD133: 4354308.227 | AE133: 4478325.543 | AF133: 4584962.97 | AG133: 12531809.95 | AH133: 12747357.72 | AI133: 12991833.04 | AJ133: 13232700.61 | AK133: 13777875.23 | AL133: 14035171.22 | AM133: 14506126.07 | AN133: 15075982.76 | AO133: 15378813.2 | AP133: 15752440.58 | AQ133: 16393432.68 | AR133: 16976262.1
C136: Внеоперационные доходы и расходы (кроме финансовых)
E138: индикатор | J138: fx rate | K138: row | L138: idx | M138: sign | P138: VAT
B139: =B138+1 -> 1 | C139: =IFERROR(INDEX(ut_NonOpC_Dir,B139,1),0) -> Страхование | D139: =IFERROR(INDEX(ut_NonOpC_Dir,B139,2),0) -> RUB | F139: =IFERROR(INDEX(ut_NonOpC_Dir,B139,4),0) -> расход | H139: =ut_Digits&ut_LCU -> тыс. RUB | J139: =IF(AND(D139<>"",D139<>0),D139&"/"&ut_LCU,0) -> RUB/RUB | K139: =IFERROR(MATCH(J139,ut_Exchange_Rates_Headers,0),0) -> 1 | L139: =IFERROR(MATCH(Calculations!E139,INDEX(ut_Inputs_Names,,1),0),"нет") -> нет | M139: =IF(F139="доход",1,IF(F139="расход",-1,0)) -> -1 | P139: =IFERROR(INDEX(ut_NonOpC_Dir,B139,3),0) -> 0 | T139: =IFERROR(INDEX(ut_Exchange_Rates,$K139,ut_Counter)*$M139*INDEX(ut_NonOpC_Data,$B139,ut_Counter)/(1+$P139)*IF($L139<>"нет",INDEX(ut_Inputs_Data,$L139,ut_Counter),1),0) -> -700 | U139: -700 | V139: -700 | W139: -700 | X139: -700 | Y139: -700 | Z139: -700 | AA139: -700 | AB139: -700 | AC139: -700 | AD139: -700 | AE139: -700 | AF139: -700 | AG139: -700 | AH139: -700 | AI139: -700 | AJ139: =IFERROR(INDEX(ut_Exchange_Rates,$K139,ut_Counter)*$M139*INDEX(ut_NonOpC_Data,$B139,ut_Counter)/(1+$P139)*IF($L139<>"нет",INDEX(ut_Inputs_Data,$L139,ut_Counter),1),0) -> -700 | AK139: -700 | AL139: -700 | AM139: -700 | AN139: -700 | AO139: -700 | AP139: -700 | AQ139: -700 | AR139: =IFERROR(INDEX(ut_Exchange_Rates,$K139,ut_Counter)*$M139*INDEX(ut_NonOpC_Data,$B139,ut_Counter)/(1+$P139)*IF($L139<>"нет",INDEX(ut_Inputs_Data,$L139,ut_Counter),1),0) -> -700
B140: 2 | C140: 0 | D140: 0 | F140: 0 | H140: тыс. RUB | J140: 0 | K140: 0 | L140: =IFERROR(MATCH(Calculations!E140,INDEX(ut_Inputs_Names,,1),0),"нет") -> нет | M140: 0 | P140: 0.2 | T140: 0 | U140: 0 | V140: 0 | W140: 0 | X140: 0 | Y140: 0 | Z140: 0 | AA140: 0 | AB140: 0 | AC140: 0 | AD140: 0 | AE140: 0 | AF140: 0 | AG140: 0 | AH140: 0 | AI140: 0 | AJ140: 0 | AK140: 0 | AL140: 0 | AM140: 0 | AN140: 0 | AO140: 0 | AP140: 0 | AQ140: 0 | AR140: 0
B141: 3 | C141: 0 | D141: 0 | F141: 0 | H141: тыс. RUB | J141: 0 | K141: 0 | L141: =IFERROR(MATCH(Calculations!E141,INDEX(ut_Inputs_Names,,1),0),"нет") -> нет | M141: 0 | P141: 0.2 | T141: 0 | U141: 0 | V141: 0 | W141: 0 | X141: 0 | Y141: 0 | Z141: 0 | AA141: 0 | AB141: 0 | AC141: 0 | AD141: 0 | AE141: 0 | AF141: 0 | AG141: 0 | AH141: 0 | AI141: 0 | AJ141: 0 | AK141: 0 | AL141: 0 | AM141: 0 | AN141: 0 | AO141: 0 | AP141: 0 | AQ141: 0 | AR141: 0
B142: 4 | C142: 0 | D142: 0 | F142: 0 | H142: тыс. RUB | J142: 0 | K142: 0 | L142: =IFERROR(MATCH(Calculations!E142,INDEX(ut_Inputs_Names,,1),0),"нет") -> нет | M142: 0 | P142: 0.2 | T142: 0 | U142: 0 | V142: 0 | W142: 0 | X142: 0 | Y142: 0 | Z142: 0 | AA142: 0 | AB142: 0 | AC142: 0 | AD142: 0 | AE142: 0 | AF142: 0 | AG142: 0 | AH142: 0 | AI142: 0 | AJ142: 0 | AK142: 0 | AL142: 0 | AM142: 0 | AN142: 0 | AO142: 0 | AP142: 0 | AQ142: 0 | AR142: 0
B143: 5 | C143: 0 | D143: 0 | F143: 0 | H143: тыс. RUB | J143: 0 | K143: 0 | L143: =IFERROR(MATCH(Calculations!E143,INDEX(ut_Inputs_Names,,1),0),"нет") -> нет | M143: 0 | P143: 0.2 | T143: 0 | U143: 0 | V143: 0 | W143: 0 | X143: 0 | Y143: 0 | Z143: 0 | AA143: 0 | AB143: 0 | AC143: 0 | AD143: 0 | AE143: 0 | AF143: 0 | AG143: 0 | AH143: 0 | AI143: 0 | AJ143: 0 | AK143: 0 | AL143: 0 | AM143: 0 | AN143: 0 | AO143: 0 | AP143: 0 | AQ143: 0 | AR143: 0
B144: 6 | C144: 0 | D144: 0 | F144: 0 | H144: тыс. RUB | J144: 0 | K144: 0 | L144: =IFERROR(MATCH(Calculations!E144,INDEX(ut_Inputs_Names,,1),0),"нет") -> нет | M144: 0 | P144: 0.2 | T144: 0 | U144: 0 | V144: 0 | W144: 0 | X144: 0 | Y144: 0 | Z144: 0 | AA144: 0 | AB144: 0 | AC144: 0 | AD144: 0 | AE144: 0 | AF144: 0 | AG144: 0 | AH144: 0 | AI144: 0 | AJ144: 0 | AK144: 0 | AL144: 0 | AM144: 0 | AN144: 0 | AO144: 0 | AP144: 0 | AQ144: 0 | AR144: 0
B145: 7 | C145: 0 | D145: 0 | F145: 0 | H145: тыс. RUB | J145: 0 | K145: 0 | L145: =IFERROR(MATCH(Calculations!E145,INDEX(ut_Inputs_Names,,1),0),"нет") -> нет | M145: 0 | P145: 0.2 | T145: 0 | U145: 0 | V145: 0 | W145: 0 | X145: 0 | Y145: 0 | Z145: 0 | AA145: 0 | AB145: 0 | AC145: 0 | AD145: 0 | AE145: 0 | AF145: 0 | AG145: 0 | AH145: 0 | AI145: 0 | AJ145: 0 | AK145: 0 | AL145: 0 | AM145: 0 | AN145: 0 | AO145: 0 | AP145: 0 | AQ145: 0 | AR145: 0
B146: 8 | C146: 0 | D146: 0 | F146: 0 | H146: тыс. RUB | J146: 0 | K146: 0 | L146: =IFERROR(MATCH(Calculations!E146,INDEX(ut_Inputs_Names,,1),0),"нет") -> нет | M146: 0 | P146: 0.2 | T146: 0 | U146: 0 | V146: 0 | W146: 0 | X146: 0 | Y146: 0 | Z146: 0 | AA146: 0 | AB146: 0 | AC146: 0 | AD146: 0 | AE146: 0 | AF146: 0 | AG146: 0 | AH146: 0 | AI146: 0 | AJ146: 0 | AK146: 0 | AL146: 0 | AM146: 0 | AN146: 0 | AO146: 0 | AP146: 0 | AQ146: 0 | AR146: 0
B147: 9 | C147: 0 | D147: 0 | F147: 0 | H147: тыс. RUB | J147: 0 | K147: 0 | L147: =IFERROR(MATCH(Calculations!E147,INDEX(ut_Inputs_Names,,1),0),"нет") -> нет | M147: 0 | P147: 0.2 | T147: 0 | U147: 0 | V147: 0 | W147: 0 | X147: 0 | Y147: 0 | Z147: 0 | AA147: 0 | AB147: 0 | AC147: 0 | AD147: 0 | AE147: 0 | AF147: 0 | AG147: 0 | AH147: 0 | AI147: 0 | AJ147: 0 | AK147: 0 | AL147: 0 | AM147: 0 | AN147: 0 | AO147: 0 | AP147: 0 | AQ147: 0 | AR147: 0
B148: 10 | C148: 0 | D148: 0 | F148: 0 | H148: тыс. RUB | J148: 0 | K148: 0 | L148: =IFERROR(MATCH(Calculations!E148,INDEX(ut_Inputs_Names,,1),0),"нет") -> нет | M148: 0 | P148: 0.2 | T148: 0 | U148: 0 | V148: 0 | W148: 0 | X148: 0 | Y148: 0 | Z148: 0 | AA148: 0 | AB148: 0 | AC148: 0 | AD148: 0 | AE148: 0 | AF148: 0 | AG148: 0 | AH148: 0 | AI148: 0 | AJ148: 0 | AK148: 0 | AL148: 0 | AM148: 0 | AN148: 0 | AO148: 0 | AP148: 0 | AQ148: 0 | AR148: 0
B149: 11 | C149: 0 | D149: 0 | F149: 0 | H149: тыс. RUB | J149: 0 | K149: 0 | L149: =IFERROR(MATCH(Calculations!E149,INDEX(ut_Inputs_Names,,1),0),"нет") -> нет | M149: 0 | P149: 0.2 | T149: =IFERROR(INDEX(ut_Exchange_Rates,$K149,ut_Counter)*$M149*INDEX(ut_NonOpC_Data,$B149,ut_Counter)/(1+$P149)*IF($L149<>"нет",INDEX(ut_Inputs_Data,$L149,ut_Counter),1),0) -> 0 | U149: 0 | V149: 0 | W149: 0 | X149: 0 | Y149: 0 | Z149: 0 | AA149: 0 | AB149: 0 | AC149: 0 | AD149: 0 | AE149: 0 | AF149: 0 | AG149: 0 | AH149: 0 | AI149: 0 | AJ149: 0 | AK149: 0 | AL149: 0 | AM149: 0 | AN149: 0 | AO149: 0 | AP149: 0 | AQ149: 0 | AR149: =IFERROR(INDEX(ut_Exchange_Rates,$K149,ut_Counter)*$M149*INDEX(ut_NonOpC_Data,$B149,ut_Counter)/(1+$P149)*IF($L149<>"нет",INDEX(ut_Inputs_Data,$L149,ut_Counter),1),0) -> 0
B150: 12 | C150: 0 | D150: 0 | F150: 0 | H150: тыс. RUB | J150: 0 | K150: 0 | L150: =IFERROR(MATCH(Calculations!E150,INDEX(ut_Inputs_Names,,1),0),"нет") -> нет | M150: 0 | P150: 0.2 | T150: 0 | U150: 0 | V150: 0 | W150: 0 | X150: 0 | Y150: 0 | Z150: 0 | AA150: 0 | AB150: 0 | AC150: 0 | AD150: 0 | AE150: 0 | AF150: 0 | AG150: 0 | AH150: 0 | AI150: 0 | AJ150: 0 | AK150: 0 | AL150: 0 | AM150: 0 | AN150: 0 | AO150: 0 | AP150: 0 | AQ150: 0 | AR150: 0
B151: 13 | C151: 0 | D151: 0 | F151: 0 | H151: тыс. RUB | J151: 0 | K151: 0 | L151: =IFERROR(MATCH(Calculations!E151,INDEX(ut_Inputs_Names,,1),0),"нет") -> нет | M151: 0 | P151: 0.2 | T151: 0 | U151: 0 | V151: 0 | W151: 0 | X151: 0 | Y151: 0 | Z151: 0 | AA151: 0 | AB151: 0 | AC151: 0 | AD151: 0 | AE151: 0 | AF151: 0 | AG151: 0 | AH151: 0 | AI151: 0 | AJ151: 0 | AK151: 0 | AL151: 0 | AM151: 0 | AN151: 0 | AO151: 0 | AP151: 0 | AQ151: 0 | AR151: 0
B152: 14 | C152: 0 | D152: 0 | F152: 0 | H152: тыс. RUB | J152: 0 | K152: 0 | L152: =IFERROR(MATCH(Calculations!E152,INDEX(ut_Inputs_Names,,1),0),"нет") -> нет | M152: 0 | P152: 0.2 | T152: 0 | U152: 0 | V152: 0 | W152: 0 | X152: 0 | Y152: 0 | Z152: 0 | AA152: 0 | AB152: 0 | AC152: 0 | AD152: 0 | AE152: 0 | AF152: 0 | AG152: 0 | AH152: 0 | AI152: 0 | AJ152: 0 | AK152: 0 | AL152: 0 | AM152: 0 | AN152: 0 | AO152: 0 | AP152: 0 | AQ152: 0 | AR152: 0
B153: 15 | C153: 0 | D153: 0 | F153: 0 | H153: тыс. RUB | J153: 0 | K153: 0 | L153: =IFERROR(MATCH(Calculations!E153,INDEX(ut_Inputs_Names,,1),0),"нет") -> нет | M153: 0 | P153: 0.2 | T153: 0 | U153: 0 | V153: 0 | W153: 0 | X153: 0 | Y153: 0 | Z153: 0 | AA153: 0 | AB153: 0 | AC153: 0 | AD153: 0 | AE153: 0 | AF153: 0 | AG153: 0 | AH153: 0 | AI153: 0 | AJ153: 0 | AK153: 0 | AL153: 0 | AM153: 0 | AN153: 0 | AO153: 0 | AP153: 0 | AQ153: 0 | AR153: 0
B154: 16 | C154: 0 | D154: 0 | F154: 0 | H154: тыс. RUB | J154: 0 | K154: 0 | L154: =IFERROR(MATCH(Calculations!E154,INDEX(ut_Inputs_Names,,1),0),"нет") -> нет | M154: 0 | P154: 0.2 | T154: 0 | U154: 0 | V154: 0 | W154: 0 | X154: 0 | Y154: 0 | Z154: 0 | AA154: 0 | AB154: 0 | AC154: 0 | AD154: 0 | AE154: 0 | AF154: 0 | AG154: 0 | AH154: 0 | AI154: 0 | AJ154: 0 | AK154: 0 | AL154: 0 | AM154: 0 | AN154: 0 | AO154: 0 | AP154: 0 | AQ154: 0 | AR154: 0
B155: 17 | C155: 0 | D155: 0 | F155: 0 | H155: тыс. RUB | J155: 0 | K155: 0 | L155: =IFERROR(MATCH(Calculations!E155,INDEX(ut_Inputs_Names,,1),0),"нет") -> нет | M155: 0 | P155: 0.2 | T155: 0 | U155: 0 | V155: 0 | W155: 0 | X155: 0 | Y155: 0 | Z155: 0 | AA155: 0 | AB155: =IFERROR(INDEX(ut_Exchange_Rates,$K155,ut_Counter)*$M155*INDEX(ut_NonOpC_Data,$B155,ut_Counter)/(1+$P155)*IF($L155<>"нет",INDEX(ut_Inputs_Data,$L155,ut_Counter),1),0) -> 0 | AC155: 0 | AD155: 0 | AE155: 0 | AF155: 0 | AG155: 0 | AH155: 0 | AI155: 0 | AJ155: 0 | AK155: 0 | AL155: 0 | AM155: 0 | AN155: 0 | AO155: 0 | AP155: 0 | AQ155: 0 | AR155: 0
B156: 18 | C156: 0 | D156: 0 | F156: 0 | H156: тыс. RUB | J156: 0 | K156: 0 | L156: =IFERROR(MATCH(Calculations!E156,INDEX(ut_Inputs_Names,,1),0),"нет") -> нет | M156: 0 | P156: 0.2 | T156: 0 | U156: 0 | V156: 0 | W156: 0 | X156: 0 | Y156: 0 | Z156: 0 | AA156: 0 | AB156: 0 | AC156: 0 | AD156: 0 | AE156: 0 | AF156: 0 | AG156: 0 | AH156: 0 | AI156: 0 | AJ156: 0 | AK156: 0 | AL156: 0 | AM156: 0 | AN156: 0 | AO156: 0 | AP156: 0 | AQ156: 0 | AR156: 0
B157: 19 | C157: 0 | D157: 0 | F157: 0 | H157: тыс. RUB | J157: 0 | K157: 0 | L157: =IFERROR(MATCH(Calculations!E157,INDEX(ut_Inputs_Names,,1),0),"нет") -> нет | M157: 0 | P157: 0.2 | T157: 0 | U157: 0 | V157: 0 | W157: 0 | X157: 0 | Y157: 0 | Z157: 0 | AA157: 0 | AB157: 0 | AC157: 0 | AD157: 0 | AE157: 0 | AF157: 0 | AG157: 0 | AH157: 0 | AI157: 0 | AJ157: 0 | AK157: 0 | AL157: 0 | AM157: 0 | AN157: 0 | AO157: 0 | AP157: 0 | AQ157: 0 | AR157: 0
B158: 20 | C158: 0 | D158: 0 | F158: 0 | H158: тыс. RUB | J158: 0 | K158: 0 | L158: =IFERROR(MATCH(Calculations!E158,INDEX(ut_Inputs_Names,,1),0),"нет") -> нет | M158: 0 | P158: 0.2 | T158: 0 | U158: 0 | V158: 0 | W158: 0 | X158: 0 | Y158: 0 | Z158: 0 | AA158: 0 | AB158: 0 | AC158: 0 | AD158: 0 | AE158: 0 | AF158: 0 | AG158: 0 | AH158: 0 | AI158: 0 | AJ158: 0 | AK158: 0 | AL158: 0 | AM158: 0 | AN158: 0 | AO158: 0 | AP158: 0 | AQ158: 0 | AR158: 0
C160: Итого доходы | D160: в валюте модели | G160: =ut_Digits&ut_LCU -> тыс. RUB | H160: =SUM(T160:AR160) -> 0 | T160: =SUMIFS(T$139:T$158,$M$139:$M$158,1) -> 0 | U160: 0 | V160: 0 | W160: 0 | X160: 0 | Y160: 0 | Z160: 0 | AA160: 0 | AB160: 0 | AC160: 0 | AD160: 0 | AE160: 0 | AF160: 0 | AG160: 0 | AH160: 0 | AI160: 0 | AJ160: 0 | AK160: 0 | AL160: 0 | AM160: 0 | AN160: 0 | AO160: 0 | AP160: 0 | AQ160: 0 | AR160: 0
C162: Итого расходы | D162: в валюте модели | G162: =ut_Digits&ut_LCU -> тыс. RUB | H162: =SUM(T162:AR162) -> -17500 | T162: =SUMIFS(T$139:T$158,$M$139:$M$158,-1) -> -700 | U162: -700 | V162: -700 | W162: -700 | X162: -700 | Y162: -700 | Z162: -700 | AA162: -700 | AB162: -700 | AC162: -700 | AD162: -700 | AE162: -700 | AF162: -700 | AG162: -700 | AH162: -700 | AI162: -700 | AJ162: -700 | AK162: -700 | AL162: -700 | AM162: -700 | AN162: -700 | AO162: -700 | AP162: -700 | AQ162: -700 | AR162: -700
C164: Капитальные затраты
C166: Информация по группам основных средств и нематериальных активов
B167: =MAX($B166:B$166)+1 -> 1 | C167: =INDEX(ut_CapEx_Dir,B167,1) -> Капитальное строительство | D167: =H170 -> 7833333.333 | E167: =INDEX(ut_CapEx_Dir,B167,2) -> RUB
J168: currency | K168: =IFERROR(MATCH(CONCATENATE(E167,"/",ut_LCU),ut_Exchange_Rates_Headers,0),0) -> 1 | L168: row | S168: курс валюты | T168: =IFERROR(INDEX(ut_Exchange_Rates,$K168,ut_Counter),0) -> 1 | U168: 1 | V168: 1 | W168: 1 | X168: 1 | Y168: 1 | Z168: 1 | AA168: 1 | AB168: 1 | AC168: 1 | AD168: 1 | AE168: 1 | AF168: 1 | AG168: 1 | AH168: 1 | AI168: 1 | AJ168: 1 | AK168: 1 | AL168: 1 | AM168: 1 | AN168: 1 | AO168: 1 | AP168: 1 | AQ168: 1 | AR168: 1
C169: Ставка НДС | T169: =ut_VAT_Rate_Inputs -> 0.2 | U169: 0.2 | V169: 0.2 | W169: 0.2 | X169: 0.2 | Y169: 0.2 | Z169: 0.2 | AA169: 0.2 | AB169: 0.2 | AC169: 0.2 | AD169: 0.2 | AE169: 0.2 | AF169: 0.2 | AG169: 0.2 | AH169: 0.2 | AI169: 0.2 | AJ169: 0.2 | AK169: 0.2 | AL169: 0.2 | AM169: 0.2 | AN169: 0.2 | AO169: 0.2 | AP169: 0.2 | AQ169: 0.2 | AR169: 0.2
C170: Финансирование капитальных затрат | D170: =ut_Digits&E167 -> тыс. RUB | E170: без НДС | H170: =SUM(T170:AR170)+S174 -> 7833333.333 | J170: graph | K170: =E167 -> RUB | M170: =CONCATENATE(K170,"/",ut_LCU) -> RUB/RUB | T170: =INDEX(ut_CapEx_Inputs,$B167,T$2)/(1+T169) -> 1833333.333 | U170: 1833333.333 | V170: 1583333.333 | W170: 2333333.333 | X170: 250000 | Y170: 0 | Z170: 0 | AA170: 0 | AB170: =INDEX(ut_CapEx_Inputs,$B167,AB$2)/(1+AB169) -> 0 | AC170: 0 | AD170: 0 | AE170: 0 | AF170: 0 | AG170: 0 | AH170: 0 | AI170: 0 | AJ170: 0 | AK170: 0 | AL170: 0 | AM170: 0 | AN170: 0 | AO170: 0 | AP170: 0 | AQ170: 0 | AR170: =INDEX(ut_CapEx_Inputs,$B167,AR$2)/(1+AR169) -> 0
C171: График строительства (освоение) | D171: =ut_Digits&E167 -> тыс. RUB | E171: без НДС | H171: =SUM(T171:AR171)+S174 -> 7833333.333 | J171: graph | T171: =T170 -> 1833333.333 | U171: 1833333.333 | V171: 1583333.333 | W171: 2333333.333 | X171: 250000 | Y171: 0 | Z171: 0 | AA171: 0 | AB171: =AB170 -> 0 | AC171: 0 | AD171: 0 | AE171: 0 | AF171: 0 | AG171: 0 | AH171: 0 | AI171: 0 | AJ171: 0 | AK171: 0 | AL171: 0 | AM171: 0 | AN171: 0 | AO171: 0 | AP171: 0 | AQ171: 0 | AR171: =AR170 -> 0
C172: Ввод в эксплуатацию | D172: =ut_Digits&E167 -> тыс. RUB | E172: без НДС | H172: =SUM(T172:AR172) -> 7833333.333 | J172: graph | T172: =SUM($T171:T171)*AND(T$5=0,S$5=1) -> 0 | U172: =SUM($T171:U171)*AND(U$5=0,T$5=1) -> 0 | V172: =SUM($T171:V171)*AND(V$5=0,U$5=1) -> 0 | W172: =SUM($T171:W171)*AND(W$5=0,V$5=1) -> 0 | X172: =SUM($T171:X171)*AND(X$5=0,W$5=1) -> 0 | Y172: =SUM($T171:Y171)*AND(Y$5=0,X$5=1) -> 7833333.333 | Z172: =SUM($T171:Z171)*AND(Z$5=0,Y$5=1) -> 0 | AA172: =SUM($T171:AA171)*AND(AA$5=0,Z$5=1) -> 0 | AB172: =SUM($T171:AB171)*AND(AB$5=0,AA$5=1) -> 0 | AC172: =SUM($T171:AC171)*AND(AC$5=0,AB$5=1) -> 0 | AD172: =SUM($T171:AD171)*AND(AD$5=0,AC$5=1) -> 0 | AE172: =SUM($T171:AE171)*AND(AE$5=0,AD$5=1) -> 0 | AF172: =SUM($T171:AF171)*AND(AF$5=0,AE$5=1) -> 0 | AG172: =SUM($T171:AG171)*AND(AG$5=0,AF$5=1) -> 0 | AH172: =SUM($T171:AH171)*AND(AH$5=0,AG$5=1) -> 0 | AI172: =SUM($T171:AI171)*AND(AI$5=0,AH$5=1) -> 0 | AJ172: =SUM($T171:AJ171)*AND(AJ$5=0,AI$5=1) -> 0 | AK172: =SUM($T171:AK171)*AND(AK$5=0,AJ$5=1) -> 0 | AL172: =SUM($T171:AL171)*AND(AL$5=0,AK$5=1) -> 0 | AM172: =SUM($T171:AM171)*AND(AM$5=0,AL$5=1) -> 0 | AN172: =SUM($T171:AN171)*AND(AN$5=0,AM$5=1) -> 0 | AO172: =SUM($T171:AO171)*AND(AO$5=0,AN$5=1) -> 0 | AP172: =SUM($T171:AP171)*AND(AP$5=0,AO$5=1) -> 0 | AQ172: =SUM($T171:AQ171)*AND(AQ$5=0,AP$5=1) -> 0 | AR172: =(AQ174+AR171)*(AR$5=0) -> 0
S173: входящие данные
C174: Незавершенное строительство, конец периода | D174: =ut_Digits&ut_LCU -> тыс. RUB | G174: ставка | S174: =0 -> 0 | T174: =S174+(T171-T172)*T168 -> 1833333.333 | U174: 3666666.667 | V174: 5250000 | W174: 7583333.333 | X174: 7833333.333 | Y174: 0 | Z174: 0 | AA174: 0 | AB174: =AA174+(AB171-AB172)*AB168 -> 0 | AC174: =AB174+(AC171-AC172)*AC168 -> 0 | AD174: =AC174+(AD171-AD172)*AD168 -> 0 | AE174: =AD174+(AE171-AE172)*AE168 -> 0 | AF174: =AE174+(AF171-AF172)*AF168 -> 0 | AG174: =AF174+(AG171-AG172)*AG168 -> 0 | AH174: =AG174+(AH171-AH172)*AH168 -> 0 | AI174: =AH174+(AI171-AI172)*AI168 -> 0 | AJ174: =AI174+(AJ171-AJ172)*AJ168 -> 0 | AK174: =AJ174+(AK171-AK172)*AK168 -> 0 | AL174: =AK174+(AL171-AL172)*AL168 -> 0 | AM174: =AL174+(AM171-AM172)*AM168 -> 0 | AN174: =AM174+(AN171-AN172)*AN168 -> 0 | AO174: =AN174+(AO171-AO172)*AO168 -> 0 | AP174: =AO174+(AP171-AP172)*AP168 -> 0 | AQ174: =AP174+(AQ171-AQ172)*AQ168 -> 0 | AR174: =AQ174+(AR171-AR172)*AR168 -> 0
C175: Амортизация за период | D175: =ut_Digits&ut_LCU -> тыс. RUB | G175: =IFERROR(1/INDEX(ut_CapEx_Dir,B167,3),0) -> 0.01 | H175: =SUM(T175:AR175) -> 1488333.333 | S175: =0 -> 0 | T175: =MIN(S178,$G175*SUMPRODUCT($T171:T171,$T168:T168)) -> 0 | U175: =MIN(T178,$G175*SUMPRODUCT($T171:U171,$T168:U168)) -> 0 | V175: =MIN(U178,$G175*SUMPRODUCT($T171:V171,$T168:V168)) -> 0 | W175: =MIN(V178,$G175*SUMPRODUCT($T171:W171,$T168:W168)) -> 0 | X175: =MIN(W178,$G175*SUMPRODUCT($T171:X171,$T168:X168)) -> 0 | Y175: =MIN(X178,$G175*SUMPRODUCT($T171:Y171,$T168:Y168)) -> 0 | Z175: =MIN(Y178,$G175*SUMPRODUCT($T171:Z171,$T168:Z168)) -> 78333.33333 | AA175: =MIN(Z178,$G175*SUMPRODUCT($T171:AA171,$T168:AA168)) -> 78333.33333 | AB175: =MIN(AA178,$G175*SUMPRODUCT($T171:AB171,$T168:AB168)) -> 78333.33333 | AC175: =MIN(AB178,$G175*SUMPRODUCT($T171:AC171,$T168:AC168)) -> 78333.33333 | AD175: =MIN(AC178,$G175*SUMPRODUCT($T171:AD171,$T168:AD168)) -> 78333.33333 | AE175: =MIN(AD178,$G175*SUMPRODUCT($T171:AE171,$T168:AE168)) -> 78333.33333 | AF175: =MIN(AE178,$G175*SUMPRODUCT($T171:AF171,$T168:AF168)) -> 78333.33333 | AG175: =MIN(AF178,$G175*SUMPRODUCT($T171:AG171,$T168:AG168)) -> 78333.33333 | AH175: =MIN(AG178,$G175*SUMPRODUCT($T171:AH171,$T168:AH168)) -> 78333.33333 | AI175: =MIN(AH178,$G175*SUMPRODUCT($T171:AI171,$T168:AI168)) -> 78333.33333 | AJ175: =MIN(AI178,$G175*SUMPRODUCT($T171:AJ171,$T168:AJ168)) -> 78333.33333 | AK175: =MIN(AJ178,$G175*SUMPRODUCT($T171:AK171,$T168:AK168)) -> 78333.33333 | AL175: =MIN(AK178,$G175*SUMPRODUCT($T171:AL171,$T168:AL168)) -> 78333.33333 | AM175: =MIN(AL178,$G175*SUMPRODUCT($T171:AM171,$T168:AM168)) -> 78333.33333 | AN175: =MIN(AM178,$G175*SUMPRODUCT($T171:AN171,$T168:AN168)) -> 78333.33333 | AO175: =MIN(AN178,$G175*SUMPRODUCT($T171:AO171,$T168:AO168)) -> 78333.33333 | AP175: =MIN(AO178,$G175*SUMPRODUCT($T171:AP171,$T168:AP168)) -> 78333.33333 | AQ175: =MIN(AP178,$G175*SUMPRODUCT($T171:AQ171,$T168:AQ168)) -> 78333.33333 | AR175: =MIN(AQ178,$G175*SUMPRODUCT($T171:AR171,$T168:AR168)) -> 78333.33333
C176: Остаточная стоимость, конец периода | D176: =ut_Digits&ut_LCU -> тыс. RUB | S176: =0 -> 0 | T176: =S176+T172*T168-T175 -> 0 | U176: 0 | V176: 0 | W176: 0 | X176: 0 | Y176: 7833333.333 | Z176: 7755000 | AA176: 7676666.667 | AB176: =AA176+AB172*AB168-AB175 -> 7598333.333 | AC176: =AB176+AC172*AC168-AC175 -> 7520000 | AD176: =AC176+AD172*AD168-AD175 -> 7441666.667 | AE176: =AD176+AE172*AE168-AE175 -> 7363333.333 | AF176: =AE176+AF172*AF168-AF175 -> 7285000 | AG176: =AF176+AG172*AG168-AG175 -> 7206666.667 | AH176: =AG176+AH172*AH168-AH175 -> 7128333.333 | AI176: =AH176+AI172*AI168-AI175 -> 7050000 | AJ176: =AI176+AJ172*AJ168-AJ175 -> 6971666.667 | AK176: =AJ176+AK172*AK168-AK175 -> 6893333.333 | AL176: =AK176+AL172*AL168-AL175 -> 6815000 | AM176: =AL176+AM172*AM168-AM175 -> 6736666.667 | AN176: =AM176+AN172*AN168-AN175 -> 6658333.333 | AO176: =AN176+AO172*AO168-AO175 -> 6580000 | AP176: =AO176+AP172*AP168-AP175 -> 6501666.667 | AQ176: =AP176+AQ172*AQ168-AQ175 -> 6423333.333 | AR176: =AQ176+AR172*AR168-AR175 -> 6345000
C177: Налоговая амортизация за период | D177: =ut_Digits&ut_LCU -> тыс. RUB | H177: =SUM(T177:AR177) -> 1488333.333 | K177: type | L177: property tax | S177: =0 -> 0 | T177: =T175 -> 0 | U177: 0 | V177: 0 | W177: 0 | X177: 0 | Y177: 0 | Z177: 78333.33333 | AA177: 78333.33333 | AB177: =AB175 -> 78333.33333 | AC177: 78333.33333 | AD177: 78333.33333 | AE177: 78333.33333 | AF177: 78333.33333 | AG177: 78333.33333 | AH177: 78333.33333 | AI177: 78333.33333 | AJ177: 78333.33333 | AK177: 78333.33333 | AL177: 78333.33333 | AM177: 78333.33333 | AN177: 78333.33333 | AO177: 78333.33333 | AP177: 78333.33333 | AQ177: 78333.33333 | AR177: =AR175 -> 78333.33333
C178: Налоговая остаточная стоимость, конец периода | D178: =ut_Digits&ut_LCU -> тыс. RUB | K178: =INDEX(ut_CapEx_Dir,B167,4) -> ОС | L178: =INDEX(ut_CapEx_Dir,B167,5) -> да | S178: =0 -> 0 | T178: =T176 -> 0 | U178: 0 | V178: 0 | W178: 0 | X178: 0 | Y178: 7833333.333 | Z178: 7755000 | AA178: 7676666.667 | AB178: =AB176 -> 7598333.333 | AC178: 7520000 | AD178: 7441666.667 | AE178: 7363333.333 | AF178: 7285000 | AG178: 7206666.667 | AH178: 7128333.333 | AI178: 7050000 | AJ178: 6971666.667 | AK178: 6893333.333 | AL178: 6815000 | AM178: 6736666.667 | AN178: 6658333.333 | AO178: 6580000 | AP178: 6501666.667 | AQ178: 6423333.333 | AR178: =AR176 -> 6345000
D179: с НДС | H179: =SUM(T179:AR179) -> 9400000 | T179: =T170*(1+T169)*T168 -> 2200000 | U179: =U170*(1+U169)*U168 -> 2200000 | V179: 1900000 | W179: 2800000 | X179: 300000 | Y179: 0 | Z179: 0 | AA179: 0 | AB179: =AB170*(1+AB169)*AB168 -> 0 | AC179: 0 | AD179: 0 | AE179: 0 | AF179: 0 | AG179: 0 | AH179: 0 | AI179: 0 | AJ179: 0 | AK179: 0 | AL179: 0 | AM179: 0 | AN179: 0 | AO179: 0 | AP179: 0 | AQ179: 0 | AR179: =AR170*(1+AR169)*AR168 -> 0
D180: НДС | H180: =SUM(T180:AR180) -> 1566666.667 | L180: VAT | T180: =T179-T170*T168 -> 366666.6667 | U180: =U179-U170*U168 -> 366666.6667 | V180: 316666.6667 | W180: 466666.6667 | X180: 50000 | Y180: 0 | Z180: 0 | AA180: 0 | AB180: =AB179-AB170*AB168 -> 0 | AC180: 0 | AD180: 0 | AE180: 0 | AF180: 0 | AG180: 0 | AH180: 0 | AI180: 0 | AJ180: 0 | AK180: 0 | AL180: 0 | AM180: 0 | AN180: 0 | AO180: 0 | AP180: 0 | AQ180: 0 | AR180: =AR179-AR170*AR168 -> 0
D181: сальдо авансирования | L181: advance | T181: =(SUM($T171:T171)-SUM($T170:T170))*T168 -> 0 | U181: =(SUM($T171:U171)-SUM($T170:U170))*U168 -> 0 | V181: =(SUM($T171:V171)-SUM($T170:V170))*V168 -> 0 | W181: =(SUM($T171:W171)-SUM($T170:W170))*W168 -> 0 | X181: =(SUM($T171:X171)-SUM($T170:X170))*X168 -> 0 | Y181: =(SUM($T171:Y171)-SUM($T170:Y170))*Y168 -> 0 | Z181: =(SUM($T171:Z171)-SUM($T170:Z170))*Z168 -> 0 | AA181: =(SUM($T171:AA171)-SUM($T170:AA170))*AA168 -> 0 | AB181: =(SUM($T171:AB171)-SUM($T170:AB170))*AB168 -> 0 | AC181: =(SUM($T171:AC171)-SUM($T170:AC170))*AC168 -> 0 | AD181: =(SUM($T171:AD171)-SUM($T170:AD170))*AD168 -> 0 | AE181: =(SUM($T171:AE171)-SUM($T170:AE170))*AE168 -> 0 | AF181: =(SUM($T171:AF171)-SUM($T170:AF170))*AF168 -> 0 | AG181: =(SUM($T171:AG171)-SUM($T170:AG170))*AG168 -> 0 | AH181: =(SUM($T171:AH171)-SUM($T170:AH170))*AH168 -> 0 | AI181: =(SUM($T171:AI171)-SUM($T170:AI170))*AI168 -> 0 | AJ181: =(SUM($T171:AJ171)-SUM($T170:AJ170))*AJ168 -> 0 | AK181: =(SUM($T171:AK171)-SUM($T170:AK170))*AK168 -> 0 | AL181: =(SUM($T171:AL171)-SUM($T170:AL170))*AL168 -> 0 | AM181: =(SUM($T171:AM171)-SUM($T170:AM170))*AM168 -> 0 | AN181: =(SUM($T171:AN171)-SUM($T170:AN170))*AN168 -> 0 | AO181: =(SUM($T171:AO171)-SUM($T170:AO170))*AO168 -> 0 | AP181: =(SUM($T171:AP171)-SUM($T170:AP170))*AP168 -> 0 | AQ181: =(SUM($T171:AQ171)-SUM($T170:AQ170))*AQ168 -> 0 | AR181: =(SUM($T171:AR171)-SUM($T170:AR170))*AR168 -> 0
C183: Проверка согласованности остатков и потоков | F183: =SUM(T183:AR183) -> 0 | O183: =C183&"_"&J183&"_"&K183 -> Проверка согласованности остатков и потоков__ | Q183: =IF(SUM(S183:AR183)>ut_check_limit,1,0) -> 0 | S183: =ABS(SUM(T170:AR170)-SUM(T171:AR171)) -> 0 | T183: =ABS((T171-T172)*T168+S174-T174) + ABS(S176+T172*T168-T175-T176) -> 0 | U183: 0 | V183: 0 | W183: 0 | X183: 0 | Y183: 0 | Z183: 0 | AA183: 0 | AB183: =ABS((AB171-AB172)*AB168+AA174-AB174) + ABS(AA176+AB172*AB168-AB175-AB176) -> 0 | AC183: =ABS((AC171-AC172)*AC168+AB174-AC174) + ABS(AB176+AC172*AC168-AC175-AC176) -> 0 | AD183: =ABS((AD171-AD172)*AD168+AC174-AD174) + ABS(AC176+AD172*AD168-AD175-AD176) -> 0 | AE183: =ABS((AE171-AE172)*AE168+AD174-AE174) + ABS(AD176+AE172*AE168-AE175-AE176) -> 0 | AF183: =ABS((AF171-AF172)*AF168+AE174-AF174) + ABS(AE176+AF172*AF168-AF175-AF176) -> 0 | AG183: =ABS((AG171-AG172)*AG168+AF174-AG174) + ABS(AF176+AG172*AG168-AG175-AG176) -> 0 | AH183: =ABS((AH171-AH172)*AH168+AG174-AH174) + ABS(AG176+AH172*AH168-AH175-AH176) -> 0 | AI183: =ABS((AI171-AI172)*AI168+AH174-AI174) + ABS(AH176+AI172*AI168-AI175-AI176) -> 0 | AJ183: =ABS((AJ171-AJ172)*AJ168+AI174-AJ174) + ABS(AI176+AJ172*AJ168-AJ175-AJ176) -> 0 | AK183: =ABS((AK171-AK172)*AK168+AJ174-AK174) + ABS(AJ176+AK172*AK168-AK175-AK176) -> 0 | AL183: =ABS((AL171-AL172)*AL168+AK174-AL174) + ABS(AK176+AL172*AL168-AL175-AL176) -> 0 | AM183: =ABS((AM171-AM172)*AM168+AL174-AM174) + ABS(AL176+AM172*AM168-AM175-AM176) -> 0 | AN183: =ABS((AN171-AN172)*AN168+AM174-AN174) + ABS(AM176+AN172*AN168-AN175-AN176) -> 0 | AO183: =ABS((AO171-AO172)*AO168+AN174-AO174) + ABS(AN176+AO172*AO168-AO175-AO176) -> 0 | AP183: =ABS((AP171-AP172)*AP168+AO174-AP174) + ABS(AO176+AP172*AP168-AP175-AP176) -> 0 | AQ183: =ABS((AQ171-AQ172)*AQ168+AP174-AQ174) + ABS(AP176+AQ172*AQ168-AQ175-AQ176) -> 0 | AR183: =ABS((AR171-AR172)*AR168+AQ174-AR174) + ABS(AQ176+AR172*AR168-AR175-AR176) -> 0
B185: =MAX($B$166:B184)+1 -> 2 | C185: =INDEX(ut_CapEx_Dir,B185,1) -> Инженерные сети и сооружения | D185: =H188 -> 4000000 | E185: =INDEX(ut_CapEx_Dir,B185,2) -> RUB
J186: currency | K186: =IFERROR(MATCH(CONCATENATE(E185,"/",ut_LCU),ut_Exchange_Rates_Headers,0),0) -> 1 | L186: row | S186: курс валюты | T186: =IFERROR(INDEX(ut_Exchange_Rates,$K186,ut_Counter),0) -> 1 | U186: 1 | V186: 1 | W186: 1 | X186: 1 | Y186: 1 | Z186: 1 | AA186: 1 | AB186: 1 | AC186: 1 | AD186: 1 | AE186: 1 | AF186: 1 | AG186: 1 | AH186: 1 | AI186: 1 | AJ186: 1 | AK186: 1 | AL186: 1 | AM186: 1 | AN186: 1 | AO186: 1 | AP186: 1 | AQ186: 1 | AR186: 1
C187: Ставка НДС | T187: =ut_VAT_Rate_Inputs -> 0.2 | U187: 0.2 | V187: 0.2 | W187: 0.2 | X187: 0.2 | Y187: 0.2 | Z187: 0.2 | AA187: 0.2 | AB187: 0.2 | AC187: 0.2 | AD187: 0.2 | AE187: 0.2 | AF187: 0.2 | AG187: 0.2 | AH187: 0.2 | AI187: 0.2 | AJ187: 0.2 | AK187: 0.2 | AL187: 0.2 | AM187: 0.2 | AN187: 0.2 | AO187: 0.2 | AP187: 0.2 | AQ187: 0.2 | AR187: 0.2
C188: Финансирование капитальных затрат | D188: =ut_Digits&E185 -> тыс. RUB | E188: без НДС | H188: =SUM(T188:AR188)+S192 -> 4000000 | J188: graph | K188: =E185 -> RUB | M188: =CONCATENATE(K188,"/",ut_LCU) -> RUB/RUB | T188: =INDEX(ut_CapEx_Inputs,$B185,T$2)/(1+T187) -> 1083333.333 | U188: 750000 | V188: 750000 | W188: 1416666.667 | X188: 0 | Y188: 0 | Z188: 0 | AA188: 0 | AB188: =INDEX(ut_CapEx_Inputs,$B185,AB$2)/(1+AB187) -> 0 | AC188: 0 | AD188: 0 | AE188: 0 | AF188: 0 | AG188: 0 | AH188: 0 | AI188: 0 | AJ188: 0 | AK188: 0 | AL188: 0 | AM188: 0 | AN188: 0 | AO188: 0 | AP188: 0 | AQ188: 0 | AR188: =INDEX(ut_CapEx_Inputs,$B185,AR$2)/(1+AR187) -> 0
C189: График строительства (освоение) | D189: =ut_Digits&E185 -> тыс. RUB | E189: без НДС | H189: =SUM(T189:AR189)+S192 -> 4000000 | J189: graph | T189: =T188 -> 1083333.333 | U189: 750000 | V189: 750000 | W189: 1416666.667 | X189: 0 | Y189: 0 | Z189: 0 | AA189: 0 | AB189: =AB188 -> 0 | AC189: 0 | AD189: 0 | AE189: 0 | AF189: 0 | AG189: 0 | AH189: 0 | AI189: 0 | AJ189: 0 | AK189: 0 | AL189: 0 | AM189: 0 | AN189: 0 | AO189: 0 | AP189: 0 | AQ189: 0 | AR189: =AR188 -> 0
C190: Ввод в эксплуатацию | D190: =ut_Digits&E185 -> тыс. RUB | E190: без НДС | H190: =SUM(T190:AR190) -> 4000000 | J190: graph | T190: =SUM($T189:T189)*AND(T$5=0,S$5=1) -> 0 | U190: =SUM($T189:U189)*AND(U$5=0,T$5=1) -> 0 | V190: =SUM($T189:V189)*AND(V$5=0,U$5=1) -> 0 | W190: =SUM($T189:W189)*AND(W$5=0,V$5=1) -> 0 | X190: =SUM($T189:X189)*AND(X$5=0,W$5=1) -> 0 | Y190: =SUM($T189:Y189)*AND(Y$5=0,X$5=1) -> 4000000 | Z190: =SUM($T189:Z189)*AND(Z$5=0,Y$5=1) -> 0 | AA190: =SUM($T189:AA189)*AND(AA$5=0,Z$5=1) -> 0 | AB190: =SUM($T189:AB189)*AND(AB$5=0,AA$5=1) -> 0 | AC190: =SUM($T189:AC189)*AND(AC$5=0,AB$5=1) -> 0 | AD190: =SUM($T189:AD189)*AND(AD$5=0,AC$5=1) -> 0 | AE190: =SUM($T189:AE189)*AND(AE$5=0,AD$5=1) -> 0 | AF190: =SUM($T189:AF189)*AND(AF$5=0,AE$5=1) -> 0 | AG190: =SUM($T189:AG189)*AND(AG$5=0,AF$5=1) -> 0 | AH190: =SUM($T189:AH189)*AND(AH$5=0,AG$5=1) -> 0 | AI190: =SUM($T189:AI189)*AND(AI$5=0,AH$5=1) -> 0 | AJ190: =SUM($T189:AJ189)*AND(AJ$5=0,AI$5=1) -> 0 | AK190: =SUM($T189:AK189)*AND(AK$5=0,AJ$5=1) -> 0 | AL190: =SUM($T189:AL189)*AND(AL$5=0,AK$5=1) -> 0 | AM190: =SUM($T189:AM189)*AND(AM$5=0,AL$5=1) -> 0 | AN190: =SUM($T189:AN189)*AND(AN$5=0,AM$5=1) -> 0 | AO190: =SUM($T189:AO189)*AND(AO$5=0,AN$5=1) -> 0 | AP190: =SUM($T189:AP189)*AND(AP$5=0,AO$5=1) -> 0 | AQ190: =SUM($T189:AQ189)*AND(AQ$5=0,AP$5=1) -> 0 | AR190: =SUM($T189:AR189)*AND(AR$5=0,AQ$5=1) -> 0
S191: входящие данные
C192: Незавершенное строительство, конец периода | D192: =ut_Digits&ut_LCU -> тыс. RUB | G192: ставка | S192: =0 -> 0 | T192: =S192+(T189-T190)*T186 -> 1083333.333 | U192: 1833333.333 | V192: 2583333.333 | W192: 4000000 | X192: 4000000 | Y192: 0 | Z192: 0 | AA192: 0 | AB192: =AA192+(AB189-AB190)*AB186 -> 0 | AC192: =AB192+(AC189-AC190)*AC186 -> 0 | AD192: =AC192+(AD189-AD190)*AD186 -> 0 | AE192: =AD192+(AE189-AE190)*AE186 -> 0 | AF192: =AE192+(AF189-AF190)*AF186 -> 0 | AG192: =AF192+(AG189-AG190)*AG186 -> 0 | AH192: =AG192+(AH189-AH190)*AH186 -> 0 | AI192: =AH192+(AI189-AI190)*AI186 -> 0 | AJ192: =AI192+(AJ189-AJ190)*AJ186 -> 0 | AK192: =AJ192+(AK189-AK190)*AK186 -> 0 | AL192: =AK192+(AL189-AL190)*AL186 -> 0 | AM192: =AL192+(AM189-AM190)*AM186 -> 0 | AN192: =AM192+(AN189-AN190)*AN186 -> 0 | AO192: =AN192+(AO189-AO190)*AO186 -> 0 | AP192: =AO192+(AP189-AP190)*AP186 -> 0 | AQ192: =AP192+(AQ189-AQ190)*AQ186 -> 0 | AR192: =AQ192+(AR189-AR190)*AR186 -> 0
C193: Амортизация за период | D193: =ut_Digits&ut_LCU -> тыс. RUB | G193: =IFERROR(1/INDEX(ut_CapEx_Dir,B185,3),0) -> 0.01 | H193: =SUM(T193:AR193) -> 760000 | S193: =0 -> 0 | T193: =MIN(S196,$G193*SUMPRODUCT($T189:T189,$T186:T186)) -> 0 | U193: =MIN(T196,$G193*SUMPRODUCT($T189:U189,$T186:U186)) -> 0 | V193: =MIN(U196,$G193*SUMPRODUCT($T189:V189,$T186:V186)) -> 0 | W193: =MIN(V196,$G193*SUMPRODUCT($T189:W189,$T186:W186)) -> 0 | X193: =MIN(W196,$G193*SUMPRODUCT($T189:X189,$T186:X186)) -> 0 | Y193: =MIN(X196,$G193*SUMPRODUCT($T189:Y189,$T186:Y186)) -> 0 | Z193: =MIN(Y196,$G193*SUMPRODUCT($T189:Z189,$T186:Z186)) -> 40000 | AA193: =MIN(Z196,$G193*SUMPRODUCT($T189:AA189,$T186:AA186)) -> 40000 | AB193: =MIN(AA196,$G193*SUMPRODUCT($T189:AB189,$T186:AB186)) -> 40000 | AC193: =MIN(AB196,$G193*SUMPRODUCT($T189:AC189,$T186:AC186)) -> 40000 | AD193: =MIN(AC196,$G193*SUMPRODUCT($T189:AD189,$T186:AD186)) -> 40000 | AE193: =MIN(AD196,$G193*SUMPRODUCT($T189:AE189,$T186:AE186)) -> 40000 | AF193: =MIN(AE196,$G193*SUMPRODUCT($T189:AF189,$T186:AF186)) -> 40000 | AG193: =MIN(AF196,$G193*SUMPRODUCT($T189:AG189,$T186:AG186)) -> 40000 | AH193: =MIN(AG196,$G193*SUMPRODUCT($T189:AH189,$T186:AH186)) -> 40000 | AI193: =MIN(AH196,$G193*SUMPRODUCT($T189:AI189,$T186:AI186)) -> 40000 | AJ193: =MIN(AI196,$G193*SUMPRODUCT($T189:AJ189,$T186:AJ186)) -> 40000 | AK193: =MIN(AJ196,$G193*SUMPRODUCT($T189:AK189,$T186:AK186)) -> 40000 | AL193: =MIN(AK196,$G193*SUMPRODUCT($T189:AL189,$T186:AL186)) -> 40000 | AM193: =MIN(AL196,$G193*SUMPRODUCT($T189:AM189,$T186:AM186)) -> 40000 | AN193: =MIN(AM196,$G193*SUMPRODUCT($T189:AN189,$T186:AN186)) -> 40000 | AO193: =MIN(AN196,$G193*SUMPRODUCT($T189:AO189,$T186:AO186)) -> 40000 | AP193: =MIN(AO196,$G193*SUMPRODUCT($T189:AP189,$T186:AP186)) -> 40000 | AQ193: =MIN(AP196,$G193*SUMPRODUCT($T189:AQ189,$T186:AQ186)) -> 40000 | AR193: =MIN(AQ196,$G193*SUMPRODUCT($T189:AR189,$T186:AR186)) -> 40000
C194: Остаточная стоимость, конец периода | D194: =ut_Digits&ut_LCU -> тыс. RUB | S194: =0 -> 0 | T194: =S194+T190*T186-T193 -> 0 | U194: 0 | V194: 0 | W194: 0 | X194: 0 | Y194: 4000000 | Z194: 3960000 | AA194: 3920000 | AB194: =AA194+AB190*AB186-AB193 -> 3880000 | AC194: =AB194+AC190*AC186-AC193 -> 3840000 | AD194: =AC194+AD190*AD186-AD193 -> 3800000 | AE194: =AD194+AE190*AE186-AE193 -> 3760000 | AF194: =AE194+AF190*AF186-AF193 -> 3720000 | AG194: =AF194+AG190*AG186-AG193 -> 3680000 | AH194: =AG194+AH190*AH186-AH193 -> 3640000 | AI194: =AH194+AI190*AI186-AI193 -> 3600000 | AJ194: =AI194+AJ190*AJ186-AJ193 -> 3560000 | AK194: =AJ194+AK190*AK186-AK193 -> 3520000 | AL194: =AK194+AL190*AL186-AL193 -> 3480000 | AM194: =AL194+AM190*AM186-AM193 -> 3440000 | AN194: =AM194+AN190*AN186-AN193 -> 3400000 | AO194: =AN194+AO190*AO186-AO193 -> 3360000 | AP194: =AO194+AP190*AP186-AP193 -> 3320000 | AQ194: =AP194+AQ190*AQ186-AQ193 -> 3280000 | AR194: =AQ194+AR190*AR186-AR193 -> 3240000
C195: Налоговая амортизация за период | D195: =ut_Digits&ut_LCU -> тыс. RUB | H195: =SUM(T195:AR195) -> 760000 | K195: type | L195: property tax | S195: =0 -> 0 | T195: =T193 -> 0 | U195: 0 | V195: 0 | W195: 0 | X195: 0 | Y195: 0 | Z195: 40000 | AA195: 40000 | AB195: =AB193 -> 40000 | AC195: 40000 | AD195: 40000 | AE195: 40000 | AF195: 40000 | AG195: 40000 | AH195: 40000 | AI195: 40000 | AJ195: 40000 | AK195: 40000 | AL195: 40000 | AM195: 40000 | AN195: 40000 | AO195: 40000 | AP195: 40000 | AQ195: 40000 | AR195: =AR193 -> 40000
C196: Налоговая остаточная стоимость, конец периода | D196: =ut_Digits&ut_LCU -> тыс. RUB | K196: =INDEX(ut_CapEx_Dir,B185,4) -> ОС | L196: =INDEX(ut_CapEx_Dir,B185,5) -> да | S196: =0 -> 0 | T196: =T194 -> 0 | U196: 0 | V196: 0 | W196: 0 | X196: 0 | Y196: 4000000 | Z196: 3960000 | AA196: 3920000 | AB196: =AB194 -> 3880000 | AC196: 3840000 | AD196: 3800000 | AE196: 3760000 | AF196: 3720000 | AG196: 3680000 | AH196: 3640000 | AI196: 3600000 | AJ196: 3560000 | AK196: 3520000 | AL196: 3480000 | AM196: 3440000 | AN196: 3400000 | AO196: 3360000 | AP196: 3320000 | AQ196: 3280000 | AR196: =AR194 -> 3240000
D197: с НДС | H197: =SUM(T197:AR197) -> 4800000 | T197: =T188*(1+T187)*T186 -> 1300000 | U197: =U188*(1+U187)*U186 -> 900000 | V197: 900000 | W197: 1700000 | X197: 0 | Y197: 0 | Z197: 0 | AA197: 0 | AB197: =AB188*(1+AB187)*AB186 -> 0 | AC197: 0 | AD197: 0 | AE197: 0 | AF197: 0 | AG197: 0 | AH197: 0 | AI197: 0 | AJ197: 0 | AK197: 0 | AL197: 0 | AM197: 0 | AN197: 0 | AO197: 0 | AP197: 0 | AQ197: 0 | AR197: =AR188*(1+AR187)*AR186 -> 0
D198: НДС | H198: =SUM(T198:AR198) -> 800000 | L198: VAT | T198: =T197-T188*T186 -> 216666.6667 | U198: =U197-U188*U186 -> 150000 | V198: =V197-V188*V186 -> 150000 | W198: =W197-W188*W186 -> 283333.3333 | X198: =X197-X188*X186 -> 0 | Y198: =Y197-Y188*Y186 -> 0 | Z198: =Z197-Z188*Z186 -> 0 | AA198: =AA197-AA188*AA186 -> 0 | AB198: 0 | AC198: 0 | AD198: 0 | AE198: 0 | AF198: 0 | AG198: 0 | AH198: 0 | AI198: 0 | AJ198: 0 | AK198: 0 | AL198: 0 | AM198: 0 | AN198: 0 | AO198: 0 | AP198: 0 | AQ198: 0 | AR198: =AR197-AR188*AR186 -> 0
D199: сальдо авансирования | L199: advance | T199: =(SUM($T189:T189)-SUM($T188:T188))*T186 -> 0 | U199: =(SUM($T189:U189)-SUM($T188:U188))*U186 -> 0 | V199: =(SUM($T189:V189)-SUM($T188:V188))*V186 -> 0 | W199: =(SUM($T189:W189)-SUM($T188:W188))*W186 -> 0 | X199: =(SUM($T189:X189)-SUM($T188:X188))*X186 -> 0 | Y199: =(SUM($T189:Y189)-SUM($T188:Y188))*Y186 -> 0 | Z199: =(SUM($T189:Z189)-SUM($T188:Z188))*Z186 -> 0 | AA199: =(SUM($T189:AA189)-SUM($T188:AA188))*AA186 -> 0 | AB199: =(SUM($T189:AB189)-SUM($T188:AB188))*AB186 -> 0 | AC199: =(SUM($T189:AC189)-SUM($T188:AC188))*AC186 -> 0 | AD199: =(SUM($T189:AD189)-SUM($T188:AD188))*AD186 -> 0 | AE199: =(SUM($T189:AE189)-SUM($T188:AE188))*AE186 -> 0 | AF199: =(SUM($T189:AF189)-SUM($T188:AF188))*AF186 -> 0 | AG199: =(SUM($T189:AG189)-SUM($T188:AG188))*AG186 -> 0 | AH199: =(SUM($T189:AH189)-SUM($T188:AH188))*AH186 -> 0 | AI199: =(SUM($T189:AI189)-SUM($T188:AI188))*AI186 -> 0 | AJ199: =(SUM($T189:AJ189)-SUM($T188:AJ188))*AJ186 -> 0 | AK199: =(SUM($T189:AK189)-SUM($T188:AK188))*AK186 -> 0 | AL199: =(SUM($T189:AL189)-SUM($T188:AL188))*AL186 -> 0 | AM199: =(SUM($T189:AM189)-SUM($T188:AM188))*AM186 -> 0 | AN199: =(SUM($T189:AN189)-SUM($T188:AN188))*AN186 -> 0 | AO199: =(SUM($T189:AO189)-SUM($T188:AO188))*AO186 -> 0 | AP199: =(SUM($T189:AP189)-SUM($T188:AP188))*AP186 -> 0 | AQ199: =(SUM($T189:AQ189)-SUM($T188:AQ188))*AQ186 -> 0 | AR199: =(SUM($T189:AR189)-SUM($T188:AR188))*AR186 -> 0
C201: Проверка согласованности остатков и потоков | F201: =SUM(T201:AR201) -> 0 | O201: =C201&"_"&J201&"_"&K201 -> Проверка согласованности остатков и потоков__ | Q201: =IF(SUM(S201:AR201)>ut_check_limit,1,0) -> 0 | S201: =ABS(SUM(T188:AR188)-SUM(T189:AR189)) -> 0 | T201: =ABS((T189-T190)*T186+S192-T192) + ABS(S194+T190*T186-T193-T194) -> 0 | U201: 0 | V201: 0 | W201: 0 | X201: 0 | Y201: 0 | Z201: 0 | AA201: 0 | AB201: =ABS((AB189-AB190)*AB186+AA192-AB192) + ABS(AA194+AB190*AB186-AB193-AB194) -> 0 | AC201: =ABS((AC189-AC190)*AC186+AB192-AC192) + ABS(AB194+AC190*AC186-AC193-AC194) -> 0 | AD201: =ABS((AD189-AD190)*AD186+AC192-AD192) + ABS(AC194+AD190*AD186-AD193-AD194) -> 0 | AE201: =ABS((AE189-AE190)*AE186+AD192-AE192) + ABS(AD194+AE190*AE186-AE193-AE194) -> 0 | AF201: =ABS((AF189-AF190)*AF186+AE192-AF192) + ABS(AE194+AF190*AF186-AF193-AF194) -> 0 | AG201: =ABS((AG189-AG190)*AG186+AF192-AG192) + ABS(AF194+AG190*AG186-AG193-AG194) -> 0 | AH201: =ABS((AH189-AH190)*AH186+AG192-AH192) + ABS(AG194+AH190*AH186-AH193-AH194) -> 0 | AI201: =ABS((AI189-AI190)*AI186+AH192-AI192) + ABS(AH194+AI190*AI186-AI193-AI194) -> 0 | AJ201: =ABS((AJ189-AJ190)*AJ186+AI192-AJ192) + ABS(AI194+AJ190*AJ186-AJ193-AJ194) -> 0 | AK201: =ABS((AK189-AK190)*AK186+AJ192-AK192) + ABS(AJ194+AK190*AK186-AK193-AK194) -> 0 | AL201: =ABS((AL189-AL190)*AL186+AK192-AL192) + ABS(AK194+AL190*AL186-AL193-AL194) -> 0 | AM201: =ABS((AM189-AM190)*AM186+AL192-AM192) + ABS(AL194+AM190*AM186-AM193-AM194) -> 0 | AN201: =ABS((AN189-AN190)*AN186+AM192-AN192) + ABS(AM194+AN190*AN186-AN193-AN194) -> 0 | AO201: =ABS((AO189-AO190)*AO186+AN192-AO192) + ABS(AN194+AO190*AO186-AO193-AO194) -> 0 | AP201: =ABS((AP189-AP190)*AP186+AO192-AP192) + ABS(AO194+AP190*AP186-AP193-AP194) -> 0 | AQ201: =ABS((AQ189-AQ190)*AQ186+AP192-AQ192) + ABS(AP194+AQ190*AQ186-AQ193-AQ194) -> 0 | AR201: =ABS((AR189-AR190)*AR186+AQ192-AR192) + ABS(AQ194+AR190*AR186-AR193-AR194) -> 0
B203: =MAX($B$166:B202)+1 -> 3 | C203: =INDEX(ut_CapEx_Dir,B203,1) -> Оборудование | D203: =H206 -> 291666.6667 | E203: =INDEX(ut_CapEx_Dir,B203,2) -> EUR
J204: currency | K204: =IFERROR(MATCH(CONCATENATE(E203,"/",ut_LCU),ut_Exchange_Rates_Headers,0),0) -> 8 | L204: row | S204: курс валюты | T204: =IFERROR(INDEX(ut_Exchange_Rates,$K204,ut_Counter),0) -> 74.83337448 | U204: 76.0896331 | V204: 77.40112994 | W204: 78.73070326 | X204: 80.06356191 | Y204: 81.38031947 | Z204: 82.65417832 | AA204: 83.8592233 | AB204: 83.8592233 | AC204: 83.8592233 | AD204: 83.8592233 | AE204: 83.8592233 | AF204: 83.8592233 | AG204: 83.8592233 | AH204: 83.8592233 | AI204: 83.8592233 | AJ204: 83.8592233 | AK204: 83.8592233 | AL204: 83.8592233 | AM204: 83.8592233 | AN204: 83.8592233 | AO204: 83.8592233 | AP204: 83.8592233 | AQ204: 83.8592233 | AR204: 83.8592233
C205: Ставка НДС | T205: =ut_VAT_Rate_Inputs -> 0.2 | U205: 0.2 | V205: 0.2 | W205: 0.2 | X205: 0.2 | Y205: 0.2 | Z205: 0.2 | AA205: 0.2 | AB205: 0.2 | AC205: 0.2 | AD205: 0.2 | AE205: 0.2 | AF205: 0.2 | AG205: 0.2 | AH205: 0.2 | AI205: 0.2 | AJ205: 0.2 | AK205: 0.2 | AL205: 0.2 | AM205: 0.2 | AN205: 0.2 | AO205: 0.2 | AP205: 0.2 | AQ205: 0.2 | AR205: 0.2
C206: Финансирование капитальных затрат | D206: =ut_Digits&E203 -> тыс. EUR | E206: без НДС | H206: =SUM(T206:AR206)+S210 -> 291666.6667 | J206: graph | K206: =E203 -> EUR | M206: =CONCATENATE(K206,"/",ut_LCU) -> EUR/RUB | T206: =INDEX(ut_CapEx_Inputs,$B203,T$2)/(1+T205) -> 0 | U206: 0 | V206: 0 | W206: 208333.3333 | X206: 83333.33333 | Y206: 0 | Z206: 0 | AA206: 0 | AB206: 0 | AC206: 0 | AD206: 0 | AE206: 0 | AF206: 0 | AG206: 0 | AH206: 0 | AI206: 0 | AJ206: 0 | AK206: 0 | AL206: 0 | AM206: 0 | AN206: 0 | AO206: 0 | AP206: 0 | AQ206: 0 | AR206: 0
C207: График строительства (освоение) | D207: =ut_Digits&E203 -> тыс. EUR | E207: без НДС | H207: =SUM(T207:AR207)+S210 -> 291666.6667 | J207: graph | T207: =T206 -> 0 | U207: 0 | V207: 0 | W207: 208333.3333 | X207: 83333.33333 | Y207: 0 | Z207: 0 | AA207: 0 | AB207: 0 | AC207: 0 | AD207: 0 | AE207: 0 | AF207: 0 | AG207: 0 | AH207: 0 | AI207: 0 | AJ207: 0 | AK207: 0 | AL207: 0 | AM207: 0 | AN207: 0 | AO207: 0 | AP207: 0 | AQ207: 0 | AR207: 0
C208: Ввод в эксплуатацию | D208: =ut_Digits&E203 -> тыс. EUR | E208: без НДС | H208: =SUM(T208:AR208) -> 291666.6667 | J208: graph | T208: =SUM($T207:T207)*AND(T$5=0,S$5=1) -> 0 | U208: =SUM($T207:U207)*AND(U$5=0,T$5=1) -> 0 | V208: =SUM($T207:V207)*AND(V$5=0,U$5=1) -> 0 | W208: =SUM($T207:W207)*AND(W$5=0,V$5=1) -> 0 | X208: =SUM($T207:X207)*AND(X$5=0,W$5=1) -> 0 | Y208: =SUM($T207:Y207)*AND(Y$5=0,X$5=1) -> 291666.6667 | Z208: =SUM($T207:Z207)*AND(Z$5=0,Y$5=1) -> 0 | AA208: =SUM($T207:AA207)*AND(AA$5=0,Z$5=1) -> 0 | AB208: =SUM($T207:AB207)*AND(AB$5=0,AA$5=1) -> 0 | AC208: =SUM($T207:AC207)*AND(AC$5=0,AB$5=1) -> 0 | AD208: =SUM($T207:AD207)*AND(AD$5=0,AC$5=1) -> 0 | AE208: =SUM($T207:AE207)*AND(AE$5=0,AD$5=1) -> 0 | AF208: =SUM($T207:AF207)*AND(AF$5=0,AE$5=1) -> 0 | AG208: =SUM($T207:AG207)*AND(AG$5=0,AF$5=1) -> 0 | AH208: =SUM($T207:AH207)*AND(AH$5=0,AG$5=1) -> 0 | AI208: =SUM($T207:AI207)*AND(AI$5=0,AH$5=1) -> 0 | AJ208: =SUM($T207:AJ207)*AND(AJ$5=0,AI$5=1) -> 0 | AK208: =SUM($T207:AK207)*AND(AK$5=0,AJ$5=1) -> 0 | AL208: =SUM($T207:AL207)*AND(AL$5=0,AK$5=1) -> 0 | AM208: =SUM($T207:AM207)*AND(AM$5=0,AL$5=1) -> 0 | AN208: =SUM($T207:AN207)*AND(AN$5=0,AM$5=1) -> 0 | AO208: =SUM($T207:AO207)*AND(AO$5=0,AN$5=1) -> 0 | AP208: =SUM($T207:AP207)*AND(AP$5=0,AO$5=1) -> 0 | AQ208: =SUM($T207:AQ207)*AND(AQ$5=0,AP$5=1) -> 0 | AR208: =SUM($T207:AR207)*AND(AR$5=0,AQ$5=1) -> 0
S209: входящие данные
C210: Незавершенное строительство, конец периода | D210: =ut_Digits&ut_LCU -> тыс. RUB | G210: ставка | S210: =0 -> 0 | T210: =S210+(T207-T208)*T204 -> 0 | U210: =T210+(U207-U208)*U204 -> 0 | V210: =U210+(V207-V208)*V204 -> 0 | W210: =V210+(W207-W208)*W204 -> 16402229.85 | X210: =W210+(X207-X208)*X204 -> 23074193.34 | Y210: =X210+(Y207-Y208)*Y204 -> -661733.1748 | Z210: =Y210+(Z207-Z208)*Z204 -> -661733.1748 | AA210: =Z210+(AA207-AA208)*AA204 -> -661733.1748 | AB210: =AA210+(AB207-AB208)*AB204 -> -661733.1748 | AC210: =AB210+(AC207-AC208)*AC204 -> -661733.1748 | AD210: =AC210+(AD207-AD208)*AD204 -> -661733.1748 | AE210: =AD210+(AE207-AE208)*AE204 -> -661733.1748 | AF210: =AE210+(AF207-AF208)*AF204 -> -661733.1748 | AG210: =AF210+(AG207-AG208)*AG204 -> -661733.1748 | AH210: =AG210+(AH207-AH208)*AH204 -> -661733.1748 | AI210: =AH210+(AI207-AI208)*AI204 -> -661733.1748 | AJ210: =AI210+(AJ207-AJ208)*AJ204 -> -661733.1748 | AK210: =AJ210+(AK207-AK208)*AK204 -> -661733.1748 | AL210: =AK210+(AL207-AL208)*AL204 -> -661733.1748 | AM210: =AL210+(AM207-AM208)*AM204 -> -661733.1748 | AN210: =AM210+(AN207-AN208)*AN204 -> -661733.1748 | AO210: =AN210+(AO207-AO208)*AO204 -> -661733.1748 | AP210: =AO210+(AP207-AP208)*AP204 -> -661733.1748 | AQ210: =AP210+(AQ207-AQ208)*AQ204 -> -661733.1748 | AR210: =AQ210+(AR207-AR208)*AR204 -> -661733.1748
C211: Амортизация за период | D211: =ut_Digits&ut_LCU -> тыс. RUB | G211: =IFERROR(1/INDEX(ut_CapEx_Dir,B203,3),0) -> 0.04 | H211: =SUM(T211:AR211) -> 17536386.94 | S211: =0 -> 0 | T211: =MIN(S214,$G211*SUMPRODUCT($T207:T207,$T204:T204)) -> 0 | U211: =MIN(T214,$G211*SUMPRODUCT($T207:U207,$T204:U204)) -> 0 | V211: =MIN(U214,$G211*SUMPRODUCT($T207:V207,$T204:V204)) -> 0 | W211: =MIN(V214,$G211*SUMPRODUCT($T207:W207,$T204:W204)) -> 0 | X211: =MIN(W214,$G211*SUMPRODUCT($T207:X207,$T204:X204)) -> 0 | Y211: =MIN(X214,$G211*SUMPRODUCT($T207:Y207,$T204:Y204)) -> 0 | Z211: =MIN(Y214,$G211*SUMPRODUCT($T207:Z207,$T204:Z204)) -> 922967.7335 | AA211: =MIN(Z214,$G211*SUMPRODUCT($T207:AA207,$T204:AA204)) -> 922967.7335 | AB211: =MIN(AA214,$G211*SUMPRODUCT($T207:AB207,$T204:AB204)) -> 922967.7335 | AC211: =MIN(AB214,$G211*SUMPRODUCT($T207:AC207,$T204:AC204)) -> 922967.7335 | AD211: =MIN(AC214,$G211*SUMPRODUCT($T207:AD207,$T204:AD204)) -> 922967.7335 | AE211: =MIN(AD214,$G211*SUMPRODUCT($T207:AE207,$T204:AE204)) -> 922967.7335 | AF211: =MIN(AE214,$G211*SUMPRODUCT($T207:AF207,$T204:AF204)) -> 922967.7335 | AG211: =MIN(AF214,$G211*SUMPRODUCT($T207:AG207,$T204:AG204)) -> 922967.7335 | AH211: =MIN(AG214,$G211*SUMPRODUCT($T207:AH207,$T204:AH204)) -> 922967.7335 | AI211: =MIN(AH214,$G211*SUMPRODUCT($T207:AI207,$T204:AI204)) -> 922967.7335 | AJ211: =MIN(AI214,$G211*SUMPRODUCT($T207:AJ207,$T204:AJ204)) -> 922967.7335 | AK211: =MIN(AJ214,$G211*SUMPRODUCT($T207:AK207,$T204:AK204)) -> 922967.7335 | AL211: =MIN(AK214,$G211*SUMPRODUCT($T207:AL207,$T204:AL204)) -> 922967.7335 | AM211: =MIN(AL214,$G211*SUMPRODUCT($T207:AM207,$T204:AM204)) -> 922967.7335 | AN211: =MIN(AM214,$G211*SUMPRODUCT($T207:AN207,$T204:AN204)) -> 922967.7335 | AO211: =MIN(AN214,$G211*SUMPRODUCT($T207:AO207,$T204:AO204)) -> 922967.7335 | AP211: =MIN(AO214,$G211*SUMPRODUCT($T207:AP207,$T204:AP204)) -> 922967.7335 | AQ211: =MIN(AP214,$G211*SUMPRODUCT($T207:AQ207,$T204:AQ204)) -> 922967.7335 | AR211: =MIN(AQ214,$G211*SUMPRODUCT($T207:AR207,$T204:AR204)) -> 922967.7335
C212: Остаточная стоимость, конец периода | D212: =ut_Digits&ut_LCU -> тыс. RUB | S212: =0 -> 0 | T212: =S212+T208*T204-T211 -> 0 | U212: =T212+U208*U204-U211 -> 0 | V212: =U212+V208*V204-V211 -> 0 | W212: =V212+W208*W204-W211 -> 0 | X212: =W212+X208*X204-X211 -> 0 | Y212: =X212+Y208*Y204-Y211 -> 23735926.51 | Z212: =Y212+Z208*Z204-Z211 -> 22812958.78 | AA212: =Z212+AA208*AA204-AA211 -> 21889991.05 | AB212: =AA212+AB208*AB204-AB211 -> 20967023.31 | AC212: =AB212+AC208*AC204-AC211 -> 20044055.58 | AD212: =AC212+AD208*AD204-AD211 -> 19121087.85 | AE212: =AD212+AE208*AE204-AE211 -> 18198120.11 | AF212: =AE212+AF208*AF204-AF211 -> 17275152.38 | AG212: =AF212+AG208*AG204-AG211 -> 16352184.64 | AH212: =AG212+AH208*AH204-AH211 -> 15429216.91 | AI212: =AH212+AI208*AI204-AI211 -> 14506249.18 | AJ212: =AI212+AJ208*AJ204-AJ211 -> 13583281.44 | AK212: =AJ212+AK208*AK204-AK211 -> 12660313.71 | AL212: =AK212+AL208*AL204-AL211 -> 11737345.98 | AM212: =AL212+AM208*AM204-AM211 -> 10814378.24 | AN212: =AM212+AN208*AN204-AN211 -> 9891410.51 | AO212: =AN212+AO208*AO204-AO211 -> 8968442.777 | AP212: =AO212+AP208*AP204-AP211 -> 8045475.043 | AQ212: =AP212+AQ208*AQ204-AQ211 -> 7122507.309 | AR212: =AQ212+AR208*AR204-AR211 -> 6199539.576
C213: Налоговая амортизация за период | D213: =ut_Digits&ut_LCU -> тыс. RUB | H213: =SUM(T213:AR213) -> 17536386.94 | K213: type | L213: property tax | S213: =0 -> 0 | T213: =T211 -> 0 | U213: 0 | V213: 0 | W213: 0 | X213: 0 | Y213: 0 | Z213: 922967.7335 | AA213: 922967.7335 | AB213: 922967.7335 | AC213: 922967.7335 | AD213: 922967.7335 | AE213: 922967.7335 | AF213: 922967.7335 | AG213: 922967.7335 | AH213: 922967.7335 | AI213: 922967.7335 | AJ213: 922967.7335 | AK213: 922967.7335 | AL213: 922967.7335 | AM213: 922967.7335 | AN213: 922967.7335 | AO213: 922967.7335 | AP213: 922967.7335 | AQ213: 922967.7335 | AR213: 922967.7335
C214: Налоговая остаточная стоимость, конец периода | D214: =ut_Digits&ut_LCU -> тыс. RUB | K214: =INDEX(ut_CapEx_Dir,B203,4) -> ОС | L214: =INDEX(ut_CapEx_Dir,B203,5) -> нет | S214: =0 -> 0 | T214: =T212 -> 0 | U214: 0 | V214: 0 | W214: 0 | X214: 0 | Y214: 23735926.51 | Z214: 22812958.78 | AA214: 21889991.05 | AB214: 20967023.31 | AC214: 20044055.58 | AD214: 19121087.85 | AE214: 18198120.11 | AF214: 17275152.38 | AG214: 16352184.64 | AH214: 15429216.91 | AI214: 14506249.18 | AJ214: 13583281.44 | AK214: 12660313.71 | AL214: 11737345.98 | AM214: 10814378.24 | AN214: 9891410.51 | AO214: 8968442.777 | AP214: 8045475.043 | AQ214: 7122507.309 | AR214: 6199539.576
D215: с НДС | H215: =SUM(T215:AR215) -> 27689032.01 | T215: =T206*(1+T205)*T204 -> 0 | U215: =U206*(1+U205)*U204 -> 0 | V215: 0 | W215: 19682675.81 | X215: 8006356.191 | Y215: 0 | Z215: 0 | AA215: 0 | AB215: 0 | AC215: 0 | AD215: 0 | AE215: 0 | AF215: 0 | AG215: 0 | AH215: 0 | AI215: 0 | AJ215: 0 | AK215: 0 | AL215: 0 | AM215: 0 | AN215: 0 | AO215: 0 | AP215: 0 | AQ215: 0 | AR215: 0
D216: НДС | H216: =SUM(T216:AR216) -> 4614838.668 | L216: VAT | T216: =T215-T206*T204 -> 0 | U216: =U215-U206*U204 -> 0 | V216: 0 | W216: 3280445.969 | X216: 1334392.699 | Y216: 0 | Z216: 0 | AA216: 0 | AB216: 0 | AC216: 0 | AD216: 0 | AE216: 0 | AF216: 0 | AG216: 0 | AH216: 0 | AI216: 0 | AJ216: 0 | AK216: 0 | AL216: 0 | AM216: 0 | AN216: 0 | AO216: 0 | AP216: 0 | AQ216: 0 | AR216: 0
D217: сальдо авансирования | L217: advance | T217: =(SUM($T207:T207)-SUM($T206:T206))*T204 -> 0 | U217: =(SUM($T207:U207)-SUM($T206:U206))*U204 -> 0 | V217: =(SUM($T207:V207)-SUM($T206:V206))*V204 -> 0 | W217: =(SUM($T207:W207)-SUM($T206:W206))*W204 -> 0 | X217: =(SUM($T207:X207)-SUM($T206:X206))*X204 -> 0 | Y217: =(SUM($T207:Y207)-SUM($T206:Y206))*Y204 -> 0 | Z217: =(SUM($T207:Z207)-SUM($T206:Z206))*Z204 -> 0 | AA217: =(SUM($T207:AA207)-SUM($T206:AA206))*AA204 -> 0 | AB217: =(SUM($T207:AB207)-SUM($T206:AB206))*AB204 -> 0 | AC217: =(SUM($T207:AC207)-SUM($T206:AC206))*AC204 -> 0 | AD217: =(SUM($T207:AD207)-SUM($T206:AD206))*AD204 -> 0 | AE217: =(SUM($T207:AE207)-SUM($T206:AE206))*AE204 -> 0 | AF217: =(SUM($T207:AF207)-SUM($T206:AF206))*AF204 -> 0 | AG217: =(SUM($T207:AG207)-SUM($T206:AG206))*AG204 -> 0 | AH217: =(SUM($T207:AH207)-SUM($T206:AH206))*AH204 -> 0 | AI217: =(SUM($T207:AI207)-SUM($T206:AI206))*AI204 -> 0 | AJ217: =(SUM($T207:AJ207)-SUM($T206:AJ206))*AJ204 -> 0 | AK217: =(SUM($T207:AK207)-SUM($T206:AK206))*AK204 -> 0 | AL217: =(SUM($T207:AL207)-SUM($T206:AL206))*AL204 -> 0 | AM217: =(SUM($T207:AM207)-SUM($T206:AM206))*AM204 -> 0 | AN217: =(SUM($T207:AN207)-SUM($T206:AN206))*AN204 -> 0 | AO217: =(SUM($T207:AO207)-SUM($T206:AO206))*AO204 -> 0 | AP217: =(SUM($T207:AP207)-SUM($T206:AP206))*AP204 -> 0 | AQ217: =(SUM($T207:AQ207)-SUM($T206:AQ206))*AQ204 -> 0 | AR217: =(SUM($T207:AR207)-SUM($T206:AR206))*AR204 -> 0
C219: Проверка согласованности остатков и потоков | F219: =SUM(T219:AR219) -> 0 | O219: =C219&"_"&J219&"_"&K219 -> Проверка согласованности остатков и потоков__ | Q219: =IF(SUM(S219:AR219)>ut_check_limit,1,0) -> 0 | S219: =ABS(SUM(T206:AR206)-SUM(T207:AR207)) -> 0 | T219: =ABS((T207-T208)*T204+S210-T210) + ABS(S212+T208*T204-T211-T212) -> 0 | U219: =ABS((U207-U208)*U204+T210-U210) + ABS(T212+U208*U204-U211-U212) -> 0 | V219: =ABS((V207-V208)*V204+U210-V210) + ABS(U212+V208*V204-V211-V212) -> 0 | W219: =ABS((W207-W208)*W204+V210-W210) + ABS(V212+W208*W204-W211-W212) -> 0 | X219: =ABS((X207-X208)*X204+W210-X210) + ABS(W212+X208*X204-X211-X212) -> 0 | Y219: =ABS((Y207-Y208)*Y204+X210-Y210) + ABS(X212+Y208*Y204-Y211-Y212) -> 0 | Z219: =ABS((Z207-Z208)*Z204+Y210-Z210) + ABS(Y212+Z208*Z204-Z211-Z212) -> 0 | AA219: =ABS((AA207-AA208)*AA204+Z210-AA210) + ABS(Z212+AA208*AA204-AA211-AA212) -> 0 | AB219: =ABS((AB207-AB208)*AB204+AA210-AB210) + ABS(AA212+AB208*AB204-AB211-AB212) -> 0 | AC219: =ABS((AC207-AC208)*AC204+AB210-AC210) + ABS(AB212+AC208*AC204-AC211-AC212) -> 0 | AD219: =ABS((AD207-AD208)*AD204+AC210-AD210) + ABS(AC212+AD208*AD204-AD211-AD212) -> 0 | AE219: =ABS((AE207-AE208)*AE204+AD210-AE210) + ABS(AD212+AE208*AE204-AE211-AE212) -> 0 | AF219: =ABS((AF207-AF208)*AF204+AE210-AF210) + ABS(AE212+AF208*AF204-AF211-AF212) -> 0 | AG219: =ABS((AG207-AG208)*AG204+AF210-AG210) + ABS(AF212+AG208*AG204-AG211-AG212) -> 0 | AH219: =ABS((AH207-AH208)*AH204+AG210-AH210) + ABS(AG212+AH208*AH204-AH211-AH212) -> 0 | AI219: =ABS((AI207-AI208)*AI204+AH210-AI210) + ABS(AH212+AI208*AI204-AI211-AI212) -> 0 | AJ219: =ABS((AJ207-AJ208)*AJ204+AI210-AJ210) + ABS(AI212+AJ208*AJ204-AJ211-AJ212) -> 0 | AK219: =ABS((AK207-AK208)*AK204+AJ210-AK210) + ABS(AJ212+AK208*AK204-AK211-AK212) -> 0 | AL219: =ABS((AL207-AL208)*AL204+AK210-AL210) + ABS(AK212+AL208*AL204-AL211-AL212) -> 0 | AM219: =ABS((AM207-AM208)*AM204+AL210-AM210) + ABS(AL212+AM208*AM204-AM211-AM212) -> 0 | AN219: =ABS((AN207-AN208)*AN204+AM210-AN210) + ABS(AM212+AN208*AN204-AN211-AN212) -> 0 | AO219: =ABS((AO207-AO208)*AO204+AN210-AO210) + ABS(AN212+AO208*AO204-AO211-AO212) -> 0 | AP219: =ABS((AP207-AP208)*AP204+AO210-AP210) + ABS(AO212+AP208*AP204-AP211-AP212) -> 0 | AQ219: =ABS((AQ207-AQ208)*AQ204+AP210-AQ210) + ABS(AP212+AQ208*AQ204-AQ211-AQ212) -> 0 | AR219: =ABS((AR207-AR208)*AR204+AQ210-AR210) + ABS(AQ212+AR208*AR204-AR211-AR212) -> 0
B221: =MAX($B$166:B220)+1 -> 4 | C221: =INDEX(ut_CapEx_Dir,B221,1) -> Лицензирование | D221: =H224 -> 37500 | E221: =INDEX(ut_CapEx_Dir,B221,2) -> USD
J222: currency | K222: =IFERROR(MATCH(CONCATENATE(E221,"/",ut_LCU),ut_Exchange_Rates_Headers,0),0) -> 7 | L222: row | S222: курс валюты | T222: =IFERROR(INDEX(ut_Exchange_Rates,$K222,ut_Counter),0) -> 60.63 | U222: 61.8 | V222: 63.02 | W222: 64.26 | X222: 65.5 | Y222: 66.74 | Z222: 67.95 | AA222: 69.1 | AB222: 69.1 | AC222: 69.1 | AD222: 69.1 | AE222: 69.1 | AF222: 69.1 | AG222: 69.1 | AH222: 69.1 | AI222: 69.1 | AJ222: 69.1 | AK222: 69.1 | AL222: 69.1 | AM222: 69.1 | AN222: 69.1 | AO222: 69.1 | AP222: 69.1 | AQ222: 69.1 | AR222: 69.1
C223: Ставка НДС | T223: =ut_VAT_Rate_Inputs -> 0.2 | U223: 0.2 | V223: 0.2 | W223: 0.2 | X223: 0.2 | Y223: 0.2 | Z223: 0.2 | AA223: 0.2 | AB223: 0.2 | AC223: 0.2 | AD223: 0.2 | AE223: 0.2 | AF223: 0.2 | AG223: 0.2 | AH223: 0.2 | AI223: 0.2 | AJ223: 0.2 | AK223: 0.2 | AL223: 0.2 | AM223: 0.2 | AN223: 0.2 | AO223: 0.2 | AP223: 0.2 | AQ223: 0.2 | AR223: 0.2
C224: Финансирование капитальных затрат | D224: =ut_Digits&E221 -> тыс. USD | E224: без НДС | H224: =SUM(T224:AR224)+S228 -> 37500 | J224: graph | K224: =E221 -> USD | M224: =CONCATENATE(K224,"/",ut_LCU) -> USD/RUB | T224: =INDEX(ut_CapEx_Inputs,$B221,T$2)/(1+T223) -> 0 | U224: 0 | V224: 0 | W224: 0 | X224: 37500 | Y224: 0 | Z224: 0 | AA224: 0 | AB224: 0 | AC224: 0 | AD224: 0 | AE224: 0 | AF224: 0 | AG224: 0 | AH224: 0 | AI224: 0 | AJ224: 0 | AK224: 0 | AL224: 0 | AM224: 0 | AN224: 0 | AO224: 0 | AP224: 0 | AQ224: 0 | AR224: 0
C225: График строительства (освоение) | D225: =ut_Digits&E221 -> тыс. USD | E225: без НДС | H225: =SUM(T225:AR225)+S228 -> 37500 | J225: graph | T225: =T224 -> 0 | U225: 0 | V225: 0 | W225: 0 | X225: 37500 | Y225: 0 | Z225: 0 | AA225: 0 | AB225: 0 | AC225: 0 | AD225: 0 | AE225: 0 | AF225: 0 | AG225: 0 | AH225: 0 | AI225: 0 | AJ225: 0 | AK225: 0 | AL225: 0 | AM225: 0 | AN225: 0 | AO225: 0 | AP225: 0 | AQ225: 0 | AR225: 0
C226: Ввод в эксплуатацию | D226: =ut_Digits&E221 -> тыс. USD | E226: без НДС | H226: =SUM(T226:AR226) -> 37500 | J226: graph | T226: =SUM($T225:T225)*AND(T$5=0,S$5=1) -> 0 | U226: =SUM($T225:U225)*AND(U$5=0,T$5=1) -> 0 | V226: =SUM($T225:V225)*AND(V$5=0,U$5=1) -> 0 | W226: =SUM($T225:W225)*AND(W$5=0,V$5=1) -> 0 | X226: =SUM($T225:X225)*AND(X$5=0,W$5=1) -> 0 | Y226: =SUM($T225:Y225)*AND(Y$5=0,X$5=1) -> 37500 | Z226: =SUM($T225:Z225)*AND(Z$5=0,Y$5=1) -> 0 | AA226: =SUM($T225:AA225)*AND(AA$5=0,Z$5=1) -> 0 | AB226: =SUM($T225:AB225)*AND(AB$5=0,AA$5=1) -> 0 | AC226: =SUM($T225:AC225)*AND(AC$5=0,AB$5=1) -> 0 | AD226: =SUM($T225:AD225)*AND(AD$5=0,AC$5=1) -> 0 | AE226: =SUM($T225:AE225)*AND(AE$5=0,AD$5=1) -> 0 | AF226: =SUM($T225:AF225)*AND(AF$5=0,AE$5=1) -> 0 | AG226: =SUM($T225:AG225)*AND(AG$5=0,AF$5=1) -> 0 | AH226: =SUM($T225:AH225)*AND(AH$5=0,AG$5=1) -> 0 | AI226: =SUM($T225:AI225)*AND(AI$5=0,AH$5=1) -> 0 | AJ226: =SUM($T225:AJ225)*AND(AJ$5=0,AI$5=1) -> 0 | AK226: =SUM($T225:AK225)*AND(AK$5=0,AJ$5=1) -> 0 | AL226: =SUM($T225:AL225)*AND(AL$5=0,AK$5=1) -> 0 | AM226: =SUM($T225:AM225)*AND(AM$5=0,AL$5=1) -> 0 | AN226: =SUM($T225:AN225)*AND(AN$5=0,AM$5=1) -> 0 | AO226: =SUM($T225:AO225)*AND(AO$5=0,AN$5=1) -> 0 | AP226: =SUM($T225:AP225)*AND(AP$5=0,AO$5=1) -> 0 | AQ226: =SUM($T225:AQ225)*AND(AQ$5=0,AP$5=1) -> 0 | AR226: =SUM($T225:AR225)*AND(AR$5=0,AQ$5=1) -> 0
S227: входящие данные
C228: Незавершенное строительство, конец периода | D228: =ut_Digits&ut_LCU -> тыс. RUB | G228: ставка | S228: =0 -> 0 | T228: =S228+(T225-T226)*T222 -> 0 | U228: =T228+(U225-U226)*U222 -> 0 | V228: =U228+(V225-V226)*V222 -> 0 | W228: =V228+(W225-W226)*W222 -> 0 | X228: =W228+(X225-X226)*X222 -> 2456250 | Y228: =X228+(Y225-Y226)*Y222 -> -46500 | Z228: =Y228+(Z225-Z226)*Z222 -> -46500 | AA228: =Z228+(AA225-AA226)*AA222 -> -46500 | AB228: =AA228+(AB225-AB226)*AB222 -> -46500 | AC228: =AB228+(AC225-AC226)*AC222 -> -46500 | AD228: =AC228+(AD225-AD226)*AD222 -> -46500 | AE228: =AD228+(AE225-AE226)*AE222 -> -46500 | AF228: =AE228+(AF225-AF226)*AF222 -> -46500 | AG228: =AF228+(AG225-AG226)*AG222 -> -46500 | AH228: =AG228+(AH225-AH226)*AH222 -> -46500 | AI228: =AH228+(AI225-AI226)*AI222 -> -46500 | AJ228: =AI228+(AJ225-AJ226)*AJ222 -> -46500 | AK228: =AJ228+(AK225-AK226)*AK222 -> -46500 | AL228: =AK228+(AL225-AL226)*AL222 -> -46500 | AM228: =AL228+(AM225-AM226)*AM222 -> -46500 | AN228: =AM228+(AN225-AN226)*AN222 -> -46500 | AO228: =AN228+(AO225-AO226)*AO222 -> -46500 | AP228: =AO228+(AP225-AP226)*AP222 -> -46500 | AQ228: =AP228+(AQ225-AQ226)*AQ222 -> -46500 | AR228: =AQ228+(AR225-AR226)*AR222 -> -46500
C229: Амортизация за период | D229: =ut_Digits&ut_LCU -> тыс. RUB | G229: =IFERROR(1/INDEX(ut_CapEx_Dir,B221,3),0) -> 0.001 | H229: =SUM(T229:AR229) -> 46668.75 | S229: =0 -> 0 | T229: =MIN(S232,$G229*SUMPRODUCT($T225:T225,$T222:T222)) -> 0 | U229: =MIN(T232,$G229*SUMPRODUCT($T225:U225,$T222:U222)) -> 0 | V229: =MIN(U232,$G229*SUMPRODUCT($T225:V225,$T222:V222)) -> 0 | W229: =MIN(V232,$G229*SUMPRODUCT($T225:W225,$T222:W222)) -> 0 | X229: =MIN(W232,$G229*SUMPRODUCT($T225:X225,$T222:X222)) -> 0 | Y229: =MIN(X232,$G229*SUMPRODUCT($T225:Y225,$T222:Y222)) -> 0 | Z229: =MIN(Y232,$G229*SUMPRODUCT($T225:Z225,$T222:Z222)) -> 2456.25 | AA229: =MIN(Z232,$G229*SUMPRODUCT($T225:AA225,$T222:AA222)) -> 2456.25 | AB229: =MIN(AA232,$G229*SUMPRODUCT($T225:AB225,$T222:AB222)) -> 2456.25 | AC229: =MIN(AB232,$G229*SUMPRODUCT($T225:AC225,$T222:AC222)) -> 2456.25 | AD229: =MIN(AC232,$G229*SUMPRODUCT($T225:AD225,$T222:AD222)) -> 2456.25 | AE229: =MIN(AD232,$G229*SUMPRODUCT($T225:AE225,$T222:AE222)) -> 2456.25 | AF229: =MIN(AE232,$G229*SUMPRODUCT($T225:AF225,$T222:AF222)) -> 2456.25 | AG229: =MIN(AF232,$G229*SUMPRODUCT($T225:AG225,$T222:AG222)) -> 2456.25 | AH229: =MIN(AG232,$G229*SUMPRODUCT($T225:AH225,$T222:AH222)) -> 2456.25 | AI229: =MIN(AH232,$G229*SUMPRODUCT($T225:AI225,$T222:AI222)) -> 2456.25 | AJ229: =MIN(AI232,$G229*SUMPRODUCT($T225:AJ225,$T222:AJ222)) -> 2456.25 | AK229: =MIN(AJ232,$G229*SUMPRODUCT($T225:AK225,$T222:AK222)) -> 2456.25 | AL229: =MIN(AK232,$G229*SUMPRODUCT($T225:AL225,$T222:AL222)) -> 2456.25 | AM229: =MIN(AL232,$G229*SUMPRODUCT($T225:AM225,$T222:AM222)) -> 2456.25 | AN229: =MIN(AM232,$G229*SUMPRODUCT($T225:AN225,$T222:AN222)) -> 2456.25 | AO229: =MIN(AN232,$G229*SUMPRODUCT($T225:AO225,$T222:AO222)) -> 2456.25 | AP229: =MIN(AO232,$G229*SUMPRODUCT($T225:AP225,$T222:AP222)) -> 2456.25 | AQ229: =MIN(AP232,$G229*SUMPRODUCT($T225:AQ225,$T222:AQ222)) -> 2456.25 | AR229: =MIN(AQ232,$G229*SUMPRODUCT($T225:AR225,$T222:AR222)) -> 2456.25
C230: Остаточная стоимость, конец периода | D230: =ut_Digits&ut_LCU -> тыс. RUB | S230: =0 -> 0 | T230: =S230+T226*T222-T229 -> 0 | U230: =T230+U226*U222-U229 -> 0 | V230: =U230+V226*V222-V229 -> 0 | W230: =V230+W226*W222-W229 -> 0 | X230: =W230+X226*X222-X229 -> 0 | Y230: =X230+Y226*Y222-Y229 -> 2502750 | Z230: =Y230+Z226*Z222-Z229 -> 2500293.75 | AA230: =Z230+AA226*AA222-AA229 -> 2497837.5 | AB230: =AA230+AB226*AB222-AB229 -> 2495381.25 | AC230: =AB230+AC226*AC222-AC229 -> 2492925 | AD230: =AC230+AD226*AD222-AD229 -> 2490468.75 | AE230: =AD230+AE226*AE222-AE229 -> 2488012.5 | AF230: =AE230+AF226*AF222-AF229 -> 2485556.25 | AG230: =AF230+AG226*AG222-AG229 -> 2483100 | AH230: =AG230+AH226*AH222-AH229 -> 2480643.75 | AI230: =AH230+AI226*AI222-AI229 -> 2478187.5 | AJ230: =AI230+AJ226*AJ222-AJ229 -> 2475731.25 | AK230: =AJ230+AK226*AK222-AK229 -> 2473275 | AL230: =AK230+AL226*AL222-AL229 -> 2470818.75 | AM230: =AL230+AM226*AM222-AM229 -> 2468362.5 | AN230: =AM230+AN226*AN222-AN229 -> 2465906.25 | AO230: =AN230+AO226*AO222-AO229 -> 2463450 | AP230: =AO230+AP226*AP222-AP229 -> 2460993.75 | AQ230: =AP230+AQ226*AQ222-AQ229 -> 2458537.5 | AR230: =AQ230+AR226*AR222-AR229 -> 2456081.25
C231: Налоговая амортизация за период | D231: =ut_Digits&ut_LCU -> тыс. RUB | H231: =SUM(T231:AR231) -> 46668.75 | K231: type | L231: property tax | S231: =0 -> 0 | T231: =T229 -> 0 | U231: 0 | V231: 0 | W231: 0 | X231: 0 | Y231: 0 | Z231: 2456.25 | AA231: 2456.25 | AB231: 2456.25 | AC231: 2456.25 | AD231: 2456.25 | AE231: 2456.25 | AF231: 2456.25 | AG231: 2456.25 | AH231: 2456.25 | AI231: 2456.25 | AJ231: 2456.25 | AK231: 2456.25 | AL231: 2456.25 | AM231: 2456.25 | AN231: 2456.25 | AO231: 2456.25 | AP231: 2456.25 | AQ231: 2456.25 | AR231: 2456.25
C232: Налоговая остаточная стоимость, конец периода | D232: =ut_Digits&ut_LCU -> тыс. RUB | K232: =INDEX(ut_CapEx_Dir,B221,4) -> НМА | L232: =INDEX(ut_CapEx_Dir,B221,5) -> нет | S232: =0 -> 0 | T232: =T230 -> 0 | U232: 0 | V232: 0 | W232: 0 | X232: 0 | Y232: 2502750 | Z232: 2500293.75 | AA232: 2497837.5 | AB232: 2495381.25 | AC232: 2492925 | AD232: 2490468.75 | AE232: 2488012.5 | AF232: 2485556.25 | AG232: 2483100 | AH232: 2480643.75 | AI232: 2478187.5 | AJ232: 2475731.25 | AK232: 2473275 | AL232: 2470818.75 | AM232: 2468362.5 | AN232: 2465906.25 | AO232: 2463450 | AP232: 2460993.75 | AQ232: 2458537.5 | AR232: 2456081.25
D233: с НДС | H233: =SUM(T233:AR233) -> 2947500 | T233: =T224*(1+T223)*T222 -> 0 | U233: =U224*(1+U223)*U222 -> 0 | V233: 0 | W233: 0 | X233: 2947500 | Y233: 0 | Z233: 0 | AA233: 0 | AB233: 0 | AC233: 0 | AD233: 0 | AE233: 0 | AF233: 0 | AG233: 0 | AH233: 0 | AI233: 0 | AJ233: 0 | AK233: 0 | AL233: 0 | AM233: 0 | AN233: 0 | AO233: 0 | AP233: 0 | AQ233: 0 | AR233: 0
D234: НДС | H234: =SUM(T234:AR234) -> 491250 | L234: VAT | T234: =T233-T224*T222 -> 0 | U234: =U233-U224*U222 -> 0 | V234: 0 | W234: 0 | X234: 491250 | Y234: 0 | Z234: 0 | AA234: 0 | AB234: 0 | AC234: 0 | AD234: 0 | AE234: 0 | AF234: 0 | AG234: 0 | AH234: 0 | AI234: 0 | AJ234: 0 | AK234: 0 | AL234: 0 | AM234: 0 | AN234: 0 | AO234: 0 | AP234: 0 | AQ234: 0 | AR234: 0
D235: сальдо авансирования | L235: advance | T235: =(SUM($T225:T225)-SUM($T224:T224))*T222 -> 0 | U235: =(SUM($T225:U225)-SUM($T224:U224))*U222 -> 0 | V235: =(SUM($T225:V225)-SUM($T224:V224))*V222 -> 0 | W235: =(SUM($T225:W225)-SUM($T224:W224))*W222 -> 0 | X235: =(SUM($T225:X225)-SUM($T224:X224))*X222 -> 0 | Y235: =(SUM($T225:Y225)-SUM($T224:Y224))*Y222 -> 0 | Z235: =(SUM($T225:Z225)-SUM($T224:Z224))*Z222 -> 0 | AA235: =(SUM($T225:AA225)-SUM($T224:AA224))*AA222 -> 0 | AB235: =(SUM($T225:AB225)-SUM($T224:AB224))*AB222 -> 0 | AC235: =(SUM($T225:AC225)-SUM($T224:AC224))*AC222 -> 0 | AD235: =(SUM($T225:AD225)-SUM($T224:AD224))*AD222 -> 0 | AE235: =(SUM($T225:AE225)-SUM($T224:AE224))*AE222 -> 0 | AF235: =(SUM($T225:AF225)-SUM($T224:AF224))*AF222 -> 0 | AG235: =(SUM($T225:AG225)-SUM($T224:AG224))*AG222 -> 0 | AH235: =(SUM($T225:AH225)-SUM($T224:AH224))*AH222 -> 0 | AI235: =(SUM($T225:AI225)-SUM($T224:AI224))*AI222 -> 0 | AJ235: =(SUM($T225:AJ225)-SUM($T224:AJ224))*AJ222 -> 0 | AK235: =(SUM($T225:AK225)-SUM($T224:AK224))*AK222 -> 0 | AL235: =(SUM($T225:AL225)-SUM($T224:AL224))*AL222 -> 0 | AM235: =(SUM($T225:AM225)-SUM($T224:AM224))*AM222 -> 0 | AN235: =(SUM($T225:AN225)-SUM($T224:AN224))*AN222 -> 0 | AO235: =(SUM($T225:AO225)-SUM($T224:AO224))*AO222 -> 0 | AP235: =(SUM($T225:AP225)-SUM($T224:AP224))*AP222 -> 0 | AQ235: =(SUM($T225:AQ225)-SUM($T224:AQ224))*AQ222 -> 0 | AR235: =(SUM($T225:AR225)-SUM($T224:AR224))*AR222 -> 0
C237: Проверка согласованности остатков и потоков | F237: =SUM(T237:AR237) -> 0 | O237: =C237&"_"&J237&"_"&K237 -> Проверка согласованности остатков и потоков__ | Q237: =IF(SUM(S237:AR237)>ut_check_limit,1,0) -> 0 | S237: =ABS(SUM(T224:AR224)-SUM(T225:AR225)) -> 0 | T237: =ABS((T225-T226)*T222+S228-T228) + ABS(S230+T226*T222-T229-T230) -> 0 | U237: =ABS((U225-U226)*U222+T228-U228) + ABS(T230+U226*U222-U229-U230) -> 0 | V237: =ABS((V225-V226)*V222+U228-V228) + ABS(U230+V226*V222-V229-V230) -> 0 | W237: =ABS((W225-W226)*W222+V228-W228) + ABS(V230+W226*W222-W229-W230) -> 0 | X237: =ABS((X225-X226)*X222+W228-X228) + ABS(W230+X226*X222-X229-X230) -> 0 | Y237: =ABS((Y225-Y226)*Y222+X228-Y228) + ABS(X230+Y226*Y222-Y229-Y230) -> 0 | Z237: =ABS((Z225-Z226)*Z222+Y228-Z228) + ABS(Y230+Z226*Z222-Z229-Z230) -> 0 | AA237: =ABS((AA225-AA226)*AA222+Z228-AA228) + ABS(Z230+AA226*AA222-AA229-AA230) -> 0 | AB237: =ABS((AB225-AB226)*AB222+AA228-AB228) + ABS(AA230+AB226*AB222-AB229-AB230) -> 0 | AC237: =ABS((AC225-AC226)*AC222+AB228-AC228) + ABS(AB230+AC226*AC222-AC229-AC230) -> 0 | AD237: =ABS((AD225-AD226)*AD222+AC228-AD228) + ABS(AC230+AD226*AD222-AD229-AD230) -> 0 | AE237: =ABS((AE225-AE226)*AE222+AD228-AE228) + ABS(AD230+AE226*AE222-AE229-AE230) -> 0 | AF237: =ABS((AF225-AF226)*AF222+AE228-AF228) + ABS(AE230+AF226*AF222-AF229-AF230) -> 0 | AG237: =ABS((AG225-AG226)*AG222+AF228-AG228) + ABS(AF230+AG226*AG222-AG229-AG230) -> 0 | AH237: =ABS((AH225-AH226)*AH222+AG228-AH228) + ABS(AG230+AH226*AH222-AH229-AH230) -> 0 | AI237: =ABS((AI225-AI226)*AI222+AH228-AI228) + ABS(AH230+AI226*AI222-AI229-AI230) -> 0 | AJ237: =ABS((AJ225-AJ226)*AJ222+AI228-AJ228) + ABS(AI230+AJ226*AJ222-AJ229-AJ230) -> 0 | AK237: =ABS((AK225-AK226)*AK222+AJ228-AK228) + ABS(AJ230+AK226*AK222-AK229-AK230) -> 0 | AL237: =ABS((AL225-AL226)*AL222+AK228-AL228) + ABS(AK230+AL226*AL222-AL229-AL230) -> 0 | AM237: =ABS((AM225-AM226)*AM222+AL228-AM228) + ABS(AL230+AM226*AM222-AM229-AM230) -> 0 | AN237: =ABS((AN225-AN226)*AN222+AM228-AN228) + ABS(AM230+AN226*AN222-AN229-AN230) -> 0 | AO237: =ABS((AO225-AO226)*AO222+AN228-AO228) + ABS(AN230+AO226*AO222-AO229-AO230) -> 0 | AP237: =ABS((AP225-AP226)*AP222+AO228-AP228) + ABS(AO230+AP226*AP222-AP229-AP230) -> 0 | AQ237: =ABS((AQ225-AQ226)*AQ222+AP228-AQ228) + ABS(AP230+AQ226*AQ222-AQ229-AQ230) -> 0 | AR237: =ABS((AR225-AR226)*AR222+AQ228-AR228) + ABS(AQ230+AR226*AR222-AR229-AR230) -> 0
C241: Граница блоков по группам капитальных затрат
C242: Проверка согласованности остатков и потоков | F242: =SUM(T242:AR242) -> 0 | O242: =C242&"_"&J242&"_"&K242 -> Проверка согласованности остатков и потоков__ | Q242: =IF(SUM(S242:AR242)>ut_check_limit,1,0) -> 0 | S242: =SUMIFS(S167:S240,$C$167:$C$240,$C$242)*Service!S95 -> 0 | T242: =SUMIFS(T167:T240,$C$167:$C$240,$C$242)*ut_history_check -> 0 | U242: 0 | V242: 0 | W242: 0 | X242: 0 | Y242: 0 | Z242: 0 | AA242: 0 | AB242: =SUMIFS(AB167:AB240,$C$167:$C$240,$C$242)*ut_history_check -> 0 | AC242: 0 | AD242: 0 | AE242: 0 | AF242: 0 | AG242: 0 | AH242: 0 | AI242: 0 | AJ242: 0 | AK242: 0 | AL242: 0 | AM242: 0 | AN242: 0 | AO242: 0 | AP242: 0 | AQ242: 0 | AR242: =SUMIFS(AR167:AR240,$C$167:$C$240,$C$242)*ut_history_check -> 0
... 334 more rows

Sheet BS, PL, CF+RM
H1: Номер периода | Q1: template | T1: =ut_Counter -> 1 | U1: 2 | V1: 3 | W1: 4 | X1: 5 | Y1: 6 | Z1: 7 | AA1: 8 | AB1: 9 | AC1: 10 | AD1: 11 | AE1: 12 | AF1: 13 | AG1: 14 | AH1: 15 | AI1: 16 | AJ1: 17 | AK1: 18 | AL1: 19 | AM1: 20 | AN1: 21 | AO1: 22 | AP1: 23 | AQ1: 24 | AR1: 25 | AS1: ut_Counter
H2: Начало периода | T2: =ut_Beginning_of_Period -> 2023-01-01 | U2: 2024-01-01 | V2: 2025-01-01 | W2: 2026-01-01 | X2: 2027-01-01 | Y2: 2028-01-01 | Z2: 2029-01-01 | AA2: 2030-01-01 | AB2: 2031-01-01 | AC2: 2032-01-01 | AD2: 2033-01-01 | AE2: 2034-01-01 | AF2: 2035-01-01 | AG2: 2036-01-01 | AH2: 2037-01-01 | AI2: 2038-01-01 | AJ2: 2039-01-01 | AK2: 2040-01-01 | AL2: 2041-01-01 | AM2: 2042-01-01 | AN2: 2043-01-01 | AO2: 2044-01-01 | AP2: 2045-01-01 | AQ2: 2046-01-01 | AR2: 2047-01-01 | AS2: ut_Beginning_of_Period
H3: Окончание периода | T3: =ut_End_of_Period -> 2023-12-31 | U3: 2024-12-31 | V3: 2025-12-31 | W3: 2026-12-31 | X3: 2027-12-31 | Y3: 2028-12-31 | Z3: 2029-12-31 | AA3: 2030-12-31 | AB3: 2031-12-31 | AC3: 2032-12-31 | AD3: 2033-12-31 | AE3: 2034-12-31 | AF3: 2035-12-31 | AG3: 2036-12-31 | AH3: 2037-12-31 | AI3: 2038-12-31 | AJ3: 2039-12-31 | AK3: 2040-12-31 | AL3: 2041-12-31 | AM3: 2042-12-31 | AN3: 2043-12-31 | AO3: 2044-12-31 | AP3: 2045-12-31 | AQ3: 2046-12-31 | AR3: 2047-12-31 | AS3: ut_End_of_Period
H4: Период строительства | T4: =ut_Construction_Period -> 1 | U4: 1 | V4: 1 | W4: 1 | X4: 1 | Y4: 0 | Z4: 0 | AA4: 0 | AB4: 0 | AC4: 0 | AD4: 0 | AE4: 0 | AF4: 0 | AG4: 0 | AH4: 0 | AI4: 0 | AJ4: 0 | AK4: 0 | AL4: 0 | AM4: 0 | AN4: 0 | AO4: 0 | AP4: 0 | AQ4: 0 | AR4: 0 | AS4: ut_Construction_Period
H5: Период запуска | T5: =ut_RampUp_Period -> 0 | U5: 0 | V5: 0 | W5: 0 | X5: 0 | Y5: 1 | Z5: 1 | AA5: 1 | AB5: 0 | AC5: 0 | AD5: 0 | AE5: 0 | AF5: 0 | AG5: 0 | AH5: 0 | AI5: 0 | AJ5: 0 | AK5: 0 | AL5: 0 | AM5: 0 | AN5: 0 | AO5: 0 | AP5: 0 | AQ5: 0 | AR5: 0 | AS5: ut_RampUp_Period
H6: Операционный период | Q6: source | T6: =ut_Operation_Period -> 0 | U6: 0 | V6: 0 | W6: 0 | X6: 0 | Y6: 0 | Z6: 0 | AA6: 0 | AB6: 1 | AC6: 1 | AD6: 1 | AE6: 1 | AF6: 1 | AG6: 1 | AH6: 1 | AI6: 1 | AJ6: 1 | AK6: 1 | AL6: 1 | AM6: 1 | AN6: 1 | AO6: 1 | AP6: 1 | AQ6: 1 | AR6: 1 | AS6: ut_Operation_Period
C7: CF
C9: OpCF | D9: =ut_Digits&ut_LCU -> тыс. RUB | H9: =SUM(ut_OpCF) -> 63222117.94 | T9: =T40 -> -241965.26 | U9: -242202.02 | V9: -235444.74 | W9: =W40 -> -238064.28 | X9: -235318.12 | Y9: 2141897.737 | Z9: 3070565.514 | AA9: 2788787.681 | AB9: =AB40 -> 6471072.212 | AC9: 7079549.696 | AD9: 6472123.471 | AE9: 7606383.11 | AF9: 5377372.134 | AG9: 2216164.069 | AH9: 3374596.99 | AI9: 1678805.751 | AJ9: 3546178.303 | AK9: 4569214.161 | AL9: 2431494.027 | AM9: 1448812.758 | AN9: 2713592.043 | AO9: 2233581.835 | AP9: 976825.6335 | AQ9: -1591280.804 | AR9: =AR40 -> -190623.959 | AS9: ut_OpCF
C10: Операционные доходы | D10: =ut_Digits&ut_LCU -> тыс. RUB | E10: без НДС | H10: =SUM(T10:AR10) -> 712123064.8 | I10: + | T10: =SUM(T11:T14) -> 0 | U10: =SUM(U11:U14) -> 0 | V10: 0 | W10: =SUM(W11:W14) -> 0 | X10: 0 | Y10: 12153492.58 | Z10: 12968035.08 | AA10: 12902582.6 | AB10: =SUM(AB11:AB14) -> 37529997.87 | AC10: 37311763.77 | AD10: 37419840.87 | AE10: 39617892.12 | AF10: 37727266.73 | AG10: 35223653.59 | AH10: 37329406.54 | AI10: 36368264.02 | AJ10: 38910610.71 | AK10: 41750480.46 | AL10: 40195894.92 | AM10: 40100920.69 | AN10: 42804286.85 | AO10: 43177455.82 | AP10: 42692403.83 | AQ10: 41332250.79 | AR10: =SUM(AR11:AR14) -> 44606564.98 | AS10: ut_Revenue_Total_CF
B11: =B10+1 -> 1 | C11: =INDEX(ut_Products_Dom_Dir,$B11,1) -> Продажи покупателю 1 | D11: =ut_Digits&ut_LCU -> тыс. RUB | E11: без НДС | H11: =SUM(T11:AR11) -> 233246000.4 | T11: =INDEX(ut_Revenue_Total_Inputs,$B11,T$1) -> 0 | U11: 0 | V11: 0 | W11: 0 | X11: 0 | Y11: 6366788.897 | Z11: 6793499.17 | AA11: 6759210.909 | AB11: 19660650.81 | AC11: 19546325.61 | AD11: 19602943.41 | AE11: 20754425.44 | AF11: 19763993.05 | AG11: 8287918.492 | AH11: 8783389.774 | AI11: 8557238.593 | AJ11: =INDEX(ut_Revenue_Total_Inputs,$B11,AJ$1) -> 9155437.815 | AK11: 9823642.462 | AL11: 9457857.629 | AM11: 9435510.75 | AN11: 10071596.91 | AO11: 10159401.37 | AP11: 10045271.49 | AQ11: 9725235.48 | AR11: =INDEX(ut_Revenue_Total_Inputs,$B11,AR$1) -> 10495662.35
B12: =B11+1 -> 2 | C12: =INDEX(ut_Products_Dom_Dir,$B12,1) -> Продажи покупателю 2 | D12: =ut_Digits&ut_LCU -> тыс. RUB | E12: без НДС | H12: =SUM(T12:AR12) -> 271727965.8 | T12: 0 | U12: 0 | V12: 0 | W12: 0 | X12: 0 | Y12: 4110115.943 | Z12: 4385581.131 | AA12: 4363446.154 | AB12: 12692042.35 | AC12: 12618239.09 | AD12: 12654789.03 | AE12: 13398134.65 | AF12: 12758755.51 | AG12: 14158527.42 | AH12: 15004957.53 | AI12: 14618615.93 | AJ12: 15640539.6 | AK12: 16782055.87 | AL12: 16157173.45 | AM12: 16118997.53 | AN12: 17205644.71 | AO12: 17355644 | AP12: 17160672.13 | AQ12: 16613943.94 | AR12: 17930089.84
B13: =B12+1 -> 3 | C13: =INDEX(ut_Products_Dom_Dir,$B13,1) -> Продажи покупателю 3 | D13: =ut_Digits&ut_LCU -> тыс. RUB | E13: без НДС | H13: =SUM(T13:AR13) -> 207149098.6 | T13: 0 | U13: 0 | V13: 0 | W13: 0 | X13: 0 | Y13: 1676587.743 | Z13: 1788954.781 | AA13: 1779925.539 | AB13: 5177304.713 | AC13: 5147199.077 | AD13: 5162108.432 | AE13: 5465332.033 | AF13: 5204518.169 | AG13: 12777207.68 | AH13: 13541059.23 | AI13: 13192409.5 | AJ13: 14114633.3 | AK13: 15144782.13 | AL13: 14580863.85 | AM13: 14546412.41 | AN13: 15527045.23 | AO13: 15662410.44 | AP13: 15486460.21 | AQ13: 14993071.36 | AR13: 16180812.79
C16: НДС полученный в составе опер доходов | D16: =ut_Digits&ut_LCU -> тыс. RUB | H16: =SUM(T16:AR16) -> 142424613 | T16: =ut_Revenue_VAT -> 0 | U16: 0 | V16: 0 | W16: 0 | X16: 0 | Y16: 2430698.517 | Z16: 2593607.017 | AA16: 2580516.52 | AB16: 7505999.575 | AC16: 7462352.754 | AD16: 7483968.174 | AE16: 7923578.424 | AF16: 7545453.346 | AG16: 7044730.718 | AH16: 7465881.308 | AI16: 7273652.804 | AJ16: 7782122.143 | AK16: 8350096.093 | AL16: 8039178.985 | AM16: 8020184.137 | AN16: 8560857.37 | AO16: 8635491.163 | AP16: 8538480.765 | AQ16: 8266450.158 | AR16: 8921312.995
C17: Внереализационные доходы | D17: =ut_Digits&ut_LCU -> тыс. RUB | E17: без НДС | H17: =SUM(T17:AR17) -> 0 | T17: =ut_Other_Income -> 0 | U17: 0 | V17: 0 | W17: 0 | X17: 0 | Y17: 0 | Z17: 0 | AA17: 0 | AB17: 0 | AC17: 0 | AD17: 0 | AE17: 0 | AF17: 0 | AG17: 0 | AH17: 0 | AI17: 0 | AJ17: 0 | AK17: 0 | AL17: 0 | AM17: 0 | AN17: 0 | AO17: 0 | AP17: 0 | AQ17: 0 | AR17: 0
C18: НДС полученный в составе внеопер доходов | D18: =ut_Digits&ut_LCU -> тыс. RUB | T18: =ut_NonOpC_Income_VAT -> 0 | U18: 0 | V18: 0 | W18: 0 | X18: 0 | Y18: 0 | Z18: 0 | AA18: 0 | AB18: 0 | AC18: 0 | AD18: 0 | AE18: 0 | AF18: 0 | AG18: 0 | AH18: 0 | AI18: 0 | AJ18: 0 | AK18: 0 | AL18: 0 | AM18: 0 | AN18: 0 | AO18: 0 | AP18: 0 | AQ18: 0 | AR18: 0
C19: НДС OpEx - возмещение | D19: =ut_Digits&ut_LCU -> тыс. RUB | H19: =SUM(T19:AR19) -> 0 | T19: =ut_OpEx_VAT_receive -> 0 | U19: 0 | V19: 0 | W19: 0 | X19: 0 | Y19: 0 | Z19: 0 | AA19: 0 | AB19: 0 | AC19: 0 | AD19: 0 | AE19: 0 | AF19: 0 | AG19: 0 | AH19: 0 | AI19: 0 | AJ19: 0 | AK19: 0 | AL19: 0 | AM19: 0 | AN19: 0 | AO19: 0 | AP19: 0 | AQ19: 0 | AR19: 0
C20: Сальдо оборотного капитала | D20: =ut_Digits&ut_LCU -> тыс. RUB | F20: on | H20: =SUM(T20:AR20) -> -3253058.317 | T20: =ut_NWC_delta*($F20="on") -> 0 | U20: 0 | V20: 0 | W20: 0 | X20: 0 | Y20: -1049440.74 | Z20: -78838.11074 | AA20: 21912.80535 | AB20: -2019376.247 | AC20: 45568.70423 | AD20: 22518.83871 | AE20: -223526.0704 | AF20: 263366.1687 | AG20: 339840.6373 | AH20: -226799.7592 | AI20: 146377.0884 | AJ20: -276244.3297 | AK20: -274057.4783 | AL20: 219489.5563 | AM20: 70313.75265 | AN20: -254523.5366 | AO20: -7113.055711 | AP20: 105152.1871 | AQ20: 244022.454 | AR20: -321701.1819
C22: Операционные расходы | D22: =ut_Digits&ut_LCU -> тыс. RUB | E22: без НДС | H22: =SUM(T22:AR22) -> -643592308.2 | I22: - | T22: =SUM(T23:T32) -> -224955.1833 | U22: =SUM(U23:U32) -> -225062.8833 | V22: -218961.4167 | W22: =SUM(W23:W32) -> -220629.1667 | X22: -218027.1 | Y22: -9457933.1 | Z22: -9868289.125 | AA22: -10126781.35 | AB22: =SUM(AB23:AB32) -> -29874026.12 | AC22: -30261378.26 | AD22: -30953905.52 | AE22: -31868976.31 | AF22: -32499173.34 | AG22: -33200871.51 | AH22: -33791513.72 | AI22: -34367547.34 | AJ22: -35047206.53 | AK22: -36484978.01 | AL22: -37080162.83 | AM22: -38274886.1 | AN22: -39762284.83 | AO22: -40535476.35 | AP22: -41448671.05 | AQ22: -42999287.41 | AR22: =SUM(AR23:AR32) -> -44581323.6
C23: =Calculations!C425 -> Постоянные операционные расходы | D23: =ut_Digits&ut_LCU -> тыс. RUB | E23: без НДС | H23: =SUM(T23:AR23) -> -11169875.52 | T23: =-Calculations!T425 -> -224955.1833 | U23: =-Calculations!U425 -> -225062.8833 | V23: =-Calculations!V425 -> -218961.4167 | W23: =-Calculations!W425 -> -220629.1667 | X23: =-Calculations!X425 -> -218027.1 | Y23: =-Calculations!Y425 -> -511544.45 | Z23: =-Calculations!Z425 -> -512350.8333 | AA23: =-Calculations!AA425 -> -494947.9833 | AB23: =-Calculations!AB425 -> -500345.1 | AC23: =-Calculations!AC425 -> -511762.95 | AD23: =-Calculations!AD425 -> -492628.5167 | AE23: =-Calculations!AE425 -> -513934.05 | AF23: =-Calculations!AF425 -> -495725 | AG23: =-Calculations!AG425 -> -516257.95 | AH23: =-Calculations!AH425 -> -504025.8167 | AI23: =-Calculations!AI425 -> -501910.65 | AJ23: =-Calculations!AJ425 -> -501496.5833 | AK23: =-Calculations!AK425 -> -489005.6667 | AL23: =-Calculations!AL425 -> -492782.3833 | AM23: =-Calculations!AM425 -> -515729.3667 | AN23: =-Calculations!AN425 -> -495483.1167 | AO23: =-Calculations!AO425 -> -502384.85 | AP23: =-Calculations!AP425 -> -499474.4167 | AQ23: =-Calculations!AQ425 -> -493285.3667 | AR23: =-Calculations!AR425 -> -517164.7167
C24: =Calculations!C426 -> Переменные (общие операционные расходы) | D24: =ut_Digits&ut_LCU -> тыс. RUB | E24: без НДС | H24: =SUM(T24:AR24) -> -22550563.72 | T24: =-Calculations!T426 -> 0 | U24: =-Calculations!U426 -> 0 | V24: =-Calculations!V426 -> 0 | W24: =-Calculations!W426 -> 0 | X24: =-Calculations!X426 -> 0 | Y24: =-Calculations!Y426 -> -384860.5985 | Z24: =-Calculations!Z426 -> -410654.4443 | AA24: =-Calculations!AA426 -> -408581.7824 | AB24: =-Calculations!AB426 -> -1188449.933 | AC24: =-Calculations!AC426 -> -1181539.186 | AD24: =-Calculations!AD426 -> -1184961.628 | AE24: =-Calculations!AE426 -> -1254566.584 | AF24: =-Calculations!AF426 -> -1194696.78 | AG24: =-Calculations!AG426 -> -1115415.697 | AH24: =-Calculations!AH426 -> -1182097.874 | AI24: =-Calculations!AI426 -> -1151661.694 | AJ24: =-Calculations!AJ426 -> -1232169.339 | AK24: =-Calculations!AK426 -> -1322098.548 | AL24: =-Calculations!AL426 -> -1272870.006 | AM24: =-Calculations!AM426 -> -1269862.488 | AN24: =-Calculations!AN426 -> -1355469.084 | AO24: =-Calculations!AO426 -> -1367286.101 | AP24: =-Calculations!AP426 -> -1351926.121 | AQ24: =-Calculations!AQ426 -> -1308854.608 | AR24: =-Calculations!AR426 -> -1412541.224
AS25: ut_OPEX_VC_CF
B26: =B25+1 -> 1 | C26: =Calculations!C428 -> Переменные расходы на Продажи покупателю 1 | D26: =ut_Digits&ut_LCU -> тыс. RUB | E26: без НДС | H26: =SUM(T26:AR26) -> -172528585.5 | T26: =-INDEX(ut_OPEX_VC_Calc,$B26,T$1) -> 0 | U26: 0 | V26: 0 | W26: 0 | X26: 0 | Y26: -4150551.159 | Z26: -4343693.764 | AA26: -4483951.578 | AB26: -13966224.52 | AC26: -14158939.46 | AD26: -14514360.76 | AE26: -14927751.81 | AF26: -15283209.9 | AG26: -6265904.976 | AH26: -6373678.86 | AI26: -6495916.52 | AJ26: =-INDEX(ut_OPEX_VC_Calc,$B26,AJ$1) -> -6616350.307 | AK26: -6888937.613 | AL26: -7017585.608 | AM26: -7253063.036 | AN26: -7537991.38 | AO26: -7689406.6 | AP26: -7876220.288 | AQ26: -8196716.341 | AR26: =-INDEX(ut_OPEX_VC_Calc,$B26,AR$1) -> -8488131.052
B27: =B26+1 -> 2 | C27: =Calculations!C429 -> Переменные расходы на Продажи покупателю 2 | D27: =ut_Digits&ut_LCU -> тыс. RUB | E27: без НДС | H27: =SUM(T27:AR27) -> -233479883.2 | T27: 0 | U27: 0 | V27: 0 | W27: 0 | X27: 0 | Y27: -2905385.811 | Z27: -3040585.634 | AA27: -3138766.105 | AB27: -9776357.161 | AC27: -9911257.624 | AD27: -10160052.53 | AE27: -10449426.27 | AF27: -10698246.93 | AG27: -12531809.95 | AH27: -12747357.72 | AI27: -12991833.04 | AJ27: -13232700.61 | AK27: -13777875.23 | AL27: -14035171.22 | AM27: -14506126.07 | AN27: -15075982.76 | AO27: -15378813.2 | AP27: -15752440.58 | AQ27: -16393432.68 | AR27: -16976262.1
B28: =B27+1 -> 3 | C28: =Calculations!C430 -> Переменные расходы на Продажи покупателю 3 | D28: =ut_Digits&ut_LCU -> тыс. RUB | E28: без НДС | H28: =SUM(T28:AR28) -> -199148410 | T28: 0 | U28: 0 | V28: 0 | W28: 0 | X28: 0 | Y28: -1245165.348 | Z28: -1303108.129 | AA28: -1345185.473 | AB28: -4189867.355 | AC28: -4247681.839 | AD28: -4354308.227 | AE28: -4478325.543 | AF28: -4584962.97 | AG28: -12531809.95 | AH28: -12747357.72 | AI28: -12991833.04 | AJ28: -13232700.61 | AK28: -13777875.23 | AL28: -14035171.22 | AM28: -14506126.07 | AN28: -15075982.76 | AO28: -15378813.2 | AP28: -15752440.58 | AQ28: -16393432.68 | AR28: -16976262.1
C30: =Calculations!C435 -> Налог на имущество | D30: =ut_Digits&ut_LCU -> тыс. RUB | H30: =SUM(T30:AR30) -> -4714990.133 | T30: =-ut_Property_Tax -> 0 | U30: 0 | V30: 0 | W30: 0 | X30: 0 | Y30: -260425.7333 | Z30: -257896.32 | AA30: -255348.4267 | AB30: -252782.0533 | AC30: -250197.2 | AD30: -247593.8667 | AE30: -244972.0533 | AF30: -242331.76 | AG30: -239672.9867 | AH30: -236995.7333 | AI30: -234392.4 | AJ30: -231789.0667 | AK30: -229185.7333 | AL30: -226582.4 | AM30: -223979.0667 | AN30: -221375.7333 | AO30: -218772.4 | AP30: -216169.0667 | AQ30: -213565.7333 | AR30: -210962.4
C32: Прочие (капитализируемые) операционные расходы | D32: =ut_Digits&ut_LCU -> тыс. RUB | E32: без НДС | H32: =SUM(T32:AR32) -> 0 | T32: =-Calculations!T438 -> 0 | U32: =-Calculations!U438 -> 0 | V32: =-Calculations!V438 -> 0 | W32: =-Calculations!W438 -> 0 | X32: =-Calculations!X438 -> 0 | Y32: =-Calculations!Y438 -> 0 | Z32: =-Calculations!Z438 -> 0 | AA32: =-Calculations!AA438 -> 0 | AB32: =-Calculations!AB438 -> 0 | AC32: =-Calculations!AC438 -> 0 | AD32: =-Calculations!AD438 -> 0 | AE32: =-Calculations!AE438 -> 0 | AF32: =-Calculations!AF438 -> 0 | AG32: =-Calculations!AG438 -> 0 | AH32: =-Calculations!AH438 -> 0 | AI32: =-Calculations!AI438 -> 0 | AJ32: =-Calculations!AJ438 -> 0 | AK32: =-Calculations!AK438 -> 0 | AL32: =-Calculations!AL438 -> 0 | AM32: =-Calculations!AM438 -> 0 | AN32: =-Calculations!AN438 -> 0 | AO32: =-Calculations!AO438 -> 0 | AP32: =-Calculations!AP438 -> 0 | AQ32: =-Calculations!AQ438 -> 0 | AR32: =-Calculations!AR438 -> 0
C35: НДС уплаченный в составе опер расходов | D35: =ut_Digits&ut_LCU -> тыс. RUB | F35: + капитализируемые | H35: =SUM(T35:AR35) -> -54464422.42 | T35: =-ut_OpEx_VAT -> -16310.07667 | U35: -16439.13667 | V35: -15783.32333 | W35: -16735.11333 | X35: -16591.02 | Y35: -690358.5488 | Z35: -733695.05 | AA35: -753510.0639 | AB35: -2338286.315 | AC35: -2357457.564 | AD35: -2441595.843 | AE35: -2554432.635 | AF35: -2629857.263 | AG35: -2712169.218 | AH35: -2764171.541 | AI35: -2819437.08 | AJ35: -2883672.26 | AK35: -3100357.583 | AL35: -3156717.335 | AM35: -3323675.925 | AN35: -3547921.187 | AO35: -3630217.532 | AP35: -3743986.745 | AQ35: -3986162.303 | AR35: -4214881.757
C36: НДС уплаченный в составе внеопер расходов | D36: =ut_Digits&ut_LCU -> тыс. RUB | T36: =-ut_NonOpC_Expenses_VAT -> 0 | U36: 0 | V36: 0 | W36: 0 | X36: 0 | Y36: 0 | Z36: 0 | AA36: 0 | AB36: 0 | AC36: 0 | AD36: 0 | AE36: 0 | AF36: 0 | AG36: 0 | AH36: 0 | AI36: 0 | AJ36: 0 | AK36: 0 | AL36: 0 | AM36: 0 | AN36: 0 | AO36: 0 | AP36: 0 | AQ36: 0 | AR36: 0
C37: НДС (фактическая оплата) | D37: =ut_Digits&ut_LCU -> тыс. RUB | H37: =SUM(T37:AR37) -> -86783582.74 | T37: =-ut_VAT_to_pay -> 0 | U37: 0 | V37: 0 | W37: 0 | X37: 0 | Y37: -1243860.973 | Z37: -1809554.299 | AA37: -1835232.834 | AB37: -4332536.559 | AC37: -5120599.708 | AD37: -5058003.046 | AE37: -5287452.425 | AF37: -5028983.509 | AG37: -4478320.146 | AH37: -4609422.7 | AI37: -4516089.235 | AJ37: -4787391.343 | AK37: -5161916.353 | AL37: -4974280.865 | AM37: -4742996.572 | AN37: -4933829.19 | AO37: -5007189.269 | AP37: -4847188.923 | AQ37: -4408839.396 | AR37: -4599895.393
C38: Внереализационные расходы | D38: =ut_Digits&ut_LCU -> тыс. RUB | E38: без НДС | H38: =SUM(T38:AR38) -> -17500 | T38: =ut_Other_Expenses -> -700 | U38: -700 | V38: -700 | W38: -700 | X38: -700 | Y38: -700 | Z38: -700 | AA38: -700 | AB38: -700 | AC38: -700 | AD38: -700 | AE38: -700 | AF38: -700 | AG38: -700 | AH38: -700 | AI38: -700 | AJ38: -700 | AK38: -700 | AL38: -700 | AM38: -700 | AN38: -700 | AO38: -700 | AP38: -700 | AQ38: -700 | AR38: -700
C39: Налог на прибыль | D39: =ut_Digits&ut_LCU -> тыс. RUB | H39: =SUM(T39:AR39) -> -3214688.218 | T39: =ut_Profit_Tax_CF -> 0 | U39: 0 | V39: 0 | W39: 0 | X39: 0 | Y39: 0 | Z39: 0 | AA39: 0 | AB39: 0 | AC39: 0 | AD39: 0 | AE39: 0 | AF39: 0 | AG39: 0 | AH39: -28083.13332 | AI39: -405714.5034 | AJ39: -151340.0958 | AK39: -509352.9675 | AL39: -811208.4081 | AM39: -400347.2181 | AN39: -152293.4289 | AO39: -398668.9398 | AP39: -318664.4302 | AQ39: -39015.09253 | AR39: 0
G40: OpCF | H40: =SUM(T40:AR40) -> 63222117.94 | T40: =SUM(T10,T16:T20,T22,T35:T39) -> -241965.26 | U40: =SUM(U10,U16:U20,U22,U35:U39) -> -242202.02 | V40: -235444.74 | W40: -238064.28 | X40: -235318.12 | Y40: 2141897.737 | Z40: 3070565.514 | AA40: 2788787.681 | AB40: =SUM(AB10,AB16:AB20,AB22,AB35:AB39) -> 6471072.212 | AC40: 7079549.696 | AD40: 6472123.471 | AE40: 7606383.11 | AF40: 5377372.134 | AG40: 2216164.069 | AH40: 3374596.99 | AI40: 1678805.751 | AJ40: 3546178.303 | AK40: 4569214.161 | AL40: 2431494.027 | AM40: 1448812.758 | AN40: 2713592.043 | AO40: 2233581.835 | AP40: 976825.6335 | AQ40: -1591280.804 | AR40: =SUM(AR10,AR16:AR20,AR22,AR35:AR39) -> -190623.959
C42: InvCF | D42: =ut_Digits&ut_LCU -> тыс. RUB | H42: =SUM(ut_InvCF) -> -37448616.67 | T42: =T47 -> -3500000 | U42: -3100000 | V42: -2800000 | W42: =W47 -> -24182675.81 | X42: -11253856.19 | Y42: 7467715.334 | Z42: -4200 | AA42: -4200 | AB42: =AB47 -> -4200 | AC42: -4200 | AD42: -4200 | AE42: -4200 | AF42: -4200 | AG42: -4200 | AH42: -4200 | AI42: -4200 | AJ42: -4200 | AK42: -4200 | AL42: -4200 | AM42: -4200 | AN42: -4200 | AO42: -4200 | AP42: -4200 | AQ42: -4200 | AR42: =AR47 -> -4200 | AS42: ut_InvCF
C43: Капитальные затраты | D43: =ut_Digits&ut_LCU -> тыс. RUB | E43: без НДС | H43: =SUM(T43:AR43) -> -37447776.67 | I43: - | T43: =-ut_CapEx -> -2916666.667 | U43: -2583333.333 | V43: -2333333.333 | W43: -20152229.85 | X43: -9378213.493 | Y43: -4200 | Z43: -4200 | AA43: -4200 | AB43: -4200 | AC43: -4200 | AD43: -4200 | AE43: -4200 | AF43: -4200 | AG43: -4200 | AH43: -4200 | AI43: -4200 | AJ43: -4200 | AK43: -4200 | AL43: -4200 | AM43: -4200 | AN43: -4200 | AO43: -4200 | AP43: -4200 | AQ43: -4200 | AR43: -4200
C44: НДС уплаченный в CapEx | D44: =ut_Digits&ut_LCU -> тыс. RUB | H44: =SUM(T44:AR44) -> -7489555.334 | T44: =-ut_CapEx_VAT -> -583333.3333 | U44: -516666.6667 | V44: -466666.6667 | W44: -4030445.969 | X44: -1875642.699 | Y44: -840 | Z44: -840 | AA44: -840 | AB44: -840 | AC44: -840 | AD44: -840 | AE44: -840 | AF44: -840 | AG44: -840 | AH44: -840 | AI44: -840 | AJ44: -840 | AK44: -840 | AL44: -840 | AM44: -840 | AN44: -840 | AO44: -840 | AP44: -840 | AQ44: -840 | AR44: -840
C46: НДС CapEx - возмещение | D46: =ut_Digits&ut_LCU -> тыс. RUB | H46: =SUM(T46:AR46) -> 7488715.334 | I46: + | T46: =ut_CapEx_VAT_receive -> 0 | U46: 0 | V46: 0 | W46: 0 | X46: 0 | Y46: 7472755.334 | Z46: 840 | AA46: 840 | AB46: 840 | AC46: 840 | AD46: 840 | AE46: 840 | AF46: 840 | AG46: 840 | AH46: 840 | AI46: 840 | AJ46: 840 | AK46: 840 | AL46: 840 | AM46: 840 | AN46: 840 | AO46: 840 | AP46: 840 | AQ46: 840 | AR46: 840
G47: InvCF | H47: =SUM(T47:AR47) -> -37448616.67 | S47: =SUM(S43:S46) -> 0 | T47: -3500000 | U47: -3100000 | V47: -2800000 | W47: =SUM(W43:W46) -> -24182675.81 | X47: -11253856.19 | Y47: 7467715.334 | Z47: -4200 | AA47: -4200 | AB47: =SUM(AB43:AB46) -> -4200 | AC47: -4200 | AD47: -4200 | AE47: -4200 | AF47: -4200 | AG47: -4200 | AH47: -4200 | AI47: -4200 | AJ47: -4200 | AK47: -4200 | AL47: -4200 | AM47: -4200 | AN47: -4200 | AO47: -4200 | AP47: -4200 | AQ47: -4200 | AR47: =SUM(AR43:AR46) -> -4200
C49: FinCF | D49: =ut_Digits&ut_LCU -> тыс. RUB | H49: =SUM(ut_FinCF) -> -6191010.658 | T49: =T73 -> 3747200 | U49: 3346000 | V49: 3036600 | W49: =W73 -> 24421510.46 | X49: 11491548.48 | Y49: -9238027.604 | Z49: -2947794.99 | AA49: -2559595.407 | AB49: =AB73 -> -5085565.535 | AC49: -5200088.833 | AD49: -4260107.82 | AE49: -5070234.518 | AF49: -4346703.481 | AG49: -1648521.197 | AH49: -2476222.683 | AI49: -1060598.287 | AJ49: -2529630.947 | AK49: -3258101.251 | AL49: -1741260.85 | AM49: -811416.1979 | AN49: 0 | AO49: 0 | AP49: 0 | AQ49: 0 | AR49: =AR73 -> 0 | AS49: ut_FinCF
C50: Привлечение заемного финансирования | D50: =ut_Digits&ut_LCU -> тыс. RUB | H50: =SUM(T50:AR50) -> 37336532.01 | I50: + | T50: =ut_Total_Debt_Attraction -> 1400000 | U50: 2000000 | V50: 1700000 | W50: 21082675.81 | X50: 11153856.19 | Y50: 0 | Z50: 0 | AA50: 0 | AB50: 0 | AC50: 0 | AD50: 0 | AE50: 0 | AF50: 0 | AG50: 0 | AH50: 0 | AI50: 0 | AJ50: 0 | AK50: 0 | AL50: 0 | AM50: 0 | AN50: 0 | AO50: 0 | AP50: 0 | AQ50: 0 | AR50: 0
C51: ВЭБ.РФ | D51: =ut_Digits&ut_LCU -> тыс. RUB | H51: =SUM(T51:AR51) -> 6700000 | T51: =ut_VEB_Debt_Attraction -> 1400000 | U51: 2000000 | V51: 1700000 | W51: 1400000 | X51: 200000 | Y51: 0 | Z51: 0 | AA51: 0 | AB51: 0 | AC51: 0 | AD51: 0 | AE51: 0 | AF51: 0 | AG51: 0 | AH51: 0 | AI51: 0 | AJ51: 0 | AK51: 0 | AL51: 0 | AM51: 0 | AN51: 0 | AO51: 0 | AP51: 0 | AQ51: 0 | AR51: 0
C52: Прочие кредиторы | D52: =ut_Digits&ut_LCU -> тыс. RUB | H52: =SUM(T52:AR52) -> 30636532.01 | T52: =ut_Other_Debt_Attraction -> 0 | U52: =ut_Other_Debt_Attraction -> 0 | V52: 0 | W52: 19682675.81 | X52: 10953856.19 | Y52: 0 | Z52: 0 | AA52: 0 | AB52: 0 | AC52: 0 | AD52: 0 | AE52: 0 | AF52: 0 | AG52: 0 | AH52: 0 | AI52: 0 | AJ52: 0 | AK52: 0 | AL52: 0 | AM52: 0 | AN52: 0 | AO52: 0 | AP52: 0 | AQ52: 0 | AR52: 0
C54: Вложения в капитал | D54: =ut_Digits&ut_LCU -> тыс. RUB | H54: =SUM(T54:AR54) -> 7000000 | T54: =ut_Equity_Attraction -> 2000000 | U54: 1000000 | V54: 1000000 | W54: 3000000 | X54: 0 | Y54: 0 | Z54: 0 | AA54: 0 | AB54: 0 | AC54: 0 | AD54: 0 | AE54: 0 | AF54: 0 | AG54: 0 | AH54: 0 | AI54: 0 | AJ54: 0 | AK54: 0 | AL54: 0 | AM54: 0 | AN54: 0 | AO54: 0 | AP54: 0 | AQ54: 0 | AR54: 0
C55: ВЭБ.РФ | D55: =ut_Digits&ut_LCU -> тыс. RUB | H55: =SUM(T55:AR55) -> 0 | T55: =ut_Equity_Attraction_VEB -> 0 | U55: 0 | V55: 0 | W55: 0 | X55: 0 | Y55: 0 | Z55: 0 | AA55: 0 | AB55: 0 | AC55: 0 | AD55: 0 | AE55: 0 | AF55: 0 | AG55: 0 | AH55: 0 | AI55: 0 | AJ55: 0 | AK55: 0 | AL55: 0 | AM55: 0 | AN55: 0 | AO55: 0 | AP55: 0 | AQ55: 0 | AR55: 0
C56: Прочие инвесторы | D56: =ut_Digits&ut_LCU -> тыс. RUB | H56: =SUM(T56:AR56) -> 7000000 | T56: =T54-T55 -> 2000000 | U56: =U54-U55 -> 1000000 | V56: 1000000 | W56: =W54-W55 -> 3000000 | X56: 0 | Y56: 0 | Z56: 0 | AA56: 0 | AB56: =AB54-AB55 -> 0 | AC56: 0 | AD56: 0 | AE56: 0 | AF56: 0 | AG56: 0 | AH56: 0 | AI56: 0 | AJ56: 0 | AK56: 0 | AL56: 0 | AM56: 0 | AN56: 0 | AO56: 0 | AP56: 0 | AQ56: 0 | AR56: =AR54-AR55 -> 0
C58: Субсидии, гранты | D58: =ut_Digits&ut_LCU -> тыс. RUB | H58: =SUM(T58:AR58) -> 1500000 | T58: =ut_Subsidies+ut_Direct_Budget_Investments -> 300000 | U58: 300000 | V58: 300000 | W58: 300000 | X58: 300000 | Y58: 0 | Z58: 0 | AA58: 0 | AB58: 0 | AC58: 0 | AD58: 0 | AE58: 0 | AF58: 0 | AG58: 0 | AH58: 0 | AI58: 0 | AJ58: 0 | AK58: 0 | AL58: 0 | AM58: 0 | AN58: 0 | AO58: 0 | AP58: 0 | AQ58: 0 | AR58: 0
C60: Сальдо прочих финансовых потоков | D60: =ut_Digits&ut_LCU -> тыс. RUB | H60: =SUM(T60:AR60) -> 281000 | T60: =ut_Other_Fin_Flows -> 50000 | U60: 50000 | V60: 40000 | W60: 81000 | X60: 60000 | Y60: 0 | Z60: 0 | AA60: 0 | AB60: 0 | AC60: 0 | AD60: 0 | AE60: 0 | AF60: 0 | AG60: 0 | AH60: 0 | AI60: 0 | AJ60: 0 | AK60: 0 | AL60: 0 | AM60: 0 | AN60: 0 | AO60: 0 | AP60: 0 | AQ60: 0 | AR60: 0
C62: Погашение основного долга | D62: =ut_Digits&ut_LCU -> тыс. RUB | H62: =SUM(T62:AR62) -> -39008197.04 | I62: - | T62: =-ut_Total_Debt_Repayment -> 0 | U62: 0 | V62: 0 | W62: 0 | X62: 0 | Y62: -9238027.604 | Z62: -2947794.99 | AA62: -2559595.407 | AB62: -2247873.097 | AC62: -2459758.434 | AD62: -1602254.782 | AE62: -2494312.833 | AF62: -3926713.372 | AG62: -817332.1029 | AH62: -2018919.7 | AI62: -865239.4063 | AJ62: -2261648.912 | AK62: -3097298.159 | AL62: -1675922.164 | AM62: -795506.0763 | AN62: 0 | AO62: 0 | AP62: 0 | AQ62: 0 | AR62: 0
C63: ВЭБ.РФ | D63: =ut_Digits&ut_LCU -> тыс. RUB | H63: =SUM(T63:AR63) -> -6700000 | T63: =-ut_VEB_Debt_Repayment -> 0 | U63: 0 | V63: 0 | W63: 0 | X63: 0 | Y63: -5057691.09 | Z63: -1613876.586 | AA63: -28432.32316 | AB63: 0 | AC63: 0 | AD63: 0 | AE63: 0 | AF63: 0 | AG63: 0 | AH63: 0 | AI63: 0 | AJ63: 0 | AK63: 0 | AL63: 0 | AM63: 0 | AN63: 0 | AO63: 0 | AP63: 0 | AQ63: 0 | AR63: 0
C64: Прочие кредиторы | D64: =ut_Digits&ut_LCU -> тыс. RUB | H64: =SUM(T64:AR64) -> -32308197.04 | T64: =-ut_Other_Debt_Repayment -> 0 | U64: 0 | V64: 0 | W64: 0 | X64: 0 | Y64: -4180336.513 | Z64: -1333918.403 | AA64: -2531163.084 | AB64: -2247873.097 | AC64: -2459758.434 | AD64: -1602254.782 | AE64: -2494312.833 | AF64: -3926713.372 | AG64: -817332.1029 | AH64: -2018919.7 | AI64: -865239.4063 | AJ64: -2261648.912 | AK64: -3097298.159 | AL64: -1675922.164 | AM64: -795506.0763 | AN64: 0 | AO64: 0 | AP64: 0 | AQ64: 0 | AR64: 0
C66: Погашение % | D66: =ut_Digits&ut_LCU -> тыс. RUB | H66: =SUM(T66:AR66) -> -13225672.56 | T66: =-ut_Total_Interest_Repayment -> 0 | U66: 0 | V66: 0 | W66: 0 | X66: 0 | Y66: 0 | Z66: 0 | AA66: 0 | AB66: -2837692.438 | AC66: -2740330.399 | AD66: -2657853.038 | AE66: -2575921.685 | AF66: -419990.1092 | AG66: -831189.0938 | AH66: -457302.9827 | AI66: -195358.8808 | AJ66: -267982.0342 | AK66: -160803.0928 | AL66: -65338.68633 | AM66: -15910.12153 | AN66: 0 | AO66: 0 | AP66: 0 | AQ66: 0 | AR66: 0
C67: ВЭБ.РФ | D67: =ut_Digits&ut_LCU -> тыс. RUB | H67: =SUM(T67:AR67) -> -2972488.948 | T67: =-ut_VEB_Interest_Repayment -> 0 | U67: 0 | V67: 0 | W67: 0 | X67: 0 | Y67: 0 | Z67: 0 | AA67: 0 | AB67: -1000000 | AC67: -1000000 | AD67: -1000000 | AE67: -1000000 | AF67: 1027511.052 | AG67: 0 | AH67: 0 | AI67: 0 | AJ67: 0 | AK67: 0 | AL67: 0 | AM67: 0 | AN67: 0 | AO67: 0 | AP67: 0 | AQ67: 0 | AR67: 0
C68: Прочие кредиторы | D68: =ut_Digits&ut_LCU -> тыс. RUB | H68: =SUM(T68:AR68) -> -10253183.61 | T68: =-ut_Other_Interest_Repayment -> 0 | U68: 0 | V68: 0 | W68: 0 | X68: 0 | Y68: 0 | Z68: 0 | AA68: 0 | AB68: -1837692.438 | AC68: -1740330.399 | AD68: -1657853.038 | AE68: -1575921.685 | AF68: -1447501.161 | AG68: -831189.0938 | AH68: -457302.9827 | AI68: -195358.8808 | AJ68: -267982.0342 | AK68: -160803.0928 | AL68: -65338.68633 | AM68: -15910.12153 | AN68: 0 | AO68: 0 | AP68: 0 | AQ68: 0 | AR68: 0
C70: Погашение комиссий | D70: =ut_Digits&ut_LCU -> тыс. RUB | H70: =SUM(T70:AR70) -> -74673.06401 | T70: =-ut_Total_Fees_Repayment -> -2800 | U70: -4000 | V70: -3400 | W70: -42165.35163 | X70: -22307.71238 | Y70: 0 | Z70: 0 | AA70: 0 | AB70: 0 | AC70: 0 | AD70: 0 | AE70: 0 | AF70: 0 | AG70: 0 | AH70: 0 | AI70: 0 | AJ70: 0 | AK70: 0 | AL70: 0 | AM70: 0 | AN70: 0 | AO70: 0 | AP70: 0 | AQ70: 0 | AR70: 0
C71: Дивиденды | D71: =ut_Digits&ut_LCU -> тыс. RUB | H71: =SUM(T71:AR71) -> 0 | T71: =-ut_Dividends -> 0 | U71: 0 | V71: 0 | W71: 0 | X71: 0 | Y71: 0 | Z71: 0 | AA71: 0 | AB71: 0 | AC71: 0 | AD71: 0 | AE71: 0 | AF71: 0 | AG71: 0 | AH71: 0 | AI71: 0 | AJ71: 0 | AK71: 0 | AL71: 0 | AM71: 0 | AN71: 0 | AO71: 0 | AP71: 0 | AQ71: 0 | AR71: 0
C72: Выкуп акций / долей участников у ВЭБ.РФ | D72: =ut_Digits&ut_LCU -> тыс. RUB | H72: =SUM(T72:AR72) -> 0 | T72: =-ut_Buyout_VEB -> 0 | U72: 0 | V72: 0 | W72: 0 | X72: 0 | Y72: 0 | Z72: 0 | AA72: 0 | AB72: 0 | AC72: 0 | AD72: 0 | AE72: 0 | AF72: 0 | AG72: 0 | AH72: 0 | AI72: 0 | AJ72: 0 | AK72: 0 | AL72: 0 | AM72: 0 | AN72: 0 | AO72: 0 | AP72: 0 | AQ72: 0 | AR72: 0
G73: FinCF | H73: =SUM(T73:AR73) -> -6191010.658 | T73: =T50+T54+T58+T60+T62+T66+SUM(T70:T72) -> 3747200 | U73: =U50+U54+U58+U60+U62+U66+SUM(U70:U72) -> 3346000 | V73: 3036600 | W73: =W50+W54+W58+W60+W62+W66+SUM(W70:W72) -> 24421510.46 | X73: 11491548.48 | Y73: -9238027.604 | Z73: -2947794.99 | AA73: -2559595.407 | AB73: =AB50+AB54+AB58+AB60+AB62+AB66+SUM(AB70:AB72) -> -5085565.535 | AC73: -5200088.833 | AD73: -4260107.82 | AE73: -5070234.518 | AF73: -4346703.481 | AG73: -1648521.197 | AH73: -2476222.683 | AI73: -1060598.287 | AJ73: -2529630.947 | AK73: -3258101.251 | AL73: -1741260.85 | AM73: -811416.1979 | AN73: 0 | AO73: 0 | AP73: 0 | AQ73: 0 | AR73: =AR50+AR54+AR58+AR60+AR62+AR66+SUM(AR70:AR72) -> 0
C75: NetCF | D75: =ut_Digits&ut_LCU -> тыс. RUB | H75: =SUM(ut_NetCF) -> 19582490.61 | S75: =S9+S42+S49 -> 0 | T75: =IF(ut_history_flag=0,0,T9+T42+T49) -> 5234.74 | U75: 3797.98 | V75: 1155.26 | W75: 770.3683705 | X75: 2374.167618 | Y75: 371585.4679 | Z75: 118570.5247 | AA75: 224992.2741 | AB75: =IF(ut_history_flag=0,0,AB9+AB42+AB49) -> 1381306.677 | AC75: 1875260.863 | AD75: 2207815.651 | AE75: 2531948.592 | AF75: 1026468.653 | AG75: 563442.8721 | AH75: 894174.3077 | AI75: 614007.4641 | AJ75: 1012347.356 | AK75: 1306912.909 | AL75: 686033.177 | AM75: 633196.5602 | AN75: 2709392.043 | AO75: 2229381.835 | AP75: 972625.6335 | AQ75: -1595480.804 | AR75: =IF(ut_history_flag=0,0,AR9+AR42+AR49) -> -194823.959 | AS75: ut_NetCF
S77: входящий cash
C78: Cash eop | G78: Остаток на конец периода | H78: =INDEX(ut_net_cash_eop,1,MAX(ut_Counter)) -> 19582490.61 | T78: =S78+T75 -> 5234.74 | U78: =T78+U75 -> 9032.72 | V78: 10187.98 | W78: 10958.34837 | X78: 13332.51599 | Y78: 384917.9839 | Z78: 503488.5086 | AA78: 728480.7827 | AB78: =AA78+AB75 -> 2109787.46 | AC78: =AB78+AC75 -> 3985048.323 | AD78: =AC78+AD75 -> 6192863.974 | AE78: =AD78+AE75 -> 8724812.565 | AF78: =AE78+AF75 -> 9751281.218 | AG78: =AF78+AG75 -> 10314724.09 | AH78: =AG78+AH75 -> 11208898.4 | AI78: =AH78+AI75 -> 11822905.86 | AJ78: =AI78+AJ75 -> 12835253.22 | AK78: =AJ78+AK75 -> 14142166.13 | AL78: =AK78+AL75 -> 14828199.3 | AM78: =AL78+AM75 -> 15461395.86 | AN78: =AM78+AN75 -> 18170787.91 | AO78: =AN78+AO75 -> 20400169.74 | AP78: =AO78+AP75 -> 21372795.38 | AQ78: =AP78+AQ75 -> 19777314.57 | AR78: =AQ78+AR75 -> 19582490.61 | AS78: ut_net_cash_eop
F80: привлечение балансирующего финансирования | H80: =SUM(ut_Deficit) -> 0 | T80: =-ROUND(T78,4)*(T78<0) -> 0 | U80: =-ROUND(U78,4)*(U78<0) -> 0 | V80: 0 | W80: 0 | X80: 0 | Y80: 0 | Z80: 0 | AA80: 0 | AB80: =-ROUND(AB78,4)*(AB78<0) -> 0 | AC80: 0 | AD80: 0 | AE80: 0 | AF80: 0 | AG80: 0 | AH80: 0 | AI80: 0 | AJ80: 0 | AK80: 0 | AL80: 0 | AM80: 0 | AN80: 0 | AO80: 0 | AP80: 0 | AQ80: 0 | AR80: =-ROUND(AR78,4)*(AR78<0) -> 0 | AS80: ut_Deficit
F81: погашение балансирующего финансирования | H81: =SUM(ut_Deficit) -> 0 | T81: =ROUND(IF(AND(S82>0,T78>0),MIN(T78,S82+T80),0),4) -> 0 | U81: 0 | V81: 0 | W81: 0 | X81: 0 | Y81: 0 | Z81: 0 | AA81: =ROUND(IF(AND(Z82>0,AA78>0),MIN(AA78,Z82+AA80),0),4) -> 0 | AB81: =ROUND(IF(AND(AA82>0,AB78>0),MIN(AB78,AA82+AB80),0),4) -> 0 | AC81: =ROUND(IF(AND(AB82>0,AC78>0),MIN(AC78,AB82+AC80),0),4) -> 0 | AD81: =ROUND(IF(AND(AC82>0,AD78>0),MIN(AD78,AC82+AD80),0),4) -> 0 | AE81: =ROUND(IF(AND(AD82>0,AE78>0),MIN(AE78,AD82+AE80),0),4) -> 0 | AF81: =ROUND(IF(AND(AE82>0,AF78>0),MIN(AF78,AE82+AF80),0),4) -> 0 | AG81: =ROUND(IF(AND(AF82>0,AG78>0),MIN(AG78,AF82+AG80),0),4) -> 0 | AH81: =ROUND(IF(AND(AG82>0,AH78>0),MIN(AH78,AG82+AH80),0),4) -> 0 | AI81: =ROUND(IF(AND(AH82>0,AI78>0),MIN(AI78,AH82+AI80),0),4) -> 0 | AJ81: =ROUND(IF(AND(AI82>0,AJ78>0),MIN(AJ78,AI82+AJ80),0),4) -> 0 | AK81: =ROUND(IF(AND(AJ82>0,AK78>0),MIN(AK78,AJ82+AK80),0),4) -> 0 | AL81: =ROUND(IF(AND(AK82>0,AL78>0),MIN(AL78,AK82+AL80),0),4) -> 0 | AM81: =ROUND(IF(AND(AL82>0,AM78>0),MIN(AM78,AL82+AM80),0),4) -> 0 | AN81: =ROUND(IF(AND(AM82>0,AN78>0),MIN(AN78,AM82+AN80),0),4) -> 0 | AO81: =ROUND(IF(AND(AN82>0,AO78>0),MIN(AO78,AN82+AO80),0),4) -> 0 | AP81: =ROUND(IF(AND(AO82>0,AP78>0),MIN(AP78,AO82+AP80),0),4) -> 0 | AQ81: =ROUND(IF(AND(AP82>0,AQ78>0),MIN(AQ78,AP82+AQ80),0),4) -> 0 | AR81: =ROUND(IF(AND(AQ82>0,AR78>0),MIN(AR78,AQ82+AR80),0),4) -> 0
F82: остаток балансирующего финансирования | H82: =MAX(T82:AR82) -> 0 | S82: =0 -> 0 | T82: =S82+T80-T81 -> 0 | U82: 0 | V82: 0 | W82: 0 | X82: 0 | Y82: 0 | Z82: 0 | AA82: =Z82+AA80-AA81 -> 0 | AB82: =AA82+AB80-AB81 -> 0 | AC82: =AB82+AC80-AC81 -> 0 | AD82: =AC82+AD80-AD81 -> 0 | AE82: =AD82+AE80-AE81 -> 0 | AF82: =AE82+AF80-AF81 -> 0 | AG82: =AF82+AG80-AG81 -> 0 | AH82: =AG82+AH80-AH81 -> 0 | AI82: =AH82+AI80-AI81 -> 0 | AJ82: =AI82+AJ80-AJ81 -> 0 | AK82: =AJ82+AK80-AK81 -> 0 | AL82: =AK82+AL80-AL81 -> 0 | AM82: =AL82+AM80-AM81 -> 0 | AN82: =AM82+AN80-AN81 -> 0 | AO82: =AN82+AO80-AO81 -> 0 | AP82: =AO82+AP80-AP81 -> 0 | AQ82: =AP82+AQ80-AQ81 -> 0 | AR82: =AQ82+AR80-AR81 -> 0
F84: на инвестиционной фазе | H84: =MAX(T84:AR84) -> 0 | T84: =T82*T4 -> 0 | U84: 0 | V84: 0 | W84: 0 | X84: 0 | Y84: 0 | Z84: 0 | AA84: 0 | AB84: =AB82*AB4 -> 0 | AC84: 0 | AD84: 0 | AE84: 0 | AF84: 0 | AG84: 0 | AH84: 0 | AI84: 0 | AJ84: 0 | AK84: 0 | AL84: 0 | AM84: 0 | AN84: 0 | AO84: 0 | AP84: 0 | AQ84: 0 | AR84: =AR82*AR4 -> 0
F85: на фазе запуска | H85: =MAX(T85:AR85)-H84 -> 0 | T85: =T82*T5 -> 0 | U85: 0 | V85: 0 | W85: 0 | X85: 0 | Y85: 0 | Z85: 0 | AA85: 0 | AB85: =AB82*AB5 -> 0 | AC85: 0 | AD85: 0 | AE85: 0 | AF85: 0 | AG85: 0 | AH85: 0 | AI85: 0 | AJ85: 0 | AK85: 0 | AL85: 0 | AM85: 0 | AN85: 0 | AO85: 0 | AP85: 0 | AQ85: 0 | AR85: =AR82*AR5 -> 0
F86: на операционной фазе | H86: =MAX(T86:AR86)-SUM(H84:H85) -> 0 | T86: =T82*T6 -> 0 | U86: 0 | V86: 0 | W86: 0 | X86: 0 | Y86: 0 | Z86: 0 | AA86: 0 | AB86: =AB82*AB6 -> 0 | AC86: 0 | AD86: 0 | AE86: 0 | AF86: 0 | AG86: 0 | AH86: 0 | AI86: 0 | AJ86: 0 | AK86: 0 | AL86: 0 | AM86: 0 | AN86: 0 | AO86: 0 | AP86: 0 | AQ86: 0 | AR86: =AR82*AR6 -> 0
C88: BS и PL
C90: Баланс
C92: Внеоборотные активы | D92: =ut_Digits&ut_LCU -> тыс. RUB | T92: =SUM(T93:T98) -> 2916666.667 | U92: 5500000 | V92: 7833333.333 | W92: 27985563.18 | X92: =SUM(X93:X98) -> 37363776.67 | Y92: 37367976.67 | Z92: 36327579.35 | AA92: 35286342.04 | AB92: =SUM(AB93:AB98) -> 34244264.72 | AC92: 33201347.4 | AD92: 32157590.09 | AE92: 31112992.77 | AF92: 30067555.45 | AG92: 29021278.14 | AH92: 27974160.82 | AI92: 26930403.5 | AJ92: 25886646.19 | AK92: 24842888.87 | AL92: 23799131.55 | AM92: 22755374.24 | AN92: 21711616.92 | AO92: 20667859.6 | AP92: 19624102.28 | AQ92: 19123483.76 | AR92: =SUM(AR93:AR98) -> 18284409.63 | AS92: ut_NonCurrent_Assets_Balance
C93: Нематериальные активы | D93: тыс. RUB | T93: =+SUMIFS(Calculations!T167:T242,ut_Capex_Names,"Налоговая остаточная стоимость, конец периода",ut_Capex_Index,"НМА") -> 0 | U93: =+SUMIFS(Calculations!U167:U242,ut_Capex_Names,"Налоговая остаточная стоимость, конец периода",ut_Capex_Index,"НМА") -> 0 | V93: =+SUMIFS(Calculations!V167:V242,ut_Capex_Names,"Налоговая остаточная стоимость, конец периода",ut_Capex_Index,"НМА") -> 0 | W93: =+SUMIFS(Calculations!W167:W242,ut_Capex_Names,"Налоговая остаточная стоимость, конец периода",ut_Capex_Index,"НМА") -> 0 | X93: =+SUMIFS(Calculations!X167:X242,ut_Capex_Names,"Налоговая остаточная стоимость, конец периода",ut_Capex_Index,"НМА") -> 0 | Y93: =+SUMIFS(Calculations!Y167:Y242,ut_Capex_Names,"Налоговая остаточная стоимость, конец периода",ut_Capex_Index,"НМА") -> 2502750 | Z93: =+SUMIFS(Calculations!Z167:Z242,ut_Capex_Names,"Налоговая остаточная стоимость, конец периода",ut_Capex_Index,"НМА") -> 2500293.75 | AA93: =+SUMIFS(Calculations!AA167:AA242,ut_Capex_Names,"Налоговая остаточная стоимость, конец периода",ut_Capex_Index,"НМА") -> 2497837.5 | AB93: =+SUMIFS(Calculations!AB167:AB242,ut_Capex_Names,"Налоговая остаточная стоимость, конец периода",ut_Capex_Index,"НМА") -> 2495381.25 | AC93: =+SUMIFS(Calculations!AC167:AC242,ut_Capex_Names,"Налоговая остаточная стоимость, конец периода",ut_Capex_Index,"НМА") -> 2492925 | AD93: =+SUMIFS(Calculations!AD167:AD242,ut_Capex_Names,"Налоговая остаточная стоимость, конец периода",ut_Capex_Index,"НМА") -> 2490468.75 | AE93: =+SUMIFS(Calculations!AE167:AE242,ut_Capex_Names,"Налоговая остаточная стоимость, конец периода",ut_Capex_Index,"НМА") -> 2488012.5 | AF93: =+SUMIFS(Calculations!AF167:AF242,ut_Capex_Names,"Налоговая остаточная стоимость, конец периода",ut_Capex_Index,"НМА") -> 2485556.25 | AG93: =+SUMIFS(Calculations!AG167:AG242,ut_Capex_Names,"Налоговая остаточная стоимость, конец периода",ut_Capex_Index,"НМА") -> 2483100 | AH93: =+SUMIFS(Calculations!AH167:AH242,ut_Capex_Names,"Налоговая остаточная стоимость, конец периода",ut_Capex_Index,"НМА") -> 2480643.75 | AI93: =+SUMIFS(Calculations!AI167:AI242,ut_Capex_Names,"Налоговая остаточная стоимость, конец периода",ut_Capex_Index,"НМА") -> 2478187.5 | AJ93: =+SUMIFS(Calculations!AJ167:AJ242,ut_Capex_Names,"Налоговая остаточная стоимость, конец периода",ut_Capex_Index,"НМА") -> 2475731.25 | AK93: =+SUMIFS(Calculations!AK167:AK242,ut_Capex_Names,"Налоговая остаточная стоимость, конец периода",ut_Capex_Index,"НМА") -> 2473275 | AL93: =+SUMIFS(Calculations!AL167:AL242,ut_Capex_Names,"Налоговая остаточная стоимость, конец периода",ut_Capex_Index,"НМА") -> 2470818.75 | AM93: =+SUMIFS(Calculations!AM167:AM242,ut_Capex_Names,"Налоговая остаточная стоимость, конец периода",ut_Capex_Index,"НМА") -> 2468362.5 | AN93: =+SUMIFS(Calculations!AN167:AN242,ut_Capex_Names,"Налоговая остаточная стоимость, конец периода",ut_Capex_Index,"НМА") -> 2465906.25 | AO93: =+SUMIFS(Calculations!AO167:AO242,ut_Capex_Names,"Налоговая остаточная стоимость, конец периода",ut_Capex_Index,"НМА") -> 2463450 | AP93: =+SUMIFS(Calculations!AP167:AP242,ut_Capex_Names,"Налоговая остаточная стоимость, конец периода",ut_Capex_Index,"НМА") -> 2460993.75 | AQ93: =+SUMIFS(Calculations!AQ167:AQ242,ut_Capex_Names,"Налоговая остаточная стоимость, конец периода",ut_Capex_Index,"НМА") -> 2458537.5 | AR93: =+SUMIFS(Calculations!AR167:AR242,ut_Capex_Names,"Налоговая остаточная стоимость, конец периода",ut_Capex_Index,"НМА") -> 2456081.25 | AS93: ut_Intangible_Assets_Balance
C94: Основные средства | D94: тыс. RUB | T94: =+SUMIFS(Calculations!T167:T242,ut_Capex_Names,"Налоговая остаточная стоимость, конец периода",ut_Capex_Index,"ОС")+Calculations!T251+Calculations!T264 -> 0 | U94: =+SUMIFS(Calculations!U167:U242,ut_Capex_Names,"Налоговая остаточная стоимость, конец периода",ut_Capex_Index,"ОС")+Calculations!U251+Calculations!U264 -> 0 | V94: =+SUMIFS(Calculations!V167:V242,ut_Capex_Names,"Налоговая остаточная стоимость, конец периода",ut_Capex_Index,"ОС")+Calculations!V251+Calculations!V264 -> 0 | W94: =+SUMIFS(Calculations!W167:W242,ut_Capex_Names,"Налоговая остаточная стоимость, конец периода",ut_Capex_Index,"ОС")+Calculations!W251+Calculations!W264 -> 0 | X94: =+SUMIFS(Calculations!X167:X242,ut_Capex_Names,"Налоговая остаточная стоимость, конец периода",ut_Capex_Index,"ОС")+Calculations!X251+Calculations!X264 -> 0 | Y94: =+SUMIFS(Calculations!Y167:Y242,ut_Capex_Names,"Налоговая остаточная стоимость, конец периода",ut_Capex_Index,"ОС")+Calculations!Y251+Calculations!Y264 -> 35573459.85 | Z94: =+SUMIFS(Calculations!Z167:Z242,ut_Capex_Names,"Налоговая остаточная стоимость, конец периода",ut_Capex_Index,"ОС")+Calculations!Z251+Calculations!Z264 -> 34535518.78 | AA94: =+SUMIFS(Calculations!AA167:AA242,ut_Capex_Names,"Налоговая остаточная стоимость, конец периода",ut_Capex_Index,"ОС")+Calculations!AA251+Calculations!AA264 -> 33496737.71 | AB94: =+SUMIFS(Calculations!AB167:AB242,ut_Capex_Names,"Налоговая остаточная стоимость, конец периода",ut_Capex_Index,"ОС")+Calculations!AB251+Calculations!AB264 -> 32457116.65 | AC94: =+SUMIFS(Calculations!AC167:AC242,ut_Capex_Names,"Налоговая остаточная стоимость, конец периода",ut_Capex_Index,"ОС")+Calculations!AC251+Calculations!AC264 -> 31416655.58 | AD94: =+SUMIFS(Calculations!AD167:AD242,ut_Capex_Names,"Налоговая остаточная стоимость, конец периода",ut_Capex_Index,"ОС")+Calculations!AD251+Calculations!AD264 -> 30375354.51 | AE94: =+SUMIFS(Calculations!AE167:AE242,ut_Capex_Names,"Налоговая остаточная стоимость, конец периода",ut_Capex_Index,"ОС")+Calculations!AE251+Calculations!AE264 -> 29333213.45 | AF94: =+SUMIFS(Calculations!AF167:AF242,ut_Capex_Names,"Налоговая остаточная стоимость, конец периода",ut_Capex_Index,"ОС")+Calculations!AF251+Calculations!AF264 -> 28290232.38 | AG94: =+SUMIFS(Calculations!AG167:AG242,ut_Capex_Names,"Налоговая остаточная стоимость, конец периода",ut_Capex_Index,"ОС")+Calculations!AG251+Calculations!AG264 -> 27246411.31 | AH94: =+SUMIFS(Calculations!AH167:AH242,ut_Capex_Names,"Налоговая остаточная стоимость, конец периода",ut_Capex_Index,"ОС")+Calculations!AH251+Calculations!AH264 -> 26201750.24 | AI94: =+SUMIFS(Calculations!AI167:AI242,ut_Capex_Names,"Налоговая остаточная стоимость, конец периода",ut_Capex_Index,"ОС")+Calculations!AI251+Calculations!AI264 -> 25160449.18 | AJ94: =+SUMIFS(Calculations!AJ167:AJ242,ut_Capex_Names,"Налоговая остаточная стоимость, конец периода",ut_Capex_Index,"ОС")+Calculations!AJ251+Calculations!AJ264 -> 24119148.11 | AK94: =+SUMIFS(Calculations!AK167:AK242,ut_Capex_Names,"Налоговая остаточная стоимость, конец периода",ut_Capex_Index,"ОС")+Calculations!AK251+Calculations!AK264 -> 23077847.04 | AL94: =+SUMIFS(Calculations!AL167:AL242,ut_Capex_Names,"Налоговая остаточная стоимость, конец периода",ut_Capex_Index,"ОС")+Calculations!AL251+Calculations!AL264 -> 22036545.98 | AM94: =+SUMIFS(Calculations!AM167:AM242,ut_Capex_Names,"Налоговая остаточная стоимость, конец периода",ut_Capex_Index,"ОС")+Calculations!AM251+Calculations!AM264 -> 20995244.91 | AN94: =+SUMIFS(Calculations!AN167:AN242,ut_Capex_Names,"Налоговая остаточная стоимость, конец периода",ut_Capex_Index,"ОС")+Calculations!AN251+Calculations!AN264 -> 19953943.84 | AO94: =+SUMIFS(Calculations!AO167:AO242,ut_Capex_Names,"Налоговая остаточная стоимость, конец периода",ut_Capex_Index,"ОС")+Calculations!AO251+Calculations!AO264 -> 18912642.78 | AP94: =+SUMIFS(Calculations!AP167:AP242,ut_Capex_Names,"Налоговая остаточная стоимость, конец периода",ut_Capex_Index,"ОС")+Calculations!AP251+Calculations!AP264 -> 17871341.71 | AQ94: =+SUMIFS(Calculations!AQ167:AQ242,ut_Capex_Names,"Налоговая остаточная стоимость, конец периода",ut_Capex_Index,"ОС")+Calculations!AQ251+Calculations!AQ264 -> 16830040.64 | AR94: =+SUMIFS(Calculations!AR167:AR242,ut_Capex_Names,"Налоговая остаточная стоимость, конец периода",ut_Capex_Index,"ОС")+Calculations!AR251+Calculations!AR264 -> 15788739.58 | AS94: ut_Assets_Balance
C95: Незавершенное строительство | D95: тыс. RUB | T95: =SUMIFS(Calculations!T167:T242,ut_Capex_Names,"Незавершенное строительство, конец периода")+Calculations!T249+Calculations!T262 -> 2916666.667 | U95: =SUMIFS(Calculations!U167:U242,ut_Capex_Names,"Незавершенное строительство, конец периода")+Calculations!U249+Calculations!U262 -> 5500000 | V95: =SUMIFS(Calculations!V167:V242,ut_Capex_Names,"Незавершенное строительство, конец периода")+Calculations!V249+Calculations!V262 -> 7833333.333 | W95: =SUMIFS(Calculations!W167:W242,ut_Capex_Names,"Незавершенное строительство, конец периода")+Calculations!W249+Calculations!W262 -> 27985563.18 | X95: =SUMIFS(Calculations!X167:X242,ut_Capex_Names,"Незавершенное строительство, конец периода")+Calculations!X249+Calculations!X262 -> 37363776.67 | Y95: =SUMIFS(Calculations!Y167:Y242,ut_Capex_Names,"Незавершенное строительство, конец периода")+Calculations!Y249+Calculations!Y262 -> -708233.1748 | Z95: =SUMIFS(Calculations!Z167:Z242,ut_Capex_Names,"Незавершенное строительство, конец периода")+Calculations!Z249+Calculations!Z262 -> -708233.1748 | AA95: =SUMIFS(Calculations!AA167:AA242,ut_Capex_Names,"Незавершенное строительство, конец периода")+Calculations!AA249+Calculations!AA262 -> -708233.1748 | AB95: =SUMIFS(Calculations!AB167:AB242,ut_Capex_Names,"Незавершенное строительство, конец периода")+Calculations!AB249+Calculations!AB262 -> -708233.1748 | AC95: =SUMIFS(Calculations!AC167:AC242,ut_Capex_Names,"Незавершенное строительство, конец периода")+Calculations!AC249+Calculations!AC262 -> -708233.1748 | AD95: =SUMIFS(Calculations!AD167:AD242,ut_Capex_Names,"Незавершенное строительство, конец периода")+Calculations!AD249+Calculations!AD262 -> -708233.1748 | AE95: =SUMIFS(Calculations!AE167:AE242,ut_Capex_Names,"Незавершенное строительство, конец периода")+Calculations!AE249+Calculations!AE262 -> -708233.1748 | AF95: =SUMIFS(Calculations!AF167:AF242,ut_Capex_Names,"Незавершенное строительство, конец периода")+Calculations!AF249+Calculations!AF262 -> -708233.1748 | AG95: =SUMIFS(Calculations!AG167:AG242,ut_Capex_Names,"Незавершенное строительство, конец периода")+Calculations!AG249+Calculations!AG262 -> -708233.1748 | AH95: =SUMIFS(Calculations!AH167:AH242,ut_Capex_Names,"Незавершенное строительство, конец периода")+Calculations!AH249+Calculations!AH262 -> -708233.1748 | AI95: =SUMIFS(Calculations!AI167:AI242,ut_Capex_Names,"Незавершенное строительство, конец периода")+Calculations!AI249+Calculations!AI262 -> -708233.1748 | AJ95: =SUMIFS(Calculations!AJ167:AJ242,ut_Capex_Names,"Незавершенное строительство, конец периода")+Calculations!AJ249+Calculations!AJ262 -> -708233.1748 | AK95: =SUMIFS(Calculations!AK167:AK242,ut_Capex_Names,"Незавершенное строительство, конец периода")+Calculations!AK249+Calculations!AK262 -> -708233.1748 | AL95: =SUMIFS(Calculations!AL167:AL242,ut_Capex_Names,"Незавершенное строительство, конец периода")+Calculations!AL249+Calculations!AL262 -> -708233.1748 | AM95: =SUMIFS(Calculations!AM167:AM242,ut_Capex_Names,"Незавершенное строительство, конец периода")+Calculations!AM249+Calculations!AM262 -> -708233.1748 | AN95: =SUMIFS(Calculations!AN167:AN242,ut_Capex_Names,"Незавершенное строительство, конец периода")+Calculations!AN249+Calculations!AN262 -> -708233.1748 | AO95: =SUMIFS(Calculations!AO167:AO242,ut_Capex_Names,"Незавершенное строительство, конец периода")+Calculations!AO249+Calculations!AO262 -> -708233.1748 | AP95: =SUMIFS(Calculations!AP167:AP242,ut_Capex_Names,"Незавершенное строительство, конец периода")+Calculations!AP249+Calculations!AP262 -> -708233.1748 | AQ95: =SUMIFS(Calculations!AQ167:AQ242,ut_Capex_Names,"Незавершенное строительство, конец периода")+Calculations!AQ249+Calculations!AQ262 -> -708233.1748 | AR95: =SUMIFS(Calculations!AR167:AR242,ut_Capex_Names,"Незавершенное строительство, конец периода")+Calculations!AR249+Calculations!AR262 -> -708233.1748 | AS95: ut_CIP_Balance
C96: Долгосрочные финансовые вложения | D96: тыс. RUB | T96: =ut_Fin_Assets_Eq_Balance -> 0 | U96: 0 | V96: 0 | W96: 0 | X96: 0 | Y96: 0 | Z96: 0 | AA96: 0 | AB96: 0 | AC96: 0 | AD96: 0 | AE96: 0 | AF96: 0 | AG96: 0 | AH96: 0 | AI96: 0 | AJ96: 0 | AK96: 0 | AL96: 0 | AM96: 0 | AN96: 0 | AO96: 0 | AP96: 0 | AQ96: 0 | AR96: 0 | AS96: ut_LT_Fin_Assets_Balance
C97: Отложенные налоговые активы | D97: тыс. RUB | T97: =-T180 -> 0 | U97: =-U180 -> 0 | V97: 0 | W97: 0 | X97: =-X180 -> 0 | Y97: 0 | Z97: 0 | AA97: 0 | AB97: =-AB180 -> 0 | AC97: 0 | AD97: 0 | AE97: 0 | AF97: 0 | AG97: 0 | AH97: 0 | AI97: 0 | AJ97: 0 | AK97: 0 | AL97: 0 | AM97: 0 | AN97: 0 | AO97: 0 | AP97: 0 | AQ97: 543138.7882 | AR97: =-AR180 -> 747821.9762 | AS97: ut_Deferred_Tax_Asset_Balance
C98: Прочие внеоборотные активы | D98: тыс. RUB | F98: ремонты | T98: =Calculations!T265 -> 0 | U98: =Calculations!U265 -> 0 | V98: =Calculations!V265 -> 0 | W98: =Calculations!W265 -> 0 | X98: =Calculations!X265 -> 0 | Y98: =Calculations!Y265 -> 0 | Z98: =Calculations!Z265 -> 0 | AA98: =Calculations!AA265 -> 0 | AB98: =Calculations!AB265 -> 0 | AC98: =Calculations!AC265 -> 0 | AD98: =Calculations!AD265 -> 0 | AE98: =Calculations!AE265 -> 0 | AF98: =Calculations!AF265 -> 0 | AG98: =Calculations!AG265 -> 0 | AH98: =Calculations!AH265 -> 0 | AI98: =Calculations!AI265 -> 0 | AJ98: =Calculations!AJ265 -> 0 | AK98: =Calculations!AK265 -> 0 | AL98: =Calculations!AL265 -> 0 | AM98: =Calculations!AM265 -> 0 | AN98: =Calculations!AN265 -> 0 | AO98: =Calculations!AO265 -> 0 | AP98: =Calculations!AP265 -> 0 | AQ98: =Calculations!AQ265 -> 0 | AR98: =Calculations!AR265 -> 0 | AS98: ut_Other_Noncurrent_Assets_Balance
C99: Оборотные активы | D99: тыс. RUB | T99: =SUM(T100:T107) -> 688878.15 | U99: =SUM(U100:U107) -> 1513781.933 | V99: 2507387.183 | W99: 7644992.15 | X99: =SUM(X100:X107) -> 11365345.82 | Y99: 8605541.237 | Z99: 10114905.42 | AA99: 11460417.73 | AB99: =SUM(AB100:AB107) -> 16746317.59 | AC99: 16745403.5 | AD99: 17165176.59 | AE99: 18178315.45 | AF99: 19203419.98 | AG99: 19193382.16 | AH99: 20353030.11 | AI99: 21078059.07 | AJ99: 22487084.54 | AK99: 24340642.23 | AL99: 24935833.85 | AM99: 25734194.08 | AN99: 28983038.01 | AO99: 31370948.12 | AP99: 32425235.25 | AQ99: 30906228.05 | AR99: =SUM(AR100:AR107) -> 31324519.98 | AS99: ut_Current_Assets_Balance
C100: Запасы | D100: тыс. RUB | T100: =Inputs!T293 -> 0 | U100: =Inputs!U293 -> 0 | V100: =Inputs!V293 -> 0 | W100: =Inputs!W293 -> 0 | X100: =Inputs!X293 -> 0 | Y100: =Inputs!Y293 -> 834161.396 | Z100: =Inputs!Z293 -> 873061.4311 | AA100: =Inputs!AA293 -> 901091.1765 | AB100: =Inputs!AB293 -> 2805754.902 | AC100: =Inputs!AC293 -> 2844225.147 | AD100: =Inputs!AD293 -> 2915345.432 | AE100: =Inputs!AE293 -> 2998756.326 | AF100: =Inputs!AF293 -> 3069217.735 | AG100: =Inputs!AG293 -> 3144693.706 | AH100: =Inputs!AH293 -> 3199282.565 | AI100: =Inputs!AI293 -> 3260081.015 | AJ100: =Inputs!AJ293 -> 3321145.357 | AK100: =Inputs!AK293 -> 3458385.633 | AL100: =Inputs!AL293 -> 3522191.436 | AM100: =Inputs!AM293 -> 3639898.492 | AN100: =Inputs!AN293 -> 3783263.786 | AO100: =Inputs!AO293 -> 3859095.785 | AP100: =Inputs!AP293 -> 3952340.945 | AQ100: =Inputs!AQ293 -> 4112135.587 | AR100: =Inputs!AR293 -> 4258934.381 | AS100: ut_Inventory_Balance
C101: Незавершенное производство | D101: тыс. RUB | T101: =Inputs!T294 -> 0 | U101: =Inputs!U294 -> 0 | V101: =Inputs!V294 -> 0 | W101: =Inputs!W294 -> 0 | X101: =Inputs!X294 -> 0 | Y101: =Inputs!Y294 -> 417080.698 | Z101: =Inputs!Z294 -> 436530.7155 | AA101: =Inputs!AA294 -> 450545.5882 | AB101: =Inputs!AB294 -> 1402877.451 | AC101: =Inputs!AC294 -> 1422112.574 | AD101: =Inputs!AD294 -> 1457672.716 | AE101: =Inputs!AE294 -> 1499378.163 | AF101: =Inputs!AF294 -> 1534608.868 | AG101: =Inputs!AG294 -> 1572346.853 | AH101: =Inputs!AH294 -> 1599641.283 | AI101: =Inputs!AI294 -> 1630040.507 | AJ101: =Inputs!AJ294 -> 1660572.679 | AK101: =Inputs!AK294 -> 1729192.817 | AL101: =Inputs!AL294 -> 1761095.718 | AM101: =Inputs!AM294 -> 1819949.246 | AN101: =Inputs!AN294 -> 1891631.893 | AO101: =Inputs!AO294 -> 1929547.893 | AP101: =Inputs!AP294 -> 1976170.473 | AQ101: =Inputs!AQ294 -> 2056067.794 | AR101: =Inputs!AR294 -> 2129467.19 | AS101: ut_Stocks
C102: Дебиторская задолженность покупателей и заказчиков | D102: тыс. RUB | T102: =Inputs!T295 -> 0 | U102: =Inputs!U295 -> 0 | V102: =Inputs!V295 -> 0 | W102: =Inputs!W295 -> 0 | X102: =Inputs!X295 -> 0 | Y102: =Inputs!Y295 -> 1458419.11 | Z102: =Inputs!Z295 -> 1556164.21 | AA102: =Inputs!AA295 -> 1548309.912 | AB102: =Inputs!AB295 -> 4503599.745 | AC102: =Inputs!AC295 -> 4477411.652 | AD102: =Inputs!AD295 -> 4490380.905 | AE102: =Inputs!AE295 -> 4754147.055 | AF102: =Inputs!AF295 -> 4527272.008 | AG102: =Inputs!AG295 -> 4226838.431 | AH102: =Inputs!AH295 -> 4479528.785 | AI102: =Inputs!AI295 -> 4364191.683 | AJ102: =Inputs!AJ295 -> 4669273.286 | AK102: =Inputs!AK295 -> 5010057.656 | AL102: =Inputs!AL295 -> 4823507.391 | AM102: =Inputs!AM295 -> 4812110.482 | AN102: =Inputs!AN295 -> 5136514.422 | AO102: =Inputs!AO295 -> 5181294.698 | AP102: =Inputs!AP295 -> 5123088.459 | AQ102: =Inputs!AQ295 -> 4959870.095 | AR102: =Inputs!AR295 -> 5352787.797 | AS102: ut_TradeReceivables_Balance
C103: Инвестиционные авансы | D103: тыс. RUB | T103: =-SUMIFS(INDEX(ut_Capex_Data,,T$1),ut_Capex_Index2,"advance",INDEX(ut_Capex_Data,,T$1),"<"&0) -> 0 | U103: 0 | V103: 0 | W103: 0 | X103: 0 | Y103: 0 | Z103: 0 | AA103: 0 | AB103: 0 | AC103: 0 | AD103: 0 | AE103: 0 | AF103: 0 | AG103: 0 | AH103: 0 | AI103: 0 | AJ103: 0 | AK103: 0 | AL103: 0 | AM103: 0 | AN103: 0 | AO103: 0 | AP103: 0 | AQ103: 0 | AR103: 0 | AS103: ut_Investment_Advances_Balance
C104: НДС к возмещению из бюджета | D104: тыс. RUB | T104: =ut_VAT_to_balance -> 599643.41 | U104: 1132749.213 | V104: 1615199.203 | W104: 5662380.286 | X104: 7554614.004 | Y104: 840 | Z104: 840 | AA104: 840 | AB104: 840 | AC104: 840 | AD104: 840 | AE104: 840 | AF104: 840 | AG104: 840 | AH104: 840 | AI104: 840 | AJ104: 840 | AK104: 840 | AL104: 840 | AM104: 840 | AN104: 840 | AO104: 840 | AP104: 840 | AQ104: 840 | AR104: 840 | AS104: ut_VAT_Receivable_Balance
C105: Краткосрочные финансовые вложения | D105: тыс. RUB | T105: =0 -> 0 | U105: =0 -> 0 | V105: =0 -> 0 | W105: =0 -> 0 | X105: =0 -> 0 | Y105: =0 -> 0 | Z105: =0 -> 0 | AA105: =0 -> 0 | AB105: =0 -> 0 | AC105: =0 -> 0 | AD105: =0 -> 0 | AE105: =0 -> 0 | AF105: =0 -> 0 | AG105: =0 -> 0 | AH105: =0 -> 0 | AI105: =0 -> 0 | AJ105: =0 -> 0 | AK105: =0 -> 0 | AL105: =0 -> 0 | AM105: =0 -> 0 | AN105: =0 -> 0 | AO105: =0 -> 0 | AP105: =0 -> 0 | AQ105: =0 -> 0 | AR105: =0 -> 0 | AS105: ut_ST_Fin_Assets_Balance
C106: Денежные средства и их эквиваленты | D106: тыс. RUB | T106: =T78 -> 5234.74 | U106: 9032.72 | V106: 10187.98 | W106: 10958.34837 | X106: =X78 -> 13332.51599 | Y106: 384917.9839 | Z106: 503488.5086 | AA106: 728480.7827 | AB106: =AB78 -> 2109787.46 | AC106: 3985048.323 | AD106: 6192863.974 | AE106: 8724812.565 | AF106: 9751281.218 | AG106: 10314724.09 | AH106: 11208898.4 | AI106: 11822905.86 | AJ106: 12835253.22 | AK106: 14142166.13 | AL106: 14828199.3 | AM106: 15461395.86 | AN106: 18170787.91 | AO106: 20400169.74 | AP106: 21372795.38 | AQ106: 19777314.57 | AR106: =AR78 -> 19582490.61 | AS106: ut_Cash_Balance
C107: Прочие оборотные активы | D107: тыс. RUB | F107: балансирует задолженность по % | T107: =T119 -> 84000 | U107: =U119 -> 372000 | V107: 882000 | W107: 1971653.516 | X107: =X119 -> 3797399.302 | Y107: 5510122.049 | Z107: 6744820.555 | AA107: 7831150.268 | AB107: =AB119 -> 5923458.035 | AC107: 4015765.802 | AD107: 2108073.569 | AE107: 200381.3363 | AF107: 320200.1553 | AG107: -66060.91974 | AH107: -135160.9197 | AI107: 0 | AJ107: 0 | AK107: 0 | AL107: 0 | AM107: 0 | AN107: 0 | AO107: 0 | AP107: 0 | AQ107: 0 | AR107: =AR119 -> 0 | AS107: ut_Other_Current_Assets_Balance
C108: ИТОГО АКТИВЫ | D108: тыс. RUB | T108: =SUM(T99,T92) -> 3605544.817 | U108: 7013781.933 | V108: 10340720.52 | W108: 35630555.33 | X108: =SUM(X99,X92) -> 48729122.49 | Y108: 45973517.91 | Z108: 46442484.77 | AA108: 46746759.77 | AB108: =SUM(AB99,AB92) -> 50990582.31 | AC108: 49946750.9 | AD108: 49322766.68 | AE108: 49291308.22 | AF108: 49270975.44 | AG108: 48214660.3 | AH108: 48327190.93 | AI108: 48008462.57 | AJ108: 48373730.73 | AK108: 49183531.1 | AL108: 48734965.4 | AM108: 48489568.32 | AN108: 50694654.93 | AO108: 52038807.72 | AP108: 52049337.54 | AQ108: 50029711.8 | AR108: =SUM(AR99,AR92) -> 49608929.61 | AS108: ut_Total_Assets
C110: Капитал | D110: =ut_Digits&ut_LCU -> тыс. RUB | T110: =SUM(T111:T112) -> 2121544.817 | U110: 3241781.933 | V110: 4358720.517 | W110: 7476225.998 | X110: =SUM(X111:X112) -> 7595191.186 | Y110: 10290050.67 | Z110: 12344499.31 | AA110: 14074163.25 | AB110: =SUM(AB111:AB112) -> 17845465.25 | AC110: 21107703.04 | AD110: 23867128.04 | AE110: 27990624.85 | AF110: 31748390.81 | AG110: 31860723.35 | AH110: 33483581.36 | AI110: 34088941.74 | AJ110: 36126353.61 | AK110: 39371187.25 | AL110: 40972576.12 | AM110: 41581749.83 | AN110: 43176425.59 | AO110: 44451083.31 | AP110: 44607143.68 | AQ110: 42434588.53 | AR110: =SUM(AR111:AR112) -> 41615855.78 | AS110: ut_Shareholders_Equity_Balance
C111: Акционерный, резервный и добавочный капитал | D111: тыс. RUB | T111: =SUM(Inputs!$T238:'Inputs'!T238)+SUM(Calculations!$T400:T400)+SUM(Calculations!$T404:T404)-SUM(Calculations!$T416:T416) -> 2050000 | U111: =SUM(Inputs!$T238:'Inputs'!U238)+SUM(Calculations!$T400:U400)+SUM(Calculations!$T404:U404)-SUM(Calculations!$T416:U416) -> 3100000 | V111: =SUM(Inputs!$T238:'Inputs'!V238)+SUM(Calculations!$T400:V400)+SUM(Calculations!$T404:V404)-SUM(Calculations!$T416:V416) -> 4140000 | W111: =SUM(Inputs!$T238:'Inputs'!W238)+SUM(Calculations!$T400:W400)+SUM(Calculations!$T404:W404)-SUM(Calculations!$T416:W416) -> 7221000 | X111: =SUM(Inputs!$T238:'Inputs'!X238)+SUM(Calculations!$T400:X400)+SUM(Calculations!$T404:X404)-SUM(Calculations!$T416:X416) -> 7281000 | Y111: =SUM(Inputs!$T238:'Inputs'!Y238)+SUM(Calculations!$T400:Y400)+SUM(Calculations!$T404:Y404)-SUM(Calculations!$T416:Y416) -> 7281000 | Z111: =SUM(Inputs!$T238:'Inputs'!Z238)+SUM(Calculations!$T400:Z400)+SUM(Calculations!$T404:Z404)-SUM(Calculations!$T416:Z416) -> 7281000 | AA111: =SUM(Inputs!$T238:'Inputs'!AA238)+SUM(Calculations!$T400:AA400)+SUM(Calculations!$T404:AA404)-SUM(Calculations!$T416:AA416) -> 7281000 | AB111: =SUM(Inputs!$T238:'Inputs'!AB238)+SUM(Calculations!$T400:AB400)+SUM(Calculations!$T404:AB404)-SUM(Calculations!$T416:AB416) -> 7281000 | AC111: =SUM(Inputs!$T238:'Inputs'!AC238)+SUM(Calculations!$T400:AC400)+SUM(Calculations!$T404:AC404)-SUM(Calculations!$T416:AC416) -> 7281000 | AD111: =SUM(Inputs!$T238:'Inputs'!AD238)+SUM(Calculations!$T400:AD400)+SUM(Calculations!$T404:AD404)-SUM(Calculations!$T416:AD416) -> 7281000 | AE111: =SUM(Inputs!$T238:'Inputs'!AE238)+SUM(Calculations!$T400:AE400)+SUM(Calculations!$T404:AE404)-SUM(Calculations!$T416:AE416) -> 7281000 | AF111: =SUM(Inputs!$T238:'Inputs'!AF238)+SUM(Calculations!$T400:AF400)+SUM(Calculations!$T404:AF404)-SUM(Calculations!$T416:AF416) -> 7281000 | AG111: =SUM(Inputs!$T238:'Inputs'!AG238)+SUM(Calculations!$T400:AG400)+SUM(Calculations!$T404:AG404)-SUM(Calculations!$T416:AG416) -> 7281000 | AH111: =SUM(Inputs!$T238:'Inputs'!AH238)+SUM(Calculations!$T400:AH400)+SUM(Calculations!$T404:AH404)-SUM(Calculations!$T416:AH416) -> 7281000 | AI111: =SUM(Inputs!$T238:'Inputs'!AI238)+SUM(Calculations!$T400:AI400)+SUM(Calculations!$T404:AI404)-SUM(Calculations!$T416:AI416) -> 7281000 | AJ111: =SUM(Inputs!$T238:'Inputs'!AJ238)+SUM(Calculations!$T400:AJ400)+SUM(Calculations!$T404:AJ404)-SUM(Calculations!$T416:AJ416) -> 7281000 | AK111: =SUM(Inputs!$T238:'Inputs'!AK238)+SUM(Calculations!$T400:AK400)+SUM(Calculations!$T404:AK404)-SUM(Calculations!$T416:AK416) -> 7281000 | AL111: =SUM(Inputs!$T238:'Inputs'!AL238)+SUM(Calculations!$T400:AL400)+SUM(Calculations!$T404:AL404)-SUM(Calculations!$T416:AL416) -> 7281000 | AM111: =SUM(Inputs!$T238:'Inputs'!AM238)+SUM(Calculations!$T400:AM400)+SUM(Calculations!$T404:AM404)-SUM(Calculations!$T416:AM416) -> 7281000 | AN111: =SUM(Inputs!$T238:'Inputs'!AN238)+SUM(Calculations!$T400:AN400)+SUM(Calculations!$T404:AN404)-SUM(Calculations!$T416:AN416) -> 7281000 | AO111: =SUM(Inputs!$T238:'Inputs'!AO238)+SUM(Calculations!$T400:AO400)+SUM(Calculations!$T404:AO404)-SUM(Calculations!$T416:AO416) -> 7281000 | AP111: =SUM(Inputs!$T238:'Inputs'!AP238)+SUM(Calculations!$T400:AP400)+SUM(Calculations!$T404:AP404)-SUM(Calculations!$T416:AP416) -> 7281000 | AQ111: =SUM(Inputs!$T238:'Inputs'!AQ238)+SUM(Calculations!$T400:AQ400)+SUM(Calculations!$T404:AQ404)-SUM(Calculations!$T416:AQ416) -> 7281000 | AR111: =SUM(Inputs!$T238:'Inputs'!AR238)+SUM(Calculations!$T400:AR400)+SUM(Calculations!$T404:AR404)-SUM(Calculations!$T416:AR416) -> 7281000 | AS111: ut_Equity_Balance
C112: Нераспределенная прибыль | D112: тыс. RUB | T112: =S112+T192+T181 -> 71544.81667 | U112: =T112+U192+U181 -> 141781.9333 | V112: 218720.5167 | W112: 255225.9984 | X112: 314191.186 | Y112: 3009050.669 | Z112: 5063499.31 | AA112: 6793163.247 | AB112: =AA112+AB192+AB181 -> 10564465.25 | AC112: =AB112+AC192+AC181 -> 13826703.04 | AD112: =AC112+AD192+AD181 -> 16586128.04 | AE112: =AD112+AE192+AE181 -> 20709624.85 | AF112: =AE112+AF192+AF181 -> 24467390.81 | AG112: =AF112+AG192+AG181 -> 24579723.35 | AH112: =AG112+AH192+AH181 -> 26202581.36 | AI112: =AH112+AI192+AI181 -> 26807941.74 | AJ112: =AI112+AJ192+AJ181 -> 28845353.61 | AK112: =AJ112+AK192+AK181 -> 32090187.25 | AL112: =AK112+AL192+AL181 -> 33691576.12 | AM112: =AL112+AM192+AM181 -> 34300749.83 | AN112: =AM112+AN192+AN181 -> 35895425.59 | AO112: =AN112+AO192+AO181 -> 37170083.31 | AP112: =AO112+AP192+AP181 -> 37326143.68 | AQ112: =AP112+AQ192+AQ181 -> 35153588.53 | AR112: =AQ112+AR192+AR181 -> 34334855.78 | AS112: ut_Retained_Earnings_Balance
C113: Долгосрочные обязательства | D113: тыс. RUB | T113: =SUM(T114:T116) -> 1400000 | U113: 3400000 | V113: 5100000 | W113: 26182675.81 | X113: =SUM(X114:X116) -> 37336532.01 | Y113: 28098504.4 | Z113: 25150709.41 | AA113: 22591114.01 | AB113: =SUM(AB114:AB116) -> 20343240.91 | AC113: 17883482.47 | AD113: 16281227.69 | AE113: 13786914.86 | AF113: 9860201.488 | AG113: 9070952.518 | AH113: 7429664.188 | AI113: 6310050.374 | AJ113: 4406414.333 | AK113: 1610971.615 | AL113: -475811.7383 | AM113: -1519371.604 | AN113: -1272996.093 | AO113: -1353000.603 | AP113: -1632649.94 | AQ113: -1671665.033 | AR113: =SUM(AR114:AR116) -> -1671665.033 | AS113: ut_NonCurrent_Liabilities_Balance
C114: Долгосрочные кредиты и займы | D114: тыс. RUB | T114: =SUM(T201:T204) -> 1400000 | U114: =SUM(U201:U204) -> 3400000 | V114: 5100000 | W114: 26182675.81 | X114: 37336532.01 | Y114: 28098504.4 | Z114: 25150709.41 | AA114: 22591114.01 | AB114: =SUM(AB201:AB204) -> 20343240.91 | AC114: 17883482.47 | AD114: 16281227.69 | AE114: 13786914.86 | AF114: 9860201.488 | AG114: 9042869.385 | AH114: 7023949.685 | AI114: 6158710.278 | AJ114: 3897061.366 | AK114: 799763.2073 | AL114: -876158.9564 | AM114: -1671665.033 | AN114: -1671665.033 | AO114: -1671665.033 | AP114: -1671665.033 | AQ114: -1671665.033 | AR114: =SUM(AR201:AR204) -> -1671665.033 | AS114: ut_LT_Debt_Balance
C115: Отложенные налоговые обязательства | D115: тыс. RUB | T115: =T189 -> 0 | U115: =U189 -> 0 | V115: 0 | W115: 0 | X115: =X189 -> 0 | Y115: 0 | Z115: 0 | AA115: 0 | AB115: =AB189 -> 0 | AC115: 0 | AD115: 0 | AE115: 0 | AF115: 0 | AG115: 28083.13332 | AH115: 405714.5034 | AI115: 151340.0958 | AJ115: 509352.9675 | AK115: 811208.4081 | AL115: 400347.2181 | AM115: 152293.4289 | AN115: 398668.9398 | AO115: 318664.4302 | AP115: 39015.09253 | AQ115: 0 | AR115: =AR189 -> 0 | AS115: ut_Deferred_Tax_Liability_Balance
C116: Прочие долгосрочные обязательства | D116: тыс. RUB | F116: балансирует капитализируемые расходы | T116: =ut_CIP_Capitalized+ut_Balance_Capitalized -> 0 | U116: 0 | V116: 0 | W116: 0 | X116: 0 | Y116: 0 | Z116: 0 | AA116: 0 | AB116: 0 | AC116: 0 | AD116: 0 | AE116: 0 | AF116: 0 | AG116: 0 | AH116: 0 | AI116: 0 | AJ116: 0 | AK116: 0 | AL116: 0 | AM116: 0 | AN116: 0 | AO116: 0 | AP116: 0 | AQ116: 0 | AR116: 0 | AS116: ut_LT_Other_Liabilities_Balance
C117: Краткосрочные обязательства | D117: тыс. RUB | T117: =SUM(T118:T124) -> 84000 | U117: 372000 | V117: 882000 | W117: 1971653.516 | X117: =SUM(X118:X124) -> 3797399.302 | Y117: 7584962.837 | Z117: 8947276.052 | AA117: 10081482.51 | AB117: =SUM(AB118:AB124) -> 12801876.16 | AC117: 10955565.39 | AD117: 9174410.955 | AE117: 7513768.507 | AF117: 7662383.136 | AG117: 7282984.431 | AH117: 7413945.382 | AI117: 7609470.451 | AJ117: 7840962.778 | AK117: 8201372.24 | AL117: 8238201.021 | AM117: 8427190.09 | AN117: 8791225.426 | AO117: 8940725.008 | AP117: 9074843.793 | AQ117: 9266788.305 | AR117: =SUM(AR118:AR124) -> 9664738.861 | AS117: ut_Current_Liabilities_Balance
C118: Краткосрочные кредиты и займы | D118: тыс. RUB | F118: always null | T118: =0 -> 0 | U118: =0 -> 0 | V118: =0 -> 0 | W118: =0 -> 0 | X118: =0 -> 0 | Y118: =0 -> 0 | Z118: =0 -> 0 | AA118: =0 -> 0 | AB118: =0 -> 0 | AC118: =0 -> 0 | AD118: =0 -> 0 | AE118: =0 -> 0 | AF118: =0 -> 0 | AG118: =0 -> 0 | AH118: =0 -> 0 | AI118: =0 -> 0 | AJ118: =0 -> 0 | AK118: =0 -> 0 | AL118: =0 -> 0 | AM118: =0 -> 0 | AN118: =0 -> 0 | AO118: =0 -> 0 | AP118: =0 -> 0 | AQ118: =0 -> 0 | AR118: =0 -> 0 | AS118: ut_ST_Debt_Balance
C119: Задолженность по процентам | D119: тыс. RUB | T119: =SUMIFS(INDEX(ut_Debt_Data,,T$1),ut_Debt_Name_2,"Задолженность по выплате процентов на конец периода - валюта модели") -> 84000 | U119: 372000 | V119: 882000 | W119: 1971653.516 | X119: 3797399.302 | Y119: 5510122.049 | Z119: 6744820.555 | AA119: 7831150.268 | AB119: 5923458.035 | AC119: 4015765.802 | AD119: 2108073.569 | AE119: 200381.3363 | AF119: 320200.1553 | AG119: -66060.91974 | AH119: -135160.9197 | AI119: 0 | AJ119: 0 | AK119: 0 | AL119: 0 | AM119: 0 | AN119: 0 | AO119: 0 | AP119: 0 | AQ119: 0 | AR119: 0 | AS119: ut_Interest_Balance
C120: Задолженность участникам по выплате дивидендов | D120: тыс. RUB | T120: =0 -> 0 | U120: =0 -> 0 | V120: =0 -> 0 | W120: =0 -> 0 | X120: =0 -> 0 | Y120: =0 -> 0 | Z120: =0 -> 0 | AA120: =0 -> 0 | AB120: =0 -> 0 | AC120: =0 -> 0 | AD120: =0 -> 0 | AE120: =0 -> 0 | AF120: =0 -> 0 | AG120: =0 -> 0 | AH120: =0 -> 0 | AI120: =0 -> 0 | AJ120: =0 -> 0 | AK120: =0 -> 0 | AL120: =0 -> 0 | AM120: =0 -> 0 | AN120: =0 -> 0 | AO120: =0 -> 0 | AP120: =0 -> 0 | AQ120: =0 -> 0 | AR120: =0 -> 0 | AS120: ut_Unpaid_Dividends
C121: Текущая задолженность перед поставщиками и подрядчиками | D121: тыс. RUB | T121: =Inputs!T300 -> 0 | U121: =Inputs!U300 -> 0 | V121: =Inputs!V300 -> 0 | W121: =Inputs!W300 -> 0 | X121: =Inputs!X300 -> 0 | Y121: =Inputs!Y300 -> 1660220.464 | Z121: =Inputs!Z300 -> 1737477.505 | AA121: =Inputs!AA300 -> 1793580.631 | AB121: =Inputs!AB300 -> 5586489.806 | AC121: =Inputs!AC300 -> 5663575.785 | AD121: =Inputs!AD300 -> 5805744.303 | AE121: =Inputs!AE300 -> 5971100.724 | AF121: =Inputs!AF300 -> 6113283.96 | AG121: =Inputs!AG300 -> 6265904.976 | AH121: =Inputs!AH300 -> 6373678.86 | AI121: =Inputs!AI300 -> 6495916.52 | AJ121: =Inputs!AJ300 -> 6616350.307 | AK121: =Inputs!AK300 -> 6888937.613 | AL121: =Inputs!AL300 -> 7017585.608 | AM121: =Inputs!AM300 -> 7253063.036 | AN121: =Inputs!AN300 -> 7537991.38 | AO121: =Inputs!AO300 -> 7689406.6 | AP121: =Inputs!AP300 -> 7876220.288 | AQ121: =Inputs!AQ300 -> 8196716.341 | AR121: =Inputs!AR300 -> 8488131.052 | AS121: ut_TradePayables_Balance
C122: Инвестиционная кредиторская задолженность | D122: тыс. RUB | T122: =SUMIFS(INDEX(ut_Capex_Data,,T$1),ut_Capex_Index2,"advance",INDEX(ut_Capex_Data,,T$1),">"&0) -> 0 | U122: 0 | V122: 0 | W122: 0 | X122: 0 | Y122: 0 | Z122: 0 | AA122: 0 | AB122: 0 | AC122: 0 | AD122: 0 | AE122: 0 | AF122: 0 | AG122: 0 | AH122: 0 | AI122: 0 | AJ122: 0 | AK122: 0 | AL122: 0 | AM122: 0 | AN122: 0 | AO122: 0 | AP122: 0 | AQ122: 0 | AR122: 0 | AS122: ut_Investment_Payables_Balance
C123: НДС к уплате в бюджет | D123: тыс. RUB | T123: =Calculations!T629 -> 0 | U123: =Calculations!U629 -> 0 | V123: =Calculations!V629 -> 0 | W123: =Calculations!W629 -> 0 | X123: =Calculations!X629 -> 0 | Y123: =Calculations!Y629 -> 414620.3244 | Z123: =Calculations!Z629 -> 464977.9916 | AA123: =Calculations!AA629 -> 456751.6141 | AB123: =Calculations!AB629 -> 1291928.315 | AC123: =Calculations!AC629 -> 1276223.798 | AD123: =Calculations!AD629 -> 1260593.083 | AE123: =Calculations!AE629 -> 1342286.447 | AF123: =Calculations!AF629 -> 1228899.021 | AG123: =Calculations!AG629 -> 1083140.375 | AH123: =Calculations!AH629 -> 1175427.442 | AI123: =Calculations!AI629 -> 1113553.931 | AJ123: =Calculations!AJ629 -> 1224612.471 | AK123: =Calculations!AK629 -> 1312434.627 | AL123: =Calculations!AL629 -> 1220615.412 | AM123: =Calculations!AM629 -> 1174127.053 | AN123: =Calculations!AN629 -> 1253234.046 | AO123: =Calculations!AO629 -> 1251318.408 | AP123: =Calculations!AP629 -> 1198623.505 | AQ123: =Calculations!AQ629 -> 1070071.964 | AR123: =Calculations!AR629 -> 1176607.81 | AS123: ut_VAT_Payable_Balance
C124: Прочие краткосрочные обязательства | D124: тыс. RUB | T124: =0 -> 0 | U124: =0 -> 0 | V124: =0 -> 0 | W124: =0 -> 0 | X124: =0 -> 0 | Y124: =0 -> 0 | Z124: =0 -> 0 | AA124: =0 -> 0 | AB124: =0 -> 0 | AC124: =0 -> 0 | AD124: =0 -> 0 | AE124: =0 -> 0 | AF124: =0 -> 0 | AG124: =0 -> 0 | AH124: =0 -> 0 | AI124: =0 -> 0 | AJ124: =0 -> 0 | AK124: =0 -> 0 | AL124: =0 -> 0 | AM124: =0 -> 0 | AN124: =0 -> 0 | AO124: =0 -> 0 | AP124: =0 -> 0 | AQ124: =0 -> 0 | AR124: =0 -> 0 | AS124: ut_ST_Liabilities_Balance
C125: ИТОГО КАПИТАЛ И ОБЯЗАТЕЛЬСТВА | D125: тыс. RUB | T125: =SUM(T110,T113,T117) -> 3605544.817 | U125: =SUM(U110,U113,U117) -> 7013781.933 | V125: 10340720.52 | W125: 35630555.33 | X125: =SUM(X110,X113,X117) -> 48729122.49 | Y125: 45973517.91 | Z125: =SUM(Z110,Z113,Z117) -> 46442484.77 | AA125: 46746759.77 | AB125: =SUM(AB110,AB113,AB117) -> 50990582.31 | AC125: 49946750.9 | AD125: 49322766.68 | AE125: 49291308.22 | AF125: 49270975.44 | AG125: 48214660.3 | AH125: 48327190.93 | AI125: 48008462.57 | AJ125: 48373730.73 | AK125: 49183531.1 | AL125: 48734965.4 | AM125: 48489568.32 | AN125: 50694654.93 | AO125: 52038807.72 | AP125: 52049337.54 | AQ125: 50029711.8 | AR125: =SUM(AR110,AR113,AR117) -> 49608929.61 | AS125: ut_Total_Equity_Liabilities
C127: Проверка | E127: =MAX(T127:AR127) -> 4.470348358e-08 | T127: =ABS(T108-T125)*ut_history_check -> 4.656612873e-10 | U127: 0 | V127: 0 | W127: 0 | X127: 7.450580597e-09 | Y127: 0 | Z127: 0 | AA127: 7.450580597e-09 | AB127: 2.235174179e-08 | AC127: 2.235174179e-08 | AD127: 2.980232239e-08 | AE127: 3.725290298e-08 | AF127: 4.470348358e-08 | AG127: 2.980232239e-08 | AH127: 2.980232239e-08 | AI127: 2.980232239e-08 | AJ127: 3.725290298e-08 | AK127: 2.235174179e-08 | AL127: 2.235174179e-08 | AM127: 2.980232239e-08 | AN127: 2.235174179e-08 | AO127: 2.980232239e-08 | AP127: 3.725290298e-08 | AQ127: 2.980232239e-08 | AR127: 1.490116119e-08
C129: Показатели, используемые для корректировки Debt / Net Debt
D130: =ut_Digits&ut_LCU -> тыс. RUB
D131: =ut_Digits&ut_LCU -> тыс. RUB
D132: =ut_Digits&ut_LCU -> тыс. RUB
S133: =SUM(S130:S132) -> 0 | T133: 0 | U133: 0 | V133: 0 | W133: 0 | X133: 0 | Y133: 0 | Z133: 0 | AA133: 0 | AB133: =SUM(AB130:AB132) -> 0 | AC133: 0 | AD133: 0 | AE133: 0 | AF133: 0 | AG133: 0 | AH133: 0 | AI133: 0 | AJ133: 0 | AK133: 0 | AL133: 0 | AM133: 0 | AN133: 0 | AO133: 0 | AP133: 0 | AQ133: 0 | AR133: =SUM(AR130:AR132) -> 0
C136: Отчет о финансовых результатах
C138: Выручка | D138: =ut_Digits&ut_LCU -> тыс. RUB | T138: =ut_Revenue -> 0 | U138: 0 | V138: 0 | W138: 0 | X138: 0 | Y138: 12153492.58 | Z138: 12968035.08 | AA138: 12902582.6 | AB138: 37529997.87 | AC138: 37311763.77 | AD138: 37419840.87 | AE138: 39617892.12 | AF138: 37727266.73 | AG138: 35223653.59 | AH138: 37329406.54 | AI138: 36368264.02 | AJ138: 38910610.71 | AK138: 41750480.46 | AL138: 40195894.92 | AM138: 40100920.69 | AN138: 42804286.85 | AO138: 43177455.82 | AP138: 42692403.83 | AQ138: 41332250.79 | AR138: 44606564.98 | AS138: ut_Revenue_PL
C140: Производственные расходы (без амортизации) | D140: =ut_Digits&ut_LCU -> тыс. RUB | T140: =-ut_COGS -> -165785.85 | U140: -166265.05 | V140: -162190.75 | W140: -160317 | X140: -158375.1 | Y140: -8753099.768 | Z140: -9140809.527 | AA140: -9402931.306 | AB140: -28375990.63 | AC140: -28770660.88 | AD140: -29461536.86 | AE140: -30310831.17 | AF140: -31003131.3 | AG140: -31788120.33 | AH140: -32315038.45 | AI140: -32924380.75 | AJ140: -33525588.29 | AK140: -34873636.07 | AL140: -35520755.09 | AM140: -36721393.38 | AN140: -38126962.35 | AO140: -38890261.35 | AP140: -39820168.19 | AQ140: -41420140.41 | AR140: -42897841.81 | AS140: ut_COGS_PL
C142: Валовая прибыль | D142: =ut_Digits&ut_LCU -> тыс. RUB | T142: =T138+T140 -> -165785.85 | U142: -166265.05 | V142: -162190.75 | W142: -160317 | X142: =X138+X140 -> -158375.1 | Y142: 3400392.815 | Z142: 3827225.555 | AA142: 3499651.296 | AB142: =AB138+AB140 -> 9154007.244 | AC142: 8541102.895 | AD142: 7958304.008 | AE142: 9307060.953 | AF142: 6724135.432 | AG142: 3435533.261 | AH142: 5014368.09 | AI142: 3443883.271 | AJ142: 5385022.428 | AK142: 6876844.398 | AL142: 4675139.833 | AM142: 3379527.305 | AN142: 4677324.499 | AO142: 4287194.469 | AP142: 2872235.634 | AQ142: -87889.6159 | AR142: =AR138+AR140 -> 1708723.168 | AS142: ut_Gross_Revenue
C144: Коммерческие расходы | D144: =ut_Digits&ut_LCU -> тыс. RUB | T144: =-ut_S_Exp -> 0 | U144: 0 | V144: 0 | W144: 0 | X144: 0 | Y144: -384860.5985 | Z144: -410654.4443 | AA144: -408581.7824 | AB144: -1188449.933 | AC144: -1181539.186 | AD144: -1184961.628 | AE144: -1254566.584 | AF144: -1194696.78 | AG144: -1115415.697 | AH144: -1182097.874 | AI144: -1151661.694 | AJ144: -1232169.339 | AK144: -1322098.548 | AL144: -1272870.006 | AM144: -1269862.488 | AN144: -1355469.084 | AO144: -1367286.101 | AP144: -1351926.121 | AQ144: -1308854.608 | AR144: -1412541.224 | AS144: ut_S_Exp_PL
C145: Управленческие и административные расходы | D145: =ut_Digits&ut_LCU -> тыс. RUB | T145: =-ut_GA_Exp -> -11643.33333 | U145: -12028.33333 | V145: -11736.66667 | W145: -12296.66667 | X145: -12215 | Y145: -12110 | Z145: -12693.33333 | AA145: -11993.33333 | AB145: -11725 | AC145: -11900 | AD145: -12331.66667 | AE145: -12460 | AF145: -12600 | AG145: -12495 | AH145: -12436.66667 | AI145: -12390 | AJ145: -11958.33333 | AK145: -12086.66667 | AL145: -12518.33333 | AM145: -12436.66667 | AN145: -11841.66667 | AO145: -12565 | AP145: -12436.66667 | AQ145: -12226.66667 | AR145: -12051.66667 | AS145: ut_GA_Exp_PL
C146: Налоги, акцизы, сборы | D146: =ut_Digits&ut_LCU -> тыс. RUB | T146: =-ut_Taxes -> 0 | U146: 0 | V146: 0 | W146: 0 | X146: 0 | Y146: -260425.7333 | Z146: -257896.32 | AA146: -255348.4267 | AB146: -252782.0533 | AC146: -250197.2 | AD146: -247593.8667 | AE146: -244972.0533 | AF146: -242331.76 | AG146: -239672.9867 | AH146: -236995.7333 | AI146: -234392.4 | AJ146: -231789.0667 | AK146: -229185.7333 | AL146: -226582.4 | AM146: -223979.0667 | AN146: -221375.7333 | AO146: -218772.4 | AP146: -216169.0667 | AQ146: -213565.7333 | AR146: -210962.4 | AS146: ut_Taxes_PL
C147: Прочие операционные доходы и расходы | D147: =ut_Digits&ut_LCU -> тыс. RUB | T147: =-ut_Other_Exp -> -47526 | U147: -46769.5 | V147: -45034 | W147: -48015.5 | X147: -47437 | Y147: -47437 | Z147: -46235.5 | AA147: -47926.5 | AB147: -45078.5 | AC147: -47081 | AD147: -47481.5 | AE147: -46146.5 | AF147: -46413.5 | AG147: -45167.5 | AH147: -44945 | AI147: -44722.5 | AJ147: -45701.5 | AK147: -47971 | AL147: -47437 | AM147: -47214.5 | AN147: -46636 | AO147: -46591.5 | AP147: -47971 | AQ147: -44500 | AR147: -47926.5 | AS147: ut_Other_Exp_PL
C149: Показатели, используемые для корректировки EBITDA
C150: Прибыль / убыток от обесценения активов | D150: =ut_Digits&ut_LCU -> тыс. RUB | AS150: Impairment
D151: =ut_Digits&ut_LCU -> тыс. RUB
D152: =ut_Digits&ut_LCU -> тыс. RUB
D153: =ut_Digits&ut_LCU -> тыс. RUB | AT153: ut_FinExp_PL
T154: =SUM(T150:T153) -> 0 | U154: 0 | V154: 0 | W154: 0 | X154: =SUM(X150:X153) -> 0 | Y154: 0 | Z154: 0 | AA154: 0 | AB154: =SUM(AB150:AB153) -> 0 | AC154: 0 | AD154: 0 | AE154: 0 | AF154: 0 | AG154: 0 | AH154: 0 | AI154: 0 | AJ154: 0 | AK154: 0 | AL154: 0 | AM154: 0 | AN154: 0 | AO154: 0 | AP154: 0 | AQ154: 0 | AR154: =SUM(AR150:AR153) -> 0 | AS154: ut_EBITDA_corrs
C156: EBITDA | D156: =ut_Digits&ut_LCU -> тыс. RUB | T156: =T142+SUM(T144:T147)+T154 -> -224955.1833 | U156: -225062.8833 | V156: -218961.4167 | W156: -220629.1667 | X156: =X142+SUM(X144:X147)+X154 -> -218027.1 | Y156: 2695559.483 | Z156: 3099745.958 | AA156: 2775801.253 | AB156: =AB142+SUM(AB144:AB147)+AB154 -> 7655971.758 | AC156: 7050385.509 | AD156: 6465935.347 | AE156: 7748915.816 | AF156: 5228093.392 | AG156: 2022782.077 | AH156: 3537892.816 | AI156: 2000716.677 | AJ156: 3863404.188 | AK156: 5265502.45 | AL156: 3115732.094 | AM156: 1826034.583 | AN156: 3042002.016 | AO156: 2641979.468 | AP156: 1243732.78 | AQ156: -1667036.624 | AR156: =AR142+SUM(AR144:AR147)+AR154 -> 25241.37717 | AS156: ut_EBITDA
C158: Амортизация | D158: =ut_Digits&ut_LCU -> тыс. RUB | T158: =-ut_Depreciation_PL -> 0 | U158: 0 | V158: 0 | W158: 0 | X158: 0 | Y158: 0 | Z158: -1044597.317 | AA158: -1045437.317 | AB158: -1046277.317 | AC158: -1047117.317 | AD158: -1047957.317 | AE158: -1048797.317 | AF158: -1049637.317 | AG158: -1050477.317 | AH158: -1051317.317 | AI158: -1047957.317 | AJ158: -1047957.317 | AK158: -1047957.317 | AL158: -1047957.317 | AM158: -1047957.317 | AN158: -1047957.317 | AO158: -1047957.317 | AP158: -1047957.317 | AQ158: -1047957.317 | AR158: -1047957.317 | AS158: ut_Depreciation_PL
C160: EBIT | D160: =ut_Digits&ut_LCU -> тыс. RUB | T160: =T156+T158 -> -224955.1833 | U160: -225062.8833 | V160: -218961.4167 | W160: -220629.1667 | X160: =X156+X158 -> -218027.1 | Y160: 2695559.483 | Z160: 2055148.641 | AA160: 1730363.937 | AB160: =AB156+AB158 -> 6609694.441 | AC160: 6003268.192 | AD160: 5417978.03 | AE160: 6700118.499 | AF160: 4178456.075 | AG160: 972304.7604 | AH160: 2486575.499 | AI160: 952759.36 | AJ160: 2815446.872 | AK160: 4217545.133 | AL160: 2067774.777 | AM160: 778077.266 | AN160: 1994044.699 | AO160: 1594022.151 | AP160: 195775.4627 | AQ160: -2714993.941 | AR160: =AR156+AR158 -> -1022715.94 | AS160: ut_EBIT
C162: Проценты к получению | D162: =ut_Digits&ut_LCU -> тыс. RUB | T162: =ut_Fin_Assets_Eq_Interest -> 0 | U162: 0 | V162: 0 | W162: 0 | X162: 0 | Y162: 0 | Z162: 0 | AA162: 0 | AB162: 0 | AC162: 0 | AD162: 0 | AE162: 0 | AF162: 0 | AG162: 0 | AH162: 0 | AI162: 0 | AJ162: 0 | AK162: 0 | AL162: 0 | AM162: 0 | AN162: 0 | AO162: 0 | AP162: 0 | AQ162: 0 | AR162: 0 | AS162: ut_Income_Interest_PL
C163: Проценты к уплате по кредитам | D163: тыс. RUB | T163: =-ut_Total_Interest_Repayment -> 0 | U163: 0 | V163: 0 | W163: 0 | X163: 0 | Y163: 0 | Z163: 0 | AA163: 0 | AB163: -2837692.438 | AC163: -2740330.399 | AD163: -2657853.038 | AE163: -2575921.685 | AF163: -419990.1092 | AG163: -831189.0938 | AH163: -457302.9827 | AI163: -195358.8808 | AJ163: -267982.0342 | AK163: -160803.0928 | AL163: -65338.68633 | AM163: -15910.12153 | AN163: 0 | AO163: 0 | AP163: 0 | AQ163: 0 | AR163: 0 | AS163: ut_Outcome_Interest_PL
C164: Прочие финансовые доходы / расходы | D164: тыс. RUB | AS164: ut_Other_Fin_Inc_PL
C165: Банковские комиссии | D165: тыс. RUB | T165: =-ut_Total_Fees_Repayment -> -2800 | U165: -4000 | V165: -3400 | W165: -42165.35163 | X165: -22307.71238 | Y165: 0 | Z165: 0 | AA165: 0 | AB165: 0 | AC165: 0 | AD165: 0 | AE165: 0 | AF165: 0 | AG165: 0 | AH165: 0 | AI165: 0 | AJ165: 0 | AK165: 0 | AL165: 0 | AM165: 0 | AN165: 0 | AO165: 0 | AP165: 0 | AQ165: 0 | AR165: 0 | AS165: ut_Comissions_PL
C166: Курсовые разницы | D166: тыс. RUB | T166: =0 -> 0 | U166: =0 -> 0 | V166: =0 -> 0 | W166: =0 -> 0 | X166: =0 -> 0 | Y166: =0 -> 0 | Z166: =0 -> 0 | AA166: =0 -> 0 | AB166: =0 -> 0 | AC166: =0 -> 0 | AD166: =0 -> 0 | AE166: =0 -> 0 | AF166: =0 -> 0 | AG166: =0 -> 0 | AH166: =0 -> 0 | AI166: =0 -> 0 | AJ166: =0 -> 0 | AK166: =0 -> 0 | AL166: =0 -> 0 | AM166: =0 -> 0 | AN166: =0 -> 0 | AO166: =0 -> 0 | AP166: =0 -> 0 | AQ166: =0 -> 0 | AR166: =0 -> 0 | AS166: ut_Fx_Differences_PL
C167: Субсидии | D167: тыс. RUB | T167: =ut_Subsidies -> 300000 | U167: 300000 | V167: 300000 | W167: 300000 | X167: 300000 | Y167: 0 | Z167: 0 | AA167: 0 | AB167: 0 | AC167: 0 | AD167: 0 | AE167: 0 | AF167: 0 | AG167: 0 | AH167: 0 | AI167: 0 | AJ167: 0 | AK167: 0 | AL167: 0 | AM167: 0 | AN167: 0 | AO167: 0 | AP167: 0 | AQ167: 0 | AR167: 0 | AS167: ut_Subsidies_PL
C168: Прочие доходы | D168: тыс. RUB | T168: =ut_Other_Income -> 0 | U168: 0 | V168: 0 | W168: 0 | X168: 0 | Y168: 0 | Z168: 0 | AA168: 0 | AB168: 0 | AC168: 0 | AD168: 0 | AE168: 0 | AF168: 0 | AG168: 0 | AH168: 0 | AI168: 0 | AJ168: 0 | AK168: 0 | AL168: 0 | AM168: 0 | AN168: 0 | AO168: 0 | AP168: 0 | AQ168: 0 | AR168: 0 | AS168: ut_Other_Income
C169: Прочие расходы | D169: тыс. RUB | T169: =ut_Other_Expenses -> -700 | U169: -700 | V169: -700 | W169: -700 | X169: -700 | Y169: -700 | Z169: -700 | AA169: -700 | AB169: -700 | AC169: -700 | AD169: -700 | AE169: -700 | AF169: -700 | AG169: -700 | AH169: -700 | AI169: -700 | AJ169: -700 | AK169: -700 | AL169: -700 | AM169: -700 | AN169: -700 | AO169: -700 | AP169: -700 | AQ169: -700 | AR169: -700 | AS169: ut_Other_Expenses
C171: Прибыль до налогообложения | D171: =ut_Digits&ut_LCU -> тыс. RUB | T171: =T160+SUM(T162:T169) -> 71544.81667 | U171: 70237.11667 | V171: 76938.58333 | W171: 36505.4817 | X171: =X160+SUM(X162:X169) -> 58965.18762 | Y171: 2694859.483 | Z171: 2054448.641 | AA171: 1729663.937 | AB171: =AB160+SUM(AB162:AB169) -> 3771302.003 | AC171: 3262237.793 | AD171: 2759424.993 | AE171: 4123496.813 | AF171: 3757765.966 | AG171: 140415.6666 | AH171: 2028572.517 | AI171: 756700.4792 | AJ171: 2546764.837 | AK171: 4056042.04 | AL171: 2001736.09 | AM171: 761467.1444 | AN171: 1993344.699 | AO171: 1593322.151 | AP171: 195075.4627 | AQ171: -2715693.941 | AR171: =AR160+SUM(AR162:AR169) -> -1023415.94 | AS171: ut_PBT
G173: Налоговый убыток | H173: bop | T173: =-S176 -> 0 | U173: =T176 -> 0 | V173: =U176 -> 0 | W173: 0 | X173: =W176 -> 0 | Y173: 0 | Z173: 0 | AA173: 0 | AB173: =AA176 -> 0 | AC173: =AB176 -> 0 | AD173: =AC176 -> 0 | AE173: =AD176 -> 0 | AF173: =AE176 -> 0 | AG173: =AF176 -> 0 | AH173: =AG176 -> 0 | AI173: =AH176 -> 0 | AJ173: =AI176 -> 0 | AK173: =AJ176 -> 0 | AL173: =AK176 -> 0 | AM173: =AL176 -> 0 | AN173: =AM176 -> 0 | AO173: =AN176 -> 0 | AP173: =AO176 -> 0 | AQ173: =AP176 -> 0 | AR173: =AQ176 -> -2715693.941
H174: + in period | T174: =T171*(T171<0) -> 0 | U174: =U171*(U171<0) -> 0 | V174: 0 | W174: =W171*(W171<0) -> 0 | X174: =X171*(X171<0) -> 0 | Y174: 0 | Z174: 0 | AA174: 0 | AB174: =AB171*(AB171<0) -> 0 | AC174: 0 | AD174: 0 | AE174: 0 | AF174: 0 | AG174: 0 | AH174: 0 | AI174: 0 | AJ174: 0 | AK174: 0 | AL174: 0 | AM174: 0 | AN174: 0 | AO174: 0 | AP174: 0 | AQ174: -2715693.941 | AR174: =AR171*(AR171<0) -> -1023415.94
H175: - in period | T175: =T171*(T171>0) -> 71544.81667 | U175: =U171*(U171>0) -> 70237.11667 | V175: 76938.58333 | W175: =W171*(W171>0) -> 36505.4817 | X175: =X171*(X171>0) -> 58965.18762 | Y175: 2694859.483 | Z175: 2054448.641 | AA175: 1729663.937 | AB175: =AB171*(AB171>0) -> 3771302.003 | AC175: 3262237.793 | AD175: 2759424.993 | AE175: 4123496.813 | AF175: 3757765.966 | AG175: 140415.6666 | AH175: 2028572.517 | AI175: 756700.4792 | AJ175: 2546764.837 | AK175: 4056042.04 | AL175: 2001736.09 | AM175: 761467.1444 | AN175: 1993344.699 | AO175: 1593322.151 | AP175: 195075.4627 | AQ175: 0 | AR175: =AR171*(AR171>0) -> 0
H176: eop | T176: =IF((T173+T174+T175)<0,(T173+T174+T175),0) -> 0 | U176: =IF((U173+U174+U175)<0,(U173+U174+U175),0) -> 0 | V176: 0 | W176: 0 | X176: =IF((X173+X174+X175)<0,(X173+X174+X175),0) -> 0 | Y176: 0 | Z176: 0 | AA176: 0 | AB176: =IF((AB173+AB174+AB175)<0,(AB173+AB174+AB175),0) -> 0 | AC176: 0 | AD176: 0 | AE176: 0 | AF176: 0 | AG176: 0 | AH176: 0 | AI176: 0 | AJ176: 0 | AK176: 0 | AL176: 0 | AM176: 0 | AN176: 0 | AO176: 0 | AP176: 0 | AQ176: -2715693.941 | AR176: =IF((AR173+AR174+AR175)<0,(AR173+AR174+AR175),0) -> -3739109.881
G177: База начисления налога на прибыль | T177: =IF(T176<>0,0,SUM(T173:T175)) -> 71544.81667 | U177: =IF(U176<>0,0,SUM(U173:U175)) -> 70237.11667 | V177: 76938.58333 | W177: 36505.4817 | X177: =IF(X176<>0,0,SUM(X173:X175)) -> 58965.18762 | Y177: 2694859.483 | Z177: 2054448.641 | AA177: 1729663.937 | AB177: =IF(AB176<>0,0,SUM(AB173:AB175)) -> 3771302.003 | AC177: 3262237.793 | AD177: 2759424.993 | AE177: 4123496.813 | AF177: 3757765.966 | AG177: 140415.6666 | AH177: 2028572.517 | AI177: 756700.4792 | AJ177: 2546764.837 | AK177: 4056042.04 | AL177: 2001736.09 | AM177: 761467.1444 | AN177: 1993344.699 | AO177: 1593322.151 | AP177: 195075.4627 | AQ177: 0 | AR177: =IF(AR176<>0,0,SUM(AR173:AR175)) -> 0
H178: ОНА in period | T178: =(T174*ut_Profit_Tax_Rate_Inputs)*(T174<0) -> 0 | U178: 0 | V178: 0 | W178: 0 | X178: 0 | Y178: 0 | Z178: 0 | AA178: 0 | AB178: =(AB174*ut_Profit_Tax_Rate_Inputs)*(AB174<0) -> 0 | AC178: 0 | AD178: 0 | AE178: 0 | AF178: 0 | AG178: 0 | AH178: 0 | AI178: 0 | AJ178: 0 | AK178: 0 | AL178: 0 | AM178: 0 | AN178: 0 | AO178: 0 | AP178: 0 | AQ178: -543138.7882 | AR178: =(AR174*ut_Profit_Tax_Rate_Inputs)*(AR174<0) -> -204683.1879
H179: ОНА used | T179: =MIN(T175*ut_Profit_Tax_Rate_Inputs,-S180) -> 0 | U179: 0 | V179: 0 | W179: 0 | X179: 0 | Y179: 0 | Z179: 0 | AA179: 0 | AB179: =MIN(AB175*ut_Profit_Tax_Rate_Inputs,-AA180) -> 0 | AC179: =MIN(AC175*ut_Profit_Tax_Rate_Inputs,-AB180) -> 0 | AD179: =MIN(AD175*ut_Profit_Tax_Rate_Inputs,-AC180) -> 0 | AE179: =MIN(AE175*ut_Profit_Tax_Rate_Inputs,-AD180) -> 0 | AF179: =MIN(AF175*ut_Profit_Tax_Rate_Inputs,-AE180) -> 0 | AG179: =MIN(AG175*ut_Profit_Tax_Rate_Inputs,-AF180) -> 0 | AH179: =MIN(AH175*ut_Profit_Tax_Rate_Inputs,-AG180) -> 0 | AI179: =MIN(AI175*ut_Profit_Tax_Rate_Inputs,-AH180) -> 0 | AJ179: =MIN(AJ175*ut_Profit_Tax_Rate_Inputs,-AI180) -> 0 | AK179: =MIN(AK175*ut_Profit_Tax_Rate_Inputs,-AJ180) -> 0 | AL179: =MIN(AL175*ut_Profit_Tax_Rate_Inputs,-AK180) -> 0 | AM179: =MIN(AM175*ut_Profit_Tax_Rate_Inputs,-AL180) -> 0 | AN179: =MIN(AN175*ut_Profit_Tax_Rate_Inputs,-AM180) -> 0 | AO179: =MIN(AO175*ut_Profit_Tax_Rate_Inputs,-AN180) -> 0 | AP179: =MIN(AP175*ut_Profit_Tax_Rate_Inputs,-AO180) -> 0 | AQ179: =MIN(AQ175*ut_Profit_Tax_Rate_Inputs,-AP180) -> 0 | AR179: =MIN(AR175*ut_Profit_Tax_Rate_Inputs,-AQ180) -> 0
H180: ОНА eop | T180: =S180+T178+T179 -> 0 | U180: =T180+U178+U179 -> 0 | V180: 0 | W180: 0 | X180: =W180+X178+X179 -> 0 | Y180: =X180+Y178+Y179 -> 0 | Z180: =Y180+Z178+Z179 -> 0 | AA180: =Z180+AA178+AA179 -> 0 | AB180: =AA180+AB178+AB179 -> 0 | AC180: =AB180+AC178+AC179 -> 0 | AD180: =AC180+AD178+AD179 -> 0 | AE180: =AD180+AE178+AE179 -> 0 | AF180: =AE180+AF178+AF179 -> 0 | AG180: =AF180+AG178+AG179 -> 0 | AH180: =AG180+AH178+AH179 -> 0 | AI180: =AH180+AI178+AI179 -> 0 | AJ180: =AI180+AJ178+AJ179 -> 0 | AK180: =AJ180+AK178+AK179 -> 0 | AL180: =AK180+AL178+AL179 -> 0 | AM180: =AL180+AM178+AM179 -> 0 | AN180: =AM180+AN178+AN179 -> 0 | AO180: =AN180+AO178+AO179 -> 0 | AP180: =AO180+AP178+AP179 -> 0 | AQ180: =AP180+AQ178+AQ179 -> -543138.7882 | AR180: =AQ180+AR178+AR179 -> -747821.9762
C181: Изменение ОНА / ОНО | T181: =S180-T180 -> 0 | U181: =T180-U180 -> 0 | V181: 0 | W181: 0 | X181: =W180-X180 -> 0 | Y181: =X180-Y180 -> 0 | Z181: =Y180-Z180 -> 0 | AA181: =Z180-AA180 -> 0 | AB181: =AA180-AB180 -> 0 | AC181: =AB180-AC180 -> 0 | AD181: =AC180-AD180 -> 0 | AE181: =AD180-AE180 -> 0 | AF181: =AE180-AF180 -> 0 | AG181: =AF180-AG180 -> 0 | AH181: =AG180-AH180 -> 0 | AI181: =AH180-AI180 -> 0 | AJ181: =AI180-AJ180 -> 0 | AK181: =AJ180-AK180 -> 0 | AL181: =AK180-AL180 -> 0 | AM181: =AL180-AM180 -> 0 | AN181: =AM180-AN180 -> 0 | AO181: =AN180-AO180 -> 0 | AP181: =AO180-AP180 -> 0 | AQ181: =AP180-AQ180 -> 543138.7882 | AR181: =AQ180-AR180 -> 204683.1879 | AS181: ut_Tax_Provisions_Delta_PL
C183: Налог на прибыль | D183: =ut_Digits&ut_LCU -> тыс. RUB | E183: расчет | H183: начисленный | T183: =-(T177*ut_Profit_Tax_Rate_Inputs)*(T177>0) -> 0 | U183: 0 | V183: 0 | W183: 0 | X183: 0 | Y183: 0 | Z183: 0 | AA183: 0 | AB183: =-(AB177*ut_Profit_Tax_Rate_Inputs)*(AB177>0) -> 0 | AC183: 0 | AD183: 0 | AE183: 0 | AF183: 0 | AG183: -28083.13332 | AH183: -405714.5034 | AI183: -151340.0958 | AJ183: -509352.9675 | AK183: -811208.4081 | AL183: -400347.2181 | AM183: -152293.4289 | AN183: -398668.9398 | AO183: -318664.4302 | AP183: -39015.09253 | AQ183: 0 | AR183: =-(AR177*ut_Profit_Tax_Rate_Inputs)*(AR177>0) -> 0 | AS183: ut_Profit_Tax_Calc
C184: Налог на прибыль | D184: =ut_Digits&ut_LCU -> тыс. RUB | E184: вручную, со знаком минус
C186: Налог на прибыль | D186: =ut_Digits&ut_LCU -> тыс. RUB | E186: итог | T186: =IF(T184<>0,T184,T183) -> 0 | U186: =IF(U184<>0,U184,U183) -> 0 | V186: 0 | W186: 0 | X186: =IF(X184<>0,X184,X183) -> 0 | Y186: 0 | Z186: 0 | AA186: 0 | AB186: =IF(AB184<>0,AB184,AB183) -> 0 | AC186: 0 | AD186: 0 | AE186: 0 | AF186: 0 | AG186: -28083.13332 | AH186: -405714.5034 | AI186: -151340.0958 | AJ186: -509352.9675 | AK186: -811208.4081 | AL186: -400347.2181 | AM186: -152293.4289 | AN186: -398668.9398 | AO186: -318664.4302 | AP186: -39015.09253 | AQ186: 0 | AR186: =IF(AR184<>0,AR184,AR183) -> 0 | AS186: ut_Current_ProfitTax
G187: Фактическая оплата
H188: период уплаты налога на прибыль | T188: =ut_Counter+ut_Profit_Tax_Delay_Inputs -> 2 | U188: 3 | V188: 4 | W188: 5 | X188: 6 | Y188: 7 | Z188: 8 | AA188: 9 | AB188: 10 | AC188: 11 | AD188: 12 | AE188: 13 | AF188: 14 | AG188: 15 | AH188: 16 | AI188: 17 | AJ188: 18 | AK188: 19 | AL188: 20 | AM188: 21 | AN188: 22 | AO188: 23 | AP188: 24 | AQ188: 25 | AR188: 26 | AS188: ut_Profit_Tax_Periods
H189: ОНО | T189: =-T186+T190 -> 0 | U189: =T189-U186+U190 -> 0 | V189: =U189-V186+V190 -> 0 | W189: 0 | X189: =W189-X186+X190 -> 0 | Y189: =X189-Y186+Y190 -> 0 | Z189: =Y189-Z186+Z190 -> 0 | AA189: =Z189-AA186+AA190 -> 0 | AB189: =AA189-AB186+AB190 -> 0 | AC189: =AB189-AC186+AC190 -> 0 | AD189: =AC189-AD186+AD190 -> 0 | AE189: =AD189-AE186+AE190 -> 0 | AF189: =AE189-AF186+AF190 -> 0 | AG189: =AF189-AG186+AG190 -> 28083.13332 | AH189: =AG189-AH186+AH190 -> 405714.5034 | AI189: =AH189-AI186+AI190 -> 151340.0958 | AJ189: =AI189-AJ186+AJ190 -> 509352.9675 | AK189: =AJ189-AK186+AK190 -> 811208.4081 | AL189: =AK189-AL186+AL190 -> 400347.2181 | AM189: =AL189-AM186+AM190 -> 152293.4289 | AN189: =AM189-AN186+AN190 -> 398668.9398 | AO189: =AN189-AO186+AO190 -> 318664.4302 | AP189: =AO189-AP186+AP190 -> 39015.09253 | AQ189: =AP189-AQ186+AQ190 -> 0 | AR189: =AQ189-AR186+AR190 -> 0
H190: оплата в CF | T190: =SUMIFS(ut_Current_ProfitTax,ut_Profit_Tax_Periods,ut_Counter) -> 0 | U190: =SUMIFS(ut_Profit_Tax_Calc,ut_Profit_Tax_Periods,ut_Counter) -> 0 | V190: 0 | W190: 0 | X190: 0 | Y190: 0 | Z190: 0 | AA190: 0 | AB190: 0 | AC190: 0 | AD190: 0 | AE190: 0 | AF190: 0 | AG190: 0 | AH190: -28083.13332 | AI190: -405714.5034 | AJ190: -151340.0958 | AK190: -509352.9675 | AL190: -811208.4081 | AM190: -400347.2181 | AN190: -152293.4289 | AO190: -398668.9398 | AP190: -318664.4302 | AQ190: -39015.09253 | AR190: 0 | AS190: ut_Profit_Tax_CF
C192: Чистая прибыль | D192: =ut_Digits&ut_LCU -> тыс. RUB | T192: =T171+T186 -> 71544.81667 | U192: =U171+U186 -> 70237.11667 | V192: =V171+V186 -> 76938.58333 | W192: =W171+W186 -> 36505.4817 | X192: =X171+X186 -> 58965.18762 | Y192: 2694859.483 | Z192: 2054448.641 | AA192: 1729663.937 | AB192: =AB171+AB186 -> 3771302.003 | AC192: 3262237.793 | AD192: 2759424.993 | AE192: 4123496.813 | AF192: 3757765.966 | AG192: 112332.5333 | AH192: 1622858.013 | AI192: 605360.3833 | AJ192: 2037411.87 | AK192: 3244833.632 | AL192: 1601388.872 | AM192: 609173.7155 | AN192: 1594675.759 | AO192: 1274657.721 | AP192: 156060.3701 | AQ192: -2715693.941 | AR192: =AR171+AR186 -> -1023415.94 | AS192: ut_Net_Income
C196: Debt service indicators
C198: Настройки субординации долга
C200: Наименование кредита | D200: Валюта | E200: Кредитор | H200: Тип субординации | J200: номер | K200: subord_types | M200: строка | AS200: ut_rm_balance_eop
C201: =IFERROR(INDEX(ut_Debt_Dir,J201,1),0) -> Кредит 1 | D201: =IFERROR(INDEX(ut_Debt_Dir,J201,2),0) -> RUB | E201: =IFERROR(INDEX(ut_Debt_Dir,J201,3),0) -> ВЭБ | H201: учитывается в IS/DS | J201: =IFERROR(J200+1,1) -> 1 | K201: =IFERROR(MATCH(H201,ut_Subord_types,0),1) -> 1 | M201: =IFERROR(MATCH(J201,ut_Finance_Numbers,0)+24,1) -> 25 | N201: долг | T201: =INDEX(ut_Debt_Data,$M201,T$1) -> 1400000 | U201: 3400000 | V201: 5100000 | W201: 6500000 | X201: 6700000 | Y201: 1642308.91 | Z201: 28432.32316 | AA201: 0 | AB201: 0 | AC201: 0 | AD201: 0 | AE201: 0 | AF201: 0 | AG201: 0 | AH201: 0 | AI201: 0 | AJ201: 0 | AK201: 0 | AL201: 0 | AM201: 0 | AN201: 0 | AO201: 0 | AP201: 0 | AQ201: 0 | AR201: =INDEX(ut_Debt_Data,$M201,AR$1) -> 0
C202: =IFERROR(INDEX(ut_Debt_Dir,J202,1),0) -> Кредит 2 | D202: =IFERROR(INDEX(ut_Debt_Dir,J202,2),0) -> EUR | E202: =IFERROR(INDEX(ut_Debt_Dir,J202,3),0) -> Прочие | H202: учитывается в IS/DS | J202: =IFERROR(J201+1,1) -> 2 | K202: =IFERROR(MATCH(H202,ut_Subord_types,0),1) -> 1 | M202: =IFERROR(MATCH(J202,ut_Finance_Numbers,0)+24,1) -> 60 | N202: долг | T202: 0 | U202: 0 | V202: 0 | W202: 19682675.81 | X202: 27689032.01 | Y202: 24437659.16 | Z202: 23400167.07 | AA202: 21431484.67 | AB202: 19972536.1 | AC202: 18007616.51 | AD202: 16405361.73 | AE202: 13911048.9 | AF202: 9984335.527 | AG202: 9167003.424 | AH202: 7148083.724 | AI202: 6282844.318 | AJ202: 4021195.405 | AK202: 923897.2466 | AL202: -752024.9171 | AM202: -1547530.993 | AN202: -1547530.993 | AO202: -1547530.993 | AP202: -1547530.993 | AQ202: -1547530.993 | AR202: -1547530.993
C203: =IFERROR(INDEX(ut_Debt_Dir,J203,1),0) -> Кредит 3 | D203: =IFERROR(INDEX(ut_Debt_Dir,J203,2),0) -> USD | E203: =IFERROR(INDEX(ut_Debt_Dir,J203,3),0) -> Прочие | H203: учитывается в IS/DS | J203: 3 | K203: =IFERROR(MATCH(H203,ut_Subord_types,0),1) -> 1 | M203: =IFERROR(MATCH(J203,ut_Finance_Numbers,0)+24,1) -> 95 | N203: долг | T203: 0 | U203: 0 | V203: 0 | W203: 0 | X203: 2947500 | Y203: 2018536.33 | Z203: 1722110.019 | AA203: 1159629.333 | AB203: 370704.8067 | AC203: -124134.0393 | AD203: -124134.0393 | AE203: -124134.0393 | AF203: -124134.0393 | AG203: -124134.0393 | AH203: -124134.0393 | AI203: -124134.0393 | AJ203: -124134.0393 | AK203: -124134.0393 | AL203: -124134.0393 | AM203: -124134.0393 | AN203: -124134.0393 | AO203: -124134.0393 | AP203: -124134.0393 | AQ203: -124134.0393 | AR203: -124134.0393
H205: погашение % | AS205: ut_rm_interest_repayment
C206: =C201 -> Кредит 1 | D206: =D201 -> RUB | E206: =E201 -> ВЭБ | H206: =H201 -> учитывается в IS/DS | J206: =J201 -> 1 | K206: =IFERROR(MATCH(H206,ut_Subord_types,0),1) -> 1 | M206: =IFERROR(MATCH(J206,ut_Finance_Numbers,0)+30,1) -> 31 | T206: =INDEX(ut_Debt_Data,$M206,T$1) -> 0 | U206: 0 | V206: 0 | W206: 0 | X206: 0 | Y206: 0 | Z206: 0 | AA206: 0 | AB206: 1000000 | AC206: 1000000 | AD206: 1000000 | AE206: 1000000 | AF206: -1027511.052 | AG206: 0 | AH206: 0 | AI206: 0 | AJ206: 0 | AK206: 0 | AL206: 0 | AM206: 0 | AN206: 0 | AO206: 0 | AP206: 0 | AQ206: 0 | AR206: =INDEX(ut_Debt_Data,$M206,AR$1) -> 0
C207: =C202 -> Кредит 2 | D207: EUR | E207: Прочие | H207: =H202 -> учитывается в IS/DS | J207: =J202 -> 2 | K207: =IFERROR(MATCH(H207,ut_Subord_types,0),1) -> 1 | M207: =IFERROR(MATCH(J207,ut_Finance_Numbers,0)+30,1) -> 66 | T207: 0 | U207: 0 | V207: 0 | W207: 0 | X207: 0 | Y207: 0 | Z207: 0 | AA207: 0 | AB207: 1728573.888 | AC207: 1660096.525 | AD207: 1588753.038 | AE207: 1506821.685 | AF207: 1378401.161 | AG207: 762089.0938 | AH207: 388202.9827 | AI207: 330519.8006 | AJ207: 267982.0342 | AK207: 160803.0928 | AL207: 65338.68633 | AM207: 15910.12153 | AN207: 0 | AO207: 0 | AP207: 0 | AQ207: 0 | AR207: 0
C208: =C203 -> Кредит 3 | D208: USD | E208: Прочие | H208: учитывается в IS/DS | J208: 3 | K208: =IFERROR(MATCH(H208,ut_Subord_types,0),1) -> 1 | M208: =IFERROR(MATCH(J208,ut_Finance_Numbers,0)+30,1) -> 101 | T208: 0 | U208: 0 | V208: 0 | W208: 0 | X208: 0 | Y208: 0 | Z208: 0 | AA208: 0 | AB208: 109118.5499 | AC208: 80233.87404 | AD208: 69100 | AE208: 69100 | AF208: 69100 | AG208: 69100 | AH208: 69100 | AI208: -135160.9197 | AJ208: 0 | AK208: 0 | AL208: 0 | AM208: 0 | AN208: 0 | AO208: 0 | AP208: 0 | AQ208: 0 | AR208: 0
H210: погашение долга | AS210: ut_rm_debt_repayment
C211: =C201 -> Кредит 1 | D211: =D201 -> RUB | E211: =E201 -> ВЭБ | H211: =H201 -> учитывается в IS/DS | J211: =J201 -> 1 | K211: =IFERROR(MATCH(H211,ut_Subord_types,0),1) -> 1 | M211: =IFERROR(MATCH(J211,ut_Finance_Numbers,0)+32,1) -> 33 | T211: =INDEX(ut_Debt_Data,$M211,T$1) -> 0 | U211: 0 | V211: 0 | W211: 0 | X211: 0 | Y211: 5057691.09 | Z211: 1613876.586 | AA211: 28432.32316 | AB211: 0 | AC211: 0 | AD211: 0 | AE211: 0 | AF211: 0 | AG211: 0 | AH211: 0 | AI211: 0 | AJ211: 0 | AK211: 0 | AL211: 0 | AM211: 0 | AN211: 0 | AO211: 0 | AP211: 0 | AQ211: 0 | AR211: =INDEX(ut_Debt_Data,$M211,AR$1) -> 0
C212: =C202 -> Кредит 2 | D212: EUR | E212: Прочие | H212: =H202 -> учитывается в IS/DS | J212: =J202 -> 2 | K212: =IFERROR(MATCH(H212,ut_Subord_types,0),1) -> 1 | M212: =IFERROR(MATCH(J212,ut_Finance_Numbers,0)+32,1) -> 68 | T212: 0 | U212: 0 | V212: 0 | W212: 0 | X212: 0 | Y212: 3251372.844 | Z212: 1037492.091 | AA212: 1968682.399 | AB212: 1458948.57 | AC212: 1964919.588 | AD212: 1602254.782 | AE212: 2494312.833 | AF212: 3926713.372 | AG212: 817332.1029 | AH212: 2018919.7 | AI212: 865239.4063 | AJ212: 2261648.912 | AK212: 3097298.159 | AL212: 1675922.164 | AM212: 795506.0763 | AN212: 0 | AO212: 0 | AP212: 0 | AQ212: 0 | AR212: 0
C213: =C203 -> Кредит 3 | D213: USD | E213: Прочие | H213: учитывается в IS/DS | J213: 3 | K213: =IFERROR(MATCH(H213,ut_Subord_types,0),1) -> 1 | M213: =IFERROR(MATCH(J213,ut_Finance_Numbers,0)+32,1) -> 103 | T213: 0 | U213: 0 | V213: 0 | W213: 0 | X213: 0 | Y213: 928963.6697 | Z213: 296426.3118 | AA213: 562480.6853 | AB213: 788924.5265 | AC213: 494838.846 | AD213: 0 | AE213: 0 | AF213: 0 | AG213: 0 | AH213: 0 | AI213: 0 | AJ213: 0 | AK213: 0 | AL213: 0 | AM213: 0 | AN213: 0 | AO213: 0 | AP213: 0 | AQ213: 0 | AR213: 0
H215: привлечение долга | AS215: ut_rm_debt_attraction
C216: =C201 -> Кредит 1 | D216: =D201 -> RUB | E216: =E201 -> ВЭБ | H216: =H201 -> учитывается в IS/DS | J216: =J201 -> 1 | K216: =IFERROR(MATCH(H216,ut_Subord_types,0),1) -> 1 | M216: =IFERROR(MATCH(J216,ut_Finance_Numbers,0)+31,1) -> 32 | T216: =INDEX(ut_Debt_Data,$M216,T$1) -> 1400000 | U216: 2000000 | V216: 1700000 | W216: 1400000 | X216: 200000 | Y216: 0 | Z216: 0 | AA216: 0 | AB216: 0 | AC216: 0 | AD216: 0 | AE216: 0 | AF216: 0 | AG216: 0 | AH216: 0 | AI216: 0 | AJ216: 0 | AK216: 0 | AL216: 0 | AM216: 0 | AN216: 0 | AO216: 0 | AP216: 0 | AQ216: 0 | AR216: =INDEX(ut_Debt_Data,$M216,AR$1) -> 0
C217: =C202 -> Кредит 2 | D217: EUR | E217: Прочие | H217: =H202 -> учитывается в IS/DS | J217: =J202 -> 2 | K217: =IFERROR(MATCH(H217,ut_Subord_types,0),1) -> 1 | M217: =IFERROR(MATCH(J217,ut_Finance_Numbers,0)+31,1) -> 67 | T217: 0 | U217: 0 | V217: 0 | W217: 19682675.81 | X217: 8006356.191 | Y217: 0 | Z217: 0 | AA217: 0 | AB217: 0 | AC217: 0 | AD217: 0 | AE217: 0 | AF217: 0 | AG217: 0 | AH217: 0 | AI217: 0 | AJ217: 0 | AK217: 0 | AL217: 0 | AM217: 0 | AN217: 0 | AO217: 0 | AP217: 0 | AQ217: 0 | AR217: 0
C218: =C203 -> Кредит 3 | D218: USD | E218: Прочие | H218: учитывается в IS/DS | J218: 3 | K218: =IFERROR(MATCH(H218,ut_Subord_types,0),1) -> 1 | M218: =IFERROR(MATCH(J218,ut_Finance_Numbers,0)+31,1) -> 102 | T218: 0 | U218: 0 | V218: 0 | W218: 0 | X218: 2947500 | Y218: 0 | Z218: 0 | AA218: 0 | AB218: 0 | AC218: 0 | AD218: 0 | AE218: 0 | AF218: 0 | AG218: 0 | AH218: 0 | AI218: 0 | AJ218: 0 | AK218: 0 | AL218: 0 | AM218: 0 | AN218: 0 | AO218: 0 | AP218: 0 | AQ218: 0 | AR218: 0
C223: Расчет в размерности модели
C225: EBIT | T225: =ut_EBIT_PL -> -224955.1833 | U225: -225062.8833 | V225: -218961.4167 | W225: -220629.1667 | X225: -218027.1 | Y225: 2695559.483 | Z225: 2055148.641 | AA225: 1730363.937 | AB225: 6609694.441 | AC225: 6003268.192 | AD225: 5417978.03 | AE225: 6700118.499 | AF225: 4178456.075 | AG225: 972304.7604 | AH225: 2486575.499 | AI225: 952759.36 | AJ225: 2815446.872 | AK225: 4217545.133 | AL225: 2067774.777 | AM225: 778077.266 | AN225: 1994044.699 | AO225: 1594022.151 | AP225: 195775.4627 | AQ225: -2714993.941 | AR225: -1022715.94
C226: EBITDA | T226: =ut_EBITDA_PL -> -224955.1833 | U226: -225062.8833 | V226: -218961.4167 | W226: -220629.1667 | X226: -218027.1 | Y226: 2695559.483 | Z226: 3099745.958 | AA226: 2775801.253 | AB226: 7655971.758 | AC226: 7050385.509 | AD226: 6465935.347 | AE226: 7748915.816 | AF226: 5228093.392 | AG226: 2022782.077 | AH226: 3537892.816 | AI226: 2000716.677 | AJ226: 3863404.188 | AK226: 5265502.45 | AL226: 3115732.094 | AM226: 1826034.583 | AN226: 3042002.016 | AO226: 2641979.468 | AP226: 1243732.78 | AQ226: -1667036.624 | AR226: 25241.37717
C228: Debt | T228: =SUMIFS(T201:T204,$K201:$K204,1) -> 1400000 | U228: 3400000 | V228: 5100000 | W228: 26182675.81 | X228: 37336532.01 | Y228: 28098504.4 | Z228: 25150709.41 | AA228: 22591114.01 | AB228: =SUMIFS(AB201:AB204,$K201:$K204,1) -> 20343240.91 | AC228: 17883482.47 | AD228: 16281227.69 | AE228: 13786914.86 | AF228: 9860201.488 | AG228: 9042869.385 | AH228: 7023949.685 | AI228: 6158710.278 | AJ228: 3897061.366 | AK228: 799763.2073 | AL228: -876158.9564 | AM228: -1671665.033 | AN228: -1671665.033 | AO228: -1671665.033 | AP228: -1671665.033 | AQ228: -1671665.033 | AR228: =SUMIFS(AR201:AR204,$K201:$K204,1) -> -1671665.033 | AS228: DB_Debt
C229: Debt (VEB) | T229: =SUMIFS(T201:T204,$K201:$K204,1,$E201:$E204,"ВЭБ") -> 1400000 | U229: 3400000 | V229: 5100000 | W229: 6500000 | X229: 6700000 | Y229: 1642308.91 | Z229: 28432.32316 | AA229: 0 | AB229: =SUMIFS(AB201:AB204,$K201:$K204,1,$E201:$E204,"ВЭБ") -> 0 | AC229: 0 | AD229: 0 | AE229: 0 | AF229: 0 | AG229: 0 | AH229: 0 | AI229: 0 | AJ229: 0 | AK229: 0 | AL229: 0 | AM229: 0 | AN229: 0 | AO229: 0 | AP229: 0 | AQ229: 0 | AR229: =SUMIFS(AR201:AR204,$K201:$K204,1,$E201:$E204,"ВЭБ") -> 0
C230: Debt (others) | T230: =T228-T229 -> 0 | U230: =U228-U229 -> 0 | V230: 0 | W230: 19682675.81 | X230: 30636532.01 | Y230: 26456195.49 | Z230: 25122277.09 | AA230: =AA228-AA229 -> 22591114.01 | AB230: =AB228-AB229 -> 20343240.91 | AC230: 17883482.47 | AD230: 16281227.69 | AE230: 13786914.86 | AF230: 9860201.488 | AG230: 9042869.385 | AH230: 7023949.685 | AI230: 6158710.278 | AJ230: 3897061.366 | AK230: 799763.2073 | AL230: -876158.9564 | AM230: -1671665.033 | AN230: -1671665.033 | AO230: -1671665.033 | AP230: -1671665.033 | AQ230: -1671665.033 | AR230: =AR228-AR229 -> -1671665.033
C231: Debt (balancing) | T231: =T82 -> 0 | U231: 0 | V231: 0 | W231: 0 | X231: 0 | Y231: 0 | Z231: 0 | AA231: 0 | AB231: =AB82 -> 0 | AC231: 0 | AD231: 0 | AE231: 0 | AF231: 0 | AG231: 0 | AH231: 0 | AI231: 0 | AJ231: 0 | AK231: 0 | AL231: 0 | AM231: 0 | AN231: 0 | AO231: 0 | AP231: 0 | AQ231: 0 | AR231: =AR82 -> 0
